Workbook

Sheet User's instructions
C2: 1. Unblock the Excel file after downloading the Excel file from the Internet
C36: More detailed instructions are available on the following link: : https://www.buyexceltemplates.com/pages/excel-unblock-file-properties-windows-10-after-downloading-internet
C39: 2. Click on the "Refresh" button in the top left-hand corner of some graph sheets to refresh the graphs after updating the data (see example below).

Sheet Input. 2016 fmk
D2: Team leader | L2: PEFA 2016 FRAMEWORK
D4: Country | I4: PEFALIA
D7: Current assessment | I7: 2021
D9: Previous assessment | I9: 2016
I12: Global score | J12: =IFERROR(AVERAGEIFS(N27:N153,$E27:$E153,"Indic",N27:N153,">0"),0) -> 0 | K12: =AVERAGEIFS(O27:O153,$E27:$E153,"Indic",O27:O153,">0") -> 1.456896552
I13: Global score | J13: =IF(J12>3.65,"A", IF(J12>=3.25,"B+", IF(J12>2.65,"B", IF(J12>=2.25,"C+", IF(J12>1.75,"C", IF(J12>1.25,"D+", IF(AND(J12<=1.25,J12>0),"D", "" ))))))) ->  | K13: =IF(K12>3.65,"A", IF(K12>=3.25,"B+", IF(K12>2.65,"B", IF(K12>=2.25,"C+", IF(K12>1.75,"C", IF(K12>1.25,"D+", IF(AND(K12<=1.25,K12>0),"D", "" ))))))) -> D+
A15: Pays | B15: ID | C15: IDC | D15: Method | E15: Type | F15: ID_Pilar | G15: Pilar | H15: ID-Indic | I15: Label | J15: =I9 -> 2016 | K15: =I7 -> 2021 | L15: Comp | M15: ="Num-Temp "&$J15 -> Num-Temp 2016 | N15: ="Num-"&$J15 -> Num-2016 | O15: ="Num-Temp "&$K15 -> Num-Temp 2021 | P15: ="Num-"&$K15 -> Num-2021 | Q15: ="Perf-"&$K15 -> Perf-2021 | R15: ="SW-"&$K15 -> SW-2021 | S15: Evol | T15: Previous justification | U15: Current justification | V15: PI | W15: Outcome1 | X15: Outcome2 | Y15: Outcome3 | Z15: Section | AA15: ="Perf-"&$K15 -> Perf-2021
A16: =$I$4 -> PEFALIA | B16: HLG | C16: HLG | E16: Pilar | F16: HLG | G16: =VLOOKUP(F16,Profile!B:C,2,FALSE) -> Higher levels of government | I16: =IFERROR(VLOOKUP(B16,#REF!,2,FALSE),"") ->  | J16: =IF(N16>3.65,"A", IF(N16>=3.25,"B+", IF(N16>2.65,"B", IF(N16>=2.25,"C+", IF(N16>1.75,"C", IF(N16>1.25,"D+", IF(AND(N16<=1.25,N16>0),"D", IF(N16=0,"NA", "" )))))))) -> NA | K16: =IF(O16>3.65,"A", IF(O16>=3.25,"B+", IF(O16>2.65,"B", IF(O16>=2.25,"C+", IF(O16>1.75,"C", IF(O16>1.25,"D+", IF(AND(O16<=1.25,O16>0),"D", IF(O16=0,"NA", "" )))))))) -> D+ | L16: =IF(COUNTIFS(L17:L25,Profile!E152)=9,Profile!E152,Profile!E153) -> Yes | M16: =AVERAGEIFS(M$16:M$153,$E$16:$E$153,"Indic",$F$16:$F$153,$F16) -> 0 | N16: =AVERAGEIFS(N$16:N$153,$E$16:$E$153,"Indic",$F$16:$F$153,$F16) -> 0 | O16: =AVERAGEIFS(O$16:O$153,$E$16:$E$153,"Indic",$F$16:$F$153,$F16) -> 1.375 | P16: =IF($K16="D",1, IF($K16="D+",1.5, IF($K16="C",2, IF($K16="C+",2.5, IF($K16="B",3, IF($K16="B+",3.5, IF($K16="A",4, ))))))) -> 1.5 | Q16: =IF(K16="D",Profile!$F$276, IF(K16="D*",Profile!$F$276, IF(K16="D+",Profile!$F$276, IF(K16="C",Profile!$F$277, IF(K16="C+",Profile!$F$277, IF(K16="B+",Profile!$F$278, IF(K16="B",Profile!$F$278, IF(K16="A",Profile!$F$279,"")))))))) -> 1. Below basic | R16: =IF(K16="A",Profile!$F$280, IF(K16="B+",Profile!$F$280, IF(K16="B",Profile!$F$280, IF(K16="D+",Profile!$F$281, IF(K16="D",Profile!$F$281, Profile!$F$282))))) -> Weakness | S16: =IFERROR(IF(L16=Profile!$E$152,IF(O16-N16<0,"-",IF(O16-N16>0,"+"," =")),"N.C"),"") -> +
A17: =$I$4 -> PEFALIA | B17: HLG-1 | C17: HLG-1 | D17: M2 | E17: Indic | F17: HLG | G17: =VLOOKUP(F17,Profile!B:C,2,FALSE) -> Higher levels of government | H17: HLG-1 | I17: =IFERROR(VLOOKUP(B17,Profile!B:C,2,FALSE),"") -> HLG-1 Transfer from higher levels of government | J17: =IF(N17>3.65,"A", IF(N17>=3.25,"B+", IF(N17>2.65,"B", IF(N17>=2.25,"C+", IF(N17>1.75,"C", IF(N17>1.25,"D+", IF(AND(N17<=1.25,N17>0),"D", IF(N17=0,"NA", "" )))))))) -> NA | K17: D+ | L17: =IF(OR(L18=Profile!E152,L19=Profile!E152,L20=Profile!E152,L21=Profile!E152),Profile!E152,Profile!E153) -> Yes | M17: =IFERROR(IF($D17="M1",IF(ROUND(AVERAGEIF(M18:M21,">0"),1)=ROUND(MIN(IF(M18:M21>0,M18:M21)),1),AVERAGE(M18:M21),MIN(IF(M18:M21>0,M18:M21))+0.5),AVERAGEIF(M18:M21,">0")),0) -> 0 | N17: =IFERROR(IF($D17="M1",IF(ROUND(AVERAGEIF(N18:N21,">0"),1)=ROUND(MAX(IF(N18:N21>0,N18:N21)),1),MAX(N18:N21),MAX(IF(N18:N21>0,N18:N21))+0.5),AVERAGEIF(N18:N21,">0")),0) -> 0 | O17: =IFERROR(IF($D17="M1",IF(ROUND(AVERAGEIF(O18:O21,">0"),1)=ROUND(MIN(IF(O18:O21>0,O18:O21)),1),AVERAGE(O18:O21),MIN(IF(O18:O21>0,O18:O21))+0.5),AVERAGEIF(O18:O21,">0")),0) -> 1.75 | P17: =IF($K17="D",1, IF($K17="D+",1.5, IF($K17="C",2, IF($K17="C+",2.5, IF($K17="B",3, IF($K17="B+",3.5, IF($K17="A",4, ))))))) -> 1.5 | Q17: =IF(K17="D",Profile!$F$276, IF(K17="D*",Profile!$F$276, IF(K17="D+",Profile!$F$276, IF(K17="C",Profile!$F$277, IF(K17="C+",Profile!$F$277, IF(K17="B+",Profile!$F$278, IF(K17="B",Profile!$F$278, IF(K17="A",Profile!$F$279,"")))))))) -> 1. Below basic | R17: =IF(K17="A",Profile!$F$280, IF(K17="B+",Profile!$F$280, IF(K17="B",Profile!$F$280, IF(K17="D+",Profile!$F$281, IF(K17="D",Profile!$F$281, Profile!$F$282))))) -> Weakness | S17: =IFERROR(IF(L17=Profile!$E$152,IF(O17-N17<0,"-",IF(O17-N17>0,"+"," =")),"N.C"),"") -> + | V17: ="("&H17&")" -> (HLG-1) | W17: 1 | X17: 1 | Y17: 0 | Z17: =Z18 -> 4 | AA17: =IF($O17>=3.25,Profile!$F$279, IF($O17>=2.5,Profile!$F$278, IF($O17>=1.75,Profile!$F$277, IF($O17>=1,Profile!$F$276, "" )))) -> 2. Basic
A18: PEFALIA | B18: HLG-1.1 | C18: HLG-1.1 | E18: Comp | F18: HLG | G18: =VLOOKUP(F18,Profile!B:C,2,FALSE) -> Higher levels of government | H18: HLG-1 | I18: =IFERROR(VLOOKUP(B18,Profile!B:C,2,FALSE),"") -> HLG-1.1 Outturn of transfers from higher levels of government | K18: A | L18: =Profile!$E$152 -> Yes | M18: =IFERROR(IF(TRIM(CLEAN(J18))="A",4)+IF(TRIM(CLEAN(J18))="B+",3.5)+IF(TRIM(CLEAN(J18))="B",3)+IF(TRIM(CLEAN(J18))="C+",2.5)+IF(TRIM(CLEAN(J18))="C",2)+IF(TRIM(CLEAN(J18))="D+",1.5)+IF(TRIM(CLEAN(J18))="D",1)+IF(TRIM(CLEAN(J18))="D*",1)+IF(TRIM(CLEAN(J18))="NU",0)+IF(TRIM(CLEAN(J18))="",0),"") -> 0 | N18: =M18 -> 0 | O18: =IFERROR(IF(TRIM(CLEAN(K18))="A",4)+IF(TRIM(CLEAN(K18))="B+",3.5)+IF(TRIM(CLEAN(K18))="B",3)+IF(TRIM(CLEAN(K18))="C+",2.5)+IF(TRIM(CLEAN(K18))="C",2)+IF(TRIM(CLEAN(K18))="D+",1.5)+IF(TRIM(CLEAN(K18))="D",1)+IF(TRIM(CLEAN(K18))="D*",1)+IF(TRIM(CLEAN(K18))="NU",0)+IF(TRIM(CLEAN(K18))="",0),"") -> 4 | P18: =O18 -> 4 | Q18: =IF(K18="D",Profile!$F$276, IF(K18="D*",Profile!$F$276, IF(K18="D+",Profile!$F$276, IF(K18="C",Profile!$F$277, IF(K18="C+",Profile!$F$277, IF(K18="B+",Profile!$F$278, IF(K18="B",Profile!$F$278, IF(K18="A",Profile!$F$279,"")))))))) -> 4. High | R18: =IF(K18="A",Profile!$F$280, IF(K18="B+",Profile!$F$280, IF(K18="B",Profile!$F$280, IF(K18="D+",Profile!$F$281, IF(K18="D",Profile!$F$281, Profile!$F$282))))) -> Strength | S18: =IFERROR(IF(L18=Profile!$E$152,IF(O18-N18<0,"-",IF(O18-N18>0,"+"," =")),"N.C"),"") -> + | U18: State transfers to the Commune were therefore 98.1% in 2018, 169.34% in 2019 and 97.6% in 2020, i.e. between 97% and 106% for fiscal 2018 and 2020. | V18: (HLG-1) | W18: 1 | X18: 1 | Y18: 0 | Z18: 4 | AA18: =IF($O18>=3.25,Profile!$F$279, IF($O18>=2.5,Profile!$F$278, IF($O18>=1.75,Profile!$F$277, IF($O18>=1,Profile!$F$276, "" )))) -> 4. High
A19: PEFALIA | B19: HLG-1.2 | C19: HLG-1.2 | E19: Comp | F19: HLG | G19: =VLOOKUP(F19,Profile!B:C,2,FALSE) -> Higher levels of government | H19: HLG-1 | I19: =IFERROR(VLOOKUP(B19,Profile!B:C,2,FALSE),"") -> HLG-1.2 Transfers composition outturn | K19: D | L19: =Profile!$E$152 -> Yes | M19: =IFERROR(IF(TRIM(CLEAN(J19))="A",4)+IF(TRIM(CLEAN(J19))="B+",3.5)+IF(TRIM(CLEAN(J19))="B",3)+IF(TRIM(CLEAN(J19))="C+",2.5)+IF(TRIM(CLEAN(J19))="C",2)+IF(TRIM(CLEAN(J19))="D+",1.5)+IF(TRIM(CLEAN(J19))="D",1)+IF(TRIM(CLEAN(J19))="D*",1)+IF(TRIM(CLEAN(J19))="NU",0)+IF(TRIM(CLEAN(J19))="",0),"") -> 0 | N19: =M19 -> 0 | O19: =IFERROR(IF(TRIM(CLEAN(K19))="A",4)+IF(TRIM(CLEAN(K19))="B+",3.5)+IF(TRIM(CLEAN(K19))="B",3)+IF(TRIM(CLEAN(K19))="C+",2.5)+IF(TRIM(CLEAN(K19))="C",2)+IF(TRIM(CLEAN(K19))="D+",1.5)+IF(TRIM(CLEAN(K19))="D",1)+IF(TRIM(CLEAN(K19))="D*",1)+IF(TRIM(CLEAN(K19))="NU",0)+IF(TRIM(CLEAN(K19))="",0),"") -> 1 | P19: =O19 -> 1 | Q19: =IF(K19="D",Profile!$F$276, IF(K19="D*",Profile!$F$276, IF(K19="D+",Profile!$F$276, IF(K19="C",Profile!$F$277, IF(K19="C+",Profile!$F$277, IF(K19="B+",Profile!$F$278, IF(K19="B",Profile!$F$278, IF(K19="A",Profile!$F$279,"")))))))) -> 1. Below basic | R19: =IF(K19="A",Profile!$F$280, IF(K19="B+",Profile!$F$280, IF(K19="B",Profile!$F$280, IF(K19="D+",Profile!$F$281, IF(K19="D",Profile!$F$281, Profile!$F$282))))) -> Weakness | S19: =IFERROR(IF(L19=Profile!$E$152,IF(O19-N19<0,"-",IF(O19-N19>0,"+"," =")),"N.C"),"") -> + | U19: The composition of transfers carried out deviated from the initial composition by 15.3% in 2018, 66.3% in 2019, and 39.9% in 2020, i.e. by more than 15% over the three years covered by the assessment. | V19: (HLG-1) | W19: 1 | X19: 1 | Y19: 0 | Z19: 4 | AA19: =IF($O19>=3.25,Profile!$F$279, IF($O19>=2.5,Profile!$F$278, IF($O19>=1.75,Profile!$F$277, IF($O19>=1,Profile!$F$276, "" )))) -> 1. Below basic
A20: PEFALIA | B20: HLG-1.3 | C20: HLG-1.3 | E20: Comp | F20: HLG | G20: =VLOOKUP(F20,Profile!B:C,2,FALSE) -> Higher levels of government | H20: HLG-1 | I20: =IFERROR(VLOOKUP(B20,Profile!B:C,2,FALSE),"") -> HLG-1.3 Timeliness of transfers from higher levels of government | K20: D | L20: =Profile!$E$152 -> Yes | M20: =IFERROR(IF(TRIM(CLEAN(J20))="A",4)+IF(TRIM(CLEAN(J20))="B+",3.5)+IF(TRIM(CLEAN(J20))="B",3)+IF(TRIM(CLEAN(J20))="C+",2.5)+IF(TRIM(CLEAN(J20))="C",2)+IF(TRIM(CLEAN(J20))="D+",1.5)+IF(TRIM(CLEAN(J20))="D",1)+IF(TRIM(CLEAN(J20))="D*",1)+IF(TRIM(CLEAN(J20))="NU",0)+IF(TRIM(CLEAN(J20))="",0),"") -> 0 | N20: 0 | O20: =IFERROR(IF(TRIM(CLEAN(K20))="A",4)+IF(TRIM(CLEAN(K20))="B+",3.5)+IF(TRIM(CLEAN(K20))="B",3)+IF(TRIM(CLEAN(K20))="C+",2.5)+IF(TRIM(CLEAN(K20))="C",2)+IF(TRIM(CLEAN(K20))="D+",1.5)+IF(TRIM(CLEAN(K20))="D",1)+IF(TRIM(CLEAN(K20))="D*",1)+IF(TRIM(CLEAN(K20))="NU",0)+IF(TRIM(CLEAN(K20))="",0),"") -> 1 | P20: 1 | Q20: =IF(K20="D",Profile!$F$276, IF(K20="D*",Profile!$F$276, IF(K20="D+",Profile!$F$276, IF(K20="C",Profile!$F$277, IF(K20="C+",Profile!$F$277, IF(K20="B+",Profile!$F$278, IF(K20="B",Profile!$F$278, IF(K20="A",Profile!$F$279,"")))))))) -> 1. Below basic | R20: =IF(K20="A",Profile!$F$280, IF(K20="B+",Profile!$F$280, IF(K20="B",Profile!$F$280, IF(K20="D+",Profile!$F$281, IF(K20="D",Profile!$F$281, Profile!$F$282))))) -> Weakness | S20: =IFERROR(IF(L20=Profile!$E$152,IF(O20-N20<0,"-",IF(O20-N20>0,"+"," =")),"N.C"),"") -> + | U20: No schedule for the disbursement of State transfers to the Commune has been agreed with the central administration over the period covered by the evaluation. Moreover, disbursements are not made at regular intervals. | V20: (HLG-1) | W20: 1 | X20: 1 | Y20: 0 | Z20: 4 | AA20: =IF($O20>=3.25,Profile!$F$279, IF($O20>=2.5,Profile!$F$278, IF($O20>=1.75,Profile!$F$277, IF($O20>=1,Profile!$F$276, "" )))) -> 1. Below basic
A21: PEFALIA | B21: HLG-1.4 | C21: HLG-1.4 | E21: Comp | F21: HLG | G21: =VLOOKUP(F21,Profile!B:C,2,FALSE) -> Higher levels of government | H21: HLG-1 | I21: =IFERROR(VLOOKUP(B21,Profile!B:C,2,FALSE),"") -> HLG-1.4 Predictability of transfers | K21: D | L21: =Profile!$E$152 -> Yes | M21: =IFERROR(IF(TRIM(CLEAN(J21))="A",4)+IF(TRIM(CLEAN(J21))="B+",3.5)+IF(TRIM(CLEAN(J21))="B",3)+IF(TRIM(CLEAN(J21))="C+",2.5)+IF(TRIM(CLEAN(J21))="C",2)+IF(TRIM(CLEAN(J21))="D+",1.5)+IF(TRIM(CLEAN(J21))="D",1)+IF(TRIM(CLEAN(J21))="D*",1)+IF(TRIM(CLEAN(J21))="NU",0)+IF(TRIM(CLEAN(J21))="",0),"") -> 0 | N21: 0 | O21: =IFERROR(IF(TRIM(CLEAN(K21))="A",4)+IF(TRIM(CLEAN(K21))="B+",3.5)+IF(TRIM(CLEAN(K21))="B",3)+IF(TRIM(CLEAN(K21))="C+",2.5)+IF(TRIM(CLEAN(K21))="C",2)+IF(TRIM(CLEAN(K21))="D+",1.5)+IF(TRIM(CLEAN(K21))="D",1)+IF(TRIM(CLEAN(K21))="D*",1)+IF(TRIM(CLEAN(K21))="NU",0)+IF(TRIM(CLEAN(K21))="",0),"") -> 1 | P21: 1 | Q21: =IF(K21="D",Profile!$F$276, IF(K21="D*",Profile!$F$276, IF(K21="D+",Profile!$F$276, IF(K21="C",Profile!$F$277, IF(K21="C+",Profile!$F$277, IF(K21="B+",Profile!$F$278, IF(K21="B",Profile!$F$278, IF(K21="A",Profile!$F$279,"")))))))) -> 1. Below basic | R21: =IF(K21="A",Profile!$F$280, IF(K21="B+",Profile!$F$280, IF(K21="B",Profile!$F$280, IF(K21="D+",Profile!$F$281, IF(K21="D",Profile!$F$281, Profile!$F$282))))) -> Weakness | S21: =IFERROR(IF(L21=Profile!$E$152,IF(O21-N21<0,"-",IF(O21-N21>0,"+"," =")),"N.C"),"") -> + | U21: The central government departments do not provide the commune with information on the transfers that will be allocated to it for a given year as part of the budgetary process. Moreover, these transfers are not subject to annual or multi-year programming. | V21: (HLG-1) | W21: 1 | X21: 1 | Y21: 0 | Z21: 4 | AA21: =IF($O21>=3.25,Profile!$F$279, IF($O21>=2.5,Profile!$F$278, IF($O21>=1.75,Profile!$F$277, IF($O21>=1,Profile!$F$276, "" )))) -> 1. Below basic
A22: PEFALIA | B22: HLG-2 | C22: HLG-2 | D22: M1 | E22: Indic | F22: HLG | G22: =VLOOKUP(F22,Profile!B:C,2,FALSE) -> Higher levels of government | H22: HLG-2 | I22: =IFERROR(VLOOKUP(B22,Profile!B:C,2,FALSE),"") -> HLG-2 Fiscal rules and monitoring of fiscal position | J22: =IF(N22>3.65,"A", IF(N22>=3.25,"B+", IF(N22>2.65,"B", IF(N22>=2.25,"C+", IF(N22>1.75,"C", IF(N22>1.25,"D+", IF(AND(N22<=1.25,N22>0),"D", IF(N22=0,"NA", "" )))))))) -> NA | K22: =IF(O22>3.65,"A", IF(O22>=3.25,"B+", IF(O22>2.65,"B", IF(O22>=2.25,"C+", IF(O22>1.75,"C", IF(O22>1.25,"D+", IF(AND(O22<=1.25,O22>0),"D", IF(O22=0,"NA", "" )))))))) -> D | L22: =IF(OR(L23=Profile!E152,L24=Profile!E152,L25=Profile!E152),Profile!E152,Profile!E153) -> Yes | M22: =IFERROR((IF($D22="M1",IF(ROUND(AVERAGEIF(M23:M25,">0"),1)=ROUND(MIN(IF(M23:M25>0,M23:M25)),1),AVERAGE(M23:M25),MIN(IF(M23:M25>0,M23:M25))+0.5),AVERAGEIF(M23:M25,">0"))),0) -> 0 | N22: =IFERROR((IF($D22="M1",IF(ROUND(AVERAGEIF(N23:N25,">0"),1)=ROUND(MIN(IF(N23:N25>0,N23:N25)),1),AVERAGE(N23:N25),MIN(IF(N23:N25>0,N23:N25))+0.5),AVERAGEIF(N23:N25,">0"))),0) -> 0 | O22: =IFERROR((IF($D22="M1",IF(ROUND(AVERAGEIF(O23:O25,">0"),1)=ROUND(MIN(IF(O23:O25>0,O23:O25)),1),AVERAGE(O23:O25),MIN(IF(O23:O25>0,O23:O25))+0.5),AVERAGEIF(O23:O25,">0"))),0) -> 1 | P22: 1 | Q22: =IF(K22="D",Profile!$F$276, IF(K22="D*",Profile!$F$276, IF(K22="D+",Profile!$F$276, IF(K22="C",Profile!$F$277, IF(K22="C+",Profile!$F$277, IF(K22="B+",Profile!$F$278, IF(K22="B",Profile!$F$278, IF(K22="A",Profile!$F$279,"")))))))) -> 1. Below basic | R22: =IF(K22="A",Profile!$F$280, IF(K22="B+",Profile!$F$280, IF(K22="B",Profile!$F$280, IF(K22="D+",Profile!$F$281, IF(K22="D",Profile!$F$281, Profile!$F$282))))) -> Weakness | S22: =IFERROR(IF(L22=Profile!$E$152,IF(O22-N22<0,"-",IF(O22-N22>0,"+"," =")),"N.C"),"") -> + | V22: (HLG-2) | W22: 0 | X22: 1 | Y22: 1 | Z22: =Z23 -> 3 | AA22: =IF($O22>=3.25,Profile!$F$279, IF($O22>=2.5,Profile!$F$278, IF($O22>=1.75,Profile!$F$277, IF($O22>=1,Profile!$F$276, "" )))) -> 1. Below basic
A23: PEFALIA | B23: HLG-2.1 | C23: HLG-2.1 | E23: Comp | F23: HLG | G23: =VLOOKUP(F23,Profile!B:C,2,FALSE) -> Higher levels of government | H23: HLG-2 | I23: =IFERROR(VLOOKUP(B23,Profile!B:C,2,FALSE),"") -> HLG-2.1 Fiscal rules for sub-national governments | K23: D | L23: =Profile!$E$152 -> Yes | M23: =IFERROR(IF(TRIM(CLEAN(J23))="A",4)+IF(TRIM(CLEAN(J23))="B+",3.5)+IF(TRIM(CLEAN(J23))="B",3)+IF(TRIM(CLEAN(J23))="C+",2.5)+IF(TRIM(CLEAN(J23))="C",2)+IF(TRIM(CLEAN(J23))="D+",1.5)+IF(TRIM(CLEAN(J23))="D",1)+IF(TRIM(CLEAN(J23))="D*",1)+IF(TRIM(CLEAN(J23))="NU",0)+IF(TRIM(CLEAN(J23))="",0),"") -> 0 | N23: =M23 -> 0 | O23: =IFERROR(IF(TRIM(CLEAN(K23))="A",4)+IF(TRIM(CLEAN(K23))="B+",3.5)+IF(TRIM(CLEAN(K23))="B",3)+IF(TRIM(CLEAN(K23))="C+",2.5)+IF(TRIM(CLEAN(K23))="C",2)+IF(TRIM(CLEAN(K23))="D+",1.5)+IF(TRIM(CLEAN(K23))="D",1)+IF(TRIM(CLEAN(K23))="D*",1)+IF(TRIM(CLEAN(K23))="NU",0)+IF(TRIM(CLEAN(K23))="",0),"") -> 1 | P23: =O23 -> 1 | Q23: =IF(K23="D",Profile!$F$276, IF(K23="D*",Profile!$F$276, IF(K23="D+",Profile!$F$276, IF(K23="C",Profile!$F$277, IF(K23="C+",Profile!$F$277, IF(K23="B+",Profile!$F$278, IF(K23="B",Profile!$F$278, IF(K23="A",Profile!$F$279,"")))))))) -> 1. Below basic | R23: =IF(K23="A",Profile!$F$280, IF(K23="B+",Profile!$F$280, IF(K23="B",Profile!$F$280, IF(K23="D+",Profile!$F$281, IF(K23="D",Profile!$F$281, Profile!$F$282))))) -> Weakness | S23: =IFERROR(IF(L23=Profile!$E$152,IF(O23-N23<0,"-",IF(O23-N23>0,"+"," =")),"N.C"),"") -> + | U23: The budgetary rules applicable to communes for drawing up and approving their budgets are expressly laid down by the State in Book Five of the General Code of Decentralized Local Authorities, which also gives the supervisory authority (State representative) the power to amend the budget to bring it into line with the law, in the event of non-compliance with the said rules. The law does not provide for derogations from these rules. No Commune Executive can disregard these rules, and in the case of the Commune in particular, they have been respected. | V23: (HLG-2) | W23: 0 | X23: 1 | Y23: 1 | Z23: 3 | AA23: =IF($O23>=3.25,Profile!$F$279, IF($O23>=2.5,Profile!$F$278, IF($O23>=1.75,Profile!$F$277, IF($O23>=1,Profile!$F$276, "" )))) -> 1. Below basic
A24: PEFALIA | B24: HLG-2.2 | C24: HLG-2.2 | E24: Comp | F24: HLG | G24: =VLOOKUP(F24,Profile!B:C,2,FALSE) -> Higher levels of government | H24: HLG-2 | I24: =IFERROR(VLOOKUP(B24,Profile!B:C,2,FALSE),"") -> HLG-2.2 Debt rules for sub-national governments | K24: D | L24: =Profile!$E$152 -> Yes | M24: =IFERROR(IF(TRIM(CLEAN(J24))="A",4)+IF(TRIM(CLEAN(J24))="B+",3.5)+IF(TRIM(CLEAN(J24))="B",3)+IF(TRIM(CLEAN(J24))="C+",2.5)+IF(TRIM(CLEAN(J24))="C",2)+IF(TRIM(CLEAN(J24))="D+",1.5)+IF(TRIM(CLEAN(J24))="D",1)+IF(TRIM(CLEAN(J24))="D*",1)+IF(TRIM(CLEAN(J24))="NU",0)+IF(TRIM(CLEAN(J24))="",0),"") -> 0 | N24: 0 | O24: =IFERROR(IF(TRIM(CLEAN(K24))="A",4)+IF(TRIM(CLEAN(K24))="B+",3.5)+IF(TRIM(CLEAN(K24))="B",3)+IF(TRIM(CLEAN(K24))="C+",2.5)+IF(TRIM(CLEAN(K24))="C",2)+IF(TRIM(CLEAN(K24))="D+",1.5)+IF(TRIM(CLEAN(K24))="D",1)+IF(TRIM(CLEAN(K24))="D*",1)+IF(TRIM(CLEAN(K24))="NU",0)+IF(TRIM(CLEAN(K24))="",0),"") -> 1 | P24: 1 | Q24: =IF(K24="D",Profile!$F$276, IF(K24="D*",Profile!$F$276, IF(K24="D+",Profile!$F$276, IF(K24="C",Profile!$F$277, IF(K24="C+",Profile!$F$277, IF(K24="B+",Profile!$F$278, IF(K24="B",Profile!$F$278, IF(K24="A",Profile!$F$279,"")))))))) -> 1. Below basic | R24: =IF(K24="A",Profile!$F$280, IF(K24="B+",Profile!$F$280, IF(K24="B",Profile!$F$280, IF(K24="D+",Profile!$F$281, IF(K24="D",Profile!$F$281, Profile!$F$282))))) -> Weakness | S24: =IFERROR(IF(L24=Profile!$E$152,IF(O24-N24<0,"-",IF(O24-N24>0,"+"," =")),"N.C"),"") -> + | U24: CTDs' recourse to borrowing is well regulated by law. However, the CTD General Code has not set out criteria for determining the debt ceilings to be observed by CTDs, and a mechanism for monitoring CTD indebtedness is not in place at State level. The rules governing the borrowing of CTDs were respected by the Tiko commune executive in 2020. | V24: (HLG-2) | W24: 0 | X24: 1 | Y24: 1 | Z24: 3 | AA24: =IF($O24>=3.25,Profile!$F$279, IF($O24>=2.5,Profile!$F$278, IF($O24>=1.75,Profile!$F$277, IF($O24>=1,Profile!$F$276, "" )))) -> 1. Below basic
A25: PEFALIA | B25: HLG-2.3 | C25: HLG-2.3 | E25: Comp | F25: HLG | G25: =VLOOKUP(F25,Profile!B:C,2,FALSE) -> Higher levels of government | H25: HLG-2 | I25: =IFERROR(VLOOKUP(B25,Profile!B:C,2,FALSE),"") -> HLG-2.3 Monitoring of sub-national governments | K25: D* | L25: =Profile!$E$152 -> Yes | M25: =IFERROR(IF(TRIM(CLEAN(J25))="A",4)+IF(TRIM(CLEAN(J25))="B+",3.5)+IF(TRIM(CLEAN(J25))="B",3)+IF(TRIM(CLEAN(J25))="C+",2.5)+IF(TRIM(CLEAN(J25))="C",2)+IF(TRIM(CLEAN(J25))="D+",1.5)+IF(TRIM(CLEAN(J25))="D",1)+IF(TRIM(CLEAN(J25))="D*",1)+IF(TRIM(CLEAN(J25))="NU",0)+IF(TRIM(CLEAN(J25))="",0),"") -> 0 | N25: 0 | O25: =IFERROR(IF(TRIM(CLEAN(K25))="A",4)+IF(TRIM(CLEAN(K25))="B+",3.5)+IF(TRIM(CLEAN(K25))="B",3)+IF(TRIM(CLEAN(K25))="C+",2.5)+IF(TRIM(CLEAN(K25))="C",2)+IF(TRIM(CLEAN(K25))="D+",1.5)+IF(TRIM(CLEAN(K25))="D",1)+IF(TRIM(CLEAN(K25))="D*",1)+IF(TRIM(CLEAN(K25))="NU",0)+IF(TRIM(CLEAN(K25))="",0),"") -> 1 | P25: 1 | Q25: =IF(K25="D",Profile!$F$276, IF(K25="D*",Profile!$F$276, IF(K25="D+",Profile!$F$276, IF(K25="C",Profile!$F$277, IF(K25="C+",Profile!$F$277, IF(K25="B+",Profile!$F$278, IF(K25="B",Profile!$F$278, IF(K25="A",Profile!$F$279,"")))))))) -> 1. Below basic | R25: =IF(K25="A",Profile!$F$280, IF(K25="B+",Profile!$F$280, IF(K25="B",Profile!$F$280, IF(K25="D+",Profile!$F$281, IF(K25="D",Profile!$F$281, Profile!$F$282))))) -> Average | S25: =IFERROR(IF(L25=Profile!$E$152,IF(O25-N25<0,"-",IF(O25-N25>0,"+"," =")),"N.C"),"") -> + | U25: Available data are insufficient to assess this component. | V25: (HLG-2) | W25: 0 | X25: 1 | Y25: 1 | Z25: 3 | AA25: =IF($O25>=3.25,Profile!$F$279, IF($O25>=2.5,Profile!$F$278, IF($O25>=1.75,Profile!$F$277, IF($O25>=1,Profile!$F$276, "" )))) -> 1. Below basic
A26: =$I$4 -> PEFALIA | B26: I | C26: I | E26: Pilar | F26: I | G26: =VLOOKUP(F26,Profile!B:C,2,FALSE) -> I. Budget reliability | I26: =IFERROR(VLOOKUP(B26,Profile!B:C,2,FALSE),"") -> I. Budget reliability | J26: =IF(N26>3.65,"A", IF(N26>=3.25,"B+", IF(N26>2.65,"B", IF(N26>=2.25,"C+", IF(N26>1.75,"C", IF(N26>1.25,"D+", IF(AND(N26<=1.25,N26>0),"D", IF(N26=0,"NA", "" )))))))) -> NA | K26: =IF(O26>3.65,"A", IF(O26>=3.25,"B+", IF(O26>2.65,"B", IF(O26>=2.25,"C+", IF(O26>1.75,"C", IF(O26>1.25,"D+", IF(AND(O26<=1.25,O26>0),"D", IF(O26=0,"NA", "" )))))))) -> C | L26: =IF(COUNTIFS(L27:L35,Profile!E152)=9,Profile!E152,Profile!E153) -> Yes | M26: =AVERAGEIFS(M$16:M$153,$E$16:$E$153,"Indic",$F$16:$F$153,$F26) -> 0 | N26: =AVERAGEIFS(N$16:N$153,$E$16:$E$153,"Indic",$F$16:$F$153,$F26) -> 0 | O26: =AVERAGEIFS(O$16:O$153,$E$16:$E$153,"Indic",$F$16:$F$153,$F26) -> 2 | P26: =IF($K26="D",1, IF($K26="D+",1.5, IF($K26="C",2, IF($K26="C+",2.5, IF($K26="B",3, IF($K26="B+",3.5, IF($K26="A",4, ))))))) -> 2 | Q26: =IF(K26="D",Profile!$F$276, IF(K26="D*",Profile!$F$276, IF(K26="D+",Profile!$F$276, IF(K26="C",Profile!$F$277, IF(K26="C+",Profile!$F$277, IF(K26="B+",Profile!$F$278, IF(K26="B",Profile!$F$278, IF(K26="A",Profile!$F$279,"")))))))) -> 2. Basic | R26: =IF(K26="A",Profile!$F$280, IF(K26="B+",Profile!$F$280, IF(K26="B",Profile!$F$280, IF(K26="D+",Profile!$F$281, IF(K26="D",Profile!$F$281, Profile!$F$282))))) -> Average | S26: =IFERROR(IF(L26=Profile!$E$152,IF(O26-N26<0,"-",IF(O26-N26>0,"+"," =")),"N.C"),"") -> + | AA26: =IF($O26>=3.25,Profile!$F$279, IF($O26>=2.5,Profile!$F$278, IF($O26>=1.75,Profile!$F$277, IF($O26>=1,Profile!$F$276, "" )))) -> 2. Basic
A27: PEFALIA | B27: PI-1 | C27: PI_1 | D27: M1 | E27: Indic | F27: I | G27: =VLOOKUP(F27,Profile!B:C,2,FALSE) -> I. Budget reliability | H27: PI-1 | I27: =IFERROR(VLOOKUP(B27,Profile!B:C,2,FALSE),"") -> PI-1 Aggregate expenditure outturn | J27: =IF(N27>3.65,"A", IF(N27>=3.25,"B+", IF(N27>2.65,"B", IF(N27>=2.25,"C+", IF(N27>1.75,"C", IF(N27>1.25,"D+", IF(AND(N27<=1.25,N27>0),"D", IF(N27=0,"NA", "" )))))))) -> NA | K27: A | L27: =L28 -> Yes | M27: =IF($D27="M1",IF(MAX(M28)=MAX(M28),M28,MAX(M28)+0.5),MAX(M28)) -> 0 | N27: =IF($D27="M1",IF(MAX(N28)=MAX(N28),N28,MAX(N28)+0.5),MAX(N28)) -> 0 | O27: =IF($D27="M1",IF(MAX(O28)=MAX(O28),O28,MAX(O28)+0.5),MAX(O28)) -> 4 | P27: 4 | Q27: =IF(K27="D",Profile!$F$276, IF(K27="D*",Profile!$F$276, IF(K27="D+",Profile!$F$276, IF(K27="C",Profile!$F$277, IF(K27="C+",Profile!$F$277, IF(K27="B+",Profile!$F$278, IF(K27="B",Profile!$F$278, IF(K27="A",Profile!$F$279,"")))))))) -> 4. High | R27: =IF(K27="A",Profile!$F$280, IF(K27="B+",Profile!$F$280, IF(K27="B",Profile!$F$280, IF(K27="D+",Profile!$F$281, IF(K27="D",Profile!$F$281, Profile!$F$282))))) -> Strength | S27: =IFERROR(IF(L27=Profile!$E$152,IF(O27-N27<0,"-",IF(O27-N27>0,"+"," =")),"N.C"),"") -> + | V27: ="("&H27&")" -> (PI-1) | W27: 1 | X27: 0 | Y27: 0 | Z27: =Z28 -> 1 | AA27: =IF($O27>=3.25,Profile!$F$279, IF($O27>=2.5,Profile!$F$278, IF($O27>=1.75,Profile!$F$277, IF($O27>=1,Profile!$F$276, "" )))) -> 4. High
A28: PEFALIA | B28: 1.1 | C28: 1.1 | E28: Comp | F28: I | G28: =VLOOKUP(F28,Profile!B:C,2,FALSE) -> I. Budget reliability | H28: PI-1 | I28: =IFERROR(VLOOKUP(B28,Profile!B:C,2,FALSE),"") -> 1.1 Aggregate expenditure outturn | K28: A | L28: =Profile!$E$152 -> Yes | M28: =IFERROR(IF(TRIM(CLEAN(J28))="A",4)+IF(TRIM(CLEAN(J28))="B+",3.5)+IF(TRIM(CLEAN(J28))="B",3)+IF(TRIM(CLEAN(J28))="C+",2.5)+IF(TRIM(CLEAN(J28))="C",2)+IF(TRIM(CLEAN(J28))="D+",1.5)+IF(TRIM(CLEAN(J28))="D",1)+IF(TRIM(CLEAN(J28))="D*",1)+IF(TRIM(CLEAN(J28))="NU",0)+IF(TRIM(CLEAN(J28))="",0),"") -> 0 | N28: =M28 -> 0 | O28: =IFERROR(IF(TRIM(CLEAN(K28))="A",4)+IF(TRIM(CLEAN(K28))="B+",3.5)+IF(TRIM(CLEAN(K28))="B",3)+IF(TRIM(CLEAN(K28))="C+",2.5)+IF(TRIM(CLEAN(K28))="C",2)+IF(TRIM(CLEAN(K28))="D+",1.5)+IF(TRIM(CLEAN(K28))="D",1)+IF(TRIM(CLEAN(K28))="D*",1)+IF(TRIM(CLEAN(K28))="NU",0)+IF(TRIM(CLEAN(K28))="",0),"") -> 4 | P28: =O28 -> 4 | Q28: =IF(K28="D",Profile!$F$276, IF(K28="D*",Profile!$F$276, IF(K28="D+",Profile!$F$276, IF(K28="C",Profile!$F$277, IF(K28="C+",Profile!$F$277, IF(K28="B+",Profile!$F$278, IF(K28="B",Profile!$F$278, IF(K28="A",Profile!$F$279,"")))))))) -> 4. High | R28: =IF(K28="A",Profile!$F$280, IF(K28="B+",Profile!$F$280, IF(K28="B",Profile!$F$280, IF(K28="D+",Profile!$F$281, IF(K28="D",Profile!$F$281, Profile!$F$282))))) -> Strength | S28: =IFERROR(IF(L28=Profile!$E$152,IF(O28-N28<0,"-",IF(O28-N28>0,"+"," =")),"N.C"),"") -> + | U28: Only the budget expenditure execution rate for fiscal 2020 is between 85% and 115%, while those for fiscal 2018 and 2019 are below 85%. | V28: (PI-1) | W28: 1 | X28: 0 | Y28: 0 | Z28: 1 | AA28: =IF($O28>=3.25,Profile!$F$279, IF($O28>=2.5,Profile!$F$278, IF($O28>=1.75,Profile!$F$277, IF($O28>=1,Profile!$F$276, "" )))) -> 4. High
A29: PEFALIA | B29: PI-2 | C29: PI_2 | D29: M1 | E29: Indic | F29: I | G29: =VLOOKUP(F29,Profile!B:C,2,FALSE) -> I. Budget reliability | H29: PI-2 | I29: =IFERROR(VLOOKUP(B29,Profile!B:C,2,FALSE),"") -> PI-2 Expenditure composition outturn | J29: =IF(N29>3.65,"A", IF(N29>=3.25,"B+", IF(N29>2.65,"B", IF(N29>=2.25,"C+", IF(N29>1.75,"C", IF(N29>1.25,"D+", IF(AND(N29<=1.25,N29>0),"D", IF(N29=0,"NA", "" )))))))) -> NA | K29: =IF(O29>3.65,"A", IF(O29>=3.25,"B+", IF(O29>2.65,"B", IF(O29>=2.25,"C+", IF(O29>1.75,"C", IF(O29>1.25,"D+", IF(AND(O29<=1.25,O29>0),"D", IF(O29=0,"NA", "" )))))))) -> D | L29: =IF(OR(L30=Profile!E152,L31=Profile!E152,L32=Profile!E152),Profile!E152,Profile!E153) -> Yes | M29: =IFERROR((IF($D29="M1",IF(ROUND(AVERAGEIF(M30:M32,">0"),1)=ROUND(MIN(IF(M30:M32>0,M30:M32)),1),AVERAGE(M30:M32),MIN(IF(M30:M32>0,M30:M32))+0.5),AVERAGEIF(M30:M32,">0"))),0) -> 0 | N29: =IFERROR((IF($D29="M1",IF(ROUND(AVERAGEIF(N30:N32,">0"),1)=ROUND(MIN(IF(N30:N32>0,N30:N32)),1),AVERAGE(N30:N32),MIN(IF(N30:N32>0,N30:N32))+0.5),AVERAGEIF(N30:N32,">0"))),0) -> 0 | O29: =IFERROR((IF($D29="M1",IF(ROUND(AVERAGEIF(O30:O32,">0"),1)=ROUND(MIN(IF(O30:O32>0,O30:O32)),1),AVERAGE(O30:O32),MIN(IF(O30:O32>0,O30:O32))+0.5),AVERAGEIF(O30:O32,">0"))),0) -> 1 | P29: 1 | Q29: =IF(K29="D",Profile!$F$276, IF(K29="D*",Profile!$F$276, IF(K29="D+",Profile!$F$276, IF(K29="C",Profile!$F$277, IF(K29="C+",Profile!$F$277, IF(K29="B+",Profile!$F$278, IF(K29="B",Profile!$F$278, IF(K29="A",Profile!$F$279,"")))))))) -> 1. Below basic | R29: =IF(K29="A",Profile!$F$280, IF(K29="B+",Profile!$F$280, IF(K29="B",Profile!$F$280, IF(K29="D+",Profile!$F$281, IF(K29="D",Profile!$F$281, Profile!$F$282))))) -> Weakness | S29: =IFERROR(IF(L29=Profile!$E$152,IF(O29-N29<0,"-",IF(O29-N29>0,"+"," =")),"N.C"),"") -> + | V29: (PI-2) | W29: 0 | X29: 1 | Y29: 1 | Z29: =Z30 -> 3 | AA29: =IF($O29>=3.25,Profile!$F$279, IF($O29>=2.5,Profile!$F$278, IF($O29>=1.75,Profile!$F$277, IF($O29>=1,Profile!$F$276, "" )))) -> 1. Below basic
A30: PEFALIA | B30: 2.1 | C30: 2.1 | E30: Comp | F30: I | G30: =VLOOKUP(F30,Profile!B:C,2,FALSE) -> I. Budget reliability | H30: PI-2 | I30: =IFERROR(VLOOKUP(B30,Profile!B:C,2,FALSE),"") -> 2.1 Expenditure composition by function | K30: D | L30: =Profile!$E$152 -> Yes | M30: =IFERROR(IF(TRIM(CLEAN(J30))="A",4)+IF(TRIM(CLEAN(J30))="B+",3.5)+IF(TRIM(CLEAN(J30))="B",3)+IF(TRIM(CLEAN(J30))="C+",2.5)+IF(TRIM(CLEAN(J30))="C",2)+IF(TRIM(CLEAN(J30))="D+",1.5)+IF(TRIM(CLEAN(J30))="D",1)+IF(TRIM(CLEAN(J30))="D*",1)+IF(TRIM(CLEAN(J30))="NU",0)+IF(TRIM(CLEAN(J30))="",0),"") -> 0 | N30: =M30 -> 0 | O30: =IFERROR(IF(TRIM(CLEAN(K30))="A",4)+IF(TRIM(CLEAN(K30))="B+",3.5)+IF(TRIM(CLEAN(K30))="B",3)+IF(TRIM(CLEAN(K30))="C+",2.5)+IF(TRIM(CLEAN(K30))="C",2)+IF(TRIM(CLEAN(K30))="D+",1.5)+IF(TRIM(CLEAN(K30))="D",1)+IF(TRIM(CLEAN(K30))="D*",1)+IF(TRIM(CLEAN(K30))="NU",0)+IF(TRIM(CLEAN(K30))="",0),"") -> 1 | P30: =O30 -> 1 | Q30: =IF(K30="D",Profile!$F$276, IF(K30="D*",Profile!$F$276, IF(K30="D+",Profile!$F$276, IF(K30="C",Profile!$F$277, IF(K30="C+",Profile!$F$277, IF(K30="B+",Profile!$F$278, IF(K30="B",Profile!$F$278, IF(K30="A",Profile!$F$279,"")))))))) -> 1. Below basic | R30: =IF(K30="A",Profile!$F$280, IF(K30="B+",Profile!$F$280, IF(K30="B",Profile!$F$280, IF(K30="D+",Profile!$F$281, IF(K30="D",Profile!$F$281, Profile!$F$282))))) -> Weakness | S30: =IFERROR(IF(L30=Profile!$E$152,IF(O30-N30<0,"-",IF(O30-N30>0,"+"," =")),"N.C"),"") -> + | U30: The commune's budgets are not drawn up according to an administrative, programmatic or functional classification. | V30: (PI-2) | W30: 0 | X30: 1 | Y30: 1 | Z30: 3 | AA30: =IF($O30>=3.25,Profile!$F$279, IF($O30>=2.5,Profile!$F$278, IF($O30>=1.75,Profile!$F$277, IF($O30>=1,Profile!$F$276, "" )))) -> 1. Below basic
A31: PEFALIA | B31: 2.2 | C31: 2.2 | E31: Comp | F31: I | G31: =VLOOKUP(F31,Profile!B:C,2,FALSE) -> I. Budget reliability | H31: PI-2 | I31: =IFERROR(VLOOKUP(B31,Profile!B:C,2,FALSE),"") -> 2.2 Expenditure composition by economic type | K31: D | L31: =Profile!$E$152 -> Yes | M31: =IFERROR(IF(TRIM(CLEAN(J31))="A",4)+IF(TRIM(CLEAN(J31))="B+",3.5)+IF(TRIM(CLEAN(J31))="B",3)+IF(TRIM(CLEAN(J31))="C+",2.5)+IF(TRIM(CLEAN(J31))="C",2)+IF(TRIM(CLEAN(J31))="D+",1.5)+IF(TRIM(CLEAN(J31))="D",1)+IF(TRIM(CLEAN(J31))="D*",1)+IF(TRIM(CLEAN(J31))="NU",0)+IF(TRIM(CLEAN(J31))="",0),"") -> 0 | N31: 0 | O31: =IFERROR(IF(TRIM(CLEAN(K31))="A",4)+IF(TRIM(CLEAN(K31))="B+",3.5)+IF(TRIM(CLEAN(K31))="B",3)+IF(TRIM(CLEAN(K31))="C+",2.5)+IF(TRIM(CLEAN(K31))="C",2)+IF(TRIM(CLEAN(K31))="D+",1.5)+IF(TRIM(CLEAN(K31))="D",1)+IF(TRIM(CLEAN(K31))="D*",1)+IF(TRIM(CLEAN(K31))="NU",0)+IF(TRIM(CLEAN(K31))="",0),"") -> 1 | P31: 1 | Q31: =IF(K31="D",Profile!$F$276, IF(K31="D*",Profile!$F$276, IF(K31="D+",Profile!$F$276, IF(K31="C",Profile!$F$277, IF(K31="C+",Profile!$F$277, IF(K31="B+",Profile!$F$278, IF(K31="B",Profile!$F$278, IF(K31="A",Profile!$F$279,"")))))))) -> 1. Below basic | R31: =IF(K31="A",Profile!$F$280, IF(K31="B+",Profile!$F$280, IF(K31="B",Profile!$F$280, IF(K31="D+",Profile!$F$281, IF(K31="D",Profile!$F$281, Profile!$F$282))))) -> Weakness | S31: =IFERROR(IF(L31=Profile!$E$152,IF(O31-N31<0,"-",IF(O31-N31>0,"+"," =")),"N.C"),"") -> + | U31: The composition of expenditure, classified by economic category, deviated from that of the initial budget by 12.0% in 2018, 12.5% in 2019 and 26.3% in 2020 respectively, so was below 15% in two of the three years under review. | V31: (PI-2) | W31: 0 | X31: 1 | Y31: 1 | Z31: 3 | AA31: =IF($O31>=3.25,Profile!$F$279, IF($O31>=2.5,Profile!$F$278, IF($O31>=1.75,Profile!$F$277, IF($O31>=1,Profile!$F$276, "" )))) -> 1. Below basic
A32: PEFALIA | B32: 2.3 | C32: 2.3 | E32: Comp | F32: I | G32: =VLOOKUP(F32,Profile!B:C,2,FALSE) -> I. Budget reliability | H32: PI-2 | I32: =IFERROR(VLOOKUP(B32,Profile!B:C,2,FALSE),"") -> 2.3 Expenditure from contingency | K32: D | L32: =Profile!$E$152 -> Yes | M32: =IFERROR(IF(TRIM(CLEAN(J32))="A",4)+IF(TRIM(CLEAN(J32))="B+",3.5)+IF(TRIM(CLEAN(J32))="B",3)+IF(TRIM(CLEAN(J32))="C+",2.5)+IF(TRIM(CLEAN(J32))="C",2)+IF(TRIM(CLEAN(J32))="D+",1.5)+IF(TRIM(CLEAN(J32))="D",1)+IF(TRIM(CLEAN(J32))="D*",1)+IF(TRIM(CLEAN(J32))="NU",0)+IF(TRIM(CLEAN(J32))="",0),"") -> 0 | N32: 0 | O32: =IFERROR(IF(TRIM(CLEAN(K32))="A",4)+IF(TRIM(CLEAN(K32))="B+",3.5)+IF(TRIM(CLEAN(K32))="B",3)+IF(TRIM(CLEAN(K32))="C+",2.5)+IF(TRIM(CLEAN(K32))="C",2)+IF(TRIM(CLEAN(K32))="D+",1.5)+IF(TRIM(CLEAN(K32))="D",1)+IF(TRIM(CLEAN(K32))="D*",1)+IF(TRIM(CLEAN(K32))="NU",0)+IF(TRIM(CLEAN(K32))="",0),"") -> 1 | P32: 1 | Q32: =IF(K32="D",Profile!$F$276, IF(K32="D*",Profile!$F$276, IF(K32="D+",Profile!$F$276, IF(K32="C",Profile!$F$277, IF(K32="C+",Profile!$F$277, IF(K32="B+",Profile!$F$278, IF(K32="B",Profile!$F$278, IF(K32="A",Profile!$F$279,"")))))))) -> 1. Below basic | R32: =IF(K32="A",Profile!$F$280, IF(K32="B+",Profile!$F$280, IF(K32="B",Profile!$F$280, IF(K32="D+",Profile!$F$281, IF(K32="D",Profile!$F$281, Profile!$F$282))))) -> Weakness | S32: =IFERROR(IF(L32=Profile!$E$152,IF(O32-N32<0,"-",IF(O32-N32>0,"+"," =")),"N.C"),"") -> + | U32: No contingency reserves have been set aside in the Commune budget in fiscal 2018, 2019 and 2020. | V32: (PI-2) | W32: 0 | X32: 1 | Y32: 1 | Z32: 3 | AA32: =IF($O32>=3.25,Profile!$F$279, IF($O32>=2.5,Profile!$F$278, IF($O32>=1.75,Profile!$F$277, IF($O32>=1,Profile!$F$276, "" )))) -> 1. Below basic
A33: PEFALIA | B33: PI-3 | C33: PI_3 | D33: M2 | E33: Indic | F33: I | G33: =VLOOKUP(F33,Profile!B:C,2,FALSE) -> I. Budget reliability | H33: PI-3 | I33: =IFERROR(VLOOKUP(B33,Profile!B:C,2,FALSE),"") -> PI-3 Revenue outturn | J33: =IF(N33>3.65,"A", IF(N33>=3.25,"B+", IF(N33>2.65,"B", IF(N33>=2.25,"C+", IF(N33>1.75,"C", IF(N33>1.25,"D+", IF(AND(N33<=1.25,N33>0),"D", IF(N33=0,"NA", "" )))))))) -> NA | K33: =IF(O33>3.65,"A", IF(O33>=3.25,"B+", IF(O33>2.65,"B", IF(O33>=2.25,"C+", IF(O33>1.75,"C", IF(O33>1.25,"D+", IF(AND(O33<=1.25,O33>0),"D", IF(O33=0,"NA", "" )))))))) -> D | L33: =IF(OR(L34=Profile!E152,L35=Profile!E152),Profile!E152,Profile!E153) -> Yes | M33: =IFERROR(IF($D33="M1",IF(ROUND(AVERAGEIF(M34:M35,">0"),1)=ROUND(MIN(IF(M34:M35>0,M34:M35)),1),M34,MIN(IF(M34:M35>0,M34:M35))+0.5),AVERAGEIF(M34:M35,">0")),0) -> 0 | N33: =IFERROR(IF($D33="M1",IF(ROUND(AVERAGEIF(N34:N35,">0"),1)=ROUND(MIN(IF(N34:N35>0,N34:N35)),1),N34,MIN(IF(N34:N35>0,N34:N35))+0.5),AVERAGEIF(N34:N35,">0")),0) -> 0 | O33: =IFERROR(IF($D33="M1",IF(ROUND(AVERAGEIF(O34:O35,">0"),1)=ROUND(MIN(IF(O34:O35>0,O34:O35)),1),O34,MIN(IF(O34:O35>0,O34:O35))+0.5),AVERAGEIF(O34:O35,">0")),0) -> 1 | P33: 1 | Q33: =IF(K33="D",Profile!$F$276, IF(K33="D*",Profile!$F$276, IF(K33="D+",Profile!$F$276, IF(K33="C",Profile!$F$277, IF(K33="C+",Profile!$F$277, IF(K33="B+",Profile!$F$278, IF(K33="B",Profile!$F$278, IF(K33="A",Profile!$F$279,"")))))))) -> 1. Below basic | R33: =IF(K33="A",Profile!$F$280, IF(K33="B+",Profile!$F$280, IF(K33="B",Profile!$F$280, IF(K33="D+",Profile!$F$281, IF(K33="D",Profile!$F$281, Profile!$F$282))))) -> Weakness | S33: =IFERROR(IF(L33=Profile!$E$152,IF(O33-N33<0,"-",IF(O33-N33>0,"+"," =")),"N.C"),"") -> + | V33: (PI-3) | W33: 1 | X33: 0 | Y33: 0 | Z33: =Z34 -> 2 | AA33: =IF($O33>=3.25,Profile!$F$279, IF($O33>=2.5,Profile!$F$278, IF($O33>=1.75,Profile!$F$277, IF($O33>=1,Profile!$F$276, "" )))) -> 1. Below basic
A34: PEFALIA | B34: 3.1 | C34: 3.1 | E34: Comp | F34: I | G34: =VLOOKUP(F34,Profile!B:C,2,FALSE) -> I. Budget reliability | H34: PI-3 | I34: =IFERROR(VLOOKUP(B34,Profile!B:C,2,FALSE),"") -> 3.1 Aggregate revenue outturn | K34: D | L34: =Profile!$E$152 -> Yes | M34: =IFERROR(IF(TRIM(CLEAN(J34))="A",4)+IF(TRIM(CLEAN(J34))="B+",3.5)+IF(TRIM(CLEAN(J34))="B",3)+IF(TRIM(CLEAN(J34))="C+",2.5)+IF(TRIM(CLEAN(J34))="C",2)+IF(TRIM(CLEAN(J34))="D+",1.5)+IF(TRIM(CLEAN(J34))="D",1)+IF(TRIM(CLEAN(J34))="D*",1)+IF(TRIM(CLEAN(J34))="NU",0)+IF(TRIM(CLEAN(J34))="",0),"") -> 0 | N34: =M34 -> 0 | O34: =IFERROR(IF(TRIM(CLEAN(K34))="A",4)+IF(TRIM(CLEAN(K34))="B+",3.5)+IF(TRIM(CLEAN(K34))="B",3)+IF(TRIM(CLEAN(K34))="C+",2.5)+IF(TRIM(CLEAN(K34))="C",2)+IF(TRIM(CLEAN(K34))="D+",1.5)+IF(TRIM(CLEAN(K34))="D",1)+IF(TRIM(CLEAN(K34))="D*",1)+IF(TRIM(CLEAN(K34))="NU",0)+IF(TRIM(CLEAN(K34))="",0),"") -> 1 | P34: =O34 -> 1 | Q34: =IF(K34="D",Profile!$F$276, IF(K34="D*",Profile!$F$276, IF(K34="D+",Profile!$F$276, IF(K34="C",Profile!$F$277, IF(K34="C+",Profile!$F$277, IF(K34="B+",Profile!$F$278, IF(K34="B",Profile!$F$278, IF(K34="A",Profile!$F$279,"")))))))) -> 1. Below basic | R34: =IF(K34="A",Profile!$F$280, IF(K34="B+",Profile!$F$280, IF(K34="B",Profile!$F$280, IF(K34="D+",Profile!$F$281, IF(K34="D",Profile!$F$281, Profile!$F$282))))) -> Weakness | S34: =IFERROR(IF(L34=Profile!$E$152,IF(O34-N34<0,"-",IF(O34-N34>0,"+"," =")),"N.C"),"") -> + | U34: Total actual revenues were achieved at rates of 56.6%, 28.2% and 71.9% respectively over the evaluation period, i.e. less than 92%. | V34: (PI-3) | W34: 1 | X34: 0 | Y34: 0 | Z34: 2 | AA34: =IF($O34>=3.25,Profile!$F$279, IF($O34>=2.5,Profile!$F$278, IF($O34>=1.75,Profile!$F$277, IF($O34>=1,Profile!$F$276, "" )))) -> 1. Below basic
A35: PEFALIA | B35: 3.2 | C35: 3.2 | E35: Comp | F35: I | G35: =VLOOKUP(F35,Profile!B:C,2,FALSE) -> I. Budget reliability | H35: PI-3 | I35: =IFERROR(VLOOKUP(B35,Profile!B:C,2,FALSE),"") -> 3.2 Revenue composition variance | K35: NA | L35: =Profile!$E$152 -> Yes | M35: =IFERROR(IF(TRIM(CLEAN(J35))="A",4)+IF(TRIM(CLEAN(J35))="B+",3.5)+IF(TRIM(CLEAN(J35))="B",3)+IF(TRIM(CLEAN(J35))="C+",2.5)+IF(TRIM(CLEAN(J35))="C",2)+IF(TRIM(CLEAN(J35))="D+",1.5)+IF(TRIM(CLEAN(J35))="D",1)+IF(TRIM(CLEAN(J35))="D*",1)+IF(TRIM(CLEAN(J35))="NU",0)+IF(TRIM(CLEAN(J35))="",0),"") -> 0 | N35: 0 | O35: =IFERROR(IF(TRIM(CLEAN(K35))="A",4)+IF(TRIM(CLEAN(K35))="B+",3.5)+IF(TRIM(CLEAN(K35))="B",3)+IF(TRIM(CLEAN(K35))="C+",2.5)+IF(TRIM(CLEAN(K35))="C",2)+IF(TRIM(CLEAN(K35))="D+",1.5)+IF(TRIM(CLEAN(K35))="D",1)+IF(TRIM(CLEAN(K35))="D*",1)+IF(TRIM(CLEAN(K35))="NU",0)+IF(TRIM(CLEAN(K35))="",0),"") -> 0 | P35: 0 | Q35: =IF(K35="D",Profile!$F$276, IF(K35="D*",Profile!$F$276, IF(K35="D+",Profile!$F$276, IF(K35="C",Profile!$F$277, IF(K35="C+",Profile!$F$277, IF(K35="B+",Profile!$F$278, IF(K35="B",Profile!$F$278, IF(K35="A",Profile!$F$279,"")))))))) ->  | R35: =IF(K35="A",Profile!$F$280, IF(K35="B+",Profile!$F$280, IF(K35="B",Profile!$F$280, IF(K35="D+",Profile!$F$281, IF(K35="D",Profile!$F$281, Profile!$F$282))))) -> Average | S35: =IFERROR(IF(L35=Profile!$E$152,IF(O35-N35<0,"-",IF(O35-N35>0,"+"," =")),"N.C"),"") -> = | U35: The actual revenue mix deviated from the initial revenue forecast by 9.8% in 2018, 120.8% in 2019 and 45.7% in 2020. So the variation in revenue mix was less than 15% in fiscal 2018 alone. | V35: (PI-3) | W35: 1 | X35: 0 | Y35: 0 | Z35: 2 | AA35: =IF($O35>=3.25,Profile!$F$279, IF($O35>=2.5,Profile!$F$278, IF($O35>=1.75,Profile!$F$277, IF($O35>=1,Profile!$F$276, "" )))) -> 
A36: PEFALIA | B36: II | C36: II | E36: Pilar | F36: II | G36: =VLOOKUP(F36,Profile!B:C,2,FALSE) -> II. Transparency of public finances | I36: =IFERROR(VLOOKUP(B36,Profile!B:C,2,FALSE),"") -> II. Transparency of public finances | J36: =IF(N36>3.65,"A", IF(N36>=3.25,"B+", IF(N36>2.65,"B", IF(N36>=2.25,"C+", IF(N36>1.75,"C", IF(N36>1.25,"D+", IF(AND(N36<=1.25,N36>0),"D", IF(N36=0,"NA", "" )))))))) -> NA | K36: =IF(O36>3.65,"A", IF(O36>=3.25,"B+", IF(O36>2.65,"B", IF(O36>=2.25,"C+", IF(O36>1.75,"C", IF(O36>1.25,"D+", IF(AND(O36<=1.25,O36>0),"D", IF(O36=0,"NA", "" )))))))) -> D+ | L36: =IF(COUNTIFS(L37:L54,Profile!E152)=18,Profile!E152,Profile!E153) -> No | M36: =AVERAGEIFS(M$16:M$153,$E$16:$E$153,"Indic",$F$16:$F$153,$F36) -> 0 | N36: =AVERAGEIFS(N$16:N$153,$E$16:$E$153,"Indic",$F$16:$F$153,$F36) -> 0 | O36: =AVERAGEIFS(O$16:O$153,$E$16:$E$153,"Indic",$F$16:$F$153,$F36) -> 1.333333333 | P36: 1.5 | Q36: =IF(K36="D",Profile!$F$276, IF(K36="D*",Profile!$F$276, IF(K36="D+",Profile!$F$276, IF(K36="C",Profile!$F$277, IF(K36="C+",Profile!$F$277, IF(K36="B+",Profile!$F$278, IF(K36="B",Profile!$F$278, IF(K36="A",Profile!$F$279,"")))))))) -> 1. Below basic | R36: =IF(K36="A",Profile!$F$280, IF(K36="B+",Profile!$F$280, IF(K36="B",Profile!$F$280, IF(K36="D+",Profile!$F$281, IF(K36="D",Profile!$F$281, Profile!$F$282))))) -> Weakness | S36: =IFERROR(IF(L36=Profile!$E$152,IF(O36-N36<0,"-",IF(O36-N36>0,"+"," =")),"N.C"),"") -> N.C | V36: () | AA36: =IF($O36>=3.25,Profile!$F$279, IF($O36>=2.5,Profile!$F$278, IF($O36>=1.75,Profile!$F$277, IF($O36>=1,Profile!$F$276, "" )))) -> 1. Below basic
A37: PEFALIA | B37: PI-4 | C37: PI_4 | D37: M1 | E37: Indic | F37: II | G37: =VLOOKUP(F37,Profile!B:C,2,FALSE) -> II. Transparency of public finances | H37: PI-4 | I37: =IFERROR(VLOOKUP(B37,Profile!B:C,2,FALSE),"") -> PI-4 Budget classification | J37: =IF(N37>3.65,"A", IF(N37>=3.25,"B+", IF(N37>2.65,"B", IF(N37>=2.25,"C+", IF(N37>1.75,"C", IF(N37>1.25,"D+", IF(AND(N37<=1.25,N37>0),"D", IF(N37=0,"NA", "" )))))))) -> NA | K37: D | L37: =L38 -> Yes | M37: =IF($D37="M1",IF(MAX(M38)=MAX(M38),M38,MAX(M38)+0.5),MAX(M38)) -> 0 | N37: =IF($D37="M1",IF(MAX(N38)=MAX(N38),N38,MAX(N38)+0.5),MAX(N38)) -> 0 | O37: =IF($D37="M1",IF(MAX(O38)=MAX(O38),O38,MAX(O38)+0.5),MAX(O38)) -> 1 | P37: 1 | Q37: =IF(K37="D",Profile!$F$276, IF(K37="D*",Profile!$F$276, IF(K37="D+",Profile!$F$276, IF(K37="C",Profile!$F$277, IF(K37="C+",Profile!$F$277, IF(K37="B+",Profile!$F$278, IF(K37="B",Profile!$F$278, IF(K37="A",Profile!$F$279,"")))))))) -> 1. Below basic | R37: =IF(K37="A",Profile!$F$280, IF(K37="B+",Profile!$F$280, IF(K37="B",Profile!$F$280, IF(K37="D+",Profile!$F$281, IF(K37="D",Profile!$F$281, Profile!$F$282))))) -> Weakness | S37: =IFERROR(IF(L37=Profile!$E$152,IF(O37-N37<0,"-",IF(O37-N37>0,"+"," =")),"N.C"),"") -> + | V37: (PI-4) | W37: 0 | X37: 1 | Y37: 0 | Z37: =Z38 -> 1 | AA37: =IF($O37>=3.25,Profile!$F$279, IF($O37>=2.5,Profile!$F$278, IF($O37>=1.75,Profile!$F$277, IF($O37>=1,Profile!$F$276, "" )))) -> 1. Below basic
A38: PEFALIA | B38: 4.1 | C38: 4.1 | E38: Comp | F38: II | G38: =VLOOKUP(F38,Profile!B:C,2,FALSE) -> II. Transparency of public finances | H38: PI-4 | I38: =IFERROR(VLOOKUP(B38,Profile!B:C,2,FALSE),"") -> 4.1 Budget classification | K38: D | L38: =Profile!$E$152 -> Yes | M38: =IFERROR(IF(TRIM(CLEAN(J38))="A",4)+IF(TRIM(CLEAN(J38))="B+",3.5)+IF(TRIM(CLEAN(J38))="B",3)+IF(TRIM(CLEAN(J38))="C+",2.5)+IF(TRIM(CLEAN(J38))="C",2)+IF(TRIM(CLEAN(J38))="D+",1.5)+IF(TRIM(CLEAN(J38))="D",1)+IF(TRIM(CLEAN(J38))="D*",1)+IF(TRIM(CLEAN(J38))="NU",0)+IF(TRIM(CLEAN(J38))="",0),"") -> 0 | N38: =M38 -> 0 | O38: =IFERROR(IF(TRIM(CLEAN(K38))="A",4)+IF(TRIM(CLEAN(K38))="B+",3.5)+IF(TRIM(CLEAN(K38))="B",3)+IF(TRIM(CLEAN(K38))="C+",2.5)+IF(TRIM(CLEAN(K38))="C",2)+IF(TRIM(CLEAN(K38))="D+",1.5)+IF(TRIM(CLEAN(K38))="D",1)+IF(TRIM(CLEAN(K38))="D*",1)+IF(TRIM(CLEAN(K38))="NU",0)+IF(TRIM(CLEAN(K38))="",0),"") -> 1 | P38: =O38 -> 1 | Q38: =IF(K38="D",Profile!$F$276, IF(K38="D*",Profile!$F$276, IF(K38="D+",Profile!$F$276, IF(K38="C",Profile!$F$277, IF(K38="C+",Profile!$F$277, IF(K38="B+",Profile!$F$278, IF(K38="B",Profile!$F$278, IF(K38="A",Profile!$F$279,"")))))))) -> 1. Below basic | R38: =IF(K38="A",Profile!$F$280, IF(K38="B+",Profile!$F$280, IF(K38="B",Profile!$F$280, IF(K38="D+",Profile!$F$281, IF(K38="D",Profile!$F$281, Profile!$F$282))))) -> Weakness | S38: =IFERROR(IF(L38=Profile!$E$152,IF(O38-N38<0,"-",IF(O38-N38>0,"+"," =")),"N.C"),"") -> + | U38: The Commune de Tiko's budget is drawn up, presented and implemented solely on the basis of economic classifications; functional, programmatic and administrative classifications are not used. | V38: (PI-4) | W38: 0 | X38: 1 | Y38: 0 | Z38: 1 | AA38: =IF($O38>=3.25,Profile!$F$279, IF($O38>=2.5,Profile!$F$278, IF($O38>=1.75,Profile!$F$277, IF($O38>=1,Profile!$F$276, "" )))) -> 1. Below basic
A39: PEFALIA | B39: PI-5 | C39: PI_5 | D39: M1 | E39: Indic | F39: II | G39: =VLOOKUP(F39,Profile!B:C,2,FALSE) -> II. Transparency of public finances | H39: PI-5 | I39: =IFERROR(VLOOKUP(B39,Profile!B:C,2,FALSE),"") -> PI-5 Budget documentation | J39: =IF(N39>3.65,"A", IF(N39>=3.25,"B+", IF(N39>2.65,"B", IF(N39>=2.25,"C+", IF(N39>1.75,"C", IF(N39>1.25,"D+", IF(AND(N39<=1.25,N39>0),"D", IF(N39=0,"NA", "" )))))))) -> NA | K39: =IF(O39>3.65,"A", IF(O39>=3.25,"B+", IF(O39>2.65,"B", IF(O39>=2.25,"C+", IF(O39>1.75,"C", IF(O39>1.25,"D+", IF(AND(O39<=1.25,O39>0),"D", IF(O39=0,"NA", "" )))))))) -> D | L39: =L40 -> Yes | M39: =IF($D39="M1",IF(MAX(M40)=MAX(M40),M40,MAX(M40)+0.5),MAX(M40)) -> 0 | N39: =IF($D39="M1",IF(MAX(N40)=MAX(N40),N40,MAX(N40)+0.5),MAX(N40)) -> 0 | O39: =IF($D39="M1",IF(MAX(O40)=MAX(O40),O40,MAX(O40)+0.5),MAX(O40)) -> 1 | P39: 1 | Q39: =IF(K39="D",Profile!$F$276, IF(K39="D*",Profile!$F$276, IF(K39="D+",Profile!$F$276, IF(K39="C",Profile!$F$277, IF(K39="C+",Profile!$F$277, IF(K39="B+",Profile!$F$278, IF(K39="B",Profile!$F$278, IF(K39="A",Profile!$F$279,"")))))))) -> 1. Below basic | R39: =IF(K39="A",Profile!$F$280, IF(K39="B+",Profile!$F$280, IF(K39="B",Profile!$F$280, IF(K39="D+",Profile!$F$281, IF(K39="D",Profile!$F$281, Profile!$F$282))))) -> Weakness | S39: =IFERROR(IF(L39=Profile!$E$152,IF(O39-N39<0,"-",IF(O39-N39>0,"+"," =")),"N.C"),"") -> + | V39: (PI-5) | W39: 0 | X39: 1 | Y39: 0 | Z39: =Z40 -> 1 | AA39: =IF($O39>=3.25,Profile!$F$279, IF($O39>=2.5,Profile!$F$278, IF($O39>=1.75,Profile!$F$277, IF($O39>=1,Profile!$F$276, "" )))) -> 1. Below basic
A40: PEFALIA | B40: 5.1 | C40: 5.1 | E40: Comp | F40: II | G40: =VLOOKUP(F40,Profile!B:C,2,FALSE) -> II. Transparency of public finances | H40: PI-5 | I40: =IFERROR(VLOOKUP(B40,Profile!B:C,2,FALSE),"") -> 5.1 Budget documentation | K40: D | L40: =Profile!$E$152 -> Yes | M40: =IFERROR(IF(TRIM(CLEAN(J40))="A",4)+IF(TRIM(CLEAN(J40))="B+",3.5)+IF(TRIM(CLEAN(J40))="B",3)+IF(TRIM(CLEAN(J40))="C+",2.5)+IF(TRIM(CLEAN(J40))="C",2)+IF(TRIM(CLEAN(J40))="D+",1.5)+IF(TRIM(CLEAN(J40))="D",1)+IF(TRIM(CLEAN(J40))="D*",1)+IF(TRIM(CLEAN(J40))="NU",0)+IF(TRIM(CLEAN(J40))="",0),"") -> 0 | N40: =M40 -> 0 | O40: =IFERROR(IF(TRIM(CLEAN(K40))="A",4)+IF(TRIM(CLEAN(K40))="B+",3.5)+IF(TRIM(CLEAN(K40))="B",3)+IF(TRIM(CLEAN(K40))="C+",2.5)+IF(TRIM(CLEAN(K40))="C",2)+IF(TRIM(CLEAN(K40))="D+",1.5)+IF(TRIM(CLEAN(K40))="D",1)+IF(TRIM(CLEAN(K40))="D*",1)+IF(TRIM(CLEAN(K40))="NU",0)+IF(TRIM(CLEAN(K40))="",0),"") -> 1 | P40: =O40 -> 1 | Q40: =IF(K40="D",Profile!$F$276, IF(K40="D*",Profile!$F$276, IF(K40="D+",Profile!$F$276, IF(K40="C",Profile!$F$277, IF(K40="C+",Profile!$F$277, IF(K40="B+",Profile!$F$278, IF(K40="B",Profile!$F$278, IF(K40="A",Profile!$F$279,"")))))))) -> 1. Below basic | R40: =IF(K40="A",Profile!$F$280, IF(K40="B+",Profile!$F$280, IF(K40="B",Profile!$F$280, IF(K40="D+",Profile!$F$281, IF(K40="D",Profile!$F$281, Profile!$F$282))))) -> Weakness | S40: =IFERROR(IF(L40=Profile!$E$152,IF(O40-N40<0,"-",IF(O40-N40>0,"+"," =")),"N.C"),"") -> + | U40: The documentation sent to the Commune Council for the 2020 budget vote contains 1 basic item of information out of 4, and zero supplementary items out of 8. | V40: (PI-5) | W40: 0 | X40: 1 | Y40: 0 | Z40: 1 | AA40: =IF($O40>=3.25,Profile!$F$279, IF($O40>=2.5,Profile!$F$278, IF($O40>=1.75,Profile!$F$277, IF($O40>=1,Profile!$F$276, "" )))) -> 1. Below basic
A41: PEFALIA | B41: PI-6 | C41: PI_6 | D41: M2 | E41: Indic | F41: II | G41: =VLOOKUP(F41,Profile!B:C,2,FALSE) -> II. Transparency of public finances | H41: PI-6 | I41: =IFERROR(VLOOKUP(B41,Profile!B:C,2,FALSE),"") -> PI-6 Central government operations outside the budget | J41: =IF(N41>3.65,"A", IF(N41>=3.25,"B+", IF(N41>2.65,"B", IF(N41>=2.25,"C+", IF(N41>1.75,"C", IF(N41>1.25,"D+", IF(AND(N41<=1.25,N41>0),"D", IF(N41=0,"NA", "" )))))))) -> NA | K41: =IF(O41>3.65,"A", IF(O41>=3.25,"B+", IF(O41>2.65,"B", IF(O41>=2.25,"C+", IF(O41>1.75,"C", IF(O41>1.25,"D+", IF(AND(O41<=1.25,O41>0),"D", IF(O41=0,"NA", "" )))))))) -> D | L41: =IF(OR(N168=Profile!E152,N169=Profile!E152,N170=Profile!E152),Profile!E152,Profile!E153) -> No | M41: =IFERROR((IF($D41="M1",IF(ROUND(AVERAGEIF(M42:M44,">0"),1)=ROUND(MIN(IF(M42:M44>0,M42:M44)),1),AVERAGE(M42:M44),MIN(IF(M42:M44>0,M42:M44))+0.5),AVERAGEIF(M42:M44,">0"))),0) -> 0 | N41: =IFERROR((IF($D41="M1",IF(ROUND(AVERAGEIF(N42:N44,">0"),1)=ROUND(MAX(IF(N42:N44>0,N42:N44)),1),MAX(N42:N44),MAX(IF(N42:N44>0,N42:N44))+0.5),AVERAGEIF(N42:N44,">0"))),0) -> 0 | O41: =IFERROR((IF($D41="M1",IF(ROUND(AVERAGEIF(O42:O44,">0"),1)=ROUND(MIN(IF(O42:O44>0,O42:O44)),1),AVERAGE(O42:O44),MIN(IF(O42:O44>0,O42:O44))+0.5),AVERAGEIF(O42:O44,">0"))),0) -> 1 | P41: 1 | Q41: =IF(K41="D",Profile!$F$276, IF(K41="D*",Profile!$F$276, IF(K41="D+",Profile!$F$276, IF(K41="C",Profile!$F$277, IF(K41="C+",Profile!$F$277, IF(K41="B+",Profile!$F$278, IF(K41="B",Profile!$F$278, IF(K41="A",Profile!$F$279,"")))))))) -> 1. Below basic | R41: =IF(K41="A",Profile!$F$280, IF(K41="B+",Profile!$F$280, IF(K41="B",Profile!$F$280, IF(K41="D+",Profile!$F$281, IF(K41="D",Profile!$F$281, Profile!$F$282))))) -> Weakness | S41: =IFERROR(IF(L41=Profile!$E$152,IF(O41-N41<0,"-",IF(O41-N41>0,"+"," =")),"N.C"),"") -> N.C | V41: (PI-6) | W41: 1 | X41: 1 | Y41: 0 | Z41: =Z42 -> 3 | AA41: =IF($O41>=3.25,Profile!$F$279, IF($O41>=2.5,Profile!$F$278, IF($O41>=1.75,Profile!$F$277, IF($O41>=1,Profile!$F$276, "" )))) -> 1. Below basic
A42: PEFALIA | B42: 6.1 | C42: 6.1 | E42: Comp | F42: II | G42: =VLOOKUP(F42,Profile!B:C,2,FALSE) -> II. Transparency of public finances | H42: PI-6 | I42: =IFERROR(VLOOKUP(B42,Profile!B:C,2,FALSE),"") -> 6.1 Expenditure outside financial reports | K42: D* | L42: =Profile!$E$152 -> Yes | M42: =IFERROR(IF(TRIM(CLEAN(J42))="A",4)+IF(TRIM(CLEAN(J42))="B+",3.5)+IF(TRIM(CLEAN(J42))="B",3)+IF(TRIM(CLEAN(J42))="C+",2.5)+IF(TRIM(CLEAN(J42))="C",2)+IF(TRIM(CLEAN(J42))="D+",1.5)+IF(TRIM(CLEAN(J42))="D",1)+IF(TRIM(CLEAN(J42))="D*",1)+IF(TRIM(CLEAN(J42))="NU",0)+IF(TRIM(CLEAN(J42))="",0),"") -> 0 | N42: =M42 -> 0 | O42: =IFERROR(IF(TRIM(CLEAN(K42))="A",4)+IF(TRIM(CLEAN(K42))="B+",3.5)+IF(TRIM(CLEAN(K42))="B",3)+IF(TRIM(CLEAN(K42))="C+",2.5)+IF(TRIM(CLEAN(K42))="C",2)+IF(TRIM(CLEAN(K42))="D+",1.5)+IF(TRIM(CLEAN(K42))="D",1)+IF(TRIM(CLEAN(K42))="D*",1)+IF(TRIM(CLEAN(K42))="NU",0)+IF(TRIM(CLEAN(K42))="",0),"") -> 1 | P42: =O42 -> 1 | Q42: =IF(K42="D",Profile!$F$276, IF(K42="D*",Profile!$F$276, IF(K42="D+",Profile!$F$276, IF(K42="C",Profile!$F$277, IF(K42="C+",Profile!$F$277, IF(K42="B+",Profile!$F$278, IF(K42="B",Profile!$F$278, IF(K42="A",Profile!$F$279,"")))))))) -> 1. Below basic | R42: =IF(K42="A",Profile!$F$280, IF(K42="B+",Profile!$F$280, IF(K42="B",Profile!$F$280, IF(K42="D+",Profile!$F$281, IF(K42="D",Profile!$F$281, Profile!$F$282))))) -> Average | S42: =IFERROR(IF(L42=Profile!$E$152,IF(O42-N42<0,"-",IF(O42-N42>0,"+"," =")),"N.C"),"") -> + | U42: Insufficient information is available to rate this component. | V42: (PI-6) | W42: 1 | X42: 1 | Y42: 0 | Z42: 3 | AA42: =IF($O42>=3.25,Profile!$F$279, IF($O42>=2.5,Profile!$F$278, IF($O42>=1.75,Profile!$F$277, IF($O42>=1,Profile!$F$276, "" )))) -> 1. Below basic
A43: PEFALIA | B43: 6.2 | C43: 6.2 | E43: Comp | F43: II | G43: =VLOOKUP(F43,Profile!B:C,2,FALSE) -> II. Transparency of public finances | H43: PI-6 | I43: =IFERROR(VLOOKUP(B43,Profile!B:C,2,FALSE),"") -> 6.2 Revenue outside financial reports | K43: D* | L43: =Profile!$E$152 -> Yes | M43: =IFERROR(IF(TRIM(CLEAN(J43))="A",4)+IF(TRIM(CLEAN(J43))="B+",3.5)+IF(TRIM(CLEAN(J43))="B",3)+IF(TRIM(CLEAN(J43))="C+",2.5)+IF(TRIM(CLEAN(J43))="C",2)+IF(TRIM(CLEAN(J43))="D+",1.5)+IF(TRIM(CLEAN(J43))="D",1)+IF(TRIM(CLEAN(J43))="D*",1)+IF(TRIM(CLEAN(J43))="NU",0)+IF(TRIM(CLEAN(J43))="",0),"") -> 0 | N43: 0 | O43: =IFERROR(IF(TRIM(CLEAN(K43))="A",4)+IF(TRIM(CLEAN(K43))="B+",3.5)+IF(TRIM(CLEAN(K43))="B",3)+IF(TRIM(CLEAN(K43))="C+",2.5)+IF(TRIM(CLEAN(K43))="C",2)+IF(TRIM(CLEAN(K43))="D+",1.5)+IF(TRIM(CLEAN(K43))="D",1)+IF(TRIM(CLEAN(K43))="D*",1)+IF(TRIM(CLEAN(K43))="NU",0)+IF(TRIM(CLEAN(K43))="",0),"") -> 1 | P43: 1 | Q43: =IF(K43="D",Profile!$F$276, IF(K43="D*",Profile!$F$276, IF(K43="D+",Profile!$F$276, IF(K43="C",Profile!$F$277, IF(K43="C+",Profile!$F$277, IF(K43="B+",Profile!$F$278, IF(K43="B",Profile!$F$278, IF(K43="A",Profile!$F$279,"")))))))) -> 1. Below basic | R43: =IF(K43="A",Profile!$F$280, IF(K43="B+",Profile!$F$280, IF(K43="B",Profile!$F$280, IF(K43="D+",Profile!$F$281, IF(K43="D",Profile!$F$281, Profile!$F$282))))) -> Average | S43: =IFERROR(IF(L43=Profile!$E$152,IF(O43-N43<0,"-",IF(O43-N43>0,"+"," =")),"N.C"),"") -> + | U43: Insufficient information is available to rate this component. | V43: (PI-6) | W43: 1 | X43: 1 | Y43: 0 | Z43: 3 | AA43: =IF($O43>=3.25,Profile!$F$279, IF($O43>=2.5,Profile!$F$278, IF($O43>=1.75,Profile!$F$277, IF($O43>=1,Profile!$F$276, "" )))) -> 1. Below basic
A44: PEFALIA | B44: 6.3 | C44: 6.3 | E44: Comp | F44: II | G44: =VLOOKUP(F44,Profile!B:C,2,FALSE) -> II. Transparency of public finances | H44: PI-6 | I44: =IFERROR(VLOOKUP(B44,Profile!B:C,2,FALSE),"") -> 6.3 Financial reports of extra- budgetary units | K44: D | L44: =Profile!$E$152 -> Yes | M44: =IFERROR(IF(TRIM(CLEAN(J44))="A",4)+IF(TRIM(CLEAN(J44))="B+",3.5)+IF(TRIM(CLEAN(J44))="B",3)+IF(TRIM(CLEAN(J44))="C+",2.5)+IF(TRIM(CLEAN(J44))="C",2)+IF(TRIM(CLEAN(J44))="D+",1.5)+IF(TRIM(CLEAN(J44))="D",1)+IF(TRIM(CLEAN(J44))="D*",1)+IF(TRIM(CLEAN(J44))="NU",0)+IF(TRIM(CLEAN(J44))="",0),"") -> 0 | N44: 0 | O44: =IFERROR(IF(TRIM(CLEAN(K44))="A",4)+IF(TRIM(CLEAN(K44))="B+",3.5)+IF(TRIM(CLEAN(K44))="B",3)+IF(TRIM(CLEAN(K44))="C+",2.5)+IF(TRIM(CLEAN(K44))="C",2)+IF(TRIM(CLEAN(K44))="D+",1.5)+IF(TRIM(CLEAN(K44))="D",1)+IF(TRIM(CLEAN(K44))="D*",1)+IF(TRIM(CLEAN(K44))="NU",0)+IF(TRIM(CLEAN(K44))="",0),"") -> 1 | P44: 1 | Q44: =IF(K44="D",Profile!$F$276, IF(K44="D*",Profile!$F$276, IF(K44="D+",Profile!$F$276, IF(K44="C",Profile!$F$277, IF(K44="C+",Profile!$F$277, IF(K44="B+",Profile!$F$278, IF(K44="B",Profile!$F$278, IF(K44="A",Profile!$F$279,"")))))))) -> 1. Below basic | R44: =IF(K44="A",Profile!$F$280, IF(K44="B+",Profile!$F$280, IF(K44="B",Profile!$F$280, IF(K44="D+",Profile!$F$281, IF(K44="D",Profile!$F$281, Profile!$F$282))))) -> Weakness | S44: =IFERROR(IF(L44=Profile!$E$152,IF(O44-N44<0,"-",IF(O44-N44>0,"+"," =")),"N.C"),"") -> + | U44: Tiko commune has no extra-budgetary units | V44: (PI-6) | W44: 1 | X44: 1 | Y44: 0 | Z44: 3 | AA44: =IF($O44>=3.25,Profile!$F$279, IF($O44>=2.5,Profile!$F$278, IF($O44>=1.75,Profile!$F$277, IF($O44>=1,Profile!$F$276, "" )))) -> 1. Below basic
A45: PEFALIA | B45: PI-7 | C45: PI_7 | D45: M2 | E45: Indic | F45: II | G45: =VLOOKUP(F45,Profile!B:C,2,FALSE) -> II. Transparency of public finances | H45: PI-7 | I45: =IFERROR(VLOOKUP(B45,Profile!B:C,2,FALSE),"") -> PI-7 Transfers to sub-national government | J45: =IF(N45>3.65,"A", IF(N45>=3.25,"B+", IF(N45>2.65,"B", IF(N45>=2.25,"C+", IF(N45>1.75,"C", IF(N45>1.25,"D+", IF(AND(N45<=1.25,N45>0),"D", IF(N45=0,"NA", "" )))))))) -> NA | K45: =IF(O45>3.65,"A", IF(O45>=3.25,"B+", IF(O45>2.65,"B", IF(O45>=2.25,"C+", IF(O45>1.75,"C", IF(O45>1.25,"D+", IF(AND(O45<=1.25,O45>0),"D", IF(O45=0,"NA", "" )))))))) -> C+ | L45: =IF(OR(N172=Profile!E152,N173=Profile!E152),Profile!E152,Profile!E153) -> No | M45: =IFERROR(IF($D45="M1",IF(ROUND(AVERAGEIF(M46:M47,">0"),1)=ROUND(MIN(IF(M46:M47>0,M46:M47)),1),M46,MIN(IF(M46:M47>0,M46:M47))+0.5),AVERAGEIF(M46:M47,">0")),0) -> 0 | N45: =IFERROR(IF($D45="M1",IF(ROUND(AVERAGEIF(N46:N47,">0"),1)=ROUND(MAX(IF(N46:N47>0,N46:N47)),1),N46,MAX(IF(N46:N47>0,N46:N47))+0.5),AVERAGEIF(N46:N47,">0")),0) -> 0 | O45: =IFERROR(IF($D45="M1",IF(ROUND(AVERAGEIF(O46:O47,">0"),1)=ROUND(MIN(IF(O46:O47>0,O46:O47)),1),O46,MIN(IF(O46:O47>0,O46:O47))+0.5),AVERAGEIF(O46:O47,">0")),0) -> 2.5 | P45: 2.5 | Q45: =IF(K45="D",Profile!$F$276, IF(K45="D*",Profile!$F$276, IF(K45="D+",Profile!$F$276, IF(K45="C",Profile!$F$277, IF(K45="C+",Profile!$F$277, IF(K45="B+",Profile!$F$278, IF(K45="B",Profile!$F$278, IF(K45="A",Profile!$F$279,"")))))))) -> 2. Basic | R45: =IF(K45="A",Profile!$F$280, IF(K45="B+",Profile!$F$280, IF(K45="B",Profile!$F$280, IF(K45="D+",Profile!$F$281, IF(K45="D",Profile!$F$281, Profile!$F$282))))) -> Average | S45: =IFERROR(IF(L45=Profile!$E$152,IF(O45-N45<0,"-",IF(O45-N45>0,"+"," =")),"N.C"),"") -> N.C | V45: (PI-7) | W45: 0 | X45: 1 | Y45: 1 | Z45: =Z46 -> 2 | AA45: =IF($O45>=3.25,Profile!$F$279, IF($O45>=2.5,Profile!$F$278, IF($O45>=1.75,Profile!$F$277, IF($O45>=1,Profile!$F$276, "" )))) -> 3. Sound
A46: PEFALIA | B46: 7.1 | C46: 7.1 | E46: Comp | F46: II | G46: =VLOOKUP(F46,Profile!B:C,2,FALSE) -> II. Transparency of public finances | H46: PI-7 | I46: =IFERROR(VLOOKUP(B46,Profile!B:C,2,FALSE),"") -> 7.1 System for allocating transfers | K46: B | L46: =Profile!$E$152 -> Yes | M46: =IFERROR(IF(TRIM(CLEAN(J46))="A",4)+IF(TRIM(CLEAN(J46))="B+",3.5)+IF(TRIM(CLEAN(J46))="B",3)+IF(TRIM(CLEAN(J46))="C+",2.5)+IF(TRIM(CLEAN(J46))="C",2)+IF(TRIM(CLEAN(J46))="D+",1.5)+IF(TRIM(CLEAN(J46))="D",1)+IF(TRIM(CLEAN(J46))="D*",1)+IF(TRIM(CLEAN(J46))="NU",0)+IF(TRIM(CLEAN(J46))="",0),"") -> 0 | N46: =M46 -> 0 | O46: =IFERROR(IF(TRIM(CLEAN(K46))="A",4)+IF(TRIM(CLEAN(K46))="B+",3.5)+IF(TRIM(CLEAN(K46))="B",3)+IF(TRIM(CLEAN(K46))="C+",2.5)+IF(TRIM(CLEAN(K46))="C",2)+IF(TRIM(CLEAN(K46))="D+",1.5)+IF(TRIM(CLEAN(K46))="D",1)+IF(TRIM(CLEAN(K46))="D*",1)+IF(TRIM(CLEAN(K46))="NU",0)+IF(TRIM(CLEAN(K46))="",0),"") -> 3 | P46: =O46 -> 3 | Q46: =IF(K46="D",Profile!$F$276, IF(K46="D*",Profile!$F$276, IF(K46="D+",Profile!$F$276, IF(K46="C",Profile!$F$277, IF(K46="C+",Profile!$F$277, IF(K46="B+",Profile!$F$278, IF(K46="B",Profile!$F$278, IF(K46="A",Profile!$F$279,"")))))))) -> 3. Sound | R46: =IF(K46="A",Profile!$F$280, IF(K46="B+",Profile!$F$280, IF(K46="B",Profile!$F$280, IF(K46="D+",Profile!$F$281, IF(K46="D",Profile!$F$281, Profile!$F$282))))) -> Strength | S46: =IFERROR(IF(L46=Profile!$E$152,IF(O46-N46<0,"-",IF(O46-N46>0,"+"," =")),"N.C"),"") -> + | U46: The commune has no lower-level communes. | V46: (PI-7) | W46: 0 | X46: 1 | Y46: 1 | Z46: 2 | AA46: =IF($O46>=3.25,Profile!$F$279, IF($O46>=2.5,Profile!$F$278, IF($O46>=1.75,Profile!$F$277, IF($O46>=1,Profile!$F$276, "" )))) -> 3. Sound
A47: PEFALIA | B47: 7.2 | C47: 7.2 | E47: Comp | F47: II | G47: =VLOOKUP(F47,Profile!B:C,2,FALSE) -> II. Transparency of public finances | H47: PI-7 | I47: =IFERROR(VLOOKUP(B47,Profile!B:C,2,FALSE),"") -> 7.2 Timeliness of information on transfers | K47: C | L47: =Profile!$E$152 -> Yes | M47: =IFERROR(IF(TRIM(CLEAN(J47))="A",4)+IF(TRIM(CLEAN(J47))="B+",3.5)+IF(TRIM(CLEAN(J47))="B",3)+IF(TRIM(CLEAN(J47))="C+",2.5)+IF(TRIM(CLEAN(J47))="C",2)+IF(TRIM(CLEAN(J47))="D+",1.5)+IF(TRIM(CLEAN(J47))="D",1)+IF(TRIM(CLEAN(J47))="D*",1)+IF(TRIM(CLEAN(J47))="NU",0)+IF(TRIM(CLEAN(J47))="",0),"") -> 0 | N47: 0 | O47: =IFERROR(IF(TRIM(CLEAN(K47))="A",4)+IF(TRIM(CLEAN(K47))="B+",3.5)+IF(TRIM(CLEAN(K47))="B",3)+IF(TRIM(CLEAN(K47))="C+",2.5)+IF(TRIM(CLEAN(K47))="C",2)+IF(TRIM(CLEAN(K47))="D+",1.5)+IF(TRIM(CLEAN(K47))="D",1)+IF(TRIM(CLEAN(K47))="D*",1)+IF(TRIM(CLEAN(K47))="NU",0)+IF(TRIM(CLEAN(K47))="",0),"") -> 2 | P47: 2 | Q47: =IF(K47="D",Profile!$F$276, IF(K47="D*",Profile!$F$276, IF(K47="D+",Profile!$F$276, IF(K47="C",Profile!$F$277, IF(K47="C+",Profile!$F$277, IF(K47="B+",Profile!$F$278, IF(K47="B",Profile!$F$278, IF(K47="A",Profile!$F$279,"")))))))) -> 2. Basic | R47: =IF(K47="A",Profile!$F$280, IF(K47="B+",Profile!$F$280, IF(K47="B",Profile!$F$280, IF(K47="D+",Profile!$F$281, IF(K47="D",Profile!$F$281, Profile!$F$282))))) -> Average | S47: =IFERROR(IF(L47=Profile!$E$152,IF(O47-N47<0,"-",IF(O47-N47>0,"+"," =")),"N.C"),"") -> + | U47: The commune has no lower-level communes. | V47: (PI-7) | W47: 0 | X47: 1 | Y47: 1 | Z47: 2 | AA47: =IF($O47>=3.25,Profile!$F$279, IF($O47>=2.5,Profile!$F$278, IF($O47>=1.75,Profile!$F$277, IF($O47>=1,Profile!$F$276, "" )))) -> 2. Basic
A48: PEFALIA | B48: PI-8 | C48: PI_8 | D48: M2 | E48: Indic | F48: II | G48: =VLOOKUP(F48,Profile!B:C,2,FALSE) -> II. Transparency of public finances | H48: PI-8 | I48: =IFERROR(VLOOKUP(B48,Profile!B:C,2,FALSE),"") -> PI-8 Performance information for service delivery | J48: =IF(N48>3.65,"A", IF(N48>=3.25,"B+", IF(N48>2.65,"B", IF(N48>=2.25,"C+", IF(N48>1.75,"C", IF(N48>1.25,"D+", IF(AND(N48<=1.25,N48>0),"D", IF(N48=0,"NA", "" )))))))) -> NA | K48: =IF(O48>3.65,"A", IF(O48>=3.25,"B+", IF(O48>2.65,"B", IF(O48>=2.25,"C+", IF(O48>1.75,"C", IF(O48>1.25,"D+", IF(AND(O48<=1.25,O48>0),"D", IF(O48=0,"NA", "" )))))))) -> D+ | L48: =IF(OR(N175=Profile!E152,L50=Profile!E152,L51=Profile!E152,L52=Profile!E152),Profile!E152,Profile!E153) -> Yes | M48: =IFERROR(IF($D48="M1",IF(ROUND(AVERAGEIF(M49:M52,">0"),1)=ROUND(MIN(IF(M49:M52>0,M49:M52)),1),AVERAGE(M49:M52),MIN(IF(M49:M52>0,M49:M52))+0.5),AVERAGEIF(M49:M52,">0")),0) -> 0 | N48: =IFERROR(IF($D48="M1",IF(ROUND(AVERAGEIF(N49:N52,">0"),1)=ROUND(MAX(IF(N49:N52>0,N49:N52)),1),MAX(N49:N52),MAX(IF(N49:N52>0,N49:N52))+0.5),AVERAGEIF(N49:N52,">0")),0) -> 0 | O48: =IFERROR(IF($D48="M1",IF(ROUND(AVERAGEIF(O49:O52,">0"),1)=ROUND(MIN(IF(O49:O52>0,O49:O52)),1),AVERAGE(O49:O52),MIN(IF(O49:O52>0,O49:O52))+0.5),AVERAGEIF(O49:O52,">0")),0) -> 1.5 | P48: 1.5 | Q48: =IF(K48="D",Profile!$F$276, IF(K48="D*",Profile!$F$276, IF(K48="D+",Profile!$F$276, IF(K48="C",Profile!$F$277, IF(K48="C+",Profile!$F$277, IF(K48="B+",Profile!$F$278, IF(K48="B",Profile!$F$278, IF(K48="A",Profile!$F$279,"")))))))) -> 1. Below basic | R48: =IF(K48="A",Profile!$F$280, IF(K48="B+",Profile!$F$280, IF(K48="B",Profile!$F$280, IF(K48="D+",Profile!$F$281, IF(K48="D",Profile!$F$281, Profile!$F$282))))) -> Weakness | S48: =IFERROR(IF(L48=Profile!$E$152,IF(O48-N48<0,"-",IF(O48-N48>0,"+"," =")),"N.C"),"") -> + | V48: (PI-8) | W48: 0 | X48: 0 | Y48: 1 | Z48: =Z49 -> 4 | AA48: =IF($O48>=3.25,Profile!$F$279, IF($O48>=2.5,Profile!$F$278, IF($O48>=1.75,Profile!$F$277, IF($O48>=1,Profile!$F$276, "" )))) -> 1. Below basic
A49: PEFALIA | B49: 8.1 | C49: 8.1 | E49: Comp | F49: II | G49: =VLOOKUP(F49,Profile!B:C,2,FALSE) -> II. Transparency of public finances | H49: PI-8 | I49: =IFERROR(VLOOKUP(B49,Profile!B:C,2,FALSE),"") -> 8.1 Performance plans for service delivery | K49: D | L49: =Profile!$E$152 -> Yes | M49: =IFERROR(IF(TRIM(CLEAN(J49))="A",4)+IF(TRIM(CLEAN(J49))="B+",3.5)+IF(TRIM(CLEAN(J49))="B",3)+IF(TRIM(CLEAN(J49))="C+",2.5)+IF(TRIM(CLEAN(J49))="C",2)+IF(TRIM(CLEAN(J49))="D+",1.5)+IF(TRIM(CLEAN(J49))="D",1)+IF(TRIM(CLEAN(J49))="D*",1)+IF(TRIM(CLEAN(J49))="NU",0)+IF(TRIM(CLEAN(J49))="",0),"") -> 0 | N49: =M49 -> 0 | O49: =IFERROR(IF(TRIM(CLEAN(K49))="A",4)+IF(TRIM(CLEAN(K49))="B+",3.5)+IF(TRIM(CLEAN(K49))="B",3)+IF(TRIM(CLEAN(K49))="C+",2.5)+IF(TRIM(CLEAN(K49))="C",2)+IF(TRIM(CLEAN(K49))="D+",1.5)+IF(TRIM(CLEAN(K49))="D",1)+IF(TRIM(CLEAN(K49))="D*",1)+IF(TRIM(CLEAN(K49))="NU",0)+IF(TRIM(CLEAN(K49))="",0),"") -> 1 | P49: =O49 -> 1 | Q49: =IF(K49="D",Profile!$F$276, IF(K49="D*",Profile!$F$276, IF(K49="D+",Profile!$F$276, IF(K49="C",Profile!$F$277, IF(K49="C+",Profile!$F$277, IF(K49="B+",Profile!$F$278, IF(K49="B",Profile!$F$278, IF(K49="A",Profile!$F$279,"")))))))) -> 1. Below basic | R49: =IF(K49="A",Profile!$F$280, IF(K49="B+",Profile!$F$280, IF(K49="B",Profile!$F$280, IF(K49="D+",Profile!$F$281, IF(K49="D",Profile!$F$281, Profile!$F$282))))) -> Weakness | S49: =IFERROR(IF(L49=Profile!$E$152,IF(O49-N49<0,"-",IF(O49-N49>0,"+"," =")),"N.C"),"") -> + | U49: As part of the budgetary process, no document has been drawn up specifying the public policy objectives pursued, as well as the service indicators to be delivered, information on the activities to be implemented and the expected results. | V49: (PI-8) | W49: 0 | X49: 0 | Y49: 1 | Z49: 4 | AA49: =IF($O49>=3.25,Profile!$F$279, IF($O49>=2.5,Profile!$F$278, IF($O49>=1.75,Profile!$F$277, IF($O49>=1,Profile!$F$276, "" )))) -> 1. Below basic
A50: PEFALIA | B50: 8.2 | C50: 8.2 | E50: Comp | F50: II | G50: =VLOOKUP(F50,Profile!B:C,2,FALSE) -> II. Transparency of public finances | H50: PI-8 | I50: =IFERROR(VLOOKUP(B50,Profile!B:C,2,FALSE),"") -> 8.2 Performance achieved for service delivery | K50: C | L50: =Profile!$E$152 -> Yes | M50: =IFERROR(IF(TRIM(CLEAN(J50))="A",4)+IF(TRIM(CLEAN(J50))="B+",3.5)+IF(TRIM(CLEAN(J50))="B",3)+IF(TRIM(CLEAN(J50))="C+",2.5)+IF(TRIM(CLEAN(J50))="C",2)+IF(TRIM(CLEAN(J50))="D+",1.5)+IF(TRIM(CLEAN(J50))="D",1)+IF(TRIM(CLEAN(J50))="D*",1)+IF(TRIM(CLEAN(J50))="NU",0)+IF(TRIM(CLEAN(J50))="",0),"") -> 0 | N50: 0 | O50: =IFERROR(IF(TRIM(CLEAN(K50))="A",4)+IF(TRIM(CLEAN(K50))="B+",3.5)+IF(TRIM(CLEAN(K50))="B",3)+IF(TRIM(CLEAN(K50))="C+",2.5)+IF(TRIM(CLEAN(K50))="C",2)+IF(TRIM(CLEAN(K50))="D+",1.5)+IF(TRIM(CLEAN(K50))="D",1)+IF(TRIM(CLEAN(K50))="D*",1)+IF(TRIM(CLEAN(K50))="NU",0)+IF(TRIM(CLEAN(K50))="",0),"") -> 2 | P50: 2 | Q50: =IF(K50="D",Profile!$F$276, IF(K50="D*",Profile!$F$276, IF(K50="D+",Profile!$F$276, IF(K50="C",Profile!$F$277, IF(K50="C+",Profile!$F$277, IF(K50="B+",Profile!$F$278, IF(K50="B",Profile!$F$278, IF(K50="A",Profile!$F$279,"")))))))) -> 2. Basic | R50: =IF(K50="A",Profile!$F$280, IF(K50="B+",Profile!$F$280, IF(K50="B",Profile!$F$280, IF(K50="D+",Profile!$F$281, IF(K50="D",Profile!$F$281, Profile!$F$282))))) -> Average | S50: =IFERROR(IF(L50=Profile!$E$152,IF(O50-N50<0,"-",IF(O50-N50>0,"+"," =")),"N.C"),"") -> + | U50: The commune does not produce and publish annual information on the quantities of services delivered, the results obtained and the activities carried out by the commune. | V50: (PI-8) | W50: 0 | X50: 0 | Y50: 1 | Z50: 4 | AA50: =IF($O50>=3.25,Profile!$F$279, IF($O50>=2.5,Profile!$F$278, IF($O50>=1.75,Profile!$F$277, IF($O50>=1,Profile!$F$276, "" )))) -> 2. Basic
A51: PEFALIA | B51: 8.3 | C51: 8.3 | E51: Comp | F51: II | G51: =VLOOKUP(F51,Profile!B:C,2,FALSE) -> II. Transparency of public finances | H51: PI-8 | I51: =IFERROR(VLOOKUP(B51,Profile!B:C,2,FALSE),"") -> 8.3 Resources received by service delivery units | K51: D | L51: =Profile!$E$152 -> Yes | M51: =IFERROR(IF(TRIM(CLEAN(J51))="A",4)+IF(TRIM(CLEAN(J51))="B+",3.5)+IF(TRIM(CLEAN(J51))="B",3)+IF(TRIM(CLEAN(J51))="C+",2.5)+IF(TRIM(CLEAN(J51))="C",2)+IF(TRIM(CLEAN(J51))="D+",1.5)+IF(TRIM(CLEAN(J51))="D",1)+IF(TRIM(CLEAN(J51))="D*",1)+IF(TRIM(CLEAN(J51))="NU",0)+IF(TRIM(CLEAN(J51))="",0),"") -> 0 | N51: 0 | O51: =IFERROR(IF(TRIM(CLEAN(K51))="A",4)+IF(TRIM(CLEAN(K51))="B+",3.5)+IF(TRIM(CLEAN(K51))="B",3)+IF(TRIM(CLEAN(K51))="C+",2.5)+IF(TRIM(CLEAN(K51))="C",2)+IF(TRIM(CLEAN(K51))="D+",1.5)+IF(TRIM(CLEAN(K51))="D",1)+IF(TRIM(CLEAN(K51))="D*",1)+IF(TRIM(CLEAN(K51))="NU",0)+IF(TRIM(CLEAN(K51))="",0),"") -> 1 | P51: 1 | Q51: =IF(K51="D",Profile!$F$276, IF(K51="D*",Profile!$F$276, IF(K51="D+",Profile!$F$276, IF(K51="C",Profile!$F$277, IF(K51="C+",Profile!$F$277, IF(K51="B+",Profile!$F$278, IF(K51="B",Profile!$F$278, IF(K51="A",Profile!$F$279,"")))))))) -> 1. Below basic | R51: =IF(K51="A",Profile!$F$280, IF(K51="B+",Profile!$F$280, IF(K51="B",Profile!$F$280, IF(K51="D+",Profile!$F$281, IF(K51="D",Profile!$F$281, Profile!$F$282))))) -> Weakness | S51: =IFERROR(IF(L51=Profile!$E$152,IF(O51-N51<0,"-",IF(O51-N51>0,"+"," =")),"N.C"),"") -> + | U51: The Commune does not periodically produce a consolidated report on the resources received by the operational service delivery units. Nor did it carry out any traceability surveys of these resources during the period under review. | V51: (PI-8) | W51: 0 | X51: 0 | Y51: 1 | Z51: 4 | AA51: =IF($O51>=3.25,Profile!$F$279, IF($O51>=2.5,Profile!$F$278, IF($O51>=1.75,Profile!$F$277, IF($O51>=1,Profile!$F$276, "" )))) -> 1. Below basic
A52: PEFALIA | B52: 8.4 | C52: 8.4 | E52: Comp | F52: II | G52: =VLOOKUP(F52,Profile!B:C,2,FALSE) -> II. Transparency of public finances | H52: PI-8 | I52: =IFERROR(VLOOKUP(B52,Profile!B:C,2,FALSE),"") -> 8.4 Performance evaluation for service delivery | K52: C | L52: =Profile!$E$152 -> Yes | M52: =IFERROR(IF(TRIM(CLEAN(J52))="A",4)+IF(TRIM(CLEAN(J52))="B+",3.5)+IF(TRIM(CLEAN(J52))="B",3)+IF(TRIM(CLEAN(J52))="C+",2.5)+IF(TRIM(CLEAN(J52))="C",2)+IF(TRIM(CLEAN(J52))="D+",1.5)+IF(TRIM(CLEAN(J52))="D",1)+IF(TRIM(CLEAN(J52))="D*",1)+IF(TRIM(CLEAN(J52))="NU",0)+IF(TRIM(CLEAN(J52))="",0),"") -> 0 | N52: 0 | O52: =IFERROR(IF(TRIM(CLEAN(K52))="A",4)+IF(TRIM(CLEAN(K52))="B+",3.5)+IF(TRIM(CLEAN(K52))="B",3)+IF(TRIM(CLEAN(K52))="C+",2.5)+IF(TRIM(CLEAN(K52))="C",2)+IF(TRIM(CLEAN(K52))="D+",1.5)+IF(TRIM(CLEAN(K52))="D",1)+IF(TRIM(CLEAN(K52))="D*",1)+IF(TRIM(CLEAN(K52))="NU",0)+IF(TRIM(CLEAN(K52))="",0),"") -> 2 | P52: 2 | Q52: =IF(K52="D",Profile!$F$276, IF(K52="D*",Profile!$F$276, IF(K52="D+",Profile!$F$276, IF(K52="C",Profile!$F$277, IF(K52="C+",Profile!$F$277, IF(K52="B+",Profile!$F$278, IF(K52="B",Profile!$F$278, IF(K52="A",Profile!$F$279,"")))))))) -> 2. Basic | R52: =IF(K52="A",Profile!$F$280, IF(K52="B+",Profile!$F$280, IF(K52="B",Profile!$F$280, IF(K52="D+",Profile!$F$281, IF(K52="D",Profile!$F$281, Profile!$F$282))))) -> Average | S52: =IFERROR(IF(L52=Profile!$E$152,IF(O52-N52<0,"-",IF(O52-N52>0,"+"," =")),"N.C"),"") -> + | U52: The commune does not have a department responsible for performance evaluation. Furthermore, for the 2020 financial year, it has not commissioned an independent evaluation of the effectiveness and efficiency of the services provided by the operational units from an outside firm. | V52: (PI-8) | W52: 0 | X52: 0 | Y52: 1 | Z52: 4 | AA52: =IF($O52>=3.25,Profile!$F$279, IF($O52>=2.5,Profile!$F$278, IF($O52>=1.75,Profile!$F$277, IF($O52>=1,Profile!$F$276, "" )))) -> 2. Basic
A53: PEFALIA | B53: PI-9 | C53: PI_9 | D53: M1 | E53: Indic | F53: II | G53: =VLOOKUP(F53,Profile!B:C,2,FALSE) -> II. Transparency of public finances | H53: PI-9 | I53: =IFERROR(VLOOKUP(B53,Profile!B:C,2,FALSE),"") -> PI-9 Public access to fiscal information | J53: =IF(N53>3.65,"A", IF(N53>=3.25,"B+", IF(N53>2.65,"B", IF(N53>=2.25,"C+", IF(N53>1.75,"C", IF(N53>1.25,"D+", IF(AND(N53<=1.25,N53>0),"D", IF(N53=0,"NA", "" )))))))) -> NA | K53: =IF(O53>3.65,"A", IF(O53>=3.25,"B+", IF(O53>2.65,"B", IF(O53>=2.25,"C+", IF(O53>1.75,"C", IF(O53>1.25,"D+", IF(AND(O53<=1.25,O53>0),"D", IF(O53=0,"NA", "" )))))))) -> D | L53: =L54 -> Yes | M53: =IF($D53="M1",IF(MAX(M54)=MAX(M54),M54,MAX(M54)+0.5),MAX(M54)) -> 0 | N53: =IF($D53="M1",IF(MAX(N54)=MAX(N54),N54,MAX(N54)+0.5),MAX(N54)) -> 0 | O53: =IF($D53="M1",IF(MAX(O54)=MAX(O54),O54,MAX(O54)+0.5),MAX(O54)) -> 1 | P53: 1 | Q53: =IF(K53="D",Profile!$F$276, IF(K53="D*",Profile!$F$276, IF(K53="D+",Profile!$F$276, IF(K53="C",Profile!$F$277, IF(K53="C+",Profile!$F$277, IF(K53="B+",Profile!$F$278, IF(K53="B",Profile!$F$278, IF(K53="A",Profile!$F$279,"")))))))) -> 1. Below basic | R53: =IF(K53="A",Profile!$F$280, IF(K53="B+",Profile!$F$280, IF(K53="B",Profile!$F$280, IF(K53="D+",Profile!$F$281, IF(K53="D",Profile!$F$281, Profile!$F$282))))) -> Weakness | S53: =IFERROR(IF(L53=Profile!$E$152,IF(O53-N53<0,"-",IF(O53-N53>0,"+"," =")),"N.C"),"") -> + | V53: (PI-9) | W53: 0 | X53: 0 | Y53: 1 | Z53: =Z54 -> 1 | AA53: =IF($O53>=3.25,Profile!$F$279, IF($O53>=2.5,Profile!$F$278, IF($O53>=1.75,Profile!$F$277, IF($O53>=1,Profile!$F$276, "" )))) -> 1. Below basic
A54: PEFALIA | B54: 9.1 | C54: 9.1 | E54: Comp | F54: II | G54: =VLOOKUP(F54,Profile!B:C,2,FALSE) -> II. Transparency of public finances | H54: PI-9 | I54: =IFERROR(VLOOKUP(B54,Profile!B:C,2,FALSE),"") -> 9.1 Public access to fiscal information | K54: D | L54: =Profile!$E$152 -> Yes | M54: =IFERROR(IF(TRIM(CLEAN(J54))="A",4)+IF(TRIM(CLEAN(J54))="B+",3.5)+IF(TRIM(CLEAN(J54))="B",3)+IF(TRIM(CLEAN(J54))="C+",2.5)+IF(TRIM(CLEAN(J54))="C",2)+IF(TRIM(CLEAN(J54))="D+",1.5)+IF(TRIM(CLEAN(J54))="D",1)+IF(TRIM(CLEAN(J54))="D*",1)+IF(TRIM(CLEAN(J54))="NU",0)+IF(TRIM(CLEAN(J54))="",0),"") -> 0 | N54: =M54 -> 0 | O54: =IFERROR(IF(TRIM(CLEAN(K54))="A",4)+IF(TRIM(CLEAN(K54))="B+",3.5)+IF(TRIM(CLEAN(K54))="B",3)+IF(TRIM(CLEAN(K54))="C+",2.5)+IF(TRIM(CLEAN(K54))="C",2)+IF(TRIM(CLEAN(K54))="D+",1.5)+IF(TRIM(CLEAN(K54))="D",1)+IF(TRIM(CLEAN(K54))="D*",1)+IF(TRIM(CLEAN(K54))="NU",0)+IF(TRIM(CLEAN(K54))="",0),"") -> 1 | P54: =O54 -> 1 | Q54: =IF(K54="D",Profile!$F$276, IF(K54="D*",Profile!$F$276, IF(K54="D+",Profile!$F$276, IF(K54="C",Profile!$F$277, IF(K54="C+",Profile!$F$277, IF(K54="B+",Profile!$F$278, IF(K54="B",Profile!$F$278, IF(K54="A",Profile!$F$279,"")))))))) -> 1. Below basic | R54: =IF(K54="A",Profile!$F$280, IF(K54="B+",Profile!$F$280, IF(K54="B",Profile!$F$280, IF(K54="D+",Profile!$F$281, IF(K54="D",Profile!$F$281, Profile!$F$282))))) -> Weakness | S54: =IFERROR(IF(L54=Profile!$E$152,IF(O54-N54<0,"-",IF(O54-N54>0,"+"," =")),"N.C"),"") -> + | U54: The administration of the Commune does not provide the public with any information on the 4 basic elements applicable. | V54: (PI-9) | W54: 0 | X54: 0 | Y54: 1 | Z54: 1 | AA54: =IF($O54>=3.25,Profile!$F$279, IF($O54>=2.5,Profile!$F$278, IF($O54>=1.75,Profile!$F$277, IF($O54>=1,Profile!$F$276, "" )))) -> 1. Below basic
A55: PI-9bis | B55: PI-9bis | C55: PI-9bis | D55: M2 | E55: Indic | F55: II | G55: =VLOOKUP(F55,Profile!B:C,2,FALSE) -> II. Transparency of public finances | H55: PI-9bis | I55: =IFERROR(VLOOKUP(B55,Profile!B:C,2,FALSE),"") -> PI-9bis Public consultation | J55: =IF(N55>3.65,"A", IF(N55>=3.25,"B+", IF(N55>2.65,"B", IF(N55>=2.25,"C+", IF(N55>1.75,"C", IF(N55>1.25,"D+", IF(AND(N55<=1.25,N55>0),"D", IF(N55=0,"NA", "" )))))))) -> NA | K55: =IF(O55>3.65,"A", IF(O55>=3.25,"B+", IF(O55>2.65,"B", IF(O55>=2.25,"C+", IF(O55>1.75,"C", IF(O55>1.25,"D+", IF(AND(O55<=1.25,O55>0),"D", IF(O55=0,"NA", "" )))))))) -> D+ | L55: Oui | M55: =IFERROR((IF($D55="M1",IF(ROUND(AVERAGEIF(M56:M58,">0"),1)=ROUND(MIN(IF(M56:M58>0,M56:M58)),1),AVERAGE(M56:M58),MIN(IF(M56:M58>0,M56:M58))+0.5),AVERAGEIF(M56:M58,">0"))),0) -> 0 | N55: =IFERROR((IF($D55="M1",IF(ROUND(AVERAGEIF(N56:N58,">0"),1)=ROUND(MAX(IF(N56:N58>0,N56:N58)),1),MAX(N56:N58),MAX(IF(N56:N58>0,N56:N58))+0.5),AVERAGEIF(N56:N58,">0"))),0) -> 0 | O55: =IFERROR((IF($D55="M1",IF(ROUND(AVERAGEIF(O56:O58,">0"),1)=ROUND(MIN(IF(O56:O58>0,O56:O58)),1),AVERAGE(O56:O58),MIN(IF(O56:O58>0,O56:O58))+0.5),AVERAGEIF(O56:O58,">0"))),0) -> 1.333333333 | P55: 1.5 | Q55: =IF(K55="D",Profile!$F$276, IF(K55="D*",Profile!$F$276, IF(K55="D+",Profile!$F$276, IF(K55="C",Profile!$F$277, IF(K55="C+",Profile!$F$277, IF(K55="B+",Profile!$F$278, IF(K55="B",Profile!$F$278, IF(K55="A",Profile!$F$279,"")))))))) -> 1. Below basic | R55: =IF(K55="A",Profile!$F$280, IF(K55="B+",Profile!$F$280, IF(K55="B",Profile!$F$280, IF(K55="D+",Profile!$F$281, IF(K55="D",Profile!$F$281, Profile!$F$282))))) -> Weakness | S55: =IFERROR(IF(L55=Profile!$E$152,IF(O55-N55<0,"-",IF(O55-N55>0,"+"," =")),"N.C"),"") -> N.C | W55: 0 | X55: 0 | Y55: 1 | Z55: 1 | AA55: =IF($O55>=3.25,Profile!$F$279, IF($O55>=2.5,Profile!$F$278, IF($O55>=1.75,Profile!$F$277, IF($O55>=1,Profile!$F$276, "" )))) -> 1. Below basic
A56: 9bis.1 | B56: 9bis.1 | C56: 9bis.1 | E56: Comp | F56: II | G56: =VLOOKUP(F56,Profile!B:C,2,FALSE) -> II. Transparency of public finances | H56: PI-9bis | I56: =IFERROR(VLOOKUP(B56,Profile!B:C,2,FALSE),"") -> 9bis.1 Public consultation in budget preparation | K56: D | L56: =Profile!$E$152 -> Yes | M56: =IFERROR(IF(TRIM(CLEAN(J56))="A",4)+IF(TRIM(CLEAN(J56))="B+",3.5)+IF(TRIM(CLEAN(J56))="B",3)+IF(TRIM(CLEAN(J56))="C+",2.5)+IF(TRIM(CLEAN(J56))="C",2)+IF(TRIM(CLEAN(J56))="D+",1.5)+IF(TRIM(CLEAN(J56))="D",1)+IF(TRIM(CLEAN(J56))="D*",1)+IF(TRIM(CLEAN(J56))="NU",0)+IF(TRIM(CLEAN(J56))="",0),"") -> 0 | N56: =M56 -> 0 | O56: =IFERROR(IF(TRIM(CLEAN(K56))="A",4)+IF(TRIM(CLEAN(K56))="B+",3.5)+IF(TRIM(CLEAN(K56))="B",3)+IF(TRIM(CLEAN(K56))="C+",2.5)+IF(TRIM(CLEAN(K56))="C",2)+IF(TRIM(CLEAN(K56))="D+",1.5)+IF(TRIM(CLEAN(K56))="D",1)+IF(TRIM(CLEAN(K56))="D*",1)+IF(TRIM(CLEAN(K56))="NU",0)+IF(TRIM(CLEAN(K56))="",0),"") -> 1 | P56: =O56 -> 1 | Q56: =IF(K56="D",Profile!$F$276, IF(K56="D*",Profile!$F$276, IF(K56="D+",Profile!$F$276, IF(K56="C",Profile!$F$277, IF(K56="C+",Profile!$F$277, IF(K56="B+",Profile!$F$278, IF(K56="B",Profile!$F$278, IF(K56="A",Profile!$F$279,"")))))))) -> 1. Below basic | R56: =IF(K56="A",Profile!$F$280, IF(K56="B+",Profile!$F$280, IF(K56="B",Profile!$F$280, IF(K56="D+",Profile!$F$281, IF(K56="D",Profile!$F$281, Profile!$F$282))))) -> Weakness | S56: =IFERROR(IF(L56=Profile!$E$152,IF(O56-N56<0,"-",IF(O56-N56>0,"+"," =")),"N.C"),"") -> + | U56: Public consultations for the preparation of the budget have not been carried out in the last three years. | W56: 0 | X56: 0 | Y56: 1 | Z56: 1 | AA56: =IF($O56>=3.25,Profile!$F$279, IF($O56>=2.5,Profile!$F$278, IF($O56>=1.75,Profile!$F$277, IF($O56>=1,Profile!$F$276, "" )))) -> 1. Below basic
A57: 9bis.2 | B57: 9bis.2 | C57: 9bis.2 | E57: Comp | F57: II | G57: =VLOOKUP(F57,Profile!B:C,2,FALSE) -> II. Transparency of public finances | H57: PI-9bis | I57: =IFERROR(VLOOKUP(B57,Profile!B:C,2,FALSE),"") -> 9bis.2 Public consultation in the design of service delivery programs | K57: C | L57: =Profile!$E$152 -> Yes | M57: =IFERROR(IF(TRIM(CLEAN(J57))="A",4)+IF(TRIM(CLEAN(J57))="B+",3.5)+IF(TRIM(CLEAN(J57))="B",3)+IF(TRIM(CLEAN(J57))="C+",2.5)+IF(TRIM(CLEAN(J57))="C",2)+IF(TRIM(CLEAN(J57))="D+",1.5)+IF(TRIM(CLEAN(J57))="D",1)+IF(TRIM(CLEAN(J57))="D*",1)+IF(TRIM(CLEAN(J57))="NU",0)+IF(TRIM(CLEAN(J57))="",0),"") -> 0 | N57: 0 | O57: =IFERROR(IF(TRIM(CLEAN(K57))="A",4)+IF(TRIM(CLEAN(K57))="B+",3.5)+IF(TRIM(CLEAN(K57))="B",3)+IF(TRIM(CLEAN(K57))="C+",2.5)+IF(TRIM(CLEAN(K57))="C",2)+IF(TRIM(CLEAN(K57))="D+",1.5)+IF(TRIM(CLEAN(K57))="D",1)+IF(TRIM(CLEAN(K57))="D*",1)+IF(TRIM(CLEAN(K57))="NU",0)+IF(TRIM(CLEAN(K57))="",0),"") -> 2 | P57: 2 | Q57: =IF(K57="D",Profile!$F$276, IF(K57="D*",Profile!$F$276, IF(K57="D+",Profile!$F$276, IF(K57="C",Profile!$F$277, IF(K57="C+",Profile!$F$277, IF(K57="B+",Profile!$F$278, IF(K57="B",Profile!$F$278, IF(K57="A",Profile!$F$279,"")))))))) -> 2. Basic | R57: =IF(K57="A",Profile!$F$280, IF(K57="B+",Profile!$F$280, IF(K57="B",Profile!$F$280, IF(K57="D+",Profile!$F$281, IF(K57="D",Profile!$F$281, Profile!$F$282))))) -> Average | S57: =IFERROR(IF(L57=Profile!$E$152,IF(O57-N57<0,"-",IF(O57-N57>0,"+"," =")),"N.C"),"") -> + | U57: Public consultations for the design of service delivery programs have not been carried out in the last three years. | W57: 0 | X57: 0 | Y57: 1 | Z57: 1 | AA57: =IF($O57>=3.25,Profile!$F$279, IF($O57>=2.5,Profile!$F$278, IF($O57>=1.75,Profile!$F$277, IF($O57>=1,Profile!$F$276, "" )))) -> 2. Basic
A58: 9bis.3 | B58: 9bis.3 | C58: 9bis.3 | E58: Comp | F58: II | G58: =VLOOKUP(F58,Profile!B:C,2,FALSE) -> II. Transparency of public finances | H58: PI-9bis | I58: =IFERROR(VLOOKUP(B58,Profile!B:C,2,FALSE),"") -> 9bis.3 Public consultation in investment planning | K58: D | L58: =Profile!$E$152 -> Yes | M58: =IFERROR(IF(TRIM(CLEAN(J58))="A",4)+IF(TRIM(CLEAN(J58))="B+",3.5)+IF(TRIM(CLEAN(J58))="B",3)+IF(TRIM(CLEAN(J58))="C+",2.5)+IF(TRIM(CLEAN(J58))="C",2)+IF(TRIM(CLEAN(J58))="D+",1.5)+IF(TRIM(CLEAN(J58))="D",1)+IF(TRIM(CLEAN(J58))="D*",1)+IF(TRIM(CLEAN(J58))="NU",0)+IF(TRIM(CLEAN(J58))="",0),"") -> 0 | N58: 0 | O58: =IFERROR(IF(TRIM(CLEAN(K58))="A",4)+IF(TRIM(CLEAN(K58))="B+",3.5)+IF(TRIM(CLEAN(K58))="B",3)+IF(TRIM(CLEAN(K58))="C+",2.5)+IF(TRIM(CLEAN(K58))="C",2)+IF(TRIM(CLEAN(K58))="D+",1.5)+IF(TRIM(CLEAN(K58))="D",1)+IF(TRIM(CLEAN(K58))="D*",1)+IF(TRIM(CLEAN(K58))="NU",0)+IF(TRIM(CLEAN(K58))="",0),"") -> 1 | P58: 1 | Q58: =IF(K58="D",Profile!$F$276, IF(K58="D*",Profile!$F$276, IF(K58="D+",Profile!$F$276, IF(K58="C",Profile!$F$277, IF(K58="C+",Profile!$F$277, IF(K58="B+",Profile!$F$278, IF(K58="B",Profile!$F$278, IF(K58="A",Profile!$F$279,"")))))))) -> 1. Below basic | R58: =IF(K58="A",Profile!$F$280, IF(K58="B+",Profile!$F$280, IF(K58="B",Profile!$F$280, IF(K58="D+",Profile!$F$281, IF(K58="D",Profile!$F$281, Profile!$F$282))))) -> Weakness | S58: =IFERROR(IF(L58=Profile!$E$152,IF(O58-N58<0,"-",IF(O58-N58>0,"+"," =")),"N.C"),"") -> + | U58: The Annual Investment Plan (AIP), produced each year following public consultation, is based on the Communal Development Plan (CDP), which is subject to public consultation. | W58: 0 | X58: 0 | Y58: 1 | Z58: 1 | AA58: =IF($O58>=3.25,Profile!$F$279, IF($O58>=2.5,Profile!$F$278, IF($O58>=1.75,Profile!$F$277, IF($O58>=1,Profile!$F$276, "" )))) -> 1. Below basic
A59: PEFALIA | B59: III | C59: III | E59: Pilar | F59: III | G59: =VLOOKUP(F59,Profile!B:C,2,FALSE) -> III. Management of assets and liabilities | I59: =IFERROR(VLOOKUP(B59,Profile!B:C,2,FALSE),"") -> III. Management of assets and liabilities | J59: =IF(N59>3.65,"A", IF(N59>=3.25,"B+", IF(N59>2.65,"B", IF(N59>=2.25,"C+", IF(N59>1.75,"C", IF(N59>1.25,"D+", IF(AND(N59<=1.25,N59>0),"D", IF(N59=0,"NA", "" )))))))) -> NA | K59: =IF(O59>3.65,"A", IF(O59>=3.25,"B+", IF(O59>2.65,"B", IF(O59>=2.25,"C+", IF(O59>1.75,"C", IF(O59>1.25,"D+", IF(AND(O59<=1.25,O59>0),"D", IF(O59=0,"NA", "" )))))))) -> D+ | L59: =IF(COUNTIFS(L60:L76,Profile!E152)=17,Profile!E152,Profile!E153) -> Yes | M59: =AVERAGEIFS(M$16:M$153,$E$16:$E$153,"Indic",$F$16:$F$153,$F59) -> 0 | N59: =AVERAGEIFS(N$16:N$153,$E$16:$E$153,"Indic",$F$16:$F$153,$F59) -> 0 | O59: =AVERAGEIFS(O$16:O$153,$E$16:$E$153,"Indic",$F$16:$F$153,$F59) -> 1.5 | P59: 1.5 | Q59: =IF(K59="D",Profile!$F$276, IF(K59="D*",Profile!$F$276, IF(K59="D+",Profile!$F$276, IF(K59="C",Profile!$F$277, IF(K59="C+",Profile!$F$277, IF(K59="B+",Profile!$F$278, IF(K59="B",Profile!$F$278, IF(K59="A",Profile!$F$279,"")))))))) -> 1. Below basic | R59: =IF(K59="A",Profile!$F$280, IF(K59="B+",Profile!$F$280, IF(K59="B",Profile!$F$280, IF(K59="D+",Profile!$F$281, IF(K59="D",Profile!$F$281, Profile!$F$282))))) -> Weakness | S59: =IFERROR(IF(L59=Profile!$E$152,IF(O59-N59<0,"-",IF(O59-N59>0,"+"," =")),"N.C"),"") -> + | V59: ="("&H59&")" -> () | AA59: =IF($O59>=3.25,Profile!$F$279, IF($O59>=2.5,Profile!$F$278, IF($O59>=1.75,Profile!$F$277, IF($O59>=1,Profile!$F$276, "" )))) -> 1. Below basic
A60: PEFALIA | B60: PI-10 | C60: PI_10 | D60: M2 | E60: Indic | F60: III | G60: =VLOOKUP(F60,Profile!B:C,2,FALSE) -> III. Management of assets and liabilities | H60: PI-10 | I60: =IFERROR(VLOOKUP(B60,Profile!B:C,2,FALSE),"") -> PI-10 Fiscal risk reporting | J60: =IF(N60>3.65,"A", IF(N60>=3.25,"B+", IF(N60>2.65,"B", IF(N60>=2.25,"C+", IF(N60>1.75,"C", IF(N60>1.25,"D+", IF(AND(N60<=1.25,N60>0),"D", IF(N60=0,"NA", "" )))))))) -> NA | K60: D | L60: =IF(OR(L61=Profile!E152,L62=Profile!E152,L63=Profile!E152),Profile!E152,Profile!E153) -> Yes | M60: =IFERROR((IF($D60="M1",IF(ROUND(AVERAGEIF(M61:M63,">0"),1)=ROUND(MIN(IF(M61:M63>0,M61:M63)),1),AVERAGE(M61:M63),MIN(IF(M61:M63>0,M61:M63))+0.5),AVERAGEIF(M61:M63,">0"))),0) -> 0 | N60: =IFERROR((IF($D60="M1",IF(ROUND(AVERAGEIF(N61:N63,">0"),1)=ROUND(MAX(IF(N61:N63>0,N61:N63)),1),MAX(N61:N63),MAX(IF(N61:N63>0,N61:N63))+0.5),AVERAGEIF(N61:N63,">0"))),0) -> 0 | O60: =IFERROR((IF($D60="M1",IF(ROUND(AVERAGEIF(O61:O63,">0"),1)=ROUND(MIN(IF(O61:O63>0,O61:O63)),1),AVERAGE(O61:O63),MIN(IF(O61:O63>0,O61:O63))+0.5),AVERAGEIF(O61:O63,">0"))),0) -> 1 | P60: 1 | Q60: =IF(K60="D",Profile!$F$276, IF(K60="D*",Profile!$F$276, IF(K60="D+",Profile!$F$276, IF(K60="C",Profile!$F$277, IF(K60="C+",Profile!$F$277, IF(K60="B+",Profile!$F$278, IF(K60="B",Profile!$F$278, IF(K60="A",Profile!$F$279,"")))))))) -> 1. Below basic | R60: =IF(K60="A",Profile!$F$280, IF(K60="B+",Profile!$F$280, IF(K60="B",Profile!$F$280, IF(K60="D+",Profile!$F$281, IF(K60="D",Profile!$F$281, Profile!$F$282))))) -> Weakness | S60: =IFERROR(IF(L60=Profile!$E$152,IF(O60-N60<0,"-",IF(O60-N60>0,"+"," =")),"N.C"),"") -> + | V60: (PI-10) | W60: 1 | X60: 0 | Y60: 0 | Z60: =Z61 -> 3 | AA60: =IF($O60>=3.25,Profile!$F$279, IF($O60>=2.5,Profile!$F$278, IF($O60>=1.75,Profile!$F$277, IF($O60>=1,Profile!$F$276, "" )))) -> 1. Below basic
A61: PEFALIA | B61: 10.1 | C61: 10.1 | E61: Comp | F61: III | G61: =VLOOKUP(F61,Profile!B:C,2,FALSE) -> III. Management of assets and liabilities | H61: PI-10 | I61: =IFERROR(VLOOKUP(B61,Profile!B:C,2,FALSE),"") -> 10.1 Monitoring of public corporations | K61: D | L61: =Profile!$E$152 -> Yes | M61: =IFERROR(IF(TRIM(CLEAN(J61))="A",4)+IF(TRIM(CLEAN(J61))="B+",3.5)+IF(TRIM(CLEAN(J61))="B",3)+IF(TRIM(CLEAN(J61))="C+",2.5)+IF(TRIM(CLEAN(J61))="C",2)+IF(TRIM(CLEAN(J61))="D+",1.5)+IF(TRIM(CLEAN(J61))="D",1)+IF(TRIM(CLEAN(J61))="D*",1)+IF(TRIM(CLEAN(J61))="NU",0)+IF(TRIM(CLEAN(J61))="",0),"") -> 0 | N61: =M61 -> 0 | O61: =IFERROR(IF(TRIM(CLEAN(K61))="A",4)+IF(TRIM(CLEAN(K61))="B+",3.5)+IF(TRIM(CLEAN(K61))="B",3)+IF(TRIM(CLEAN(K61))="C+",2.5)+IF(TRIM(CLEAN(K61))="C",2)+IF(TRIM(CLEAN(K61))="D+",1.5)+IF(TRIM(CLEAN(K61))="D",1)+IF(TRIM(CLEAN(K61))="D*",1)+IF(TRIM(CLEAN(K61))="NU",0)+IF(TRIM(CLEAN(K61))="",0),"") -> 1 | P61: =O61 -> 1 | Q61: =IF(K61="D",Profile!$F$276, IF(K61="D*",Profile!$F$276, IF(K61="D+",Profile!$F$276, IF(K61="C",Profile!$F$277, IF(K61="C+",Profile!$F$277, IF(K61="B+",Profile!$F$278, IF(K61="B",Profile!$F$278, IF(K61="A",Profile!$F$279,"")))))))) -> 1. Below basic | R61: =IF(K61="A",Profile!$F$280, IF(K61="B+",Profile!$F$280, IF(K61="B",Profile!$F$280, IF(K61="D+",Profile!$F$281, IF(K61="D",Profile!$F$281, Profile!$F$282))))) -> Weakness | S61: =IFERROR(IF(L61=Profile!$E$152,IF(O61-N61<0,"-",IF(O61-N61>0,"+"," =")),"N.C"),"") -> + | U61: The municipality has no local public companies and is not a majority shareholder in any of them. | V61: (PI-10) | W61: 1 | X61: 0 | Y61: 0 | Z61: 3 | AA61: =IF($O61>=3.25,Profile!$F$279, IF($O61>=2.5,Profile!$F$278, IF($O61>=1.75,Profile!$F$277, IF($O61>=1,Profile!$F$276, "" )))) -> 1. Below basic
A62: PEFALIA | B62: 10.2 | C62: 10.2 | E62: Comp | F62: III | G62: =VLOOKUP(F62,Profile!B:C,2,FALSE) -> III. Management of assets and liabilities | H62: PI-10 | I62: =IFERROR(VLOOKUP(B62,Profile!B:C,2,FALSE),"") -> 10.2 Monitoring of sub-national governments | K62: D | L62: =Profile!$E$152 -> Yes | M62: =IFERROR(IF(TRIM(CLEAN(J62))="A",4)+IF(TRIM(CLEAN(J62))="B+",3.5)+IF(TRIM(CLEAN(J62))="B",3)+IF(TRIM(CLEAN(J62))="C+",2.5)+IF(TRIM(CLEAN(J62))="C",2)+IF(TRIM(CLEAN(J62))="D+",1.5)+IF(TRIM(CLEAN(J62))="D",1)+IF(TRIM(CLEAN(J62))="D*",1)+IF(TRIM(CLEAN(J62))="NU",0)+IF(TRIM(CLEAN(J62))="",0),"") -> 0 | N62: 0 | O62: =IFERROR(IF(TRIM(CLEAN(K62))="A",4)+IF(TRIM(CLEAN(K62))="B+",3.5)+IF(TRIM(CLEAN(K62))="B",3)+IF(TRIM(CLEAN(K62))="C+",2.5)+IF(TRIM(CLEAN(K62))="C",2)+IF(TRIM(CLEAN(K62))="D+",1.5)+IF(TRIM(CLEAN(K62))="D",1)+IF(TRIM(CLEAN(K62))="D*",1)+IF(TRIM(CLEAN(K62))="NU",0)+IF(TRIM(CLEAN(K62))="",0),"") -> 1 | P62: 1 | Q62: =IF(K62="D",Profile!$F$276, IF(K62="D*",Profile!$F$276, IF(K62="D+",Profile!$F$276, IF(K62="C",Profile!$F$277, IF(K62="C+",Profile!$F$277, IF(K62="B+",Profile!$F$278, IF(K62="B",Profile!$F$278, IF(K62="A",Profile!$F$279,"")))))))) -> 1. Below basic | R62: =IF(K62="A",Profile!$F$280, IF(K62="B+",Profile!$F$280, IF(K62="B",Profile!$F$280, IF(K62="D+",Profile!$F$281, IF(K62="D",Profile!$F$281, Profile!$F$282))))) -> Weakness | S62: =IFERROR(IF(L62=Profile!$E$152,IF(O62-N62<0,"-",IF(O62-N62>0,"+"," =")),"N.C"),"") -> + | U62: Sub-national administrations below the level of the Commune do not exist. | V62: (PI-10) | W62: 1 | X62: 0 | Y62: 0 | Z62: 3 | AA62: =IF($O62>=3.25,Profile!$F$279, IF($O62>=2.5,Profile!$F$278, IF($O62>=1.75,Profile!$F$277, IF($O62>=1,Profile!$F$276, "" )))) -> 1. Below basic
A63: PEFALIA | B63: 10.3 | C63: 10.3 | E63: Comp | F63: III | G63: =VLOOKUP(F63,Profile!B:C,2,FALSE) -> III. Management of assets and liabilities | H63: PI-10 | I63: =IFERROR(VLOOKUP(B63,Profile!B:C,2,FALSE),"") -> 10.3 Contingent liabilities and other fiscal risks | K63: D | L63: =Profile!$E$152 -> Yes | M63: =IFERROR(IF(TRIM(CLEAN(J63))="A",4)+IF(TRIM(CLEAN(J63))="B+",3.5)+IF(TRIM(CLEAN(J63))="B",3)+IF(TRIM(CLEAN(J63))="C+",2.5)+IF(TRIM(CLEAN(J63))="C",2)+IF(TRIM(CLEAN(J63))="D+",1.5)+IF(TRIM(CLEAN(J63))="D",1)+IF(TRIM(CLEAN(J63))="D*",1)+IF(TRIM(CLEAN(J63))="NU",0)+IF(TRIM(CLEAN(J63))="",0),"") -> 0 | N63: 0 | O63: =IFERROR(IF(TRIM(CLEAN(K63))="A",4)+IF(TRIM(CLEAN(K63))="B+",3.5)+IF(TRIM(CLEAN(K63))="B",3)+IF(TRIM(CLEAN(K63))="C+",2.5)+IF(TRIM(CLEAN(K63))="C",2)+IF(TRIM(CLEAN(K63))="D+",1.5)+IF(TRIM(CLEAN(K63))="D",1)+IF(TRIM(CLEAN(K63))="D*",1)+IF(TRIM(CLEAN(K63))="NU",0)+IF(TRIM(CLEAN(K63))="",0),"") -> 1 | P63: 1 | Q63: =IF(K63="D",Profile!$F$276, IF(K63="D*",Profile!$F$276, IF(K63="D+",Profile!$F$276, IF(K63="C",Profile!$F$277, IF(K63="C+",Profile!$F$277, IF(K63="B+",Profile!$F$278, IF(K63="B",Profile!$F$278, IF(K63="A",Profile!$F$279,"")))))))) -> 1. Below basic | R63: =IF(K63="A",Profile!$F$280, IF(K63="B+",Profile!$F$280, IF(K63="B",Profile!$F$280, IF(K63="D+",Profile!$F$281, IF(K63="D",Profile!$F$281, Profile!$F$282))))) -> Weakness | S63: =IFERROR(IF(L63=Profile!$E$152,IF(O63-N63<0,"-",IF(O63-N63>0,"+"," =")),"N.C"),"") -> + | U63: Contingent liabilities and other budgetary risks incurred by the commune relate to risks associated with cases pending before the courts. These risks are not quantified and provided for in the budget, and do not give rise to the production of a report. | V63: (PI-10) | W63: 1 | X63: 0 | Y63: 0 | Z63: 3 | AA63: =IF($O63>=3.25,Profile!$F$279, IF($O63>=2.5,Profile!$F$278, IF($O63>=1.75,Profile!$F$277, IF($O63>=1,Profile!$F$276, "" )))) -> 1. Below basic
A64: PEFALIA | B64: PI-11 | C64: PI_11 | D64: M2 | E64: Indic | F64: III | G64: =VLOOKUP(F64,Profile!B:C,2,FALSE) -> III. Management of assets and liabilities | H64: PI-11 | I64: =IFERROR(VLOOKUP(B64,Profile!B:C,2,FALSE),"") -> PI-11 Public investment management | J64: =IF(N64>3.65,"A", IF(N64>=3.25,"B+", IF(N64>2.65,"B", IF(N64>=2.25,"C+", IF(N64>1.75,"C", IF(N64>1.25,"D+", IF(AND(N64<=1.25,N64>0),"D", IF(N64=0,"NA", "" )))))))) -> NA | K64: =IF(O64>3.65,"A", IF(O64>=3.25,"B+", IF(O64>2.65,"B", IF(O64>=2.25,"C+", IF(O64>1.75,"C", IF(O64>1.25,"D+", IF(AND(O64<=1.25,O64>0),"D", IF(O64=0,"NA", "" )))))))) -> C | L64: =IF(OR(L65=Profile!E152,L66=Profile!E152,L67=Profile!E152,L68=Profile!E152),Profile!E152,Profile!E153) -> Yes | M64: =IFERROR(IF($D64="M1",IF(ROUND(AVERAGEIF(M65:M68,">0"),1)=ROUND(MIN(IF(M65:M68>0,M65:M68)),1),AVERAGE(M65:M68),MIN(IF(M65:M68>0,M65:M68))+0.5),AVERAGEIF(M65:M68,">0")),0) -> 0 | N64: =IFERROR(IF($D64="M1",IF(ROUND(AVERAGEIF(N65:N68,">0"),1)=ROUND(MAX(IF(N65:N68>0,N65:N68)),1),MAX(N65:N68),MAX(IF(N65:N68>0,N65:N68))+0.5),AVERAGEIF(N65:N68,">0")),0) -> 0 | O64: =IFERROR(IF($D64="M1",IF(ROUND(AVERAGEIF(O65:O68,">0"),1)=ROUND(MIN(IF(O65:O68>0,O65:O68)),1),AVERAGE(O65:O68),MIN(IF(O65:O68>0,O65:O68))+0.5),AVERAGEIF(O65:O68,">0")),0) -> 2 | P64: 2 | Q64: =IF(K64="D",Profile!$F$276, IF(K64="D*",Profile!$F$276, IF(K64="D+",Profile!$F$276, IF(K64="C",Profile!$F$277, IF(K64="C+",Profile!$F$277, IF(K64="B+",Profile!$F$278, IF(K64="B",Profile!$F$278, IF(K64="A",Profile!$F$279,"")))))))) -> 2. Basic | R64: =IF(K64="A",Profile!$F$280, IF(K64="B+",Profile!$F$280, IF(K64="B",Profile!$F$280, IF(K64="D+",Profile!$F$281, IF(K64="D",Profile!$F$281, Profile!$F$282))))) -> Average | S64: =IFERROR(IF(L64=Profile!$E$152,IF(O64-N64<0,"-",IF(O64-N64>0,"+"," =")),"N.C"),"") -> + | V64: (PI-11) | W64: 1 | X64: 1 | Y64: 0 | Z64: =Z65 -> 4 | AA64: =IF($O64>=3.25,Profile!$F$279, IF($O64>=2.5,Profile!$F$278, IF($O64>=1.75,Profile!$F$277, IF($O64>=1,Profile!$F$276, "" )))) -> 2. Basic
A65: PEFALIA | B65: 11.1 | C65: 11.1 | E65: Comp | F65: III | G65: =VLOOKUP(F65,Profile!B:C,2,FALSE) -> III. Management of assets and liabilities | H65: PI-11 | I65: =IFERROR(VLOOKUP(B65,Profile!B:C,2,FALSE),"") -> 11.1 Economic analysis of investment proposals | K65: D | L65: =Profile!$E$152 -> Yes | M65: =IFERROR(IF(TRIM(CLEAN(J65))="A",4)+IF(TRIM(CLEAN(J65))="B+",3.5)+IF(TRIM(CLEAN(J65))="B",3)+IF(TRIM(CLEAN(J65))="C+",2.5)+IF(TRIM(CLEAN(J65))="C",2)+IF(TRIM(CLEAN(J65))="D+",1.5)+IF(TRIM(CLEAN(J65))="D",1)+IF(TRIM(CLEAN(J65))="D*",1)+IF(TRIM(CLEAN(J65))="NU",0)+IF(TRIM(CLEAN(J65))="",0),"") -> 0 | N65: =M65 -> 0 | O65: =IFERROR(IF(TRIM(CLEAN(K65))="A",4)+IF(TRIM(CLEAN(K65))="B+",3.5)+IF(TRIM(CLEAN(K65))="B",3)+IF(TRIM(CLEAN(K65))="C+",2.5)+IF(TRIM(CLEAN(K65))="C",2)+IF(TRIM(CLEAN(K65))="D+",1.5)+IF(TRIM(CLEAN(K65))="D",1)+IF(TRIM(CLEAN(K65))="D*",1)+IF(TRIM(CLEAN(K65))="NU",0)+IF(TRIM(CLEAN(K65))="",0),"") -> 1 | P65: =O65 -> 1 | Q65: =IF(K65="D",Profile!$F$276, IF(K65="D*",Profile!$F$276, IF(K65="D+",Profile!$F$276, IF(K65="C",Profile!$F$277, IF(K65="C+",Profile!$F$277, IF(K65="B+",Profile!$F$278, IF(K65="B",Profile!$F$278, IF(K65="A",Profile!$F$279,"")))))))) -> 1. Below basic | R65: =IF(K65="A",Profile!$F$280, IF(K65="B+",Profile!$F$280, IF(K65="B",Profile!$F$280, IF(K65="D+",Profile!$F$281, IF(K65="D",Profile!$F$281, Profile!$F$282))))) -> Weakness | S65: =IFERROR(IF(L65=Profile!$E$152,IF(O65-N65<0,"-",IF(O65-N65>0,"+"," =")),"N.C"),"") -> + | U65: No economic studies have been carried out for the major projects included in this assessment. | V65: (PI-11) | W65: 1 | X65: 1 | Y65: 0 | Z65: 4 | AA65: =IF($O65>=3.25,Profile!$F$279, IF($O65>=2.5,Profile!$F$278, IF($O65>=1.75,Profile!$F$277, IF($O65>=1,Profile!$F$276, "" )))) -> 1. Below basic
A66: PEFALIA | B66: 11.2 | C66: 11.2 | E66: Comp | F66: III | G66: =VLOOKUP(F66,Profile!B:C,2,FALSE) -> III. Management of assets and liabilities | H66: PI-11 | I66: =IFERROR(VLOOKUP(B66,Profile!B:C,2,FALSE),"") -> 11.2 Investment project selection | K66: C | L66: =Profile!$E$152 -> Yes | M66: =IFERROR(IF(TRIM(CLEAN(J66))="A",4)+IF(TRIM(CLEAN(J66))="B+",3.5)+IF(TRIM(CLEAN(J66))="B",3)+IF(TRIM(CLEAN(J66))="C+",2.5)+IF(TRIM(CLEAN(J66))="C",2)+IF(TRIM(CLEAN(J66))="D+",1.5)+IF(TRIM(CLEAN(J66))="D",1)+IF(TRIM(CLEAN(J66))="D*",1)+IF(TRIM(CLEAN(J66))="NU",0)+IF(TRIM(CLEAN(J66))="",0),"") -> 0 | N66: 0 | O66: =IFERROR(IF(TRIM(CLEAN(K66))="A",4)+IF(TRIM(CLEAN(K66))="B+",3.5)+IF(TRIM(CLEAN(K66))="B",3)+IF(TRIM(CLEAN(K66))="C+",2.5)+IF(TRIM(CLEAN(K66))="C",2)+IF(TRIM(CLEAN(K66))="D+",1.5)+IF(TRIM(CLEAN(K66))="D",1)+IF(TRIM(CLEAN(K66))="D*",1)+IF(TRIM(CLEAN(K66))="NU",0)+IF(TRIM(CLEAN(K66))="",0),"") -> 2 | P66: 2 | Q66: =IF(K66="D",Profile!$F$276, IF(K66="D*",Profile!$F$276, IF(K66="D+",Profile!$F$276, IF(K66="C",Profile!$F$277, IF(K66="C+",Profile!$F$277, IF(K66="B+",Profile!$F$278, IF(K66="B",Profile!$F$278, IF(K66="A",Profile!$F$279,"")))))))) -> 2. Basic | R66: =IF(K66="A",Profile!$F$280, IF(K66="B+",Profile!$F$280, IF(K66="B",Profile!$F$280, IF(K66="D+",Profile!$F$281, IF(K66="D",Profile!$F$281, Profile!$F$282))))) -> Average | S66: =IFERROR(IF(L66=Profile!$E$152,IF(O66-N66<0,"-",IF(O66-N66>0,"+"," =")),"N.C"),"") -> + | U66: The prioritization of investment projects to be included in the fiscal year's budget is done through each year's PIA, but the criteria and guidelines followed by the commune are not made explicit. | V66: (PI-11) | W66: 1 | X66: 1 | Y66: 0 | Z66: 4 | AA66: =IF($O66>=3.25,Profile!$F$279, IF($O66>=2.5,Profile!$F$278, IF($O66>=1.75,Profile!$F$277, IF($O66>=1,Profile!$F$276, "" )))) -> 2. Basic
A67: PEFALIA | B67: 11.3 | C67: 11.3 | E67: Comp | F67: III | G67: =VLOOKUP(F67,Profile!B:C,2,FALSE) -> III. Management of assets and liabilities | H67: PI-11 | I67: =IFERROR(VLOOKUP(B67,Profile!B:C,2,FALSE),"") -> 11.3 Investment project costing | K67: D | L67: =Profile!$E$152 -> Yes | M67: =IFERROR(IF(TRIM(CLEAN(J67))="A",4)+IF(TRIM(CLEAN(J67))="B+",3.5)+IF(TRIM(CLEAN(J67))="B",3)+IF(TRIM(CLEAN(J67))="C+",2.5)+IF(TRIM(CLEAN(J67))="C",2)+IF(TRIM(CLEAN(J67))="D+",1.5)+IF(TRIM(CLEAN(J67))="D",1)+IF(TRIM(CLEAN(J67))="D*",1)+IF(TRIM(CLEAN(J67))="NU",0)+IF(TRIM(CLEAN(J67))="",0),"") -> 0 | N67: 0 | O67: =IFERROR(IF(TRIM(CLEAN(K67))="A",4)+IF(TRIM(CLEAN(K67))="B+",3.5)+IF(TRIM(CLEAN(K67))="B",3)+IF(TRIM(CLEAN(K67))="C+",2.5)+IF(TRIM(CLEAN(K67))="C",2)+IF(TRIM(CLEAN(K67))="D+",1.5)+IF(TRIM(CLEAN(K67))="D",1)+IF(TRIM(CLEAN(K67))="D*",1)+IF(TRIM(CLEAN(K67))="NU",0)+IF(TRIM(CLEAN(K67))="",0),"") -> 1 | P67: 1 | Q67: =IF(K67="D",Profile!$F$276, IF(K67="D*",Profile!$F$276, IF(K67="D+",Profile!$F$276, IF(K67="C",Profile!$F$277, IF(K67="C+",Profile!$F$277, IF(K67="B+",Profile!$F$278, IF(K67="B",Profile!$F$278, IF(K67="A",Profile!$F$279,"")))))))) -> 1. Below basic | R67: =IF(K67="A",Profile!$F$280, IF(K67="B+",Profile!$F$280, IF(K67="B",Profile!$F$280, IF(K67="D+",Profile!$F$281, IF(K67="D",Profile!$F$281, Profile!$F$282))))) -> Weakness | S67: =IFERROR(IF(L67=Profile!$E$152,IF(O67-N67<0,"-",IF(O67-N67>0,"+"," =")),"N.C"),"") -> + | U67: Tiko's investment projects in the fiscal 2020 budget do not include forecasts for recurrent and operating expenses. | V67: (PI-11) | W67: 1 | X67: 1 | Y67: 0 | Z67: 4 | AA67: =IF($O67>=3.25,Profile!$F$279, IF($O67>=2.5,Profile!$F$278, IF($O67>=1.75,Profile!$F$277, IF($O67>=1,Profile!$F$276, "" )))) -> 1. Below basic
A68: PEFALIA | B68: 11.4 | C68: 11.4 | E68: Comp | F68: III | G68: =VLOOKUP(F68,Profile!B:C,2,FALSE) -> III. Management of assets and liabilities | H68: PI-11 | I68: =IFERROR(VLOOKUP(B68,Profile!B:C,2,FALSE),"") -> 11.4 Investment project monitoring | K68: A | L68: =Profile!$E$152 -> Yes | M68: =IFERROR(IF(TRIM(CLEAN(J68))="A",4)+IF(TRIM(CLEAN(J68))="B+",3.5)+IF(TRIM(CLEAN(J68))="B",3)+IF(TRIM(CLEAN(J68))="C+",2.5)+IF(TRIM(CLEAN(J68))="C",2)+IF(TRIM(CLEAN(J68))="D+",1.5)+IF(TRIM(CLEAN(J68))="D",1)+IF(TRIM(CLEAN(J68))="D*",1)+IF(TRIM(CLEAN(J68))="NU",0)+IF(TRIM(CLEAN(J68))="",0),"") -> 0 | N68: 0 | O68: =IFERROR(IF(TRIM(CLEAN(K68))="A",4)+IF(TRIM(CLEAN(K68))="B+",3.5)+IF(TRIM(CLEAN(K68))="B",3)+IF(TRIM(CLEAN(K68))="C+",2.5)+IF(TRIM(CLEAN(K68))="C",2)+IF(TRIM(CLEAN(K68))="D+",1.5)+IF(TRIM(CLEAN(K68))="D",1)+IF(TRIM(CLEAN(K68))="D*",1)+IF(TRIM(CLEAN(K68))="NU",0)+IF(TRIM(CLEAN(K68))="",0),"") -> 4 | P68: 4 | Q68: =IF(K68="D",Profile!$F$276, IF(K68="D*",Profile!$F$276, IF(K68="D+",Profile!$F$276, IF(K68="C",Profile!$F$277, IF(K68="C+",Profile!$F$277, IF(K68="B+",Profile!$F$278, IF(K68="B",Profile!$F$278, IF(K68="A",Profile!$F$279,"")))))))) -> 4. High | R68: =IF(K68="A",Profile!$F$280, IF(K68="B+",Profile!$F$280, IF(K68="B",Profile!$F$280, IF(K68="D+",Profile!$F$281, IF(K68="D",Profile!$F$281, Profile!$F$282))))) -> Strength | S68: =IFERROR(IF(L68=Profile!$E$152,IF(O68-N68<0,"-",IF(O68-N68>0,"+"," =")),"N.C"),"") -> + | U68: A project execution report is drawn up each year, specifying the physical and financial execution rates. | V68: (PI-11) | W68: 1 | X68: 1 | Y68: 0 | Z68: 4 | AA68: =IF($O68>=3.25,Profile!$F$279, IF($O68>=2.5,Profile!$F$278, IF($O68>=1.75,Profile!$F$277, IF($O68>=1,Profile!$F$276, "" )))) -> 4. High
A69: PEFALIA | B69: PI-12 | C69: PI_12 | D69: M2 | E69: Indic | F69: III | G69: =VLOOKUP(F69,Profile!B:C,2,FALSE) -> III. Management of assets and liabilities | H69: PI-12 | I69: =IFERROR(VLOOKUP(B69,Profile!B:C,2,FALSE),"") -> PI-12 Public asset management | J69: =IF(N69>3.65,"A", IF(N69>=3.25,"B+", IF(N69>2.65,"B", IF(N69>=2.25,"C+", IF(N69>1.75,"C", IF(N69>1.25,"D+", IF(AND(N69<=1.25,N69>0),"D", IF(N69=0,"NA", "" )))))))) -> NA | K69: =IF(O69>3.65,"A", IF(O69>=3.25,"B+", IF(O69>2.65,"B", IF(O69>=2.25,"C+", IF(O69>1.75,"C", IF(O69>1.25,"D+", IF(AND(O69<=1.25,O69>0),"D", IF(O69=0,"NA", "" )))))))) -> NA | L69: =IF(OR(L70=Profile!E152,L71=Profile!E152,L72=Profile!E152),Profile!E152,Profile!E153) -> Yes | M69: =IFERROR((IF($D69="M1",IF(ROUND(AVERAGEIF(M70:M72,">0"),1)=ROUND(MIN(IF(M70:M72>0,M70:M72)),1),AVERAGE(M70:M72),MIN(IF(M70:M72>0,M70:M72))+0.5),AVERAGEIF(M70:M72,">0"))),0) -> 0 | N69: =IFERROR((IF($D69="M1",IF(ROUND(AVERAGEIF(N70:N72,">0"),1)=ROUND(MAX(IF(N70:N72>0,N70:N72)),1),MAX(N70:N72),MAX(IF(N70:N72>0,N70:N72))+0.5),AVERAGEIF(N70:N72,">0"))),0) -> 0 | O69: =IFERROR((IF($D69="M1",IF(ROUND(AVERAGEIF(O70:O72,">0"),1)=ROUND(MIN(IF(O70:O72>0,O70:O72)),1),AVERAGE(O70:O72),MIN(IF(O70:O72>0,O70:O72))+0.5),AVERAGEIF(O70:O72,">0"))),0) -> 0 | P69: 0 | Q69: =IF(K69="D",Profile!$F$276, IF(K69="D*",Profile!$F$276, IF(K69="D+",Profile!$F$276, IF(K69="C",Profile!$F$277, IF(K69="C+",Profile!$F$277, IF(K69="B+",Profile!$F$278, IF(K69="B",Profile!$F$278, IF(K69="A",Profile!$F$279,"")))))))) ->  | R69: =IF(K69="A",Profile!$F$280, IF(K69="B+",Profile!$F$280, IF(K69="B",Profile!$F$280, IF(K69="D+",Profile!$F$281, IF(K69="D",Profile!$F$281, Profile!$F$282))))) -> Average | S69: =IFERROR(IF(L69=Profile!$E$152,IF(O69-N69<0,"-",IF(O69-N69>0,"+"," =")),"N.C"),"") -> = | V69: (PI-12) | W69: 1 | X69: 0 | Y69: 0 | Z69: =Z70 -> 3 | AA69: =IF($O69>=3.25,Profile!$F$279, IF($O69>=2.5,Profile!$F$278, IF($O69>=1.75,Profile!$F$277, IF($O69>=1,Profile!$F$276, "" )))) -> 
A70: PEFALIA | B70: 12.1 | C70: 12.1 | E70: Comp | F70: III | G70: =VLOOKUP(F70,Profile!B:C,2,FALSE) -> III. Management of assets and liabilities | H70: PI-12 | I70: =IFERROR(VLOOKUP(B70,Profile!B:C,2,FALSE),"") -> 12.1 Financial asset monitoring | J70: NA | K70: NA | L70: =Profile!$E$152 -> Yes | M70: =IFERROR(IF(TRIM(CLEAN(J70))="A",4)+IF(TRIM(CLEAN(J70))="B+",3.5)+IF(TRIM(CLEAN(J70))="B",3)+IF(TRIM(CLEAN(J70))="C+",2.5)+IF(TRIM(CLEAN(J70))="C",2)+IF(TRIM(CLEAN(J70))="D+",1.5)+IF(TRIM(CLEAN(J70))="D",1)+IF(TRIM(CLEAN(J70))="D*",1)+IF(TRIM(CLEAN(J70))="NU",0)+IF(TRIM(CLEAN(J70))="",0),"") -> 0 | N70: =M70 -> 0 | O70: =IFERROR(IF(TRIM(CLEAN(K70))="A",4)+IF(TRIM(CLEAN(K70))="B+",3.5)+IF(TRIM(CLEAN(K70))="B",3)+IF(TRIM(CLEAN(K70))="C+",2.5)+IF(TRIM(CLEAN(K70))="C",2)+IF(TRIM(CLEAN(K70))="D+",1.5)+IF(TRIM(CLEAN(K70))="D",1)+IF(TRIM(CLEAN(K70))="D*",1)+IF(TRIM(CLEAN(K70))="NU",0)+IF(TRIM(CLEAN(K70))="",0),"") -> 0 | P70: =O70 -> 0 | Q70: =IF(K70="D",Profile!$F$276, IF(K70="D*",Profile!$F$276, IF(K70="D+",Profile!$F$276, IF(K70="C",Profile!$F$277, IF(K70="C+",Profile!$F$277, IF(K70="B+",Profile!$F$278, IF(K70="B",Profile!$F$278, IF(K70="A",Profile!$F$279,"")))))))) ->  | R70: =IF(K70="A",Profile!$F$280, IF(K70="B+",Profile!$F$280, IF(K70="B",Profile!$F$280, IF(K70="D+",Profile!$F$281, IF(K70="D",Profile!$F$281, Profile!$F$282))))) -> Average | S70: =IFERROR(IF(L70=Profile!$E$152,IF(O70-N70<0,"-",IF(O70-N70>0,"+"," =")),"N.C"),"") -> = | U70: The Commune de Tiko's financial assets, consisting of cash and bank deposits, are duly recorded in the appropriate accounts kept by the Municipal Receiver. However, consolidated statements of these financial assets are not periodically produced and published. | V70: (PI-12) | W70: 1 | X70: 0 | Y70: 0 | Z70: 3 | AA70: =IF($O70>=3.25,Profile!$F$279, IF($O70>=2.5,Profile!$F$278, IF($O70>=1.75,Profile!$F$277, IF($O70>=1,Profile!$F$276, "" )))) -> 
A71: PEFALIA | B71: 12.2 | C71: 12.2 | E71: Comp | F71: III | G71: =VLOOKUP(F71,Profile!B:C,2,FALSE) -> III. Management of assets and liabilities | H71: PI-12 | I71: =IFERROR(VLOOKUP(B71,Profile!B:C,2,FALSE),"") -> 12.2 Non-financial asset monitoring | J71: NA | K71: NA | L71: =Profile!$E$152 -> Yes | M71: =IFERROR(IF(TRIM(CLEAN(J71))="A",4)+IF(TRIM(CLEAN(J71))="B+",3.5)+IF(TRIM(CLEAN(J71))="B",3)+IF(TRIM(CLEAN(J71))="C+",2.5)+IF(TRIM(CLEAN(J71))="C",2)+IF(TRIM(CLEAN(J71))="D+",1.5)+IF(TRIM(CLEAN(J71))="D",1)+IF(TRIM(CLEAN(J71))="D*",1)+IF(TRIM(CLEAN(J71))="NU",0)+IF(TRIM(CLEAN(J71))="",0),"") -> 0 | N71: 0 | O71: =IFERROR(IF(TRIM(CLEAN(K71))="A",4)+IF(TRIM(CLEAN(K71))="B+",3.5)+IF(TRIM(CLEAN(K71))="B",3)+IF(TRIM(CLEAN(K71))="C+",2.5)+IF(TRIM(CLEAN(K71))="C",2)+IF(TRIM(CLEAN(K71))="D+",1.5)+IF(TRIM(CLEAN(K71))="D",1)+IF(TRIM(CLEAN(K71))="D*",1)+IF(TRIM(CLEAN(K71))="NU",0)+IF(TRIM(CLEAN(K71))="",0),"") -> 0 | P71: 0 | Q71: =IF(K71="D",Profile!$F$276, IF(K71="D*",Profile!$F$276, IF(K71="D+",Profile!$F$276, IF(K71="C",Profile!$F$277, IF(K71="C+",Profile!$F$277, IF(K71="B+",Profile!$F$278, IF(K71="B",Profile!$F$278, IF(K71="A",Profile!$F$279,"")))))))) ->  | R71: =IF(K71="A",Profile!$F$280, IF(K71="B+",Profile!$F$280, IF(K71="B",Profile!$F$280, IF(K71="D+",Profile!$F$281, IF(K71="D",Profile!$F$281, Profile!$F$282))))) -> Average | S71: =IFERROR(IF(L71=Profile!$E$152,IF(O71-N71<0,"-",IF(O71-N71>0,"+"," =")),"N.C"),"") -> = | U71: The management of movable and immovable property belonging to the Commune gives rise to a number of registers. These contain information on the age and users of movable assets, but are far from exhaustive. | V71: (PI-12) | W71: 1 | X71: 0 | Y71: 0 | Z71: 3 | AA71: =IF($O71>=3.25,Profile!$F$279, IF($O71>=2.5,Profile!$F$278, IF($O71>=1.75,Profile!$F$277, IF($O71>=1,Profile!$F$276, "" )))) -> 
A72: PEFALIA | B72: 12.3 | C72: 12.3 | E72: Comp | F72: III | G72: =VLOOKUP(F72,Profile!B:C,2,FALSE) -> III. Management of assets and liabilities | H72: PI-12 | I72: =IFERROR(VLOOKUP(B72,Profile!B:C,2,FALSE),"") -> 12.3 Transparency of asset disposal | J72: NA | K72: NA | L72: =Profile!$E$152 -> Yes | M72: =IFERROR(IF(TRIM(CLEAN(J72))="A",4)+IF(TRIM(CLEAN(J72))="B+",3.5)+IF(TRIM(CLEAN(J72))="B",3)+IF(TRIM(CLEAN(J72))="C+",2.5)+IF(TRIM(CLEAN(J72))="C",2)+IF(TRIM(CLEAN(J72))="D+",1.5)+IF(TRIM(CLEAN(J72))="D",1)+IF(TRIM(CLEAN(J72))="D*",1)+IF(TRIM(CLEAN(J72))="NU",0)+IF(TRIM(CLEAN(J72))="",0),"") -> 0 | N72: 0 | O72: =IFERROR(IF(TRIM(CLEAN(K72))="A",4)+IF(TRIM(CLEAN(K72))="B+",3.5)+IF(TRIM(CLEAN(K72))="B",3)+IF(TRIM(CLEAN(K72))="C+",2.5)+IF(TRIM(CLEAN(K72))="C",2)+IF(TRIM(CLEAN(K72))="D+",1.5)+IF(TRIM(CLEAN(K72))="D",1)+IF(TRIM(CLEAN(K72))="D*",1)+IF(TRIM(CLEAN(K72))="NU",0)+IF(TRIM(CLEAN(K72))="",0),"") -> 0 | P72: 0 | Q72: =IF(K72="D",Profile!$F$276, IF(K72="D*",Profile!$F$276, IF(K72="D+",Profile!$F$276, IF(K72="C",Profile!$F$277, IF(K72="C+",Profile!$F$277, IF(K72="B+",Profile!$F$278, IF(K72="B",Profile!$F$278, IF(K72="A",Profile!$F$279,"")))))))) ->  | R72: =IF(K72="A",Profile!$F$280, IF(K72="B+",Profile!$F$280, IF(K72="B",Profile!$F$280, IF(K72="D+",Profile!$F$281, IF(K72="D",Profile!$F$281, Profile!$F$282))))) -> Average | S72: =IFERROR(IF(L72=Profile!$E$152,IF(O72-N72<0,"-",IF(O72-N72>0,"+"," =")),"N.C"),"") -> = | U72: There are no regulations governing the sale and transfer of financial assets. Texts exist for non- financial assets, but they only cover movable assets and are not always respected. Reports are not produced, and information relating to these operations is not included in the budget documentation or in the annual financial statements of the Commune de Tiko. | V72: (PI-12) | W72: 1 | X72: 0 | Y72: 0 | Z72: 3 | AA72: =IF($O72>=3.25,Profile!$F$279, IF($O72>=2.5,Profile!$F$278, IF($O72>=1.75,Profile!$F$277, IF($O72>=1,Profile!$F$276, "" )))) -> 
A73: PEFALIA | B73: PI-13 | C73: PI_13 | D73: M2 | E73: Indic | F73: III | G73: =VLOOKUP(F73,Profile!B:C,2,FALSE) -> III. Management of assets and liabilities | H73: PI-13 | I73: =IFERROR(VLOOKUP(B73,Profile!B:C,2,FALSE),"") -> PI-13 Debt management | J73: =IF(N73>3.65,"A", IF(N73>=3.25,"B+", IF(N73>2.65,"B", IF(N73>=2.25,"C+", IF(N73>1.75,"C", IF(N73>1.25,"D+", IF(AND(N73<=1.25,N73>0),"D", IF(N73=0,"NA", "" )))))))) -> NA | K73: =IF(O73>3.65,"A", IF(O73>=3.25,"B+", IF(O73>2.65,"B", IF(O73>=2.25,"C+", IF(O73>1.75,"C", IF(O73>1.25,"D+", IF(AND(O73<=1.25,O73>0),"D", IF(O73=0,"NA", "" )))))))) -> B | L73: =IF(OR(L74=Profile!E152,L75=Profile!E152,L76=Profile!E152),Profile!E152,Profile!E153) -> Yes | M73: =IFERROR((IF($D73="M1",IF(ROUND(AVERAGEIF(M74:M76,">0"),1)=ROUND(MIN(IF(M74:M76>0,M74:M76)),1),AVERAGE(M74:M76),MIN(IF(M74:M76>0,M74:M76))+0.5),AVERAGEIF(M74:M76,">0"))),0) -> 0 | N73: =IFERROR((IF($D73="M1",IF(ROUND(AVERAGEIF(N74:N76,">0"),1)=ROUND(MAX(IF(N74:N76>0,N74:N76)),1),MAX(N74:N76),MAX(IF(N74:N76>0,N74:N76))+0.5),AVERAGEIF(N74:N76,">0"))),0) -> 0 | O73: =IFERROR((IF($D73="M1",IF(ROUND(AVERAGEIF(O74:O76,">0"),1)=ROUND(MIN(IF(O74:O76>0,O74:O76)),1),AVERAGE(O74:O76),MIN(IF(O74:O76>0,O74:O76))+0.5),AVERAGEIF(O74:O76,">0"))),0) -> 3 | P73: 3 | Q73: =IF(K73="D",Profile!$F$276, IF(K73="D*",Profile!$F$276, IF(K73="D+",Profile!$F$276, IF(K73="C",Profile!$F$277, IF(K73="C+",Profile!$F$277, IF(K73="B+",Profile!$F$278, IF(K73="B",Profile!$F$278, IF(K73="A",Profile!$F$279,"")))))))) -> 3. Sound | R73: =IF(K73="A",Profile!$F$280, IF(K73="B+",Profile!$F$280, IF(K73="B",Profile!$F$280, IF(K73="D+",Profile!$F$281, IF(K73="D",Profile!$F$281, Profile!$F$282))))) -> Strength | S73: =IFERROR(IF(L73=Profile!$E$152,IF(O73-N73<0,"-",IF(O73-N73>0,"+"," =")),"N.C"),"") -> + | V73: (PI-13) | W73: 1 | X73: 0 | Y73: 0 | Z73: =Z74 -> 3 | AA73: =IF($O73>=3.25,Profile!$F$279, IF($O73>=2.5,Profile!$F$278, IF($O73>=1.75,Profile!$F$277, IF($O73>=1,Profile!$F$276, "" )))) -> 3. Sound
A74: PEFALIA | B74: 13.1 | C74: 13.1 | E74: Comp | F74: III | G74: =VLOOKUP(F74,Profile!B:C,2,FALSE) -> III. Management of assets and liabilities | H74: PI-13 | I74: =IFERROR(VLOOKUP(B74,Profile!B:C,2,FALSE),"") -> 13.1 Recording and reporting of debts and guarantees | K74: C | L74: =Profile!$E$152 -> Yes | M74: =IFERROR(IF(TRIM(CLEAN(J74))="A",4)+IF(TRIM(CLEAN(J74))="B+",3.5)+IF(TRIM(CLEAN(J74))="B",3)+IF(TRIM(CLEAN(J74))="C+",2.5)+IF(TRIM(CLEAN(J74))="C",2)+IF(TRIM(CLEAN(J74))="D+",1.5)+IF(TRIM(CLEAN(J74))="D",1)+IF(TRIM(CLEAN(J74))="D*",1)+IF(TRIM(CLEAN(J74))="NU",0)+IF(TRIM(CLEAN(J74))="",0),"") -> 0 | N74: =M74 -> 0 | O74: =IFERROR(IF(TRIM(CLEAN(K74))="A",4)+IF(TRIM(CLEAN(K74))="B+",3.5)+IF(TRIM(CLEAN(K74))="B",3)+IF(TRIM(CLEAN(K74))="C+",2.5)+IF(TRIM(CLEAN(K74))="C",2)+IF(TRIM(CLEAN(K74))="D+",1.5)+IF(TRIM(CLEAN(K74))="D",1)+IF(TRIM(CLEAN(K74))="D*",1)+IF(TRIM(CLEAN(K74))="NU",0)+IF(TRIM(CLEAN(K74))="",0),"") -> 2 | P74: =O74 -> 2 | Q74: =IF(K74="D",Profile!$F$276, IF(K74="D*",Profile!$F$276, IF(K74="D+",Profile!$F$276, IF(K74="C",Profile!$F$277, IF(K74="C+",Profile!$F$277, IF(K74="B+",Profile!$F$278, IF(K74="B",Profile!$F$278, IF(K74="A",Profile!$F$279,"")))))))) -> 2. Basic | R74: =IF(K74="A",Profile!$F$280, IF(K74="B+",Profile!$F$280, IF(K74="B",Profile!$F$280, IF(K74="D+",Profile!$F$281, IF(K74="D",Profile!$F$281, Profile!$F$282))))) -> Average | S74: =IFERROR(IF(L74=Profile!$E$152,IF(O74-N74<0,"-",IF(O74-N74>0,"+"," =")),"N.C"),"") -> + | U74: Debt to CNPS, which accounts for 66.24% of Tiko's total debt, is not reconciled periodically. Reports on the Commune de Tiko's debt are not produced periodically. | V74: (PI-13) | W74: 1 | X74: 0 | Y74: 0 | Z74: 3 | AA74: =IF($O74>=3.25,Profile!$F$279, IF($O74>=2.5,Profile!$F$278, IF($O74>=1.75,Profile!$F$277, IF($O74>=1,Profile!$F$276, "" )))) -> 2. Basic
A75: PEFALIA | B75: 13.2 | C75: 13.2 | E75: Comp | F75: III | G75: =VLOOKUP(F75,Profile!B:C,2,FALSE) -> III. Management of assets and liabilities | H75: PI-13 | I75: =IFERROR(VLOOKUP(B75,Profile!B:C,2,FALSE),"") -> 13.2 Approval of debts and guarantees | K75: A | L75: =Profile!$E$152 -> Yes | M75: =IFERROR(IF(TRIM(CLEAN(J75))="A",4)+IF(TRIM(CLEAN(J75))="B+",3.5)+IF(TRIM(CLEAN(J75))="B",3)+IF(TRIM(CLEAN(J75))="C+",2.5)+IF(TRIM(CLEAN(J75))="C",2)+IF(TRIM(CLEAN(J75))="D+",1.5)+IF(TRIM(CLEAN(J75))="D",1)+IF(TRIM(CLEAN(J75))="D*",1)+IF(TRIM(CLEAN(J75))="NU",0)+IF(TRIM(CLEAN(J75))="",0),"") -> 0 | N75: 0 | O75: =IFERROR(IF(TRIM(CLEAN(K75))="A",4)+IF(TRIM(CLEAN(K75))="B+",3.5)+IF(TRIM(CLEAN(K75))="B",3)+IF(TRIM(CLEAN(K75))="C+",2.5)+IF(TRIM(CLEAN(K75))="C",2)+IF(TRIM(CLEAN(K75))="D+",1.5)+IF(TRIM(CLEAN(K75))="D",1)+IF(TRIM(CLEAN(K75))="D*",1)+IF(TRIM(CLEAN(K75))="NU",0)+IF(TRIM(CLEAN(K75))="",0),"") -> 4 | P75: 4 | Q75: =IF(K75="D",Profile!$F$276, IF(K75="D*",Profile!$F$276, IF(K75="D+",Profile!$F$276, IF(K75="C",Profile!$F$277, IF(K75="C+",Profile!$F$277, IF(K75="B+",Profile!$F$278, IF(K75="B",Profile!$F$278, IF(K75="A",Profile!$F$279,"")))))))) -> 4. High | R75: =IF(K75="A",Profile!$F$280, IF(K75="B+",Profile!$F$280, IF(K75="B",Profile!$F$280, IF(K75="D+",Profile!$F$281, IF(K75="D",Profile!$F$281, Profile!$F$282))))) -> Strength | S75: =IFERROR(IF(L75=Profile!$E$152,IF(O75-N75<0,"-",IF(O75-N75>0,"+"," =")),"N.C"),"") -> + | U75: The responsibilities and procedures for contracting loans and granting guarantees are expressly defined by the law governing decentralized local authorities. However, annual debt ceilings and guarantees to be granted are not fixed in advance and approved by the local council at the beginning of each financial year. | V75: (PI-13) | W75: 1 | X75: 0 | Y75: 0 | Z75: 3 | AA75: =IF($O75>=3.25,Profile!$F$279, IF($O75>=2.5,Profile!$F$278, IF($O75>=1.75,Profile!$F$277, IF($O75>=1,Profile!$F$276, "" )))) -> 4. High
A76: PEFALIA | B76: 13.3 | C76: 13.3 | E76: Comp | F76: III | G76: =VLOOKUP(F76,Profile!B:C,2,FALSE) -> III. Management of assets and liabilities | H76: PI-13 | I76: =IFERROR(VLOOKUP(B76,Profile!B:C,2,FALSE),"") -> 13.3 Debt management strategy | K76: NA | L76: =Profile!$E$152 -> Yes | M76: =IFERROR(IF(TRIM(CLEAN(J76))="A",4)+IF(TRIM(CLEAN(J76))="B+",3.5)+IF(TRIM(CLEAN(J76))="B",3)+IF(TRIM(CLEAN(J76))="C+",2.5)+IF(TRIM(CLEAN(J76))="C",2)+IF(TRIM(CLEAN(J76))="D+",1.5)+IF(TRIM(CLEAN(J76))="D",1)+IF(TRIM(CLEAN(J76))="D*",1)+IF(TRIM(CLEAN(J76))="NU",0)+IF(TRIM(CLEAN(J76))="",0),"") -> 0 | N76: 0 | O76: =IFERROR(IF(TRIM(CLEAN(K76))="A",4)+IF(TRIM(CLEAN(K76))="B+",3.5)+IF(TRIM(CLEAN(K76))="B",3)+IF(TRIM(CLEAN(K76))="C+",2.5)+IF(TRIM(CLEAN(K76))="C",2)+IF(TRIM(CLEAN(K76))="D+",1.5)+IF(TRIM(CLEAN(K76))="D",1)+IF(TRIM(CLEAN(K76))="D*",1)+IF(TRIM(CLEAN(K76))="NU",0)+IF(TRIM(CLEAN(K76))="",0),"") -> 0 | P76: 0 | Q76: =IF(K76="D",Profile!$F$276, IF(K76="D*",Profile!$F$276, IF(K76="D+",Profile!$F$276, IF(K76="C",Profile!$F$277, IF(K76="C+",Profile!$F$277, IF(K76="B+",Profile!$F$278, IF(K76="B",Profile!$F$278, IF(K76="A",Profile!$F$279,"")))))))) ->  | R76: =IF(K76="A",Profile!$F$280, IF(K76="B+",Profile!$F$280, IF(K76="B",Profile!$F$280, IF(K76="D+",Profile!$F$281, IF(K76="D",Profile!$F$281, Profile!$F$282))))) -> Average | S76: =IFERROR(IF(L76=Profile!$E$152,IF(O76-N76<0,"-",IF(O76-N76>0,"+"," =")),"N.C"),"") -> = | U76: At the time of the evaluation, the Commune had not yet drawn up a medium-term debt management strategy document. | V76: (PI-13) | W76: 1 | X76: 0 | Y76: 0 | Z76: 3 | AA76: =IF($O76>=3.25,Profile!$F$279, IF($O76>=2.5,Profile!$F$278, IF($O76>=1.75,Profile!$F$277, IF($O76>=1,Profile!$F$276, "" )))) -> 
A77: PEFALIA | B77: IV | C77: IV | E77: Pilar | F77: IV | G77: =VLOOKUP(F77,Profile!B:C,2,FALSE) -> IV. Policy-based fiscal strategy and budgeting | I77: =IFERROR(VLOOKUP(B77,Profile!B:C,2,FALSE),"") -> IV. Policy-based fiscal strategy and budgeting | J77: =IF(N77>3.65,"A", IF(N77>=3.25,"B+", IF(N77>2.65,"B", IF(N77>=2.25,"C+", IF(N77>1.75,"C", IF(N77>1.25,"D+", IF(AND(N77<=1.25,N77>0),"D", IF(N77=0,"NA", "" )))))))) -> NA | K77: =IF(O77>3.65,"A", IF(O77>=3.25,"B+", IF(O77>2.65,"B", IF(O77>=2.25,"C+", IF(O77>1.75,"C", IF(O77>1.25,"D+", IF(AND(O77<=1.25,O77>0),"D", IF(O77=0,"NA", "" )))))))) -> D+ | L77: =IF(COUNTIFS(L78:L91,Profile!E152)=22,Profile!E152,Profile!E153) -> No | M77: =AVERAGEIFS(M$16:M$153,$E$16:$E$153,"Indic",$F$16:$F$153,$F77) -> 0 | N77: =AVERAGEIFS(N$16:N$153,$E$16:$E$153,"Indic",$F$16:$F$153,$F77) -> 0 | O77: =AVERAGEIFS(O$16:O$153,$E$16:$E$153,"Indic",$F$16:$F$153,$F77) -> 1.722222222 | P77: 1.5 | Q77: =IF(K77="D",Profile!$F$276, IF(K77="D*",Profile!$F$276, IF(K77="D+",Profile!$F$276, IF(K77="C",Profile!$F$277, IF(K77="C+",Profile!$F$277, IF(K77="B+",Profile!$F$278, IF(K77="B",Profile!$F$278, IF(K77="A",Profile!$F$279,"")))))))) -> 1. Below basic | R77: =IF(K77="A",Profile!$F$280, IF(K77="B+",Profile!$F$280, IF(K77="B",Profile!$F$280, IF(K77="D+",Profile!$F$281, IF(K77="D",Profile!$F$281, Profile!$F$282))))) -> Weakness | S77: =IFERROR(IF(L77=Profile!$E$152,IF(O77-N77<0,"-",IF(O77-N77>0,"+"," =")),"N.C"),"") -> N.C | V77: () | AA77: =IF($O77>=3.25,Profile!$F$279, IF($O77>=2.5,Profile!$F$278, IF($O77>=1.75,Profile!$F$277, IF($O77>=1,Profile!$F$276, "" )))) -> 1. Below basic
A78: PEFALIA | B78: PI-14 | C78: PI_14 | D78: M2 | E78: Indic | F78: IV | G78: =VLOOKUP(F78,Profile!B:C,2,FALSE) -> IV. Policy-based fiscal strategy and budgeting | H78: PI-14 | I78: =IFERROR(VLOOKUP(B78,Profile!B:C,2,FALSE),"") -> PI-14 Medium-term budget strategy | J78: =IF(N78>3.65,"A", IF(N78>=3.25,"B+", IF(N78>2.65,"B", IF(N78>=2.25,"C+", IF(N78>1.75,"C", IF(N78>1.25,"D+", IF(AND(N78<=1.25,N78>0),"D", IF(N78=0,"NA", "" )))))))) -> NA | K78: C | L78: =IF(OR(L79=Profile!E152,L80=Profile!E152,L81=Profile!E152),Profile!E152,Profile!E153) -> Yes | M78: =IFERROR((IF($D78="M1",IF(ROUND(AVERAGEIF(M79:M81,">0"),1)=ROUND(MIN(IF(M79:M81>0,M79:M81)),1),AVERAGE(M79:M81),MIN(IF(M79:M81>0,M79:M81))+0.5),AVERAGEIF(M79:M81,">0"))),0) -> 0 | N78: =IFERROR((IF($D78="M1",IF(ROUND(AVERAGEIF(N79:N81,">0"),1)=ROUND(MAX(IF(N79:N81>0,N79:N81)),1),MAX(N79:N81),MAX(IF(N79:N81>0,N79:N81))+0.5),AVERAGEIF(N79:N81,">0"))),0) -> 0 | O78: =IFERROR((IF($D78="M1",IF(ROUND(AVERAGEIF(O79:O81,">0"),1)=ROUND(MIN(IF(O79:O81>0,O79:O81)),1),AVERAGE(O79:O81),MIN(IF(O79:O81>0,O79:O81))+0.5),AVERAGEIF(O79:O81,">0"))),0) -> 2 | P78: 2 | Q78: =IF(K78="D",Profile!$F$276, IF(K78="D*",Profile!$F$276, IF(K78="D+",Profile!$F$276, IF(K78="C",Profile!$F$277, IF(K78="C+",Profile!$F$277, IF(K78="B+",Profile!$F$278, IF(K78="B",Profile!$F$278, IF(K78="A",Profile!$F$279,"")))))))) -> 2. Basic | R78: =IF(K78="A",Profile!$F$280, IF(K78="B+",Profile!$F$280, IF(K78="B",Profile!$F$280, IF(K78="D+",Profile!$F$281, IF(K78="D",Profile!$F$281, Profile!$F$282))))) -> Average | S78: =IFERROR(IF(L78=Profile!$E$152,IF(O78-N78<0,"-",IF(O78-N78>0,"+"," =")),"N.C"),"") -> + | V78: (PI-14) | W78: 1 | X78: 0 | Y78: 0 | Z78: =Z79 -> 3 | AA78: =IF($O78>=3.25,Profile!$F$279, IF($O78>=2.5,Profile!$F$278, IF($O78>=1.75,Profile!$F$277, IF($O78>=1,Profile!$F$276, "" )))) -> 2. Basic
A79: PEFALIA | B79: 14.1 | C79: 14.1 | E79: Comp | F79: IV | G79: =VLOOKUP(F79,Profile!B:C,2,FALSE) -> IV. Policy-based fiscal strategy and budgeting | H79: PI-14 | I79: =IFERROR(VLOOKUP(B79,Profile!B:C,2,FALSE),"") -> 14.1 Underlying forecasts for medium- term budget | K79: D | L79: =Profile!$E$152 -> Yes | M79: =IFERROR(IF(TRIM(CLEAN(J79))="A",4)+IF(TRIM(CLEAN(J79))="B+",3.5)+IF(TRIM(CLEAN(J79))="B",3)+IF(TRIM(CLEAN(J79))="C+",2.5)+IF(TRIM(CLEAN(J79))="C",2)+IF(TRIM(CLEAN(J79))="D+",1.5)+IF(TRIM(CLEAN(J79))="D",1)+IF(TRIM(CLEAN(J79))="D*",1)+IF(TRIM(CLEAN(J79))="NU",0)+IF(TRIM(CLEAN(J79))="",0),"") -> 0 | N79: =M79 -> 0 | O79: =IFERROR(IF(TRIM(CLEAN(K79))="A",4)+IF(TRIM(CLEAN(K79))="B+",3.5)+IF(TRIM(CLEAN(K79))="B",3)+IF(TRIM(CLEAN(K79))="C+",2.5)+IF(TRIM(CLEAN(K79))="C",2)+IF(TRIM(CLEAN(K79))="D+",1.5)+IF(TRIM(CLEAN(K79))="D",1)+IF(TRIM(CLEAN(K79))="D*",1)+IF(TRIM(CLEAN(K79))="NU",0)+IF(TRIM(CLEAN(K79))="",0),"") -> 1 | P79: =O79 -> 1 | Q79: =IF(K79="D",Profile!$F$276, IF(K79="D*",Profile!$F$276, IF(K79="D+",Profile!$F$276, IF(K79="C",Profile!$F$277, IF(K79="C+",Profile!$F$277, IF(K79="B+",Profile!$F$278, IF(K79="B",Profile!$F$278, IF(K79="A",Profile!$F$279,"")))))))) -> 1. Below basic | R79: =IF(K79="A",Profile!$F$280, IF(K79="B+",Profile!$F$280, IF(K79="B",Profile!$F$280, IF(K79="D+",Profile!$F$281, IF(K79="D",Profile!$F$281, Profile!$F$282))))) -> Weakness | S79: =IFERROR(IF(L79=Profile!$E$152,IF(O79-N79<0,"-",IF(O79-N79>0,"+"," =")),"N.C"),"") -> + | U79: The Commune de Tiko's budget forecasts are not based on projected trends in macroeconomic aggregates. In addition, the Commune is not informed of the amounts of transfers that will be allocated to it before the budget is finalized and approved by the Communal Council. | V79: (PI-14) | W79: 1 | X79: 0 | Y79: 0 | Z79: 3 | AA79: =IF($O79>=3.25,Profile!$F$279, IF($O79>=2.5,Profile!$F$278, IF($O79>=1.75,Profile!$F$277, IF($O79>=1,Profile!$F$276, "" )))) -> 1. Below basic
A80: PEFALIA | B80: 14.2 | C80: 14.2 | E80: Comp | F80: IV | G80: =VLOOKUP(F80,Profile!B:C,2,FALSE) -> IV. Policy-based fiscal strategy and budgeting | H80: PI-14 | I80: =IFERROR(VLOOKUP(B80,Profile!B:C,2,FALSE),"") -> 14.2 Fiscal impact of policy proposals | K80: A | L80: =Profile!$E$152 -> Yes | M80: =IFERROR(IF(TRIM(CLEAN(J80))="A",4)+IF(TRIM(CLEAN(J80))="B+",3.5)+IF(TRIM(CLEAN(J80))="B",3)+IF(TRIM(CLEAN(J80))="C+",2.5)+IF(TRIM(CLEAN(J80))="C",2)+IF(TRIM(CLEAN(J80))="D+",1.5)+IF(TRIM(CLEAN(J80))="D",1)+IF(TRIM(CLEAN(J80))="D*",1)+IF(TRIM(CLEAN(J80))="NU",0)+IF(TRIM(CLEAN(J80))="",0),"") -> 0 | N80: 0 | O80: =IFERROR(IF(TRIM(CLEAN(K80))="A",4)+IF(TRIM(CLEAN(K80))="B+",3.5)+IF(TRIM(CLEAN(K80))="B",3)+IF(TRIM(CLEAN(K80))="C+",2.5)+IF(TRIM(CLEAN(K80))="C",2)+IF(TRIM(CLEAN(K80))="D+",1.5)+IF(TRIM(CLEAN(K80))="D",1)+IF(TRIM(CLEAN(K80))="D*",1)+IF(TRIM(CLEAN(K80))="NU",0)+IF(TRIM(CLEAN(K80))="",0),"") -> 4 | P80: 4 | Q80: =IF(K80="D",Profile!$F$276, IF(K80="D*",Profile!$F$276, IF(K80="D+",Profile!$F$276, IF(K80="C",Profile!$F$277, IF(K80="C+",Profile!$F$277, IF(K80="B+",Profile!$F$278, IF(K80="B",Profile!$F$278, IF(K80="A",Profile!$F$279,"")))))))) -> 4. High | R80: =IF(K80="A",Profile!$F$280, IF(K80="B+",Profile!$F$280, IF(K80="B",Profile!$F$280, IF(K80="D+",Profile!$F$281, IF(K80="D",Profile!$F$281, Profile!$F$282))))) -> Strength | S80: =IFERROR(IF(L80=Profile!$E$152,IF(O80-N80<0,"-",IF(O80-N80>0,"+"," =")),"N.C"),"") -> + | U80: Capital expenditure and recurring costs for investments scheduled for 2021 have not been estimated for inclusion in the budget. | V80: (PI-14) | W80: 1 | X80: 0 | Y80: 0 | Z80: 3 | AA80: =IF($O80>=3.25,Profile!$F$279, IF($O80>=2.5,Profile!$F$278, IF($O80>=1.75,Profile!$F$277, IF($O80>=1,Profile!$F$276, "" )))) -> 4. High
A81: PEFALIA | B81: 14.3 | C81: 14.3 | E81: Comp | F81: IV | G81: =VLOOKUP(F81,Profile!B:C,2,FALSE) -> IV. Policy-based fiscal strategy and budgeting | H81: PI-14 | I81: =IFERROR(VLOOKUP(B81,Profile!B:C,2,FALSE),"") -> 14.3 Medium-term expenditure and revenue estimates | K81: D | L81: =Profile!$E$152 -> Yes | M81: =IFERROR(IF(TRIM(CLEAN(J81))="A",4)+IF(TRIM(CLEAN(J81))="B+",3.5)+IF(TRIM(CLEAN(J81))="B",3)+IF(TRIM(CLEAN(J81))="C+",2.5)+IF(TRIM(CLEAN(J81))="C",2)+IF(TRIM(CLEAN(J81))="D+",1.5)+IF(TRIM(CLEAN(J81))="D",1)+IF(TRIM(CLEAN(J81))="D*",1)+IF(TRIM(CLEAN(J81))="NU",0)+IF(TRIM(CLEAN(J81))="",0),"") -> 0 | N81: 0 | O81: =IFERROR(IF(TRIM(CLEAN(K81))="A",4)+IF(TRIM(CLEAN(K81))="B+",3.5)+IF(TRIM(CLEAN(K81))="B",3)+IF(TRIM(CLEAN(K81))="C+",2.5)+IF(TRIM(CLEAN(K81))="C",2)+IF(TRIM(CLEAN(K81))="D+",1.5)+IF(TRIM(CLEAN(K81))="D",1)+IF(TRIM(CLEAN(K81))="D*",1)+IF(TRIM(CLEAN(K81))="NU",0)+IF(TRIM(CLEAN(K81))="",0),"") -> 1 | P81: 1 | Q81: =IF(K81="D",Profile!$F$276, IF(K81="D*",Profile!$F$276, IF(K81="D+",Profile!$F$276, IF(K81="C",Profile!$F$277, IF(K81="C+",Profile!$F$277, IF(K81="B+",Profile!$F$278, IF(K81="B",Profile!$F$278, IF(K81="A",Profile!$F$279,"")))))))) -> 1. Below basic | R81: =IF(K81="A",Profile!$F$280, IF(K81="B+",Profile!$F$280, IF(K81="B",Profile!$F$280, IF(K81="D+",Profile!$F$281, IF(K81="D",Profile!$F$281, Profile!$F$282))))) -> Weakness | S81: =IFERROR(IF(L81=Profile!$E$152,IF(O81-N81<0,"-",IF(O81-N81>0,"+"," =")),"N.C"),"") -> + | U81: The commune of Tiko's budget does not have a multi-year perspective. Medium-term expenditure and revenue forecasts have not been drawn up. | V81: (PI-14) | W81: 1 | X81: 0 | Y81: 0 | Z81: 3 | AA81: =IF($O81>=3.25,Profile!$F$279, IF($O81>=2.5,Profile!$F$278, IF($O81>=1.75,Profile!$F$277, IF($O81>=1,Profile!$F$276, "" )))) -> 1. Below basic
A82: PEFALIA | B82: 14.4 | C82: 14.4 | E82: Comp | F82: IV | G82: =VLOOKUP(F82,Profile!B:C,2,FALSE) -> IV. Policy-based fiscal strategy and budgeting | H82: PI-14 | I82: =IFERROR(VLOOKUP(B82,Profile!B:C,2,FALSE),"") -> 14.4 Consistency of budget with previous year’s estimates | K82: D | L82: =Profile!$E$152 -> Yes | M82: =IFERROR(IF(TRIM(CLEAN(J82))="A",4)+IF(TRIM(CLEAN(J82))="B+",3.5)+IF(TRIM(CLEAN(J82))="B",3)+IF(TRIM(CLEAN(J82))="C+",2.5)+IF(TRIM(CLEAN(J82))="C",2)+IF(TRIM(CLEAN(J82))="D+",1.5)+IF(TRIM(CLEAN(J82))="D",1)+IF(TRIM(CLEAN(J82))="D*",1)+IF(TRIM(CLEAN(J82))="NU",0)+IF(TRIM(CLEAN(J82))="",0),"") -> 0 | N82: 0 | O82: =IFERROR(IF(TRIM(CLEAN(K82))="A",4)+IF(TRIM(CLEAN(K82))="B+",3.5)+IF(TRIM(CLEAN(K82))="B",3)+IF(TRIM(CLEAN(K82))="C+",2.5)+IF(TRIM(CLEAN(K82))="C",2)+IF(TRIM(CLEAN(K82))="D+",1.5)+IF(TRIM(CLEAN(K82))="D",1)+IF(TRIM(CLEAN(K82))="D*",1)+IF(TRIM(CLEAN(K82))="NU",0)+IF(TRIM(CLEAN(K82))="",0),"") -> 1 | P82: 1 | Q82: =IF(K82="D",Profile!$F$276, IF(K82="D*",Profile!$F$276, IF(K82="D+",Profile!$F$276, IF(K82="C",Profile!$F$277, IF(K82="C+",Profile!$F$277, IF(K82="B+",Profile!$F$278, IF(K82="B",Profile!$F$278, IF(K82="A",Profile!$F$279,"")))))))) -> 1. Below basic | R82: =IF(K82="A",Profile!$F$280, IF(K82="B+",Profile!$F$280, IF(K82="B",Profile!$F$280, IF(K82="D+",Profile!$F$281, IF(K82="D",Profile!$F$281, Profile!$F$282))))) -> Weakness | S82: =IFERROR(IF(L82=Profile!$E$152,IF(O82-N82<0,"-",IF(O82-N82>0,"+"," =")),"N.C"),"") -> + | V82: (PI-14) | W82: 1 | X82: 0 | Y82: 0 | Z82: 3 | AA82: =IF($O82>=3.25,Profile!$F$279, IF($O82>=2.5,Profile!$F$278, IF($O82>=1.75,Profile!$F$277, IF($O82>=1,Profile!$F$276, "" )))) -> 1. Below basic
A83: PEFALIA | B83: PI-17 | C83: PI_17 | D83: M2 | E83: Indic | F83: IV | G83: =VLOOKUP(F83,Profile!B:C,2,FALSE) -> IV. Policy-based fiscal strategy and budgeting | H83: PI-17 | I83: =IFERROR(VLOOKUP(B83,Profile!B:C,2,FALSE),"") -> PI-17 Budget preparation process | J83: =IF(N83>3.65,"A", IF(N83>=3.25,"B+", IF(N83>2.65,"B", IF(N83>=2.25,"C+", IF(N83>1.75,"C", IF(N83>1.25,"D+", IF(AND(N83<=1.25,N83>0),"D", IF(N83=0,"NA", "" )))))))) -> NA | K83: =IF(O83>3.65,"A", IF(O83>=3.25,"B+", IF(O83>2.65,"B", IF(O83>=2.25,"C+", IF(O83>1.75,"C", IF(O83>1.25,"D+", IF(AND(O83<=1.25,O83>0),"D", IF(O83=0,"NA", "" )))))))) -> D+ | L83: =IF(OR(L84=Profile!E152,L85=Profile!E152,L86=Profile!E152),Profile!E152,Profile!E153) -> Yes | M83: =IFERROR((IF($D83="M1",IF(ROUND(AVERAGEIF(M84:M86,">0"),1)=ROUND(MIN(IF(M84:M86>0,M84:M86)),1),AVERAGE(M84:M86),MIN(IF(M84:M86>0,M84:M86))+0.5),AVERAGEIF(M84:M86,">0"))),0) -> 0 | N83: =IFERROR((IF($D83="M1",IF(ROUND(AVERAGEIF(N84:N86,">0"),1)=ROUND(MAX(IF(N84:N86>0,N84:N86)),1),MAX(N84:N86),MAX(IF(N84:N86>0,N84:N86))+0.5),AVERAGEIF(N84:N86,">0"))),0) -> 0 | O83: =IFERROR((IF($D83="M1",IF(ROUND(AVERAGEIF(O84:O86,">0"),1)=ROUND(MIN(IF(O84:O86>0,O84:O86)),1),AVERAGE(O84:O86),MIN(IF(O84:O86>0,O84:O86))+0.5),AVERAGEIF(O84:O86,">0"))),0) -> 1.666666667 | P83: 1.5 | Q83: =IF(K83="D",Profile!$F$276, IF(K83="D*",Profile!$F$276, IF(K83="D+",Profile!$F$276, IF(K83="C",Profile!$F$277, IF(K83="C+",Profile!$F$277, IF(K83="B+",Profile!$F$278, IF(K83="B",Profile!$F$278, IF(K83="A",Profile!$F$279,"")))))))) -> 1. Below basic | R83: =IF(K83="A",Profile!$F$280, IF(K83="B+",Profile!$F$280, IF(K83="B",Profile!$F$280, IF(K83="D+",Profile!$F$281, IF(K83="D",Profile!$F$281, Profile!$F$282))))) -> Weakness | S83: =IFERROR(IF(L83=Profile!$E$152,IF(O83-N83<0,"-",IF(O83-N83>0,"+"," =")),"N.C"),"") -> + | V83: (PI-17) | W83: 0 | X83: 1 | Y83: 0 | Z83: =Z84 -> 3 | AA83: =IF($O83>=3.25,Profile!$F$279, IF($O83>=2.5,Profile!$F$278, IF($O83>=1.75,Profile!$F$277, IF($O83>=1,Profile!$F$276, "" )))) -> 1. Below basic
A84: PEFALIA | B84: 17.1 | C84: 17.1 | E84: Comp | F84: IV | G84: =VLOOKUP(F84,Profile!B:C,2,FALSE) -> IV. Policy-based fiscal strategy and budgeting | H84: PI-17 | I84: =IFERROR(VLOOKUP(B84,Profile!B:C,2,FALSE),"") -> 17.1 Budget calendar | K84: D | L84: =Profile!$E$152 -> Yes | M84: =IFERROR(IF(TRIM(CLEAN(J84))="A",4)+IF(TRIM(CLEAN(J84))="B+",3.5)+IF(TRIM(CLEAN(J84))="B",3)+IF(TRIM(CLEAN(J84))="C+",2.5)+IF(TRIM(CLEAN(J84))="C",2)+IF(TRIM(CLEAN(J84))="D+",1.5)+IF(TRIM(CLEAN(J84))="D",1)+IF(TRIM(CLEAN(J84))="D*",1)+IF(TRIM(CLEAN(J84))="NU",0)+IF(TRIM(CLEAN(J84))="",0),"") -> 0 | N84: =M84 -> 0 | O84: =IFERROR(IF(TRIM(CLEAN(K84))="A",4)+IF(TRIM(CLEAN(K84))="B+",3.5)+IF(TRIM(CLEAN(K84))="B",3)+IF(TRIM(CLEAN(K84))="C+",2.5)+IF(TRIM(CLEAN(K84))="C",2)+IF(TRIM(CLEAN(K84))="D+",1.5)+IF(TRIM(CLEAN(K84))="D",1)+IF(TRIM(CLEAN(K84))="D*",1)+IF(TRIM(CLEAN(K84))="NU",0)+IF(TRIM(CLEAN(K84))="",0),"") -> 1 | P84: =O84 -> 1 | Q84: =IF(K84="D",Profile!$F$276, IF(K84="D*",Profile!$F$276, IF(K84="D+",Profile!$F$276, IF(K84="C",Profile!$F$277, IF(K84="C+",Profile!$F$277, IF(K84="B+",Profile!$F$278, IF(K84="B",Profile!$F$278, IF(K84="A",Profile!$F$279,"")))))))) -> 1. Below basic | R84: =IF(K84="A",Profile!$F$280, IF(K84="B+",Profile!$F$280, IF(K84="B",Profile!$F$280, IF(K84="D+",Profile!$F$281, IF(K84="D",Profile!$F$281, Profile!$F$282))))) -> Weakness | S84: =IFERROR(IF(L84=Profile!$E$152,IF(O84-N84<0,"-",IF(O84-N84>0,"+"," =")),"N.C"),"") -> + | U84: A budget timetable has not been drawn up for the 2021 budget. | V84: (PI-17) | W84: 0 | X84: 1 | Y84: 0 | Z84: 3 | AA84: =IF($O84>=3.25,Profile!$F$279, IF($O84>=2.5,Profile!$F$278, IF($O84>=1.75,Profile!$F$277, IF($O84>=1,Profile!$F$276, "" )))) -> 1. Below basic
A85: PEFALIA | B85: 17.2 | C85: 17.2 | E85: Comp | F85: IV | G85: =VLOOKUP(F85,Profile!B:C,2,FALSE) -> IV. Policy-based fiscal strategy and budgeting | H85: PI-17 | I85: =IFERROR(VLOOKUP(B85,Profile!B:C,2,FALSE),"") -> 17.2 Guidance on budget preparation | K85: B | L85: =Profile!$E$152 -> Yes | M85: =IFERROR(IF(TRIM(CLEAN(J85))="A",4)+IF(TRIM(CLEAN(J85))="B+",3.5)+IF(TRIM(CLEAN(J85))="B",3)+IF(TRIM(CLEAN(J85))="C+",2.5)+IF(TRIM(CLEAN(J85))="C",2)+IF(TRIM(CLEAN(J85))="D+",1.5)+IF(TRIM(CLEAN(J85))="D",1)+IF(TRIM(CLEAN(J85))="D*",1)+IF(TRIM(CLEAN(J85))="NU",0)+IF(TRIM(CLEAN(J85))="",0),"") -> 0 | N85: 0 | O85: =IFERROR(IF(TRIM(CLEAN(K85))="A",4)+IF(TRIM(CLEAN(K85))="B+",3.5)+IF(TRIM(CLEAN(K85))="B",3)+IF(TRIM(CLEAN(K85))="C+",2.5)+IF(TRIM(CLEAN(K85))="C",2)+IF(TRIM(CLEAN(K85))="D+",1.5)+IF(TRIM(CLEAN(K85))="D",1)+IF(TRIM(CLEAN(K85))="D*",1)+IF(TRIM(CLEAN(K85))="NU",0)+IF(TRIM(CLEAN(K85))="",0),"") -> 3 | P85: 3 | Q85: =IF(K85="D",Profile!$F$276, IF(K85="D*",Profile!$F$276, IF(K85="D+",Profile!$F$276, IF(K85="C",Profile!$F$277, IF(K85="C+",Profile!$F$277, IF(K85="B+",Profile!$F$278, IF(K85="B",Profile!$F$278, IF(K85="A",Profile!$F$279,"")))))))) -> 3. Sound | R85: =IF(K85="A",Profile!$F$280, IF(K85="B+",Profile!$F$280, IF(K85="B",Profile!$F$280, IF(K85="D+",Profile!$F$281, IF(K85="D",Profile!$F$281, Profile!$F$282))))) -> Strength | S85: =IFERROR(IF(L85=Profile!$E$152,IF(O85-N85<0,"-",IF(O85-N85>0,"+"," =")),"N.C"),"") -> + | U85: A budget circular setting out the guidelines to be followed in preparing the budget has not been issued and sent to the Commune's budget units as part of the preparation of the 2021 budget. | V85: (PI-17) | W85: 0 | X85: 1 | Y85: 0 | Z85: 3 | AA85: =IF($O85>=3.25,Profile!$F$279, IF($O85>=2.5,Profile!$F$278, IF($O85>=1.75,Profile!$F$277, IF($O85>=1,Profile!$F$276, "" )))) -> 3. Sound
A86: =$I$4 -> PEFALIA | B86: 17.3 | C86: 17.3 | E86: Comp | F86: IV | G86: =VLOOKUP(F86,Profile!B:C,2,FALSE) -> IV. Policy-based fiscal strategy and budgeting | H86: PI-17 | I86: =IFERROR(VLOOKUP(B86,Profile!B:C,2,FALSE),"") -> 17.3 Budget submission to the legislature | K86: D | L86: =Profile!$E$152 -> Yes | M86: =IFERROR(IF(TRIM(CLEAN(J86))="A",4)+IF(TRIM(CLEAN(J86))="B+",3.5)+IF(TRIM(CLEAN(J86))="B",3)+IF(TRIM(CLEAN(J86))="C+",2.5)+IF(TRIM(CLEAN(J86))="C",2)+IF(TRIM(CLEAN(J86))="D+",1.5)+IF(TRIM(CLEAN(J86))="D",1)+IF(TRIM(CLEAN(J86))="D*",1)+IF(TRIM(CLEAN(J86))="NU",0)+IF(TRIM(CLEAN(J86))="",0),"") -> 0 | N86: 0 | O86: =IFERROR(IF(TRIM(CLEAN(K86))="A",4)+IF(TRIM(CLEAN(K86))="B+",3.5)+IF(TRIM(CLEAN(K86))="B",3)+IF(TRIM(CLEAN(K86))="C+",2.5)+IF(TRIM(CLEAN(K86))="C",2)+IF(TRIM(CLEAN(K86))="D+",1.5)+IF(TRIM(CLEAN(K86))="D",1)+IF(TRIM(CLEAN(K86))="D*",1)+IF(TRIM(CLEAN(K86))="NU",0)+IF(TRIM(CLEAN(K86))="",0),"") -> 1 | P86: 1 | Q86: =IF(K86="D",Profile!$F$276, IF(K86="D*",Profile!$F$276, IF(K86="D+",Profile!$F$276, IF(K86="C",Profile!$F$277, IF(K86="C+",Profile!$F$277, IF(K86="B+",Profile!$F$278, IF(K86="B",Profile!$F$278, IF(K86="A",Profile!$F$279,"")))))))) -> 1. Below basic | R86: =IF(K86="A",Profile!$F$280, IF(K86="B+",Profile!$F$280, IF(K86="B",Profile!$F$280, IF(K86="D+",Profile!$F$281, IF(K86="D",Profile!$F$281, Profile!$F$282))))) -> Weakness | S86: =IFERROR(IF(L86=Profile!$E$152,IF(O86-N86<0,"-",IF(O86-N86>0,"+"," =")),"N.C"),"") -> + | U86: For two of the last three financial years (2018 and 2019), the Executive of the Commune has sent draft budgets to the Communal Council less than a month before the start of the financial year. | V86: (PI-17) | W86: 0 | X86: 1 | Y86: 0 | Z86: 3 | AA86: =IF($O86>=3.25,Profile!$F$279, IF($O86>=2.5,Profile!$F$278, IF($O86>=1.75,Profile!$F$277, IF($O86>=1,Profile!$F$276, "" )))) -> 1. Below basic
A87: PEFALIA | B87: PI-18 | C87: PI_18 | D87: M1 | E87: Indic | F87: IV | G87: =VLOOKUP(F87,Profile!B:C,2,FALSE) -> IV. Policy-based fiscal strategy and budgeting | H87: PI-18 | I87: =IFERROR(VLOOKUP(B87,Profile!B:C,2,FALSE),"") -> PI-18 Legislative scrutiny of budgets | J87: =IF(N87>3.65,"A", IF(N87>=3.25,"B+", IF(N87>2.65,"B", IF(N87>=2.25,"C+", IF(N87>1.75,"C", IF(N87>1.25,"D+", IF(AND(N87<=1.25,N87>0),"D", IF(N87=0,"NA", "" )))))))) -> NA | K87: =IF(O87>3.65,"A", IF(O87>=3.25,"B+", IF(O87>2.65,"B", IF(O87>=2.25,"C+", IF(O87>1.75,"C", IF(O87>1.25,"D+", IF(AND(O87<=1.25,O87>0),"D", IF(O87=0,"NA", "" )))))))) -> D+ | L87: =IF(OR(L88=Profile!E152,L89=Profile!E152,L90=Profile!E152,L91=Profile!E152),Profile!E152,Profile!E153) -> Yes | M87: =IFERROR(IF($D87="M1",IF(ROUND(AVERAGEIF(M88:M91,">0"),1)=ROUND(MIN(IF(M88:M91>0,M88:M91)),1),AVERAGE(M88:M91),MIN(IF(M88:M91>0,M88:M91))+0.5),AVERAGEIF(M88:M91,">0")),0) -> 0 | N87: =IFERROR(IF($D87="M1",IF(ROUND(AVERAGEIF(N88:N91,">0"),1)=ROUND(MIN(IF(N88:N91>0,N88:N91)),1),AVERAGE(N88:N91),MIN(IF(N88:N91>0,N88:N91))+0.5),AVERAGEIF(N88:N91,">0")),0) -> 0 | O87: =IFERROR(IF($D87="M1",IF(ROUND(AVERAGEIF(O88:O91,">0"),1)=ROUND(MIN(IF(O88:O91>0,O88:O91)),1),AVERAGE(O88:O91),MIN(IF(O88:O91>0,O88:O91))+0.5),AVERAGEIF(O88:O91,">0")),0) -> 1.5 | P87: =IF($K87="D",1, IF($K87="D+",1.5, IF($K87="C",2, IF($K87="C+",2.5, IF($K87="B",3, IF($K87="B+",3.5, IF($K87="A",4, ))))))) -> 1.5 | Q87: =IF(K87="D",Profile!$F$276, IF(K87="D*",Profile!$F$276, IF(K87="D+",Profile!$F$276, IF(K87="C",Profile!$F$277, IF(K87="C+",Profile!$F$277, IF(K87="B+",Profile!$F$278, IF(K87="B",Profile!$F$278, IF(K87="A",Profile!$F$279,"")))))))) -> 1. Below basic | R87: =IF(K87="A",Profile!$F$280, IF(K87="B+",Profile!$F$280, IF(K87="B",Profile!$F$280, IF(K87="D+",Profile!$F$281, IF(K87="D",Profile!$F$281, Profile!$F$282))))) -> Weakness | S87: =IFERROR(IF(L87=Profile!$E$152,IF(O87-N87<0,"-",IF(O87-N87>0,"+"," =")),"N.C"),"") -> + | V87: (PI-18) | W87: 0 | X87: 1 | Y87: 0 | Z87: =Z88 -> 4 | AA87: =IF($O87>=3.25,Profile!$F$279, IF($O87>=2.5,Profile!$F$278, IF($O87>=1.75,Profile!$F$277, IF($O87>=1,Profile!$F$276, "" )))) -> 1. Below basic
A88: PEFALIA | B88: 18.1 | C88: 18.1 | E88: Comp | F88: IV | G88: =VLOOKUP(F88,Profile!B:C,2,FALSE) -> IV. Policy-based fiscal strategy and budgeting | H88: PI-18 | I88: =IFERROR(VLOOKUP(B88,Profile!B:C,2,FALSE),"") -> 18.1 Scope of budget scrutiny | K88: D | L88: =Profile!$E$152 -> Yes | M88: =IFERROR(IF(TRIM(CLEAN(J88))="A",4)+IF(TRIM(CLEAN(J88))="B+",3.5)+IF(TRIM(CLEAN(J88))="B",3)+IF(TRIM(CLEAN(J88))="C+",2.5)+IF(TRIM(CLEAN(J88))="C",2)+IF(TRIM(CLEAN(J88))="D+",1.5)+IF(TRIM(CLEAN(J88))="D",1)+IF(TRIM(CLEAN(J88))="D*",1)+IF(TRIM(CLEAN(J88))="NU",0)+IF(TRIM(CLEAN(J88))="",0),"") -> 0 | N88: =M88 -> 0 | O88: =IFERROR(IF(TRIM(CLEAN(K88))="A",4)+IF(TRIM(CLEAN(K88))="B+",3.5)+IF(TRIM(CLEAN(K88))="B",3)+IF(TRIM(CLEAN(K88))="C+",2.5)+IF(TRIM(CLEAN(K88))="C",2)+IF(TRIM(CLEAN(K88))="D+",1.5)+IF(TRIM(CLEAN(K88))="D",1)+IF(TRIM(CLEAN(K88))="D*",1)+IF(TRIM(CLEAN(K88))="NU",0)+IF(TRIM(CLEAN(K88))="",0),"") -> 1 | P88: =O88 -> 1 | Q88: =IF(K88="D",Profile!$F$276, IF(K88="D*",Profile!$F$276, IF(K88="D+",Profile!$F$276, IF(K88="C",Profile!$F$277, IF(K88="C+",Profile!$F$277, IF(K88="B+",Profile!$F$278, IF(K88="B",Profile!$F$278, IF(K88="A",Profile!$F$279,"")))))))) -> 1. Below basic | R88: =IF(K88="A",Profile!$F$280, IF(K88="B+",Profile!$F$280, IF(K88="B",Profile!$F$280, IF(K88="D+",Profile!$F$281, IF(K88="D",Profile!$F$281, Profile!$F$282))))) -> Weakness | S88: =IFERROR(IF(L88=Profile!$E$152,IF(O88-N88<0,"-",IF(O88-N88>0,"+"," =")),"N.C"),"") -> + | U88: The Municipal Council's examination of the draft budget covers only the detailed revenue and expenditure forecasts. | V88: (PI-18) | W88: 0 | X88: 1 | Y88: 0 | Z88: 4 | AA88: =IF($O88>=3.25,Profile!$F$279, IF($O88>=2.5,Profile!$F$278, IF($O88>=1.75,Profile!$F$277, IF($O88>=1,Profile!$F$276, "" )))) -> 1. Below basic
A89: PEFALIA | B89: 18.2 | C89: 18.2 | E89: Comp | F89: IV | G89: =VLOOKUP(F89,Profile!B:C,2,FALSE) -> IV. Policy-based fiscal strategy and budgeting | H89: PI-18 | I89: =IFERROR(VLOOKUP(B89,Profile!B:C,2,FALSE),"") -> 18.2 Legislature procedures budget scrutiny | K89: D | L89: =Profile!$E$152 -> Yes | M89: =IFERROR(IF(TRIM(CLEAN(J89))="A",4)+IF(TRIM(CLEAN(J89))="B+",3.5)+IF(TRIM(CLEAN(J89))="B",3)+IF(TRIM(CLEAN(J89))="C+",2.5)+IF(TRIM(CLEAN(J89))="C",2)+IF(TRIM(CLEAN(J89))="D+",1.5)+IF(TRIM(CLEAN(J89))="D",1)+IF(TRIM(CLEAN(J89))="D*",1)+IF(TRIM(CLEAN(J89))="NU",0)+IF(TRIM(CLEAN(J89))="",0),"") -> 0 | N89: 0 | O89: =IFERROR(IF(TRIM(CLEAN(K89))="A",4)+IF(TRIM(CLEAN(K89))="B+",3.5)+IF(TRIM(CLEAN(K89))="B",3)+IF(TRIM(CLEAN(K89))="C+",2.5)+IF(TRIM(CLEAN(K89))="C",2)+IF(TRIM(CLEAN(K89))="D+",1.5)+IF(TRIM(CLEAN(K89))="D",1)+IF(TRIM(CLEAN(K89))="D*",1)+IF(TRIM(CLEAN(K89))="NU",0)+IF(TRIM(CLEAN(K89))="",0),"") -> 1 | P89: 1 | Q89: =IF(K89="D",Profile!$F$276, IF(K89="D*",Profile!$F$276, IF(K89="D+",Profile!$F$276, IF(K89="C",Profile!$F$277, IF(K89="C+",Profile!$F$277, IF(K89="B+",Profile!$F$278, IF(K89="B",Profile!$F$278, IF(K89="A",Profile!$F$279,"")))))))) -> 1. Below basic | R89: =IF(K89="A",Profile!$F$280, IF(K89="B+",Profile!$F$280, IF(K89="B",Profile!$F$280, IF(K89="D+",Profile!$F$281, IF(K89="D",Profile!$F$281, Profile!$F$282))))) -> Weakness | S89: =IFERROR(IF(L89=Profile!$E$152,IF(O89-N89<0,"-",IF(O89-N89>0,"+"," =")),"N.C"),"") -> + | U89: The procedures for the examination of draft budgets by the Municipal Council are not formalized in a legislative or regulatory text, or in any other document. The procedures to be followed are not duly adopted by the Municipal Council at the start of the session devoted to examining the draft budget. | V89: (PI-18) | W89: 0 | X89: 1 | Y89: 0 | Z89: 4 | AA89: =IF($O89>=3.25,Profile!$F$279, IF($O89>=2.5,Profile!$F$278, IF($O89>=1.75,Profile!$F$277, IF($O89>=1,Profile!$F$276, "" )))) -> 1. Below basic
A90: PEFALIA | B90: 18.3 | C90: 18.3 | E90: Comp | F90: IV | G90: =VLOOKUP(F90,Profile!B:C,2,FALSE) -> IV. Policy-based fiscal strategy and budgeting | H90: PI-18 | I90: =IFERROR(VLOOKUP(B90,Profile!B:C,2,FALSE),"") -> 18.3 Timing of budget approval | K90: NA | L90: =Profile!$E$152 -> Yes | M90: =IFERROR(IF(TRIM(CLEAN(J90))="A",4)+IF(TRIM(CLEAN(J90))="B+",3.5)+IF(TRIM(CLEAN(J90))="B",3)+IF(TRIM(CLEAN(J90))="C+",2.5)+IF(TRIM(CLEAN(J90))="C",2)+IF(TRIM(CLEAN(J90))="D+",1.5)+IF(TRIM(CLEAN(J90))="D",1)+IF(TRIM(CLEAN(J90))="D*",1)+IF(TRIM(CLEAN(J90))="NU",0)+IF(TRIM(CLEAN(J90))="",0),"") -> 0 | N90: 0 | O90: =IFERROR(IF(TRIM(CLEAN(K90))="A",4)+IF(TRIM(CLEAN(K90))="B+",3.5)+IF(TRIM(CLEAN(K90))="B",3)+IF(TRIM(CLEAN(K90))="C+",2.5)+IF(TRIM(CLEAN(K90))="C",2)+IF(TRIM(CLEAN(K90))="D+",1.5)+IF(TRIM(CLEAN(K90))="D",1)+IF(TRIM(CLEAN(K90))="D*",1)+IF(TRIM(CLEAN(K90))="NU",0)+IF(TRIM(CLEAN(K90))="",0),"") -> 0 | P90: 0 | Q90: =IF(K90="D",Profile!$F$276, IF(K90="D*",Profile!$F$276, IF(K90="D+",Profile!$F$276, IF(K90="C",Profile!$F$277, IF(K90="C+",Profile!$F$277, IF(K90="B+",Profile!$F$278, IF(K90="B",Profile!$F$278, IF(K90="A",Profile!$F$279,"")))))))) ->  | R90: =IF(K90="A",Profile!$F$280, IF(K90="B+",Profile!$F$280, IF(K90="B",Profile!$F$280, IF(K90="D+",Profile!$F$281, IF(K90="D",Profile!$F$281, Profile!$F$282))))) -> Average | S90: =IFERROR(IF(L90=Profile!$E$152,IF(O90-N90<0,"-",IF(O90-N90>0,"+"," =")),"N.C"),"") -> = | U90: The primitive budgets for the 2018, 2019 and 2020 financial years were examined and voted by the Municipal Council on December 28, 2017, December 21, 2018 and November 27, 2019 respectively, i.e. before the start of the budget years concerned. | V90: (PI-18) | W90: 0 | X90: 1 | Y90: 0 | Z90: 4 | AA90: =IF($O90>=3.25,Profile!$F$279, IF($O90>=2.5,Profile!$F$278, IF($O90>=1.75,Profile!$F$277, IF($O90>=1,Profile!$F$276, "" )))) -> 
A91: PEFALIA | B91: 18.4 | C91: 18.4 | E91: Comp | F91: IV | G91: =VLOOKUP(F91,Profile!B:C,2,FALSE) -> IV. Policy-based fiscal strategy and budgeting | H91: PI-18 | I91: =IFERROR(VLOOKUP(B91,Profile!B:C,2,FALSE),"") -> 18.4 Rules for budget adjustment by the executive | K91: A | L91: =Profile!$E$152 -> Yes | M91: =IFERROR(IF(TRIM(CLEAN(J91))="A",4)+IF(TRIM(CLEAN(J91))="B+",3.5)+IF(TRIM(CLEAN(J91))="B",3)+IF(TRIM(CLEAN(J91))="C+",2.5)+IF(TRIM(CLEAN(J91))="C",2)+IF(TRIM(CLEAN(J91))="D+",1.5)+IF(TRIM(CLEAN(J91))="D",1)+IF(TRIM(CLEAN(J91))="D*",1)+IF(TRIM(CLEAN(J91))="NU",0)+IF(TRIM(CLEAN(J91))="",0),"") -> 0 | N91: 0 | O91: =IFERROR(IF(TRIM(CLEAN(K91))="A",4)+IF(TRIM(CLEAN(K91))="B+",3.5)+IF(TRIM(CLEAN(K91))="B",3)+IF(TRIM(CLEAN(K91))="C+",2.5)+IF(TRIM(CLEAN(K91))="C",2)+IF(TRIM(CLEAN(K91))="D+",1.5)+IF(TRIM(CLEAN(K91))="D",1)+IF(TRIM(CLEAN(K91))="D*",1)+IF(TRIM(CLEAN(K91))="NU",0)+IF(TRIM(CLEAN(K91))="",0),"") -> 4 | P91: 4 | Q91: =IF(K91="D",Profile!$F$276, IF(K91="D*",Profile!$F$276, IF(K91="D+",Profile!$F$276, IF(K91="C",Profile!$F$277, IF(K91="C+",Profile!$F$277, IF(K91="B+",Profile!$F$278, IF(K91="B",Profile!$F$278, IF(K91="A",Profile!$F$279,"")))))))) -> 4. High | R91: =IF(K91="A",Profile!$F$280, IF(K91="B+",Profile!$F$280, IF(K91="B",Profile!$F$280, IF(K91="D+",Profile!$F$281, IF(K91="D",Profile!$F$281, Profile!$F$282))))) -> Strength | S91: =IFERROR(IF(L91=Profile!$E$152,IF(O91-N91<0,"-",IF(O91-N91>0,"+"," =")),"N.C"),"") -> + | U91: The law on the financial regime of the CTD clearly defines the rules governing the modifications that the Executive of a CTD can make to the budget during the financial year. In 2020, credit transfers were not made by the Mayor Commune. | V91: ="("&H91&")" -> (PI-18) | W91: 0 | X91: 1 | Y91: 0 | Z91: 4 | AA91: =IF($O91>=3.25,Profile!$F$279, IF($O91>=2.5,Profile!$F$278, IF($O91>=1.75,Profile!$F$277, IF($O91>=1,Profile!$F$276, "" )))) -> 4. High
A92: PEFALIA | B92: V | C92: V | E92: Pilar | F92: V | G92: =VLOOKUP(F92,Profile!B:C,2,FALSE) -> V. Predictability and control in budget execution | I92: =IFERROR(VLOOKUP(B92,Profile!B:C,2,FALSE),"") -> V. Predictability and control in budget execution | J92: =IF(N92>3.65,"A", IF(N92>=3.25,"B+", IF(N92>2.65,"B", IF(N92>=2.25,"C+", IF(N92>1.75,"C", IF(N92>1.25,"D+", IF(AND(N92<=1.25,N92>0),"D", IF(N92=0,"NA", "" )))))))) -> NA | K92: =IF(O92>3.65,"A", IF(O92>=3.25,"B+", IF(O92>2.65,"B", IF(O92>=2.25,"C+", IF(O92>1.75,"C", IF(O92>1.25,"D+", IF(AND(O92<=1.25,O92>0),"D", IF(O92=0,"NA", "" )))))))) -> D | L92: =IF(COUNTIFS(L93:L128,Profile!E152)=36,Profile!E152,Profile!E153) -> Yes | M92: =AVERAGEIFS(M$16:M$153,$E$16:$E$153,"Indic",$F$16:$F$153,$F92) -> 0 | N92: =AVERAGEIFS(N$16:N$153,$E$16:$E$153,"Indic",$F$16:$F$153,$F92) -> 0 | O92: =AVERAGEIFS(O$16:O$153,$E$16:$E$153,"Indic",$F$16:$F$153,$F92) -> 1.229166667 | P92: 1 | Q92: =IF(K92="D",Profile!$F$276, IF(K92="D*",Profile!$F$276, IF(K92="D+",Profile!$F$276, IF(K92="C",Profile!$F$277, IF(K92="C+",Profile!$F$277, IF(K92="B+",Profile!$F$278, IF(K92="B",Profile!$F$278, IF(K92="A",Profile!$F$279,"")))))))) -> 1. Below basic | R92: =IF(K92="A",Profile!$F$280, IF(K92="B+",Profile!$F$280, IF(K92="B",Profile!$F$280, IF(K92="D+",Profile!$F$281, IF(K92="D",Profile!$F$281, Profile!$F$282))))) -> Weakness | S92: =IFERROR(IF(L92=Profile!$E$152,IF(O92-N92<0,"-",IF(O92-N92>0,"+"," =")),"N.C"),"") -> + | V92: () | AA92: =IF($O92>=3.25,Profile!$F$279, IF($O92>=2.5,Profile!$F$278, IF($O92>=1.75,Profile!$F$277, IF($O92>=1,Profile!$F$276, "" )))) -> 1. Below basic
A93: PEFALIA | B93: PI-19 | C93: PI_19 | D93: M2 | E93: Indic | F93: V | G93: =VLOOKUP(F93,Profile!B:C,2,FALSE) -> V. Predictability and control in budget execution | H93: PI-19 | I93: =IFERROR(VLOOKUP(B93,Profile!B:C,2,FALSE),"") -> PI-19 Tax administration | J93: =IF(N93>3.65,"A", IF(N93>=3.25,"B+", IF(N93>2.65,"B", IF(N93>=2.25,"C+", IF(N93>1.75,"C", IF(N93>1.25,"D+", IF(AND(N93<=1.25,N93>0),"D", IF(N93=0,"NA", "" )))))))) -> NA | K93: D | L93: =IF(OR(L94=Profile!E152,L95=Profile!E152,L96=Profile!E152,L97=Profile!E152),Profile!E152,Profile!E153) -> Yes | M93: =IFERROR(IF($D93="M1",IF(ROUND(AVERAGEIF(M94:M97,">0"),1)=ROUND(MIN(IF(M94:M97>0,M94:M97)),1),AVERAGE(M94:M97),MIN(IF(M94:M97>0,M94:M97))+0.5),AVERAGEIF(M94:M97,">0")),0) -> 0 | N93: =IFERROR(IF($D93="M1",IF(ROUND(AVERAGEIF(N94:N97,">0"),1)=ROUND(MAX(IF(N94:N97>0,N94:N97)),1),MAX(N94:N97),MAX(IF(N94:N97>0,N94:N97))+0.5),AVERAGEIF(N94:N97,">0")),0) -> 0 | O93: =IFERROR(IF($D93="M1",IF(ROUND(AVERAGEIF(O94:O97,">0"),1)=ROUND(MIN(IF(O94:O97>0,O94:O97)),1),AVERAGE(O94:O97),MIN(IF(O94:O97>0,O94:O97))+0.5),AVERAGEIF(O94:O97,">0")),0) -> 1 | P93: 1 | Q93: =IF(K93="D",Profile!$F$276, IF(K93="D*",Profile!$F$276, IF(K93="D+",Profile!$F$276, IF(K93="C",Profile!$F$277, IF(K93="C+",Profile!$F$277, IF(K93="B+",Profile!$F$278, IF(K93="B",Profile!$F$278, IF(K93="A",Profile!$F$279,"")))))))) -> 1. Below basic | R93: =IF(K93="A",Profile!$F$280, IF(K93="B+",Profile!$F$280, IF(K93="B",Profile!$F$280, IF(K93="D+",Profile!$F$281, IF(K93="D",Profile!$F$281, Profile!$F$282))))) -> Weakness | S93: =IFERROR(IF(L93=Profile!$E$152,IF(O93-N93<0,"-",IF(O93-N93>0,"+"," =")),"N.C"),"") -> + | V93: (PI-19) | W93: 0 | X93: 1 | Y93: 1 | Z93: =Z94 -> 4 | AA93: =IF($O93>=3.25,Profile!$F$279, IF($O93>=2.5,Profile!$F$278, IF($O93>=1.75,Profile!$F$277, IF($O93>=1,Profile!$F$276, "" )))) -> 1. Below basic
A94: PEFALIA | B94: 19.1 | C94: 19.1 | E94: Comp | F94: V | G94: =VLOOKUP(F94,Profile!B:C,2,FALSE) -> V. Predictability and control in budget execution | H94: PI-19 | I94: =IFERROR(VLOOKUP(B94,Profile!B:C,2,FALSE),"") -> 19.1 Rights and obligation for tax measures | K94: D | L94: =Profile!$E$152 -> Yes | M94: =IFERROR(IF(TRIM(CLEAN(J94))="A",4)+IF(TRIM(CLEAN(J94))="B+",3.5)+IF(TRIM(CLEAN(J94))="B",3)+IF(TRIM(CLEAN(J94))="C+",2.5)+IF(TRIM(CLEAN(J94))="C",2)+IF(TRIM(CLEAN(J94))="D+",1.5)+IF(TRIM(CLEAN(J94))="D",1)+IF(TRIM(CLEAN(J94))="D*",1)+IF(TRIM(CLEAN(J94))="NU",0)+IF(TRIM(CLEAN(J94))="",0),"") -> 0 | N94: =M94 -> 0 | O94: =IFERROR(IF(TRIM(CLEAN(K94))="A",4)+IF(TRIM(CLEAN(K94))="B+",3.5)+IF(TRIM(CLEAN(K94))="B",3)+IF(TRIM(CLEAN(K94))="C+",2.5)+IF(TRIM(CLEAN(K94))="C",2)+IF(TRIM(CLEAN(K94))="D+",1.5)+IF(TRIM(CLEAN(K94))="D",1)+IF(TRIM(CLEAN(K94))="D*",1)+IF(TRIM(CLEAN(K94))="NU",0)+IF(TRIM(CLEAN(K94))="",0),"") -> 1 | P94: =O94 -> 1 | Q94: =IF(K94="D",Profile!$F$276, IF(K94="D*",Profile!$F$276, IF(K94="D+",Profile!$F$276, IF(K94="C",Profile!$F$277, IF(K94="C+",Profile!$F$277, IF(K94="B+",Profile!$F$278, IF(K94="B",Profile!$F$278, IF(K94="A",Profile!$F$279,"")))))))) -> 1. Below basic | R94: =IF(K94="A",Profile!$F$280, IF(K94="B+",Profile!$F$280, IF(K94="B",Profile!$F$280, IF(K94="D+",Profile!$F$281, IF(K94="D",Profile!$F$281, Profile!$F$282))))) -> Weakness | S94: =IFERROR(IF(L94=Profile!$E$152,IF(O94-N94<0,"-",IF(O94-N94>0,"+"," =")),"N.C"),"") -> + | U94: The main taxes that feed Tiko's budget (around 96%) are managed and collected by the State, then transferred to the Commune. | V94: (PI-19) | W94: 0 | X94: 1 | Y94: 1 | Z94: 4 | AA94: =IF($O94>=3.25,Profile!$F$279, IF($O94>=2.5,Profile!$F$278, IF($O94>=1.75,Profile!$F$277, IF($O94>=1,Profile!$F$276, "" )))) -> 1. Below basic
A95: PEFALIA | B95: 19.2 | C95: 19.2 | E95: Comp | F95: V | G95: =VLOOKUP(F95,Profile!B:C,2,FALSE) -> V. Predictability and control in budget execution | H95: PI-19 | I95: =IFERROR(VLOOKUP(B95,Profile!B:C,2,FALSE),"") -> 19.2 Property tax register and valuation | K95: NA | L95: =Profile!$E$152 -> Yes | M95: =IFERROR(IF(TRIM(CLEAN(J95))="A",4)+IF(TRIM(CLEAN(J95))="B+",3.5)+IF(TRIM(CLEAN(J95))="B",3)+IF(TRIM(CLEAN(J95))="C+",2.5)+IF(TRIM(CLEAN(J95))="C",2)+IF(TRIM(CLEAN(J95))="D+",1.5)+IF(TRIM(CLEAN(J95))="D",1)+IF(TRIM(CLEAN(J95))="D*",1)+IF(TRIM(CLEAN(J95))="NU",0)+IF(TRIM(CLEAN(J95))="",0),"") -> 0 | N95: 0 | O95: =IFERROR(IF(TRIM(CLEAN(K95))="A",4)+IF(TRIM(CLEAN(K95))="B+",3.5)+IF(TRIM(CLEAN(K95))="B",3)+IF(TRIM(CLEAN(K95))="C+",2.5)+IF(TRIM(CLEAN(K95))="C",2)+IF(TRIM(CLEAN(K95))="D+",1.5)+IF(TRIM(CLEAN(K95))="D",1)+IF(TRIM(CLEAN(K95))="D*",1)+IF(TRIM(CLEAN(K95))="NU",0)+IF(TRIM(CLEAN(K95))="",0),"") -> 0 | P95: 0 | Q95: =IF(K95="D",Profile!$F$276, IF(K95="D*",Profile!$F$276, IF(K95="D+",Profile!$F$276, IF(K95="C",Profile!$F$277, IF(K95="C+",Profile!$F$277, IF(K95="B+",Profile!$F$278, IF(K95="B",Profile!$F$278, IF(K95="A",Profile!$F$279,"")))))))) ->  | R95: =IF(K95="A",Profile!$F$280, IF(K95="B+",Profile!$F$280, IF(K95="B",Profile!$F$280, IF(K95="D+",Profile!$F$281, IF(K95="D",Profile!$F$281, Profile!$F$282))))) -> Average | S95: =IFERROR(IF(L95=Profile!$E$152,IF(O95-N95<0,"-",IF(O95-N95>0,"+"," =")),"N.C"),"") -> = | U95: The main taxes that feed Tiko's budget (around 96%) are managed and collected by the State, then transferred to the Commune. | V95: (PI-19) | W95: 0 | X95: 1 | Y95: 1 | Z95: 4 | AA95: =IF($O95>=3.25,Profile!$F$279, IF($O95>=2.5,Profile!$F$278, IF($O95>=1.75,Profile!$F$277, IF($O95>=1,Profile!$F$276, "" )))) -> 
A96: PEFALIA | B96: 19.3 | C96: 19.3 | E96: Comp | F96: V | G96: =VLOOKUP(F96,Profile!B:C,2,FALSE) -> V. Predictability and control in budget execution | H96: PI-19 | I96: =IFERROR(VLOOKUP(B96,Profile!B:C,2,FALSE),"") -> 19.3 Tax risk management, audit and investigation | K96: NA | L96: =Profile!$E$152 -> Yes | M96: =IFERROR(IF(TRIM(CLEAN(J96))="A",4)+IF(TRIM(CLEAN(J96))="B+",3.5)+IF(TRIM(CLEAN(J96))="B",3)+IF(TRIM(CLEAN(J96))="C+",2.5)+IF(TRIM(CLEAN(J96))="C",2)+IF(TRIM(CLEAN(J96))="D+",1.5)+IF(TRIM(CLEAN(J96))="D",1)+IF(TRIM(CLEAN(J96))="D*",1)+IF(TRIM(CLEAN(J96))="NU",0)+IF(TRIM(CLEAN(J96))="",0),"") -> 0 | N96: 0 | O96: =IFERROR(IF(TRIM(CLEAN(K96))="A",4)+IF(TRIM(CLEAN(K96))="B+",3.5)+IF(TRIM(CLEAN(K96))="B",3)+IF(TRIM(CLEAN(K96))="C+",2.5)+IF(TRIM(CLEAN(K96))="C",2)+IF(TRIM(CLEAN(K96))="D+",1.5)+IF(TRIM(CLEAN(K96))="D",1)+IF(TRIM(CLEAN(K96))="D*",1)+IF(TRIM(CLEAN(K96))="NU",0)+IF(TRIM(CLEAN(K96))="",0),"") -> 0 | P96: 0 | Q96: =IF(K96="D",Profile!$F$276, IF(K96="D*",Profile!$F$276, IF(K96="D+",Profile!$F$276, IF(K96="C",Profile!$F$277, IF(K96="C+",Profile!$F$277, IF(K96="B+",Profile!$F$278, IF(K96="B",Profile!$F$278, IF(K96="A",Profile!$F$279,"")))))))) ->  | R96: =IF(K96="A",Profile!$F$280, IF(K96="B+",Profile!$F$280, IF(K96="B",Profile!$F$280, IF(K96="D+",Profile!$F$281, IF(K96="D",Profile!$F$281, Profile!$F$282))))) -> Average | S96: =IFERROR(IF(L96=Profile!$E$152,IF(O96-N96<0,"-",IF(O96-N96>0,"+"," =")),"N.C"),"") -> = | U96: The main taxes that feed Tiko's budget (around 96%) are managed and collected by the State, then transferred to the Commune. | V96: (PI-19) | W96: 0 | X96: 1 | Y96: 1 | Z96: 4 | AA96: =IF($O96>=3.25,Profile!$F$279, IF($O96>=2.5,Profile!$F$278, IF($O96>=1.75,Profile!$F$277, IF($O96>=1,Profile!$F$276, "" )))) -> 
A97: PEFALIA | B97: 19.4 | C97: 19.4 | E97: Comp | F97: V | G97: =VLOOKUP(F97,Profile!B:C,2,FALSE) -> V. Predictability and control in budget execution | H97: PI-19 | I97: =IFERROR(VLOOKUP(B97,Profile!B:C,2,FALSE),"") -> 19.4 Tax arrears monitoring | K97: NA | L97: =Profile!$E$152 -> Yes | M97: =IFERROR(IF(TRIM(CLEAN(J97))="A",4)+IF(TRIM(CLEAN(J97))="B+",3.5)+IF(TRIM(CLEAN(J97))="B",3)+IF(TRIM(CLEAN(J97))="C+",2.5)+IF(TRIM(CLEAN(J97))="C",2)+IF(TRIM(CLEAN(J97))="D+",1.5)+IF(TRIM(CLEAN(J97))="D",1)+IF(TRIM(CLEAN(J97))="D*",1)+IF(TRIM(CLEAN(J97))="NU",0)+IF(TRIM(CLEAN(J97))="",0),"") -> 0 | N97: 0 | O97: =IFERROR(IF(TRIM(CLEAN(K97))="A",4)+IF(TRIM(CLEAN(K97))="B+",3.5)+IF(TRIM(CLEAN(K97))="B",3)+IF(TRIM(CLEAN(K97))="C+",2.5)+IF(TRIM(CLEAN(K97))="C",2)+IF(TRIM(CLEAN(K97))="D+",1.5)+IF(TRIM(CLEAN(K97))="D",1)+IF(TRIM(CLEAN(K97))="D*",1)+IF(TRIM(CLEAN(K97))="NU",0)+IF(TRIM(CLEAN(K97))="",0),"") -> 0 | P97: 0 | Q97: =IF(K97="D",Profile!$F$276, IF(K97="D*",Profile!$F$276, IF(K97="D+",Profile!$F$276, IF(K97="C",Profile!$F$277, IF(K97="C+",Profile!$F$277, IF(K97="B+",Profile!$F$278, IF(K97="B",Profile!$F$278, IF(K97="A",Profile!$F$279,"")))))))) ->  | R97: =IF(K97="A",Profile!$F$280, IF(K97="B+",Profile!$F$280, IF(K97="B",Profile!$F$280, IF(K97="D+",Profile!$F$281, IF(K97="D",Profile!$F$281, Profile!$F$282))))) -> Average | S97: =IFERROR(IF(L97=Profile!$E$152,IF(O97-N97<0,"-",IF(O97-N97>0,"+"," =")),"N.C"),"") -> = | U97: The main taxes that feed Tiko's budget (around 96%) are managed and collected by the State, then transferred to the Commune. | V97: (PI-19) | W97: 0 | X97: 1 | Y97: 1 | Z97: 4 | AA97: =IF($O97>=3.25,Profile!$F$279, IF($O97>=2.5,Profile!$F$278, IF($O97>=1.75,Profile!$F$277, IF($O97>=1,Profile!$F$276, "" )))) -> 
A98: PEFALIA | B98: PI-20 | C98: PI_20 | D98: M1 | E98: Indic | F98: V | G98: =VLOOKUP(F98,Profile!B:C,2,FALSE) -> V. Predictability and control in budget execution | H98: PI-20 | I98: =IFERROR(VLOOKUP(B98,Profile!B:C,2,FALSE),"") -> PI-20 Accounting for revenues | J98: =IF(N98>3.65,"A", IF(N98>=3.25,"B+", IF(N98>2.65,"B", IF(N98>=2.25,"C+", IF(N98>1.75,"C", IF(N98>1.25,"D+", IF(AND(N98<=1.25,N98>0),"D", IF(N98=0,"NA", "" )))))))) -> NA | K98: =IF(O98>3.65,"A", IF(O98>=3.25,"B+", IF(O98>2.65,"B", IF(O98>=2.25,"C+", IF(O98>1.75,"C", IF(O98>1.25,"D+", IF(AND(O98<=1.25,O98>0),"D", IF(O98=0,"NA", "" )))))))) -> D+ | L98: =IF(OR(L99=Profile!E152,L100=Profile!E152,L101=Profile!E152),Profile!E152,Profile!E153) -> Yes | M98: =IFERROR((IF($D98="M1",IF(ROUND(AVERAGEIF(M99:M101,">0"),1)=ROUND(MIN(IF(M99:M101>0,M99:M101)),1),AVERAGE(M99:M101),MIN(IF(M99:M101>0,M99:M101))+0.5),AVERAGEIF(M99:M101,">0"))),0) -> 0 | N98: =IFERROR((IF($D98="M1",IF(ROUND(AVERAGEIF(N99:N101,">0"),1)=ROUND(MIN(IF(N99:N101>0,N99:N101)),1),AVERAGE(N99:N101),MIN(IF(N99:N101>0,N99:N101))+0.5),AVERAGEIF(N99:N101,">0"))),0) -> 0 | O98: =IFERROR((IF($D98="M1",IF(ROUND(AVERAGEIF(O99:O101,">0"),1)=ROUND(MIN(IF(O99:O101>0,O99:O101)),1),AVERAGE(O99:O101),MIN(IF(O99:O101>0,O99:O101))+0.5),AVERAGEIF(O99:O101,">0"))),0) -> 1.5 | P98: 1.5 | Q98: =IF(K98="D",Profile!$F$276, IF(K98="D*",Profile!$F$276, IF(K98="D+",Profile!$F$276, IF(K98="C",Profile!$F$277, IF(K98="C+",Profile!$F$277, IF(K98="B+",Profile!$F$278, IF(K98="B",Profile!$F$278, IF(K98="A",Profile!$F$279,"")))))))) -> 1. Below basic | R98: =IF(K98="A",Profile!$F$280, IF(K98="B+",Profile!$F$280, IF(K98="B",Profile!$F$280, IF(K98="D+",Profile!$F$281, IF(K98="D",Profile!$F$281, Profile!$F$282))))) -> Weakness | S98: =IFERROR(IF(L98=Profile!$E$152,IF(O98-N98<0,"-",IF(O98-N98>0,"+"," =")),"N.C"),"") -> + | V98: (PI-20) | W98: 0 | X98: 1 | Y98: 1 | Z98: =Z99 -> 3 | AA98: =IF($O98>=3.25,Profile!$F$279, IF($O98>=2.5,Profile!$F$278, IF($O98>=1.75,Profile!$F$277, IF($O98>=1,Profile!$F$276, "" )))) -> 1. Below basic
A99: PEFALIA | B99: 20.1 | C99: 20.1 | E99: Comp | F99: V | G99: =VLOOKUP(F99,Profile!B:C,2,FALSE) -> V. Predictability and control in budget execution | H99: PI-20 | I99: =IFERROR(VLOOKUP(B99,Profile!B:C,2,FALSE),"") -> 20.1 Information on revenue collections | K99: D | L99: =Profile!$E$152 -> Yes | M99: =IFERROR(IF(TRIM(CLEAN(J99))="A",4)+IF(TRIM(CLEAN(J99))="B+",3.5)+IF(TRIM(CLEAN(J99))="B",3)+IF(TRIM(CLEAN(J99))="C+",2.5)+IF(TRIM(CLEAN(J99))="C",2)+IF(TRIM(CLEAN(J99))="D+",1.5)+IF(TRIM(CLEAN(J99))="D",1)+IF(TRIM(CLEAN(J99))="D*",1)+IF(TRIM(CLEAN(J99))="NU",0)+IF(TRIM(CLEAN(J99))="",0),"") -> 0 | N99: =M99 -> 0 | O99: =IFERROR(IF(TRIM(CLEAN(K99))="A",4)+IF(TRIM(CLEAN(K99))="B+",3.5)+IF(TRIM(CLEAN(K99))="B",3)+IF(TRIM(CLEAN(K99))="C+",2.5)+IF(TRIM(CLEAN(K99))="C",2)+IF(TRIM(CLEAN(K99))="D+",1.5)+IF(TRIM(CLEAN(K99))="D",1)+IF(TRIM(CLEAN(K99))="D*",1)+IF(TRIM(CLEAN(K99))="NU",0)+IF(TRIM(CLEAN(K99))="",0),"") -> 1 | P99: =O99 -> 1 | Q99: =IF(K99="D",Profile!$F$276, IF(K99="D*",Profile!$F$276, IF(K99="D+",Profile!$F$276, IF(K99="C",Profile!$F$277, IF(K99="C+",Profile!$F$277, IF(K99="B+",Profile!$F$278, IF(K99="B",Profile!$F$278, IF(K99="A",Profile!$F$279,"")))))))) -> 1. Below basic | R99: =IF(K99="A",Profile!$F$280, IF(K99="B+",Profile!$F$280, IF(K99="B",Profile!$F$280, IF(K99="D+",Profile!$F$281, IF(K99="D",Profile!$F$281, Profile!$F$282))))) -> Weakness | S99: =IFERROR(IF(L99=Profile!$E$152,IF(O99-N99<0,"-",IF(O99-N99>0,"+"," =")),"N.C"),"") -> + | U99: Each month, the municipal revenue office produces a consolidated statement of all revenues received, broken down according to budgetary nomenclature, but no consolidated report on revenue achieved. | V99: (PI-20) | W99: 0 | X99: 1 | Y99: 1 | Z99: 3 | AA99: =IF($O99>=3.25,Profile!$F$279, IF($O99>=2.5,Profile!$F$278, IF($O99>=1.75,Profile!$F$277, IF($O99>=1,Profile!$F$276, "" )))) -> 1. Below basic
A100: PEFALIA | B100: 20.2 | C100: 20.2 | E100: Comp | F100: V | G100: =VLOOKUP(F100,Profile!B:C,2,FALSE) -> V. Predictability and control in budget execution | H100: PI-20 | I100: =IFERROR(VLOOKUP(B100,Profile!B:C,2,FALSE),"") -> 20.2 Transfer of revenue collections | K100: NA | L100: =Profile!$E$152 -> Yes | M100: =IFERROR(IF(TRIM(CLEAN(J100))="A",4)+IF(TRIM(CLEAN(J100))="B+",3.5)+IF(TRIM(CLEAN(J100))="B",3)+IF(TRIM(CLEAN(J100))="C+",2.5)+IF(TRIM(CLEAN(J100))="C",2)+IF(TRIM(CLEAN(J100))="D+",1.5)+IF(TRIM(CLEAN(J100))="D",1)+IF(TRIM(CLEAN(J100))="D*",1)+IF(TRIM(CLEAN(J100))="NU",0)+IF(TRIM(CLEAN(J100))="",0),"") -> 0 | N100: 0 | O100: =IFERROR(IF(TRIM(CLEAN(K100))="A",4)+IF(TRIM(CLEAN(K100))="B+",3.5)+IF(TRIM(CLEAN(K100))="B",3)+IF(TRIM(CLEAN(K100))="C+",2.5)+IF(TRIM(CLEAN(K100))="C",2)+IF(TRIM(CLEAN(K100))="D+",1.5)+IF(TRIM(CLEAN(K100))="D",1)+IF(TRIM(CLEAN(K100))="D*",1)+IF(TRIM(CLEAN(K100))="NU",0)+IF(TRIM(CLEAN(K100))="",0),"") -> 0 | P100: 0 | Q100: =IF(K100="D",Profile!$F$276, IF(K100="D*",Profile!$F$276, IF(K100="D+",Profile!$F$276, IF(K100="C",Profile!$F$277, IF(K100="C+",Profile!$F$277, IF(K100="B+",Profile!$F$278, IF(K100="B",Profile!$F$278, IF(K100="A",Profile!$F$279,"")))))))) ->  | R100: =IF(K100="A",Profile!$F$280, IF(K100="B+",Profile!$F$280, IF(K100="B",Profile!$F$280, IF(K100="D+",Profile!$F$281, IF(K100="D",Profile!$F$281, Profile!$F$282))))) -> Average | S100: =IFERROR(IF(L100=Profile!$E$152,IF(O100-N100<0,"-",IF(O100-N100>0,"+"," =")),"N.C"),"") -> = | U100: Revenues collected by the town clerk and municipal employees are paid into the town hall's coffers on a daily basis. | V100: (PI-20) | W100: 0 | X100: 1 | Y100: 1 | Z100: 3 | AA100: =IF($O100>=3.25,Profile!$F$279, IF($O100>=2.5,Profile!$F$278, IF($O100>=1.75,Profile!$F$277, IF($O100>=1,Profile!$F$276, "" )))) -> 
A101: PEFALIA | B101: 20.3 | C101: 20.3 | E101: Comp | F101: V | G101: =VLOOKUP(F101,Profile!B:C,2,FALSE) -> V. Predictability and control in budget execution | H101: PI-20 | I101: =IFERROR(VLOOKUP(B101,Profile!B:C,2,FALSE),"") -> 20.3 Tax account reconciliation | K101: B | L101: =Profile!$E$152 -> Yes | M101: =IFERROR(IF(TRIM(CLEAN(J101))="A",4)+IF(TRIM(CLEAN(J101))="B+",3.5)+IF(TRIM(CLEAN(J101))="B",3)+IF(TRIM(CLEAN(J101))="C+",2.5)+IF(TRIM(CLEAN(J101))="C",2)+IF(TRIM(CLEAN(J101))="D+",1.5)+IF(TRIM(CLEAN(J101))="D",1)+IF(TRIM(CLEAN(J101))="D*",1)+IF(TRIM(CLEAN(J101))="NU",0)+IF(TRIM(CLEAN(J101))="",0),"") -> 0 | N101: 0 | O101: =IFERROR(IF(TRIM(CLEAN(K101))="A",4)+IF(TRIM(CLEAN(K101))="B+",3.5)+IF(TRIM(CLEAN(K101))="B",3)+IF(TRIM(CLEAN(K101))="C+",2.5)+IF(TRIM(CLEAN(K101))="C",2)+IF(TRIM(CLEAN(K101))="D+",1.5)+IF(TRIM(CLEAN(K101))="D",1)+IF(TRIM(CLEAN(K101))="D*",1)+IF(TRIM(CLEAN(K101))="NU",0)+IF(TRIM(CLEAN(K101))="",0),"") -> 3 | P101: 3 | Q101: =IF(K101="D",Profile!$F$276, IF(K101="D*",Profile!$F$276, IF(K101="D+",Profile!$F$276, IF(K101="C",Profile!$F$277, IF(K101="C+",Profile!$F$277, IF(K101="B+",Profile!$F$278, IF(K101="B",Profile!$F$278, IF(K101="A",Profile!$F$279,"")))))))) -> 3. Sound | R101: =IF(K101="A",Profile!$F$280, IF(K101="B+",Profile!$F$280, IF(K101="B",Profile!$F$280, IF(K101="D+",Profile!$F$281, IF(K101="D",Profile!$F$281, Profile!$F$282))))) -> Strength | S101: =IFERROR(IF(L101=Profile!$E$152,IF(O101-N101<0,"-",IF(O101-N101>0,"+"," =")),"N.C"),"") -> + | U101: The Commune relies heavily on revenues from shared taxation. | V101: (PI-20) | W101: 0 | X101: 1 | Y101: 1 | Z101: 3 | AA101: =IF($O101>=3.25,Profile!$F$279, IF($O101>=2.5,Profile!$F$278, IF($O101>=1.75,Profile!$F$277, IF($O101>=1,Profile!$F$276, "" )))) -> 3. Sound
A102: PEFALIA | B102: PI-21 | C102: PI_21 | D102: M2 | E102: Indic | F102: V | G102: =VLOOKUP(F102,Profile!B:C,2,FALSE) -> V. Predictability and control in budget execution | H102: PI-21 | I102: =IFERROR(VLOOKUP(B102,Profile!B:C,2,FALSE),"") -> PI-21 Predictability of in-year resource allocation | J102: =IF(N102>3.65,"A", IF(N102>=3.25,"B+", IF(N102>2.65,"B", IF(N102>=2.25,"C+", IF(N102>1.75,"C", IF(N102>1.25,"D+", IF(AND(N102<=1.25,N102>0),"D", IF(N102=0,"NA", "" )))))))) -> NA | K102: =IF(O102>3.65,"A", IF(O102>=3.25,"B+", IF(O102>2.65,"B", IF(O102>=2.25,"C+", IF(O102>1.75,"C", IF(O102>1.25,"D+", IF(AND(O102<=1.25,O102>0),"D", IF(O102=0,"NA", "" )))))))) -> C | L102: =IF(OR(L103=Profile!E152,L104=Profile!E152,L105=Profile!E152,L106=Profile!E152),Profile!E152,Profile!E153) -> Yes | M102: =IFERROR(IF($D102="M1",IF(ROUND(AVERAGEIF(M103:M106,">0"),1)=ROUND(MIN(IF(M103:M106>0,M103:M106)),1),AVERAGE(M103:M106),MIN(IF(M103:M106>0,M103:M106))+0.5),AVERAGEIF(M103:M106,">0")),0) -> 0 | N102: =IFERROR(IF($D102="M1",IF(ROUND(AVERAGEIF(N103:N106,">0"),1)=ROUND(MAX(IF(N103:N106>0,N103:N106)),1),MAX(N103:N106),MAX(IF(N103:N106>0,N103:N106))+0.5),AVERAGEIF(N103:N106,">0")),0) -> 0 | O102: =IFERROR(IF($D102="M1",IF(ROUND(AVERAGEIF(O103:O106,">0"),1)=ROUND(MIN(IF(O103:O106>0,O103:O106)),1),AVERAGE(O103:O106),MIN(IF(O103:O106>0,O103:O106))+0.5),AVERAGEIF(O103:O106,">0")),0) -> 2 | P102: 2 | Q102: =IF(K102="D",Profile!$F$276, IF(K102="D*",Profile!$F$276, IF(K102="D+",Profile!$F$276, IF(K102="C",Profile!$F$277, IF(K102="C+",Profile!$F$277, IF(K102="B+",Profile!$F$278, IF(K102="B",Profile!$F$278, IF(K102="A",Profile!$F$279,"")))))))) -> 2. Basic | R102: =IF(K102="A",Profile!$F$280, IF(K102="B+",Profile!$F$280, IF(K102="B",Profile!$F$280, IF(K102="D+",Profile!$F$281, IF(K102="D",Profile!$F$281, Profile!$F$282))))) -> Average | S102: =IFERROR(IF(L102=Profile!$E$152,IF(O102-N102<0,"-",IF(O102-N102>0,"+"," =")),"N.C"),"") -> + | V102: (PI-21) | W102: 1 | X102: 0 | Y102: 1 | Z102: =Z103 -> 4 | AA102: =IF($O102>=3.25,Profile!$F$279, IF($O102>=2.5,Profile!$F$278, IF($O102>=1.75,Profile!$F$277, IF($O102>=1,Profile!$F$276, "" )))) -> 2. Basic
A103: PEFALIA | B103: 21.1 | C103: 21.1 | E103: Comp | F103: V | G103: =VLOOKUP(F103,Profile!B:C,2,FALSE) -> V. Predictability and control in budget execution | H103: PI-21 | I103: =IFERROR(VLOOKUP(B103,Profile!B:C,2,FALSE),"") -> 21.1 Consolidation of cash balances | K103: NA | L103: =Profile!$E$152 -> Yes | M103: =IFERROR(IF(TRIM(CLEAN(J103))="A",4)+IF(TRIM(CLEAN(J103))="B+",3.5)+IF(TRIM(CLEAN(J103))="B",3)+IF(TRIM(CLEAN(J103))="C+",2.5)+IF(TRIM(CLEAN(J103))="C",2)+IF(TRIM(CLEAN(J103))="D+",1.5)+IF(TRIM(CLEAN(J103))="D",1)+IF(TRIM(CLEAN(J103))="D*",1)+IF(TRIM(CLEAN(J103))="NU",0)+IF(TRIM(CLEAN(J103))="",0),"") -> 0 | N103: =M103 -> 0 | O103: =IFERROR(IF(TRIM(CLEAN(K103))="A",4)+IF(TRIM(CLEAN(K103))="B+",3.5)+IF(TRIM(CLEAN(K103))="B",3)+IF(TRIM(CLEAN(K103))="C+",2.5)+IF(TRIM(CLEAN(K103))="C",2)+IF(TRIM(CLEAN(K103))="D+",1.5)+IF(TRIM(CLEAN(K103))="D",1)+IF(TRIM(CLEAN(K103))="D*",1)+IF(TRIM(CLEAN(K103))="NU",0)+IF(TRIM(CLEAN(K103))="",0),"") -> 0 | P103: =O103 -> 0 | Q103: =IF(K103="D",Profile!$F$276, IF(K103="D*",Profile!$F$276, IF(K103="D+",Profile!$F$276, IF(K103="C",Profile!$F$277, IF(K103="C+",Profile!$F$277, IF(K103="B+",Profile!$F$278, IF(K103="B",Profile!$F$278, IF(K103="A",Profile!$F$279,"")))))))) ->  | R103: =IF(K103="A",Profile!$F$280, IF(K103="B+",Profile!$F$280, IF(K103="B",Profile!$F$280, IF(K103="D+",Profile!$F$281, IF(K103="D",Profile!$F$281, Profile!$F$282))))) -> Average | S103: =IFERROR(IF(L103=Profile!$E$152,IF(O103-N103<0,"-",IF(O103-N103>0,"+"," =")),"N.C"),"") -> = | U103: Commune de Tiko's cash balances are consolidated either daily (36.57%) or monthly (63.43%). | V103: (PI-21) | W103: 1 | X103: 0 | Y103: 1 | Z103: 4 | AA103: =IF($O103>=3.25,Profile!$F$279, IF($O103>=2.5,Profile!$F$278, IF($O103>=1.75,Profile!$F$277, IF($O103>=1,Profile!$F$276, "" )))) -> 
A104: PEFALIA | B104: 21.2 | C104: 21.2 | E104: Comp | F104: V | G104: =VLOOKUP(F104,Profile!B:C,2,FALSE) -> V. Predictability and control in budget execution | H104: PI-21 | I104: =IFERROR(VLOOKUP(B104,Profile!B:C,2,FALSE),"") -> 21.2 Cash forecasting and monitoring | K104: NA | L104: =Profile!$E$152 -> Yes | M104: =IFERROR(IF(TRIM(CLEAN(J104))="A",4)+IF(TRIM(CLEAN(J104))="B+",3.5)+IF(TRIM(CLEAN(J104))="B",3)+IF(TRIM(CLEAN(J104))="C+",2.5)+IF(TRIM(CLEAN(J104))="C",2)+IF(TRIM(CLEAN(J104))="D+",1.5)+IF(TRIM(CLEAN(J104))="D",1)+IF(TRIM(CLEAN(J104))="D*",1)+IF(TRIM(CLEAN(J104))="NU",0)+IF(TRIM(CLEAN(J104))="",0),"") -> 0 | N104: 0 | O104: =IFERROR(IF(TRIM(CLEAN(K104))="A",4)+IF(TRIM(CLEAN(K104))="B+",3.5)+IF(TRIM(CLEAN(K104))="B",3)+IF(TRIM(CLEAN(K104))="C+",2.5)+IF(TRIM(CLEAN(K104))="C",2)+IF(TRIM(CLEAN(K104))="D+",1.5)+IF(TRIM(CLEAN(K104))="D",1)+IF(TRIM(CLEAN(K104))="D*",1)+IF(TRIM(CLEAN(K104))="NU",0)+IF(TRIM(CLEAN(K104))="",0),"") -> 0 | P104: 0 | Q104: =IF(K104="D",Profile!$F$276, IF(K104="D*",Profile!$F$276, IF(K104="D+",Profile!$F$276, IF(K104="C",Profile!$F$277, IF(K104="C+",Profile!$F$277, IF(K104="B+",Profile!$F$278, IF(K104="B",Profile!$F$278, IF(K104="A",Profile!$F$279,"")))))))) ->  | R104: =IF(K104="A",Profile!$F$280, IF(K104="B+",Profile!$F$280, IF(K104="B",Profile!$F$280, IF(K104="D+",Profile!$F$281, IF(K104="D",Profile!$F$281, Profile!$F$282))))) -> Average | S104: =IFERROR(IF(L104=Profile!$E$152,IF(O104-N104<0,"-",IF(O104-N104>0,"+"," =")),"N.C"),"") -> = | U104: The Commune has not yet drawn up cash flow plans. | V104: (PI-21) | W104: 1 | X104: 0 | Y104: 1 | Z104: 4 | AA104: =IF($O104>=3.25,Profile!$F$279, IF($O104>=2.5,Profile!$F$278, IF($O104>=1.75,Profile!$F$277, IF($O104>=1,Profile!$F$276, "" )))) -> 
A105: PEFALIA | B105: 21.3 | C105: 21.3 | E105: Comp | F105: V | G105: =VLOOKUP(F105,Profile!B:C,2,FALSE) -> V. Predictability and control in budget execution | H105: PI-21 | I105: =IFERROR(VLOOKUP(B105,Profile!B:C,2,FALSE),"") -> 21.3 Information on commitment ceilings | K105: C | L105: =Profile!$E$152 -> Yes | M105: =IFERROR(IF(TRIM(CLEAN(J105))="A",4)+IF(TRIM(CLEAN(J105))="B+",3.5)+IF(TRIM(CLEAN(J105))="B",3)+IF(TRIM(CLEAN(J105))="C+",2.5)+IF(TRIM(CLEAN(J105))="C",2)+IF(TRIM(CLEAN(J105))="D+",1.5)+IF(TRIM(CLEAN(J105))="D",1)+IF(TRIM(CLEAN(J105))="D*",1)+IF(TRIM(CLEAN(J105))="NU",0)+IF(TRIM(CLEAN(J105))="",0),"") -> 0 | N105: 0 | O105: =IFERROR(IF(TRIM(CLEAN(K105))="A",4)+IF(TRIM(CLEAN(K105))="B+",3.5)+IF(TRIM(CLEAN(K105))="B",3)+IF(TRIM(CLEAN(K105))="C+",2.5)+IF(TRIM(CLEAN(K105))="C",2)+IF(TRIM(CLEAN(K105))="D+",1.5)+IF(TRIM(CLEAN(K105))="D",1)+IF(TRIM(CLEAN(K105))="D*",1)+IF(TRIM(CLEAN(K105))="NU",0)+IF(TRIM(CLEAN(K105))="",0),"") -> 2 | P105: 2 | Q105: =IF(K105="D",Profile!$F$276, IF(K105="D*",Profile!$F$276, IF(K105="D+",Profile!$F$276, IF(K105="C",Profile!$F$277, IF(K105="C+",Profile!$F$277, IF(K105="B+",Profile!$F$278, IF(K105="B",Profile!$F$278, IF(K105="A",Profile!$F$279,"")))))))) -> 2. Basic | R105: =IF(K105="A",Profile!$F$280, IF(K105="B+",Profile!$F$280, IF(K105="B",Profile!$F$280, IF(K105="D+",Profile!$F$281, IF(K105="D",Profile!$F$281, Profile!$F$282))))) -> Average | S105: =IFERROR(IF(L105=Profile!$E$152,IF(O105-N105<0,"-",IF(O105-N105>0,"+"," =")),"N.C"),"") -> + | U105: Periodic commitment ceilings are not set and communicated to departments. | V105: (PI-21) | W105: 1 | X105: 0 | Y105: 1 | Z105: 4 | AA105: =IF($O105>=3.25,Profile!$F$279, IF($O105>=2.5,Profile!$F$278, IF($O105>=1.75,Profile!$F$277, IF($O105>=1,Profile!$F$276, "" )))) -> 2. Basic
A106: PEFALIA | B106: 21.4 | C106: 21.4 | E106: Comp | F106: V | G106: =VLOOKUP(F106,Profile!B:C,2,FALSE) -> V. Predictability and control in budget execution | H106: PI-21 | I106: =IFERROR(VLOOKUP(B106,Profile!B:C,2,FALSE),"") -> 21.4 Significance of in-year budget adjustments | K106: C | L106: =Profile!$E$152 -> Yes | M106: =IFERROR(IF(TRIM(CLEAN(J106))="A",4)+IF(TRIM(CLEAN(J106))="B+",3.5)+IF(TRIM(CLEAN(J106))="B",3)+IF(TRIM(CLEAN(J106))="C+",2.5)+IF(TRIM(CLEAN(J106))="C",2)+IF(TRIM(CLEAN(J106))="D+",1.5)+IF(TRIM(CLEAN(J106))="D",1)+IF(TRIM(CLEAN(J106))="D*",1)+IF(TRIM(CLEAN(J106))="NU",0)+IF(TRIM(CLEAN(J106))="",0),"") -> 0 | N106: 0 | O106: =IFERROR(IF(TRIM(CLEAN(K106))="A",4)+IF(TRIM(CLEAN(K106))="B+",3.5)+IF(TRIM(CLEAN(K106))="B",3)+IF(TRIM(CLEAN(K106))="C+",2.5)+IF(TRIM(CLEAN(K106))="C",2)+IF(TRIM(CLEAN(K106))="D+",1.5)+IF(TRIM(CLEAN(K106))="D",1)+IF(TRIM(CLEAN(K106))="D*",1)+IF(TRIM(CLEAN(K106))="NU",0)+IF(TRIM(CLEAN(K106))="",0),"") -> 2 | P106: 2 | Q106: =IF(K106="D",Profile!$F$276, IF(K106="D*",Profile!$F$276, IF(K106="D+",Profile!$F$276, IF(K106="C",Profile!$F$277, IF(K106="C+",Profile!$F$277, IF(K106="B+",Profile!$F$278, IF(K106="B",Profile!$F$278, IF(K106="A",Profile!$F$279,"")))))))) -> 2. Basic | R106: =IF(K106="A",Profile!$F$280, IF(K106="B+",Profile!$F$280, IF(K106="B",Profile!$F$280, IF(K106="D+",Profile!$F$281, IF(K106="D",Profile!$F$281, Profile!$F$282))))) -> Average | S106: =IFERROR(IF(L106=Profile!$E$152,IF(O106-N106<0,"-",IF(O106-N106>0,"+"," =")),"N.C"),"") -> + | U106: In fiscal 2020, the Commune Executive has not made any changes to the initial budget estimates. | V106: (PI-21) | W106: 1 | X106: 0 | Y106: 1 | Z106: 4 | AA106: =IF($O106>=3.25,Profile!$F$279, IF($O106>=2.5,Profile!$F$278, IF($O106>=1.75,Profile!$F$277, IF($O106>=1,Profile!$F$276, "" )))) -> 2. Basic
A107: PEFALIA | B107: PI-22 | C107: PI_22 | D107: M1 | E107: Indic | F107: V | G107: =VLOOKUP(F107,Profile!B:C,2,FALSE) -> V. Predictability and control in budget execution | H107: PI-22 | I107: =IFERROR(VLOOKUP(B107,Profile!B:C,2,FALSE),"") -> PI-22 Expenditure arrears | J107: =IF(N107>3.65,"A", IF(N107>=3.25,"B+", IF(N107>2.65,"B", IF(N107>=2.25,"C+", IF(N107>1.75,"C", IF(N107>1.25,"D+", IF(AND(N107<=1.25,N107>0),"D", IF(N107=0,"NA", "" )))))))) -> NA | K107: =IF(O107>3.65,"A", IF(O107>=3.25,"B+", IF(O107>2.65,"B", IF(O107>=2.25,"C+", IF(O107>1.75,"C", IF(O107>1.25,"D+", IF(AND(O107<=1.25,O107>0),"D", IF(O107=0,"NA", "" )))))))) -> D | L107: =IF(OR(L108=Profile!E152,L109=Profile!E152),Profile!E152,Profile!E153) -> Yes | M107: =IFERROR(IF($D107="M1",IF(ROUND(AVERAGEIF(M108:M109,">0"),1)=ROUND(MIN(IF(M108:M109>0,M108:M109)),1),M108,MIN(IF(M108:M109>0,M108:M109))+0.5),AVERAGEIF(M108:M109,">0")),0) -> 0 | N107: =IFERROR(IF($D107="M1",IF(ROUND(AVERAGEIF(N108:N109,">0"),1)=ROUND(MAX(IF(N108:N109>0,N108:N109)),1),N108,MAX(IF(N108:N109>0,N108:N109))+0.5),AVERAGEIF(N108:N109,">0")),0) -> 0 | O107: =IFERROR(IF($D107="M1",IF(ROUND(AVERAGEIF(O108:O109,">0"),1)=ROUND(MIN(IF(O108:O109>0,O108:O109)),1),O108,MIN(IF(O108:O109>0,O108:O109))+0.5),AVERAGEIF(O108:O109,">0")),0) -> 1 | P107: 1 | Q107: =IF(K107="D",Profile!$F$276, IF(K107="D*",Profile!$F$276, IF(K107="D+",Profile!$F$276, IF(K107="C",Profile!$F$277, IF(K107="C+",Profile!$F$277, IF(K107="B+",Profile!$F$278, IF(K107="B",Profile!$F$278, IF(K107="A",Profile!$F$279,"")))))))) -> 1. Below basic | R107: =IF(K107="A",Profile!$F$280, IF(K107="B+",Profile!$F$280, IF(K107="B",Profile!$F$280, IF(K107="D+",Profile!$F$281, IF(K107="D",Profile!$F$281, Profile!$F$282))))) -> Weakness | S107: =IFERROR(IF(L107=Profile!$E$152,IF(O107-N107<0,"-",IF(O107-N107>0,"+"," =")),"N.C"),"") -> + | V107: (PI-22) | W107: 1 | X107: 0 | Y107: 0 | Z107: =Z108 -> 2 | AA107: =IF($O107>=3.25,Profile!$F$279, IF($O107>=2.5,Profile!$F$278, IF($O107>=1.75,Profile!$F$277, IF($O107>=1,Profile!$F$276, "" )))) -> 1. Below basic
A108: PEFALIA | B108: 22.1 | C108: 22.1 | E108: Comp | F108: V | G108: =VLOOKUP(F108,Profile!B:C,2,FALSE) -> V. Predictability and control in budget execution | H108: PI-22 | I108: =IFERROR(VLOOKUP(B108,Profile!B:C,2,FALSE),"") -> 22.1 Stock of expenditure arrears | K108: D* | L108: =Profile!$E$152 -> Yes | M108: =IFERROR(IF(TRIM(CLEAN(J108))="A",4)+IF(TRIM(CLEAN(J108))="B+",3.5)+IF(TRIM(CLEAN(J108))="B",3)+IF(TRIM(CLEAN(J108))="C+",2.5)+IF(TRIM(CLEAN(J108))="C",2)+IF(TRIM(CLEAN(J108))="D+",1.5)+IF(TRIM(CLEAN(J108))="D",1)+IF(TRIM(CLEAN(J108))="D*",1)+IF(TRIM(CLEAN(J108))="NU",0)+IF(TRIM(CLEAN(J108))="",0),"") -> 0 | N108: =M108 -> 0 | O108: =IFERROR(IF(TRIM(CLEAN(K108))="A",4)+IF(TRIM(CLEAN(K108))="B+",3.5)+IF(TRIM(CLEAN(K108))="B",3)+IF(TRIM(CLEAN(K108))="C+",2.5)+IF(TRIM(CLEAN(K108))="C",2)+IF(TRIM(CLEAN(K108))="D+",1.5)+IF(TRIM(CLEAN(K108))="D",1)+IF(TRIM(CLEAN(K108))="D*",1)+IF(TRIM(CLEAN(K108))="NU",0)+IF(TRIM(CLEAN(K108))="",0),"") -> 1 | P108: =O108 -> 1 | Q108: =IF(K108="D",Profile!$F$276, IF(K108="D*",Profile!$F$276, IF(K108="D+",Profile!$F$276, IF(K108="C",Profile!$F$277, IF(K108="C+",Profile!$F$277, IF(K108="B+",Profile!$F$278, IF(K108="B",Profile!$F$278, IF(K108="A",Profile!$F$279,"")))))))) -> 1. Below basic | R108: =IF(K108="A",Profile!$F$280, IF(K108="B+",Profile!$F$280, IF(K108="B",Profile!$F$280, IF(K108="D+",Profile!$F$281, IF(K108="D",Profile!$F$281, Profile!$F$282))))) -> Average | S108: =IFERROR(IF(L108=Profile!$E$152,IF(O108-N108<0,"-",IF(O108-N108>0,"+"," =")),"N.C"),"") -> + | U108: The mission was unable to obtain reliable data on the evolution of the stock of expenditure arrears over the period under review. | V108: (PI-22) | W108: 1 | X108: 0 | Y108: 0 | Z108: 2 | AA108: =IF($O108>=3.25,Profile!$F$279, IF($O108>=2.5,Profile!$F$278, IF($O108>=1.75,Profile!$F$277, IF($O108>=1,Profile!$F$276, "" )))) -> 1. Below basic
A109: PEFALIA | B109: 22.2 | C109: 22.2 | E109: Comp | F109: V | G109: =VLOOKUP(F109,Profile!B:C,2,FALSE) -> V. Predictability and control in budget execution | H109: PI-22 | I109: =IFERROR(VLOOKUP(B109,Profile!B:C,2,FALSE),"") -> 22.2 Expenditure arrears monitoring | K109: NA | L109: =Profile!$E$152 -> Yes | M109: =IFERROR(IF(TRIM(CLEAN(J109))="A",4)+IF(TRIM(CLEAN(J109))="B+",3.5)+IF(TRIM(CLEAN(J109))="B",3)+IF(TRIM(CLEAN(J109))="C+",2.5)+IF(TRIM(CLEAN(J109))="C",2)+IF(TRIM(CLEAN(J109))="D+",1.5)+IF(TRIM(CLEAN(J109))="D",1)+IF(TRIM(CLEAN(J109))="D*",1)+IF(TRIM(CLEAN(J109))="NU",0)+IF(TRIM(CLEAN(J109))="",0),"") -> 0 | N109: 0 | O109: =IFERROR(IF(TRIM(CLEAN(K109))="A",4)+IF(TRIM(CLEAN(K109))="B+",3.5)+IF(TRIM(CLEAN(K109))="B",3)+IF(TRIM(CLEAN(K109))="C+",2.5)+IF(TRIM(CLEAN(K109))="C",2)+IF(TRIM(CLEAN(K109))="D+",1.5)+IF(TRIM(CLEAN(K109))="D",1)+IF(TRIM(CLEAN(K109))="D*",1)+IF(TRIM(CLEAN(K109))="NU",0)+IF(TRIM(CLEAN(K109))="",0),"") -> 0 | P109: 0 | Q109: =IF(K109="D",Profile!$F$276, IF(K109="D*",Profile!$F$276, IF(K109="D+",Profile!$F$276, IF(K109="C",Profile!$F$277, IF(K109="C+",Profile!$F$277, IF(K109="B+",Profile!$F$278, IF(K109="B",Profile!$F$278, IF(K109="A",Profile!$F$279,"")))))))) ->  | R109: =IF(K109="A",Profile!$F$280, IF(K109="B+",Profile!$F$280, IF(K109="B",Profile!$F$280, IF(K109="D+",Profile!$F$281, IF(K109="D",Profile!$F$281, Profile!$F$282))))) -> Average | S109: =IFERROR(IF(L109=Profile!$E$152,IF(O109-N109<0,"-",IF(O109-N109>0,"+"," =")),"N.C"),"") -> = | U109: Data on the evolution of the stock of expenditure arrears is not produced each year, nor do the Commune de Tiko's departments produce a report on the stock and composition of arrears at the end of each financial year. | V109: (PI-22) | W109: 1 | X109: 0 | Y109: 0 | Z109: 2 | AA109: =IF($O109>=3.25,Profile!$F$279, IF($O109>=2.5,Profile!$F$278, IF($O109>=1.75,Profile!$F$277, IF($O109>=1,Profile!$F$276, "" )))) -> 
A110: PEFALIA | B110: PI-23 | C110: PI_23 | D110: M1 | E110: Indic | F110: V | G110: =VLOOKUP(F110,Profile!B:C,2,FALSE) -> V. Predictability and control in budget execution | H110: PI-23 | I110: =IFERROR(VLOOKUP(B110,Profile!B:C,2,FALSE),"") -> PI-23 Payroll controls | J110: =IF(N110>3.65,"A", IF(N110>=3.25,"B+", IF(N110>2.65,"B", IF(N110>=2.25,"C+", IF(N110>1.75,"C", IF(N110>1.25,"D+", IF(AND(N110<=1.25,N110>0),"D", IF(N110=0,"NA", "" )))))))) -> NA | K110: =IF(O110>3.65,"A", IF(O110>=3.25,"B+", IF(O110>2.65,"B", IF(O110>=2.25,"C+", IF(O110>1.75,"C", IF(O110>1.25,"D+", IF(AND(O110<=1.25,O110>0),"D", IF(O110=0,"NA", "" )))))))) -> D | L110: =IF(OR(L111=Profile!E152,L112=Profile!E152,L113=Profile!E152,L114=Profile!E152),Profile!E152,Profile!E153) -> Yes | M110: =IFERROR(IF($D110="M1",IF(ROUND(AVERAGEIF(M111:M114,">0"),1)=ROUND(MIN(IF(M111:M114>0,M111:M114)),1),AVERAGE(M111:M114),MIN(IF(M111:M114>0,M111:M114))+0.5),AVERAGEIF(M111:M114,">0")),0) -> 0 | N110: =IFERROR(IF($D110="M1",IF(ROUND(AVERAGEIF(N111:N114,">0"),1)=ROUND(MAX(IF(N111:N114>0,N111:N114)),1),MAX(N111:N114),MAX(IF(N111:N114>0,N111:N114))+0.5),AVERAGEIF(N111:N114,">0")),0) -> 0 | O110: =IFERROR(IF($D110="M1",IF(ROUND(AVERAGEIF(O111:O114,">0"),1)=ROUND(MIN(IF(O111:O114>0,O111:O114)),1),AVERAGE(O111:O114),MIN(IF(O111:O114>0,O111:O114))+0.5),AVERAGEIF(O111:O114,">0")),0) -> 0.75 | P110: 1 | Q110: =IF(K110="D",Profile!$F$276, IF(K110="D*",Profile!$F$276, IF(K110="D+",Profile!$F$276, IF(K110="C",Profile!$F$277, IF(K110="C+",Profile!$F$277, IF(K110="B+",Profile!$F$278, IF(K110="B",Profile!$F$278, IF(K110="A",Profile!$F$279,"")))))))) -> 1. Below basic | R110: =IF(K110="A",Profile!$F$280, IF(K110="B+",Profile!$F$280, IF(K110="B",Profile!$F$280, IF(K110="D+",Profile!$F$281, IF(K110="D",Profile!$F$281, Profile!$F$282))))) -> Weakness | S110: =IFERROR(IF(L110=Profile!$E$152,IF(O110-N110<0,"-",IF(O110-N110>0,"+"," =")),"N.C"),"") -> + | V110: (PI-23) | W110: 0 | X110: 0 | Y110: 1 | Z110: =Z111 -> 4 | AA110: =IF($O110>=3.25,Profile!$F$279, IF($O110>=2.5,Profile!$F$278, IF($O110>=1.75,Profile!$F$277, IF($O110>=1,Profile!$F$276, "" )))) -> 
A111: PEFALIA | B111: 23.1 | C111: 23.1 | E111: Comp | F111: V | G111: =VLOOKUP(F111,Profile!B:C,2,FALSE) -> V. Predictability and control in budget execution | H111: PI-23 | I111: =IFERROR(VLOOKUP(B111,Profile!B:C,2,FALSE),"") -> 23.1 Integration of payroll and personnel records | K111: NA | L111: =Profile!$E$152 -> Yes | M111: =IFERROR(IF(TRIM(CLEAN(J111))="A",4)+IF(TRIM(CLEAN(J111))="B+",3.5)+IF(TRIM(CLEAN(J111))="B",3)+IF(TRIM(CLEAN(J111))="C+",2.5)+IF(TRIM(CLEAN(J111))="C",2)+IF(TRIM(CLEAN(J111))="D+",1.5)+IF(TRIM(CLEAN(J111))="D",1)+IF(TRIM(CLEAN(J111))="D*",1)+IF(TRIM(CLEAN(J111))="NU",0)+IF(TRIM(CLEAN(J111))="",0),"") -> 0 | N111: =M111 -> 0 | O111: =IFERROR(IF(TRIM(CLEAN(K111))="A",4)+IF(TRIM(CLEAN(K111))="B+",3.5)+IF(TRIM(CLEAN(K111))="B",3)+IF(TRIM(CLEAN(K111))="C+",2.5)+IF(TRIM(CLEAN(K111))="C",2)+IF(TRIM(CLEAN(K111))="D+",1.5)+IF(TRIM(CLEAN(K111))="D",1)+IF(TRIM(CLEAN(K111))="D*",1)+IF(TRIM(CLEAN(K111))="NU",0)+IF(TRIM(CLEAN(K111))="",0),"") -> 0 | P111: =O111 -> 0 | Q111: =IF(K111="D",Profile!$F$276, IF(K111="D*",Profile!$F$276, IF(K111="D+",Profile!$F$276, IF(K111="C",Profile!$F$277, IF(K111="C+",Profile!$F$277, IF(K111="B+",Profile!$F$278, IF(K111="B",Profile!$F$278, IF(K111="A",Profile!$F$279,"")))))))) ->  | R111: =IF(K111="A",Profile!$F$280, IF(K111="B+",Profile!$F$280, IF(K111="B",Profile!$F$280, IF(K111="D+",Profile!$F$281, IF(K111="D",Profile!$F$281, Profile!$F$282))))) -> Average | S111: =IFERROR(IF(L111=Profile!$E$152,IF(O111-N111<0,"-",IF(O111-N111>0,"+"," =")),"N.C"),"") -> = | U111: Personnel files and payrolls are neither integrated nor linked. Recruitment, promotion and advancement are not based on duly approved staffing and employment forecasts. However, the availability of funds is checked when recruitment, promotion and other actions are initiated. | V111: (PI-23) | W111: 0 | X111: 0 | Y111: 1 | Z111: 4 | AA111: =IF($O111>=3.25,Profile!$F$279, IF($O111>=2.5,Profile!$F$278, IF($O111>=1.75,Profile!$F$277, IF($O111>=1,Profile!$F$276, "" )))) -> 
A112: PEFALIA | B112: 23.2 | C112: 23.2 | E112: Comp | F112: V | G112: =VLOOKUP(F112,Profile!B:C,2,FALSE) -> V. Predictability and control in budget execution | H112: PI-23 | I112: =IFERROR(VLOOKUP(B112,Profile!B:C,2,FALSE),"") -> 23.2 Management of payroll changes | K112: D | L112: =Profile!$E$152 -> Yes | M112: =IFERROR(IF(TRIM(CLEAN(J112))="A",4)+IF(TRIM(CLEAN(J112))="B+",3.5)+IF(TRIM(CLEAN(J112))="B",3)+IF(TRIM(CLEAN(J112))="C+",2.5)+IF(TRIM(CLEAN(J112))="C",2)+IF(TRIM(CLEAN(J112))="D+",1.5)+IF(TRIM(CLEAN(J112))="D",1)+IF(TRIM(CLEAN(J112))="D*",1)+IF(TRIM(CLEAN(J112))="NU",0)+IF(TRIM(CLEAN(J112))="",0),"") -> 0 | N112: 0 | O112: =IFERROR(IF(TRIM(CLEAN(K112))="A",4)+IF(TRIM(CLEAN(K112))="B+",3.5)+IF(TRIM(CLEAN(K112))="B",3)+IF(TRIM(CLEAN(K112))="C+",2.5)+IF(TRIM(CLEAN(K112))="C",2)+IF(TRIM(CLEAN(K112))="D+",1.5)+IF(TRIM(CLEAN(K112))="D",1)+IF(TRIM(CLEAN(K112))="D*",1)+IF(TRIM(CLEAN(K112))="NU",0)+IF(TRIM(CLEAN(K112))="",0),"") -> 1 | P112: 1 | Q112: =IF(K112="D",Profile!$F$276, IF(K112="D*",Profile!$F$276, IF(K112="D+",Profile!$F$276, IF(K112="C",Profile!$F$277, IF(K112="C+",Profile!$F$277, IF(K112="B+",Profile!$F$278, IF(K112="B",Profile!$F$278, IF(K112="A",Profile!$F$279,"")))))))) -> 1. Below basic | R112: =IF(K112="A",Profile!$F$280, IF(K112="B+",Profile!$F$280, IF(K112="B",Profile!$F$280, IF(K112="D+",Profile!$F$281, IF(K112="D",Profile!$F$281, Profile!$F$282))))) -> Weakness | S112: =IFERROR(IF(L112=Profile!$E$152,IF(O112-N112<0,"-",IF(O112-N112>0,"+"," =")),"N.C"),"") -> + | U112: The personnel file and payroll statements are updated at the end of the year, incorporating all future forecast changes based on effective dates. | V112: (PI-23) | W112: 0 | X112: 0 | Y112: 1 | Z112: 4 | AA112: =IF($O112>=3.25,Profile!$F$279, IF($O112>=2.5,Profile!$F$278, IF($O112>=1.75,Profile!$F$277, IF($O112>=1,Profile!$F$276, "" )))) -> 1. Below basic
A113: PEFALIA | B113: 23.3 | C113: 23.3 | E113: Comp | F113: V | G113: =VLOOKUP(F113,Profile!B:C,2,FALSE) -> V. Predictability and control in budget execution | H113: PI-23 | I113: =IFERROR(VLOOKUP(B113,Profile!B:C,2,FALSE),"") -> 23.3 Internal controls of payroll | K113: D | L113: =Profile!$E$152 -> Yes | M113: =IFERROR(IF(TRIM(CLEAN(J113))="A",4)+IF(TRIM(CLEAN(J113))="B+",3.5)+IF(TRIM(CLEAN(J113))="B",3)+IF(TRIM(CLEAN(J113))="C+",2.5)+IF(TRIM(CLEAN(J113))="C",2)+IF(TRIM(CLEAN(J113))="D+",1.5)+IF(TRIM(CLEAN(J113))="D",1)+IF(TRIM(CLEAN(J113))="D*",1)+IF(TRIM(CLEAN(J113))="NU",0)+IF(TRIM(CLEAN(J113))="",0),"") -> 0 | N113: 0 | O113: =IFERROR(IF(TRIM(CLEAN(K113))="A",4)+IF(TRIM(CLEAN(K113))="B+",3.5)+IF(TRIM(CLEAN(K113))="B",3)+IF(TRIM(CLEAN(K113))="C+",2.5)+IF(TRIM(CLEAN(K113))="C",2)+IF(TRIM(CLEAN(K113))="D+",1.5)+IF(TRIM(CLEAN(K113))="D",1)+IF(TRIM(CLEAN(K113))="D*",1)+IF(TRIM(CLEAN(K113))="NU",0)+IF(TRIM(CLEAN(K113))="",0),"") -> 1 | P113: 1 | Q113: =IF(K113="D",Profile!$F$276, IF(K113="D*",Profile!$F$276, IF(K113="D+",Profile!$F$276, IF(K113="C",Profile!$F$277, IF(K113="C+",Profile!$F$277, IF(K113="B+",Profile!$F$278, IF(K113="B",Profile!$F$278, IF(K113="A",Profile!$F$279,"")))))))) -> 1. Below basic | R113: =IF(K113="A",Profile!$F$280, IF(K113="B+",Profile!$F$280, IF(K113="B",Profile!$F$280, IF(K113="D+",Profile!$F$281, IF(K113="D",Profile!$F$281, Profile!$F$282))))) -> Weakness | S113: =IFERROR(IF(L113=Profile!$E$152,IF(O113-N113<0,"-",IF(O113-N113>0,"+"," =")),"N.C"),"") -> + | U113: The controls in place are sufficient to ensure the accuracy of payroll data. However, as the system is not computerized, it is not possible to produce an audit trail. | V113: (PI-23) | W113: 0 | X113: 0 | Y113: 1 | Z113: 4 | AA113: =IF($O113>=3.25,Profile!$F$279, IF($O113>=2.5,Profile!$F$278, IF($O113>=1.75,Profile!$F$277, IF($O113>=1,Profile!$F$276, "" )))) -> 1. Below basic
A114: PEFALIA | B114: 23.4 | C114: 23.4 | E114: Comp | F114: V | G114: =VLOOKUP(F114,Profile!B:C,2,FALSE) -> V. Predictability and control in budget execution | H114: PI-23 | I114: =IFERROR(VLOOKUP(B114,Profile!B:C,2,FALSE),"") -> 23.4 Payroll audits | K114: D | L114: =Profile!$E$152 -> Yes | M114: =IFERROR(IF(TRIM(CLEAN(J114))="A",4)+IF(TRIM(CLEAN(J114))="B+",3.5)+IF(TRIM(CLEAN(J114))="B",3)+IF(TRIM(CLEAN(J114))="C+",2.5)+IF(TRIM(CLEAN(J114))="C",2)+IF(TRIM(CLEAN(J114))="D+",1.5)+IF(TRIM(CLEAN(J114))="D",1)+IF(TRIM(CLEAN(J114))="D*",1)+IF(TRIM(CLEAN(J114))="NU",0)+IF(TRIM(CLEAN(J114))="",0),"") -> 0 | N114: 0 | O114: =IFERROR(IF(TRIM(CLEAN(K114))="A",4)+IF(TRIM(CLEAN(K114))="B+",3.5)+IF(TRIM(CLEAN(K114))="B",3)+IF(TRIM(CLEAN(K114))="C+",2.5)+IF(TRIM(CLEAN(K114))="C",2)+IF(TRIM(CLEAN(K114))="D+",1.5)+IF(TRIM(CLEAN(K114))="D",1)+IF(TRIM(CLEAN(K114))="D*",1)+IF(TRIM(CLEAN(K114))="NU",0)+IF(TRIM(CLEAN(K114))="",0),"") -> 1 | P114: 1 | Q114: =IF(K114="D",Profile!$F$276, IF(K114="D*",Profile!$F$276, IF(K114="D+",Profile!$F$276, IF(K114="C",Profile!$F$277, IF(K114="C+",Profile!$F$277, IF(K114="B+",Profile!$F$278, IF(K114="B",Profile!$F$278, IF(K114="A",Profile!$F$279,"")))))))) -> 1. Below basic | R114: =IF(K114="A",Profile!$F$280, IF(K114="B+",Profile!$F$280, IF(K114="B",Profile!$F$280, IF(K114="D+",Profile!$F$281, IF(K114="D",Profile!$F$281, Profile!$F$282))))) -> Weakness | S114: =IFERROR(IF(L114=Profile!$E$152,IF(O114-N114<0,"-",IF(O114-N114>0,"+"," =")),"N.C"),"") -> + | U114: No payroll audits or investigations have been carried out in the last three years. | V114: (PI-23) | W114: 0 | X114: 0 | Y114: 1 | Z114: 4 | AA114: =IF($O114>=3.25,Profile!$F$279, IF($O114>=2.5,Profile!$F$278, IF($O114>=1.75,Profile!$F$277, IF($O114>=1,Profile!$F$276, "" )))) -> 1. Below basic
A115: PEFALIA | B115: PI-24 | C115: PI_24 | D115: M2 | E115: Indic | F115: V | G115: =VLOOKUP(F115,Profile!B:C,2,FALSE) -> V. Predictability and control in budget execution | H115: PI-24 | I115: =IFERROR(VLOOKUP(B115,Profile!B:C,2,FALSE),"") -> PI-24 Procurement | J115: =IF(N115>3.65,"A", IF(N115>=3.25,"B+", IF(N115>2.65,"B", IF(N115>=2.25,"C+", IF(N115>1.75,"C", IF(N115>1.25,"D+", IF(AND(N115<=1.25,N115>0),"D", IF(N115=0,"NA", "" )))))))) -> NA | K115: =IF(O115>3.65,"A", IF(O115>=3.25,"B+", IF(O115>2.65,"B", IF(O115>=2.25,"C+", IF(O115>1.75,"C", IF(O115>1.25,"D+", IF(AND(O115<=1.25,O115>0),"D", IF(O115=0,"NA", "" )))))))) -> D | L115: =IF(OR(L116=Profile!E152,L117=Profile!E152,L118=Profile!E152,L119=Profile!E152),Profile!E152,Profile!E153) -> Yes | M115: =IFERROR(IF($D115="M1",IF(ROUND(AVERAGEIF(M116:M119,">0"),1)=ROUND(MIN(IF(M116:M119>0,M116:M119)),1),AVERAGE(M116:M119),MIN(IF(M116:M119>0,M116:M119))+0.5),AVERAGEIF(M116:M119,">0")),0) -> 0 | N115: =IFERROR(IF($D115="M1",IF(ROUND(AVERAGEIF(N116:N119,">0"),1)=ROUND(MAX(IF(N116:N119>0,N116:N119)),1),MAX(N116:N119),MAX(IF(N116:N119>0,N116:N119))+0.5),AVERAGEIF(N116:N119,">0")),0) -> 0 | O115: =IFERROR(IF($D115="M1",IF(ROUND(AVERAGEIF(O116:O119,">0"),1)=ROUND(MIN(IF(O116:O119>0,O116:O119)),1),AVERAGE(O116:O119),MIN(IF(O116:O119>0,O116:O119))+0.5),AVERAGEIF(O116:O119,">0")),0) -> 1 | P115: 1 | Q115: =IF(K115="D",Profile!$F$276, IF(K115="D*",Profile!$F$276, IF(K115="D+",Profile!$F$276, IF(K115="C",Profile!$F$277, IF(K115="C+",Profile!$F$277, IF(K115="B+",Profile!$F$278, IF(K115="B",Profile!$F$278, IF(K115="A",Profile!$F$279,"")))))))) -> 1. Below basic | R115: =IF(K115="A",Profile!$F$280, IF(K115="B+",Profile!$F$280, IF(K115="B",Profile!$F$280, IF(K115="D+",Profile!$F$281, IF(K115="D",Profile!$F$281, Profile!$F$282))))) -> Weakness | S115: =IFERROR(IF(L115=Profile!$E$152,IF(O115-N115<0,"-",IF(O115-N115>0,"+"," =")),"N.C"),"") -> + | V115: (PI-24) | W115: 0 | X115: 0 | Y115: 1 | Z115: =Z116 -> 4 | AA115: =IF($O115>=3.25,Profile!$F$279, IF($O115>=2.5,Profile!$F$278, IF($O115>=1.75,Profile!$F$277, IF($O115>=1,Profile!$F$276, "" )))) -> 1. Below basic
A116: PEFALIA | B116: 24.1 | C116: 24.1 | E116: Comp | F116: V | G116: =VLOOKUP(F116,Profile!B:C,2,FALSE) -> V. Predictability and control in budget execution | H116: PI-24 | I116: =IFERROR(VLOOKUP(B116,Profile!B:C,2,FALSE),"") -> 24.1 Procurement monitoring | K116: D* | L116: =Profile!$E$152 -> Yes | M116: =IFERROR(IF(TRIM(CLEAN(J116))="A",4)+IF(TRIM(CLEAN(J116))="B+",3.5)+IF(TRIM(CLEAN(J116))="B",3)+IF(TRIM(CLEAN(J116))="C+",2.5)+IF(TRIM(CLEAN(J116))="C",2)+IF(TRIM(CLEAN(J116))="D+",1.5)+IF(TRIM(CLEAN(J116))="D",1)+IF(TRIM(CLEAN(J116))="D*",1)+IF(TRIM(CLEAN(J116))="NU",0)+IF(TRIM(CLEAN(J116))="",0),"") -> 0 | N116: =M116 -> 0 | O116: =IFERROR(IF(TRIM(CLEAN(K116))="A",4)+IF(TRIM(CLEAN(K116))="B+",3.5)+IF(TRIM(CLEAN(K116))="B",3)+IF(TRIM(CLEAN(K116))="C+",2.5)+IF(TRIM(CLEAN(K116))="C",2)+IF(TRIM(CLEAN(K116))="D+",1.5)+IF(TRIM(CLEAN(K116))="D",1)+IF(TRIM(CLEAN(K116))="D*",1)+IF(TRIM(CLEAN(K116))="NU",0)+IF(TRIM(CLEAN(K116))="",0),"") -> 1 | P116: =O116 -> 1 | Q116: =IF(K116="D",Profile!$F$276, IF(K116="D*",Profile!$F$276, IF(K116="D+",Profile!$F$276, IF(K116="C",Profile!$F$277, IF(K116="C+",Profile!$F$277, IF(K116="B+",Profile!$F$278, IF(K116="B",Profile!$F$278, IF(K116="A",Profile!$F$279,"")))))))) -> 1. Below basic | R116: =IF(K116="A",Profile!$F$280, IF(K116="B+",Profile!$F$280, IF(K116="B",Profile!$F$280, IF(K116="D+",Profile!$F$281, IF(K116="D",Profile!$F$281, Profile!$F$282))))) -> Average | S116: =IFERROR(IF(L116=Profile!$E$152,IF(O116-N116<0,"-",IF(O116-N116>0,"+"," =")),"N.C"),"") -> + | U116: The Commune de Tiko's departments did not provide the mission with the list and data relating to the contracts awarded for the 2020 financial year, to enable it to check the completeness of the files compiled and the accuracy of their content. | V116: (PI-24) | W116: 0 | X116: 0 | Y116: 1 | Z116: 4 | AA116: =IF($O116>=3.25,Profile!$F$279, IF($O116>=2.5,Profile!$F$278, IF($O116>=1.75,Profile!$F$277, IF($O116>=1,Profile!$F$276, "" )))) -> 1. Below basic
A117: PEFALIA | B117: 24.2 | C117: 24.2 | E117: Comp | F117: V | G117: =VLOOKUP(F117,Profile!B:C,2,FALSE) -> V. Predictability and control in budget execution | H117: PI-24 | I117: =IFERROR(VLOOKUP(B117,Profile!B:C,2,FALSE),"") -> 24.2 Procurement methods | K117: D* | L117: =Profile!$E$152 -> Yes | M117: =IFERROR(IF(TRIM(CLEAN(J117))="A",4)+IF(TRIM(CLEAN(J117))="B+",3.5)+IF(TRIM(CLEAN(J117))="B",3)+IF(TRIM(CLEAN(J117))="C+",2.5)+IF(TRIM(CLEAN(J117))="C",2)+IF(TRIM(CLEAN(J117))="D+",1.5)+IF(TRIM(CLEAN(J117))="D",1)+IF(TRIM(CLEAN(J117))="D*",1)+IF(TRIM(CLEAN(J117))="NU",0)+IF(TRIM(CLEAN(J117))="",0),"") -> 0 | N117: 0 | O117: =IFERROR(IF(TRIM(CLEAN(K117))="A",4)+IF(TRIM(CLEAN(K117))="B+",3.5)+IF(TRIM(CLEAN(K117))="B",3)+IF(TRIM(CLEAN(K117))="C+",2.5)+IF(TRIM(CLEAN(K117))="C",2)+IF(TRIM(CLEAN(K117))="D+",1.5)+IF(TRIM(CLEAN(K117))="D",1)+IF(TRIM(CLEAN(K117))="D*",1)+IF(TRIM(CLEAN(K117))="NU",0)+IF(TRIM(CLEAN(K117))="",0),"") -> 1 | P117: 1 | Q117: =IF(K117="D",Profile!$F$276, IF(K117="D*",Profile!$F$276, IF(K117="D+",Profile!$F$276, IF(K117="C",Profile!$F$277, IF(K117="C+",Profile!$F$277, IF(K117="B+",Profile!$F$278, IF(K117="B",Profile!$F$278, IF(K117="A",Profile!$F$279,"")))))))) -> 1. Below basic | R117: =IF(K117="A",Profile!$F$280, IF(K117="B+",Profile!$F$280, IF(K117="B",Profile!$F$280, IF(K117="D+",Profile!$F$281, IF(K117="D",Profile!$F$281, Profile!$F$282))))) -> Average | S117: =IFERROR(IF(L117=Profile!$E$152,IF(O117-N117<0,"-",IF(O117-N117>0,"+"," =")),"N.C"),"") -> + | U117: The Commune has not provided the mission with the data relating to contracts awarded for the 2020 financial year, which is required for the rating of this component. | V117: (PI-24) | W117: 0 | X117: 0 | Y117: 1 | Z117: 4 | AA117: =IF($O117>=3.25,Profile!$F$279, IF($O117>=2.5,Profile!$F$278, IF($O117>=1.75,Profile!$F$277, IF($O117>=1,Profile!$F$276, "" )))) -> 1. Below basic
A118: PEFALIA | B118: 24.3 | C118: 24.3 | E118: Comp | F118: V | G118: =VLOOKUP(F118,Profile!B:C,2,FALSE) -> V. Predictability and control in budget execution | H118: PI-24 | I118: =IFERROR(VLOOKUP(B118,Profile!B:C,2,FALSE),"") -> 24.3 Public access to procurement information | K118: D | L118: =Profile!$E$152 -> Yes | M118: =IFERROR(IF(TRIM(CLEAN(J118))="A",4)+IF(TRIM(CLEAN(J118))="B+",3.5)+IF(TRIM(CLEAN(J118))="B",3)+IF(TRIM(CLEAN(J118))="C+",2.5)+IF(TRIM(CLEAN(J118))="C",2)+IF(TRIM(CLEAN(J118))="D+",1.5)+IF(TRIM(CLEAN(J118))="D",1)+IF(TRIM(CLEAN(J118))="D*",1)+IF(TRIM(CLEAN(J118))="NU",0)+IF(TRIM(CLEAN(J118))="",0),"") -> 0 | N118: 0 | O118: =IFERROR(IF(TRIM(CLEAN(K118))="A",4)+IF(TRIM(CLEAN(K118))="B+",3.5)+IF(TRIM(CLEAN(K118))="B",3)+IF(TRIM(CLEAN(K118))="C+",2.5)+IF(TRIM(CLEAN(K118))="C",2)+IF(TRIM(CLEAN(K118))="D+",1.5)+IF(TRIM(CLEAN(K118))="D",1)+IF(TRIM(CLEAN(K118))="D*",1)+IF(TRIM(CLEAN(K118))="NU",0)+IF(TRIM(CLEAN(K118))="",0),"") -> 1 | P118: 1 | Q118: =IF(K118="D",Profile!$F$276, IF(K118="D*",Profile!$F$276, IF(K118="D+",Profile!$F$276, IF(K118="C",Profile!$F$277, IF(K118="C+",Profile!$F$277, IF(K118="B+",Profile!$F$278, IF(K118="B",Profile!$F$278, IF(K118="A",Profile!$F$279,"")))))))) -> 1. Below basic | R118: =IF(K118="A",Profile!$F$280, IF(K118="B+",Profile!$F$280, IF(K118="B",Profile!$F$280, IF(K118="D+",Profile!$F$281, IF(K118="D",Profile!$F$281, Profile!$F$282))))) -> Weakness | S118: =IFERROR(IF(L118=Profile!$E$152,IF(O118-N118<0,"-",IF(O118-N118>0,"+"," =")),"N.C"),"") -> + | U118: The public has access to one of the six required items of information. | V118: (PI-24) | W118: 0 | X118: 0 | Y118: 1 | Z118: 4 | AA118: =IF($O118>=3.25,Profile!$F$279, IF($O118>=2.5,Profile!$F$278, IF($O118>=1.75,Profile!$F$277, IF($O118>=1,Profile!$F$276, "" )))) -> 1. Below basic
A119: PEFALIA | B119: 24.4 | C119: 24.4 | E119: Comp | F119: V | G119: =VLOOKUP(F119,Profile!B:C,2,FALSE) -> V. Predictability and control in budget execution | H119: PI-24 | I119: =IFERROR(VLOOKUP(B119,Profile!B:C,2,FALSE),"") -> 24.4 Procurement complaints management | K119: NA | L119: =Profile!$E$152 -> Yes | M119: =IFERROR(IF(TRIM(CLEAN(J119))="A",4)+IF(TRIM(CLEAN(J119))="B+",3.5)+IF(TRIM(CLEAN(J119))="B",3)+IF(TRIM(CLEAN(J119))="C+",2.5)+IF(TRIM(CLEAN(J119))="C",2)+IF(TRIM(CLEAN(J119))="D+",1.5)+IF(TRIM(CLEAN(J119))="D",1)+IF(TRIM(CLEAN(J119))="D*",1)+IF(TRIM(CLEAN(J119))="NU",0)+IF(TRIM(CLEAN(J119))="",0),"") -> 0 | N119: 0 | O119: =IFERROR(IF(TRIM(CLEAN(K119))="A",4)+IF(TRIM(CLEAN(K119))="B+",3.5)+IF(TRIM(CLEAN(K119))="B",3)+IF(TRIM(CLEAN(K119))="C+",2.5)+IF(TRIM(CLEAN(K119))="C",2)+IF(TRIM(CLEAN(K119))="D+",1.5)+IF(TRIM(CLEAN(K119))="D",1)+IF(TRIM(CLEAN(K119))="D*",1)+IF(TRIM(CLEAN(K119))="NU",0)+IF(TRIM(CLEAN(K119))="",0),"") -> 0 | P119: 0 | Q119: =IF(K119="D",Profile!$F$276, IF(K119="D*",Profile!$F$276, IF(K119="D+",Profile!$F$276, IF(K119="C",Profile!$F$277, IF(K119="C+",Profile!$F$277, IF(K119="B+",Profile!$F$278, IF(K119="B",Profile!$F$278, IF(K119="A",Profile!$F$279,"")))))))) ->  | R119: =IF(K119="A",Profile!$F$280, IF(K119="B+",Profile!$F$280, IF(K119="B",Profile!$F$280, IF(K119="D+",Profile!$F$281, IF(K119="D",Profile!$F$281, Profile!$F$282))))) -> Average | S119: =IFERROR(IF(L119=Profile!$E$152,IF(O119-N119<0,"-",IF(O119-N119>0,"+"," =")),"N.C"),"") -> = | U119: Complaints concerning public procurement are handled by a national body, MINMAP. | V119: (PI-24) | W119: 0 | X119: 0 | Y119: 1 | Z119: 4 | AA119: =IF($O119>=3.25,Profile!$F$279, IF($O119>=2.5,Profile!$F$278, IF($O119>=1.75,Profile!$F$277, IF($O119>=1,Profile!$F$276, "" )))) -> 
A120: PEFALIA | B120: PI-25 | C120: PI_25 | D120: M2 | E120: Indic | F120: V | G120: =VLOOKUP(F120,Profile!B:C,2,FALSE) -> V. Predictability and control in budget execution | H120: PI-25 | I120: =IFERROR(VLOOKUP(B120,Profile!B:C,2,FALSE),"") -> PI-25 Internal controls on non-salary expenditure | J120: =IF(N120>3.65,"A", IF(N120>=3.25,"B+", IF(N120>2.65,"B", IF(N120>=2.25,"C+", IF(N120>1.75,"C", IF(N120>1.25,"D+", IF(AND(N120<=1.25,N120>0),"D", IF(N120=0,"NA", "" )))))))) -> NA | K120: =IF(O120>3.65,"A", IF(O120>=3.25,"B+", IF(O120>2.65,"B", IF(O120>=2.25,"C+", IF(O120>1.75,"C", IF(O120>1.25,"D+", IF(AND(O120<=1.25,O120>0),"D", IF(O120=0,"NA", "" )))))))) -> C+ | L120: =IF(OR(L121=Profile!E152,L122=Profile!E152,L123=Profile!E152),Profile!E152,Profile!E153) -> Yes | M120: =IFERROR((IF($D120="M1",IF(ROUND(AVERAGEIF(M121:M123,">0"),1)=ROUND(MIN(IF(M121:M123>0,M121:M123)),1),AVERAGE(M121:M123),MIN(IF(M121:M123>0,M121:M123))+0.5),AVERAGEIF(M121:M123,">0"))),0) -> 0 | N120: =IFERROR((IF($D120="M1",IF(ROUND(AVERAGEIF(N121:N123,">0"),1)=ROUND(MAX(IF(N121:N123>0,N121:N123)),1),MAX(N121:N123),MAX(IF(N121:N123>0,N121:N123))+0.5),AVERAGEIF(N121:N123,">0"))),0) -> 0 | O120: =IFERROR((IF($D120="M1",IF(ROUND(AVERAGEIF(O121:O123,">0"),1)=ROUND(MIN(IF(O121:O123>0,O121:O123)),1),AVERAGE(O121:O123),MIN(IF(O121:O123>0,O121:O123))+0.5),AVERAGEIF(O121:O123,">0"))),0) -> 2.333333333 | P120: 2.5 | Q120: =IF(K120="D",Profile!$F$276, IF(K120="D*",Profile!$F$276, IF(K120="D+",Profile!$F$276, IF(K120="C",Profile!$F$277, IF(K120="C+",Profile!$F$277, IF(K120="B+",Profile!$F$278, IF(K120="B",Profile!$F$278, IF(K120="A",Profile!$F$279,"")))))))) -> 2. Basic | R120: =IF(K120="A",Profile!$F$280, IF(K120="B+",Profile!$F$280, IF(K120="B",Profile!$F$280, IF(K120="D+",Profile!$F$281, IF(K120="D",Profile!$F$281, Profile!$F$282))))) -> Average | S120: =IFERROR(IF(L120=Profile!$E$152,IF(O120-N120<0,"-",IF(O120-N120>0,"+"," =")),"N.C"),"") -> + | V120: (PI-25) | W120: 1 | X120: 0 | Y120: 1 | Z120: =Z121 -> 3 | AA120: =IF($O120>=3.25,Profile!$F$279, IF($O120>=2.5,Profile!$F$278, IF($O120>=1.75,Profile!$F$277, IF($O120>=1,Profile!$F$276, "" )))) -> 2. Basic
A121: PEFALIA | B121: 25.1 | C121: 25.1 | E121: Comp | F121: V | G121: =VLOOKUP(F121,Profile!B:C,2,FALSE) -> V. Predictability and control in budget execution | H121: PI-25 | I121: =IFERROR(VLOOKUP(B121,Profile!B:C,2,FALSE),"") -> 25.1 Segregation of duties | K121: A | L121: =Profile!$E$152 -> Yes | M121: =IFERROR(IF(TRIM(CLEAN(J121))="A",4)+IF(TRIM(CLEAN(J121))="B+",3.5)+IF(TRIM(CLEAN(J121))="B",3)+IF(TRIM(CLEAN(J121))="C+",2.5)+IF(TRIM(CLEAN(J121))="C",2)+IF(TRIM(CLEAN(J121))="D+",1.5)+IF(TRIM(CLEAN(J121))="D",1)+IF(TRIM(CLEAN(J121))="D*",1)+IF(TRIM(CLEAN(J121))="NU",0)+IF(TRIM(CLEAN(J121))="",0),"") -> 0 | N121: =M121 -> 0 | O121: =IFERROR(IF(TRIM(CLEAN(K121))="A",4)+IF(TRIM(CLEAN(K121))="B+",3.5)+IF(TRIM(CLEAN(K121))="B",3)+IF(TRIM(CLEAN(K121))="C+",2.5)+IF(TRIM(CLEAN(K121))="C",2)+IF(TRIM(CLEAN(K121))="D+",1.5)+IF(TRIM(CLEAN(K121))="D",1)+IF(TRIM(CLEAN(K121))="D*",1)+IF(TRIM(CLEAN(K121))="NU",0)+IF(TRIM(CLEAN(K121))="",0),"") -> 4 | P121: =O121 -> 4 | Q121: =IF(K121="D",Profile!$F$276, IF(K121="D*",Profile!$F$276, IF(K121="D+",Profile!$F$276, IF(K121="C",Profile!$F$277, IF(K121="C+",Profile!$F$277, IF(K121="B+",Profile!$F$278, IF(K121="B",Profile!$F$278, IF(K121="A",Profile!$F$279,"")))))))) -> 4. High | R121: =IF(K121="A",Profile!$F$280, IF(K121="B+",Profile!$F$280, IF(K121="B",Profile!$F$280, IF(K121="D+",Profile!$F$281, IF(K121="D",Profile!$F$281, Profile!$F$282))))) -> Strength | S121: =IFERROR(IF(L121=Profile!$E$152,IF(O121-N121<0,"-",IF(O121-N121>0,"+"," =")),"N.C"),"") -> + | U121: The segregation of duties relating to the execution of the Commune de Tiko's main expenditure operations is relatively well assured, and the responsibilities of the main players clearly defined by the legal framework governing public finance management and by the texts governing the organization and operation of the Commune de Tiko. | V121: (PI-25) | W121: 1 | X121: 0 | Y121: 1 | Z121: 3 | AA121: =IF($O121>=3.25,Profile!$F$279, IF($O121>=2.5,Profile!$F$278, IF($O121>=1.75,Profile!$F$277, IF($O121>=1,Profile!$F$276, "" )))) -> 4. High
A122: PEFALIA | B122: 25.2 | C122: 25.2 | E122: Comp | F122: V | G122: =VLOOKUP(F122,Profile!B:C,2,FALSE) -> V. Predictability and control in budget execution | H122: PI-25 | I122: =IFERROR(VLOOKUP(B122,Profile!B:C,2,FALSE),"") -> 25.2 Effectiveness of expenditure commitment controls | K122: C | L122: =Profile!$E$152 -> Yes | M122: =IFERROR(IF(TRIM(CLEAN(J122))="A",4)+IF(TRIM(CLEAN(J122))="B+",3.5)+IF(TRIM(CLEAN(J122))="B",3)+IF(TRIM(CLEAN(J122))="C+",2.5)+IF(TRIM(CLEAN(J122))="C",2)+IF(TRIM(CLEAN(J122))="D+",1.5)+IF(TRIM(CLEAN(J122))="D",1)+IF(TRIM(CLEAN(J122))="D*",1)+IF(TRIM(CLEAN(J122))="NU",0)+IF(TRIM(CLEAN(J122))="",0),"") -> 0 | N122: 0 | O122: =IFERROR(IF(TRIM(CLEAN(K122))="A",4)+IF(TRIM(CLEAN(K122))="B+",3.5)+IF(TRIM(CLEAN(K122))="B",3)+IF(TRIM(CLEAN(K122))="C+",2.5)+IF(TRIM(CLEAN(K122))="C",2)+IF(TRIM(CLEAN(K122))="D+",1.5)+IF(TRIM(CLEAN(K122))="D",1)+IF(TRIM(CLEAN(K122))="D*",1)+IF(TRIM(CLEAN(K122))="NU",0)+IF(TRIM(CLEAN(K122))="",0),"") -> 2 | P122: 2 | Q122: =IF(K122="D",Profile!$F$276, IF(K122="D*",Profile!$F$276, IF(K122="D+",Profile!$F$276, IF(K122="C",Profile!$F$277, IF(K122="C+",Profile!$F$277, IF(K122="B+",Profile!$F$278, IF(K122="B",Profile!$F$278, IF(K122="A",Profile!$F$279,"")))))))) -> 2. Basic | R122: =IF(K122="A",Profile!$F$280, IF(K122="B+",Profile!$F$280, IF(K122="B",Profile!$F$280, IF(K122="D+",Profile!$F$281, IF(K122="D",Profile!$F$281, Profile!$F$282))))) -> Average | S122: =IFERROR(IF(L122=Profile!$E$152,IF(O122-N122<0,"-",IF(O122-N122>0,"+"," =")),"N.C"),"") -> + | U122: Control of non-salary expenditure commitments is based on budget allocations. A mechanism for controlling commitments against cash flow projections is not in place. The commitment control system does not cover all expenses, and is therefore only partially effective. | V122: (PI-25) | W122: 1 | X122: 0 | Y122: 1 | Z122: 3 | AA122: =IF($O122>=3.25,Profile!$F$279, IF($O122>=2.5,Profile!$F$278, IF($O122>=1.75,Profile!$F$277, IF($O122>=1,Profile!$F$276, "" )))) -> 2. Basic
A123: PEFALIA | B123: 25.3 | C123: 25.3 | E123: Comp | F123: V | G123: =VLOOKUP(F123,Profile!B:C,2,FALSE) -> V. Predictability and control in budget execution | H123: PI-25 | I123: =IFERROR(VLOOKUP(B123,Profile!B:C,2,FALSE),"") -> 25.3 Compliance with payment controls | K123: D* | L123: =Profile!$E$152 -> Yes | M123: =IFERROR(IF(TRIM(CLEAN(J123))="A",4)+IF(TRIM(CLEAN(J123))="B+",3.5)+IF(TRIM(CLEAN(J123))="B",3)+IF(TRIM(CLEAN(J123))="C+",2.5)+IF(TRIM(CLEAN(J123))="C",2)+IF(TRIM(CLEAN(J123))="D+",1.5)+IF(TRIM(CLEAN(J123))="D",1)+IF(TRIM(CLEAN(J123))="D*",1)+IF(TRIM(CLEAN(J123))="NU",0)+IF(TRIM(CLEAN(J123))="",0),"") -> 0 | N123: 0 | O123: =IFERROR(IF(TRIM(CLEAN(K123))="A",4)+IF(TRIM(CLEAN(K123))="B+",3.5)+IF(TRIM(CLEAN(K123))="B",3)+IF(TRIM(CLEAN(K123))="C+",2.5)+IF(TRIM(CLEAN(K123))="C",2)+IF(TRIM(CLEAN(K123))="D+",1.5)+IF(TRIM(CLEAN(K123))="D",1)+IF(TRIM(CLEAN(K123))="D*",1)+IF(TRIM(CLEAN(K123))="NU",0)+IF(TRIM(CLEAN(K123))="",0),"") -> 1 | P123: 1 | Q123: =IF(K123="D",Profile!$F$276, IF(K123="D*",Profile!$F$276, IF(K123="D+",Profile!$F$276, IF(K123="C",Profile!$F$277, IF(K123="C+",Profile!$F$277, IF(K123="B+",Profile!$F$278, IF(K123="B",Profile!$F$278, IF(K123="A",Profile!$F$279,"")))))))) -> 1. Below basic | R123: =IF(K123="A",Profile!$F$280, IF(K123="B+",Profile!$F$280, IF(K123="B",Profile!$F$280, IF(K123="D+",Profile!$F$281, IF(K123="D",Profile!$F$281, Profile!$F$282))))) -> Average | S123: =IFERROR(IF(L123=Profile!$E$152,IF(O123-N123<0,"-",IF(O123-N123>0,"+"," =")),"N.C"),"") -> + | U123: The data required to assess this component were not provided to the mission. | V123: ="("&H123&")" -> (PI-25) | W123: 1 | X123: 0 | Y123: 1 | Z123: 3 | AA123: =IF($O123>=3.25,Profile!$F$279, IF($O123>=2.5,Profile!$F$278, IF($O123>=1.75,Profile!$F$277, IF($O123>=1,Profile!$F$276, "" )))) -> 1. Below basic
A124: PEFALIA | B124: PI-26 | C124: PI_26 | D124: M1 | E124: Indic | F124: V | G124: =VLOOKUP(F124,Profile!B:C,2,FALSE) -> V. Predictability and control in budget execution | H124: PI-26 | I124: =IFERROR(VLOOKUP(B124,Profile!B:C,2,FALSE),"") -> PI-26 Internal audit | J124: =IF(N124>3.65,"A", IF(N124>=3.25,"B+", IF(N124>2.65,"B", IF(N124>=2.25,"C+", IF(N124>1.75,"C", IF(N124>1.25,"D+", IF(AND(N124<=1.25,N124>0),"D", IF(N124=0,"NA", "" )))))))) -> NA | K124: =IF(O124>3.65,"A", IF(O124>=3.25,"B+", IF(O124>2.65,"B", IF(O124>=2.25,"C+", IF(O124>1.75,"C", IF(O124>1.25,"D+", IF(AND(O124<=1.25,O124>0),"D", IF(O124=0,"NA", "" )))))))) -> D | L124: =IF(OR(L125=Profile!E152,L126=Profile!E152,L127=Profile!E152,L128=Profile!E152),Profile!E152,Profile!E153) -> Yes | M124: =IFERROR(IF($D124="M1",IF(ROUND(AVERAGEIF(M125:M128,">0"),1)=ROUND(MIN(IF(M125:M128>0,M125:M128)),1),AVERAGE(M125:M128),MIN(IF(M125:M128>0,M125:M128))+0.5),AVERAGEIF(M125:M128,">0")),0) -> 0 | N124: =IFERROR(IF($D124="M1",IF(ROUND(AVERAGEIF(N125:N128,">0"),1)=ROUND(MAX(IF(N125:N128>0,N125:N128)),1),MAX(N125:N128),MAX(IF(N125:N128>0,N125:N128))+0.5),AVERAGEIF(N125:N128,">0")),0) -> 0 | O124: =IFERROR(IF($D124="M1",IF(ROUND(AVERAGEIF(O125:O128,">0"),1)=ROUND(MIN(IF(O125:O128>0,O125:O128)),1),AVERAGE(O125:O128),MIN(IF(O125:O128>0,O125:O128))+0.5),AVERAGEIF(O125:O128,">0")),0) -> 0.25 | P124: 1 | Q124: =IF(K124="D",Profile!$F$276, IF(K124="D*",Profile!$F$276, IF(K124="D+",Profile!$F$276, IF(K124="C",Profile!$F$277, IF(K124="C+",Profile!$F$277, IF(K124="B+",Profile!$F$278, IF(K124="B",Profile!$F$278, IF(K124="A",Profile!$F$279,"")))))))) -> 1. Below basic | R124: =IF(K124="A",Profile!$F$280, IF(K124="B+",Profile!$F$280, IF(K124="B",Profile!$F$280, IF(K124="D+",Profile!$F$281, IF(K124="D",Profile!$F$281, Profile!$F$282))))) -> Weakness | S124: =IFERROR(IF(L124=Profile!$E$152,IF(O124-N124<0,"-",IF(O124-N124>0,"+"," =")),"N.C"),"") -> + | V124: (PI-26) | W124: 0 | X124: 0 | Y124: 1 | Z124: =Z125 -> 4 | AA124: =IF($O124>=3.25,Profile!$F$279, IF($O124>=2.5,Profile!$F$278, IF($O124>=1.75,Profile!$F$277, IF($O124>=1,Profile!$F$276, "" )))) -> 
A125: PEFALIA | B125: 26.1 | C125: 26.1 | E125: Comp | F125: V | G125: =VLOOKUP(F125,Profile!B:C,2,FALSE) -> V. Predictability and control in budget execution | H125: PI-26 | I125: =IFERROR(VLOOKUP(B125,Profile!B:C,2,FALSE),"") -> 26.1 Coverage of the internal audit | K125: D | L125: =Profile!$E$152 -> Yes | M125: =IFERROR(IF(TRIM(CLEAN(J125))="A",4)+IF(TRIM(CLEAN(J125))="B+",3.5)+IF(TRIM(CLEAN(J125))="B",3)+IF(TRIM(CLEAN(J125))="C+",2.5)+IF(TRIM(CLEAN(J125))="C",2)+IF(TRIM(CLEAN(J125))="D+",1.5)+IF(TRIM(CLEAN(J125))="D",1)+IF(TRIM(CLEAN(J125))="D*",1)+IF(TRIM(CLEAN(J125))="NU",0)+IF(TRIM(CLEAN(J125))="",0),"") -> 0 | N125: =M125 -> 0 | O125: =IFERROR(IF(TRIM(CLEAN(K125))="A",4)+IF(TRIM(CLEAN(K125))="B+",3.5)+IF(TRIM(CLEAN(K125))="B",3)+IF(TRIM(CLEAN(K125))="C+",2.5)+IF(TRIM(CLEAN(K125))="C",2)+IF(TRIM(CLEAN(K125))="D+",1.5)+IF(TRIM(CLEAN(K125))="D",1)+IF(TRIM(CLEAN(K125))="D*",1)+IF(TRIM(CLEAN(K125))="NU",0)+IF(TRIM(CLEAN(K125))="",0),"") -> 1 | P125: =O125 -> 1 | Q125: =IF(K125="D",Profile!$F$276, IF(K125="D*",Profile!$F$276, IF(K125="D+",Profile!$F$276, IF(K125="C",Profile!$F$277, IF(K125="C+",Profile!$F$277, IF(K125="B+",Profile!$F$278, IF(K125="B",Profile!$F$278, IF(K125="A",Profile!$F$279,"")))))))) -> 1. Below basic | R125: =IF(K125="A",Profile!$F$280, IF(K125="B+",Profile!$F$280, IF(K125="B",Profile!$F$280, IF(K125="D+",Profile!$F$281, IF(K125="D",Profile!$F$281, Profile!$F$282))))) -> Weakness | S125: =IFERROR(IF(L125=Profile!$E$152,IF(O125-N125<0,"-",IF(O125-N125>0,"+"," =")),"N.C"),"") -> + | U125: Absence of an internal audit function at Commune de Tiko. | V125: (PI-26) | W125: 0 | X125: 0 | Y125: 1 | Z125: 4 | AA125: =IF($O125>=3.25,Profile!$F$279, IF($O125>=2.5,Profile!$F$278, IF($O125>=1.75,Profile!$F$277, IF($O125>=1,Profile!$F$276, "" )))) -> 1. Below basic
A126: PEFALIA | B126: 26.2 | C126: 26.2 | E126: Comp | F126: V | G126: =VLOOKUP(F126,Profile!B:C,2,FALSE) -> V. Predictability and control in budget execution | H126: PI-26 | I126: =IFERROR(VLOOKUP(B126,Profile!B:C,2,FALSE),"") -> 26.2 Nature of audits and standards applied | K126: NA | L126: =Profile!$E$152 -> Yes | M126: =IFERROR(IF(TRIM(CLEAN(J126))="A",4)+IF(TRIM(CLEAN(J126))="B+",3.5)+IF(TRIM(CLEAN(J126))="B",3)+IF(TRIM(CLEAN(J126))="C+",2.5)+IF(TRIM(CLEAN(J126))="C",2)+IF(TRIM(CLEAN(J126))="D+",1.5)+IF(TRIM(CLEAN(J126))="D",1)+IF(TRIM(CLEAN(J126))="D*",1)+IF(TRIM(CLEAN(J126))="NU",0)+IF(TRIM(CLEAN(J126))="",0),"") -> 0 | N126: 0 | O126: =IFERROR(IF(TRIM(CLEAN(K126))="A",4)+IF(TRIM(CLEAN(K126))="B+",3.5)+IF(TRIM(CLEAN(K126))="B",3)+IF(TRIM(CLEAN(K126))="C+",2.5)+IF(TRIM(CLEAN(K126))="C",2)+IF(TRIM(CLEAN(K126))="D+",1.5)+IF(TRIM(CLEAN(K126))="D",1)+IF(TRIM(CLEAN(K126))="D*",1)+IF(TRIM(CLEAN(K126))="NU",0)+IF(TRIM(CLEAN(K126))="",0),"") -> 0 | P126: 0 | Q126: =IF(K126="D",Profile!$F$276, IF(K126="D*",Profile!$F$276, IF(K126="D+",Profile!$F$276, IF(K126="C",Profile!$F$277, IF(K126="C+",Profile!$F$277, IF(K126="B+",Profile!$F$278, IF(K126="B",Profile!$F$278, IF(K126="A",Profile!$F$279,"")))))))) ->  | R126: =IF(K126="A",Profile!$F$280, IF(K126="B+",Profile!$F$280, IF(K126="B",Profile!$F$280, IF(K126="D+",Profile!$F$281, IF(K126="D",Profile!$F$281, Profile!$F$282))))) -> Average | S126: =IFERROR(IF(L126=Profile!$E$152,IF(O126-N126<0,"-",IF(O126-N126>0,"+"," =")),"N.C"),"") -> = | U126: Absence of an internal audit function at Commune de Tiko. | V126: (PI-26) | W126: 0 | X126: 0 | Y126: 1 | Z126: 4 | AA126: =IF($O126>=3.25,Profile!$F$279, IF($O126>=2.5,Profile!$F$278, IF($O126>=1.75,Profile!$F$277, IF($O126>=1,Profile!$F$276, "" )))) -> 
A127: PEFALIA | B127: 26.3 | C127: 26.3 | E127: Comp | F127: V | G127: =VLOOKUP(F127,Profile!B:C,2,FALSE) -> V. Predictability and control in budget execution | H127: PI-26 | I127: =IFERROR(VLOOKUP(B127,Profile!B:C,2,FALSE),"") -> 26.3 Implementation of internal audits and reporting | K127: NA | L127: =Profile!$E$152 -> Yes | M127: =IFERROR(IF(TRIM(CLEAN(J127))="A",4)+IF(TRIM(CLEAN(J127))="B+",3.5)+IF(TRIM(CLEAN(J127))="B",3)+IF(TRIM(CLEAN(J127))="C+",2.5)+IF(TRIM(CLEAN(J127))="C",2)+IF(TRIM(CLEAN(J127))="D+",1.5)+IF(TRIM(CLEAN(J127))="D",1)+IF(TRIM(CLEAN(J127))="D*",1)+IF(TRIM(CLEAN(J127))="NU",0)+IF(TRIM(CLEAN(J127))="",0),"") -> 0 | N127: 0 | O127: =IFERROR(IF(TRIM(CLEAN(K127))="A",4)+IF(TRIM(CLEAN(K127))="B+",3.5)+IF(TRIM(CLEAN(K127))="B",3)+IF(TRIM(CLEAN(K127))="C+",2.5)+IF(TRIM(CLEAN(K127))="C",2)+IF(TRIM(CLEAN(K127))="D+",1.5)+IF(TRIM(CLEAN(K127))="D",1)+IF(TRIM(CLEAN(K127))="D*",1)+IF(TRIM(CLEAN(K127))="NU",0)+IF(TRIM(CLEAN(K127))="",0),"") -> 0 | P127: 0 | Q127: =IF(K127="D",Profile!$F$276, IF(K127="D*",Profile!$F$276, IF(K127="D+",Profile!$F$276, IF(K127="C",Profile!$F$277, IF(K127="C+",Profile!$F$277, IF(K127="B+",Profile!$F$278, IF(K127="B",Profile!$F$278, IF(K127="A",Profile!$F$279,"")))))))) ->  | R127: =IF(K127="A",Profile!$F$280, IF(K127="B+",Profile!$F$280, IF(K127="B",Profile!$F$280, IF(K127="D+",Profile!$F$281, IF(K127="D",Profile!$F$281, Profile!$F$282))))) -> Average | S127: =IFERROR(IF(L127=Profile!$E$152,IF(O127-N127<0,"-",IF(O127-N127>0,"+"," =")),"N.C"),"") -> = | U127: Absence of an internal audit function at Commune de Tiko. | V127: (PI-26) | W127: 0 | X127: 0 | Y127: 1 | Z127: 4 | AA127: =IF($O127>=3.25,Profile!$F$279, IF($O127>=2.5,Profile!$F$278, IF($O127>=1.75,Profile!$F$277, IF($O127>=1,Profile!$F$276, "" )))) -> 
A128: PEFALIA | B128: 26.4 | C128: 26.4 | E128: Comp | F128: V | G128: =VLOOKUP(F128,Profile!B:C,2,FALSE) -> V. Predictability and control in budget execution | H128: PI-26 | I128: =IFERROR(VLOOKUP(B128,Profile!B:C,2,FALSE),"") -> 26.4 Response to internal audits | K128: NA | L128: =Profile!$E$152 -> Yes | M128: =IFERROR(IF(TRIM(CLEAN(J128))="A",4)+IF(TRIM(CLEAN(J128))="B+",3.5)+IF(TRIM(CLEAN(J128))="B",3)+IF(TRIM(CLEAN(J128))="C+",2.5)+IF(TRIM(CLEAN(J128))="C",2)+IF(TRIM(CLEAN(J128))="D+",1.5)+IF(TRIM(CLEAN(J128))="D",1)+IF(TRIM(CLEAN(J128))="D*",1)+IF(TRIM(CLEAN(J128))="NU",0)+IF(TRIM(CLEAN(J128))="",0),"") -> 0 | N128: 0 | O128: =IFERROR(IF(TRIM(CLEAN(K128))="A",4)+IF(TRIM(CLEAN(K128))="B+",3.5)+IF(TRIM(CLEAN(K128))="B",3)+IF(TRIM(CLEAN(K128))="C+",2.5)+IF(TRIM(CLEAN(K128))="C",2)+IF(TRIM(CLEAN(K128))="D+",1.5)+IF(TRIM(CLEAN(K128))="D",1)+IF(TRIM(CLEAN(K128))="D*",1)+IF(TRIM(CLEAN(K128))="NU",0)+IF(TRIM(CLEAN(K128))="",0),"") -> 0 | P128: 0 | Q128: =IF(K128="D",Profile!$F$276, IF(K128="D*",Profile!$F$276, IF(K128="D+",Profile!$F$276, IF(K128="C",Profile!$F$277, IF(K128="C+",Profile!$F$277, IF(K128="B+",Profile!$F$278, IF(K128="B",Profile!$F$278, IF(K128="A",Profile!$F$279,"")))))))) ->  | R128: =IF(K128="A",Profile!$F$280, IF(K128="B+",Profile!$F$280, IF(K128="B",Profile!$F$280, IF(K128="D+",Profile!$F$281, IF(K128="D",Profile!$F$281, Profile!$F$282))))) -> Average | S128: =IFERROR(IF(L128=Profile!$E$152,IF(O128-N128<0,"-",IF(O128-N128>0,"+"," =")),"N.C"),"") -> = | U128: Absence of an internal audit function at Commune de Tiko. | V128: (PI-26) | W128: 0 | X128: 0 | Y128: 1 | Z128: 4 | AA128: =IF($O128>=3.25,Profile!$F$279, IF($O128>=2.5,Profile!$F$278, IF($O128>=1.75,Profile!$F$277, IF($O128>=1,Profile!$F$276, "" )))) -> 
A129: PEFALIA | B129: VI | C129: VI | E129: Pilar | F129: VI | G129: =VLOOKUP(F129,Profile!B:C,2,FALSE) -> VI. Accounting and reporting | I129: =IFERROR(VLOOKUP(B129,Profile!B:C,2,FALSE),"") -> VI. Accounting and reporting | J129: =IF(N129>3.65,"A", IF(N129>=3.25,"B+", IF(N129>2.65,"B", IF(N129>=2.25,"C+", IF(N129>1.75,"C", IF(N129>1.25,"D+", IF(AND(N129<=1.25,N129>0),"D", IF(N129=0,"NA", "" )))))))) -> NA | K129: =IF(O129>3.65,"A", IF(O129>=3.25,"B+", IF(O129>2.65,"B", IF(O129>=2.25,"C+", IF(O129>1.75,"C", IF(O129>1.25,"D+", IF(AND(O129<=1.25,O129>0),"D", IF(O129=0,"NA", "" )))))))) -> D+ | L129: =IF(COUNTIFS(L130:L142,Profile!E152)=13,Profile!E152,Profile!E153) -> Yes | M129: =AVERAGEIFS(M$16:M$153,$E$16:$E$153,"Indic",$F$16:$F$153,$F129) -> 0 | N129: =AVERAGEIFS(N$16:N$153,$E$16:$E$153,"Indic",$F$16:$F$153,$F129) -> 0 | O129: =AVERAGEIFS(O$16:O$153,$E$16:$E$153,"Indic",$F$16:$F$153,$F129) -> 1.555555556 | P129: 1.5 | Q129: =IF(K129="D",Profile!$F$276, IF(K129="D*",Profile!$F$276, IF(K129="D+",Profile!$F$276, IF(K129="C",Profile!$F$277, IF(K129="C+",Profile!$F$277, IF(K129="B+",Profile!$F$278, IF(K129="B",Profile!$F$278, IF(K129="A",Profile!$F$279,"")))))))) -> 1. Below basic | R129: =IF(K129="A",Profile!$F$280, IF(K129="B+",Profile!$F$280, IF(K129="B",Profile!$F$280, IF(K129="D+",Profile!$F$281, IF(K129="D",Profile!$F$281, Profile!$F$282))))) -> Weakness | S129: =IFERROR(IF(L129=Profile!$E$152,IF(O129-N129<0,"-",IF(O129-N129>0,"+"," =")),"N.C"),"") -> + | V129: () | AA129: =IF($O129>=3.25,Profile!$F$279, IF($O129>=2.5,Profile!$F$278, IF($O129>=1.75,Profile!$F$277, IF($O129>=1,Profile!$F$276, "" )))) -> 1. Below basic
A130: PEFALIA | B130: PI-27 | C130: PI_27 | D130: M2 | E130: Indic | F130: VI | G130: =VLOOKUP(F130,Profile!B:C,2,FALSE) -> VI. Accounting and reporting | H130: PI-27 | I130: =IFERROR(VLOOKUP(B130,Profile!B:C,2,FALSE),"") -> PI-27 Financial data integrity | J130: =IF(N130>3.65,"A", IF(N130>=3.25,"B+", IF(N130>2.65,"B", IF(N130>=2.25,"C+", IF(N130>1.75,"C", IF(N130>1.25,"D+", IF(AND(N130<=1.25,N130>0),"D", IF(N130=0,"NA", "" )))))))) -> NA | K130: C+ | L130: =IF(OR(L131=Profile!E152,L132=Profile!E152,L133=Profile!E152,L134=Profile!E152),Profile!E152,Profile!E153) -> Yes | M130: =IFERROR(IF($D130="M1",IF(ROUND(AVERAGEIF(M131:M134,">0"),1)=ROUND(MIN(IF(M131:M134>0,M131:M134)),1),AVERAGE(M131:M134),MIN(IF(M131:M134>0,M131:M134))+0.5),AVERAGEIF(M131:M134,">0")),0) -> 0 | N130: =IFERROR(IF($D130="M1",IF(ROUND(AVERAGEIF(N131:N134,">0"),1)=ROUND(MAX(IF(N131:N134>0,N131:N134)),1),MAX(N131:N134),MAX(IF(N131:N134>0,N131:N134))+0.5),AVERAGEIF(N131:N134,">0")),0) -> 0 | O130: =IFERROR(IF($D130="M1",IF(ROUND(AVERAGEIF(O131:O134,">0"),1)=ROUND(MIN(IF(O131:O134>0,O131:O134)),1),AVERAGE(O131:O134),MIN(IF(O131:O134>0,O131:O134))+0.5),AVERAGEIF(O131:O134,">0")),0) -> 2.333333333 | P130: 2.5 | Q130: =IF(K130="D",Profile!$F$276, IF(K130="D*",Profile!$F$276, IF(K130="D+",Profile!$F$276, IF(K130="C",Profile!$F$277, IF(K130="C+",Profile!$F$277, IF(K130="B+",Profile!$F$278, IF(K130="B",Profile!$F$278, IF(K130="A",Profile!$F$279,"")))))))) -> 2. Basic | R130: =IF(K130="A",Profile!$F$280, IF(K130="B+",Profile!$F$280, IF(K130="B",Profile!$F$280, IF(K130="D+",Profile!$F$281, IF(K130="D",Profile!$F$281, Profile!$F$282))))) -> Average | S130: =IFERROR(IF(L130=Profile!$E$152,IF(O130-N130<0,"-",IF(O130-N130>0,"+"," =")),"N.C"),"") -> + | V130: (PI-27) | W130: 0 | X130: 0 | Y130: 1 | Z130: =Z131 -> 4 | AA130: =IF($O130>=3.25,Profile!$F$279, IF($O130>=2.5,Profile!$F$278, IF($O130>=1.75,Profile!$F$277, IF($O130>=1,Profile!$F$276, "" )))) -> 2. Basic
A131: PEFALIA | B131: 27.1 | C131: 27.1 | E131: Comp | F131: VI | G131: =VLOOKUP(F131,Profile!B:C,2,FALSE) -> VI. Accounting and reporting | H131: PI-27 | I131: =IFERROR(VLOOKUP(B131,Profile!B:C,2,FALSE),"") -> 27.1 Bank account reconciliation | K131: B | L131: =Profile!$E$152 -> Yes | M131: =IFERROR(IF(TRIM(CLEAN(J131))="A",4)+IF(TRIM(CLEAN(J131))="B+",3.5)+IF(TRIM(CLEAN(J131))="B",3)+IF(TRIM(CLEAN(J131))="C+",2.5)+IF(TRIM(CLEAN(J131))="C",2)+IF(TRIM(CLEAN(J131))="D+",1.5)+IF(TRIM(CLEAN(J131))="D",1)+IF(TRIM(CLEAN(J131))="D*",1)+IF(TRIM(CLEAN(J131))="NU",0)+IF(TRIM(CLEAN(J131))="",0),"") -> 0 | N131: =M131 -> 0 | O131: =IFERROR(IF(TRIM(CLEAN(K131))="A",4)+IF(TRIM(CLEAN(K131))="B+",3.5)+IF(TRIM(CLEAN(K131))="B",3)+IF(TRIM(CLEAN(K131))="C+",2.5)+IF(TRIM(CLEAN(K131))="C",2)+IF(TRIM(CLEAN(K131))="D+",1.5)+IF(TRIM(CLEAN(K131))="D",1)+IF(TRIM(CLEAN(K131))="D*",1)+IF(TRIM(CLEAN(K131))="NU",0)+IF(TRIM(CLEAN(K131))="",0),"") -> 3 | P131: =O131 -> 3 | Q131: =IF(K131="D",Profile!$F$276, IF(K131="D*",Profile!$F$276, IF(K131="D+",Profile!$F$276, IF(K131="C",Profile!$F$277, IF(K131="C+",Profile!$F$277, IF(K131="B+",Profile!$F$278, IF(K131="B",Profile!$F$278, IF(K131="A",Profile!$F$279,"")))))))) -> 3. Sound | R131: =IF(K131="A",Profile!$F$280, IF(K131="B+",Profile!$F$280, IF(K131="B",Profile!$F$280, IF(K131="D+",Profile!$F$281, IF(K131="D",Profile!$F$281, Profile!$F$282))))) -> Strength | S131: =IFERROR(IF(L131=Profile!$E$152,IF(O131-N131<0,"-",IF(O131-N131>0,"+"," =")),"N.C"),"") -> + | U131: The reconciliation of all bank accounts managed by the Municipal Receiver of the Commune of Tiko is carried out on a monthly basis, at the latest within four weeks of the end of each month. | V131: (PI-27) | W131: 0 | X131: 0 | Y131: 1 | Z131: 4 | AA131: =IF($O131>=3.25,Profile!$F$279, IF($O131>=2.5,Profile!$F$278, IF($O131>=1.75,Profile!$F$277, IF($O131>=1,Profile!$F$276, "" )))) -> 3. Sound
A132: PEFALIA | B132: 27.2 | C132: 27.2 | E132: Comp | F132: VI | G132: =VLOOKUP(F132,Profile!B:C,2,FALSE) -> VI. Accounting and reporting | H132: PI-27 | I132: =IFERROR(VLOOKUP(B132,Profile!B:C,2,FALSE),"") -> 27.2 Suspense accounts | K132: D | L132: =Profile!$E$152 -> Yes | M132: =IFERROR(IF(TRIM(CLEAN(J132))="A",4)+IF(TRIM(CLEAN(J132))="B+",3.5)+IF(TRIM(CLEAN(J132))="B",3)+IF(TRIM(CLEAN(J132))="C+",2.5)+IF(TRIM(CLEAN(J132))="C",2)+IF(TRIM(CLEAN(J132))="D+",1.5)+IF(TRIM(CLEAN(J132))="D",1)+IF(TRIM(CLEAN(J132))="D*",1)+IF(TRIM(CLEAN(J132))="NU",0)+IF(TRIM(CLEAN(J132))="",0),"") -> 0 | N132: 0 | O132: =IFERROR(IF(TRIM(CLEAN(K132))="A",4)+IF(TRIM(CLEAN(K132))="B+",3.5)+IF(TRIM(CLEAN(K132))="B",3)+IF(TRIM(CLEAN(K132))="C+",2.5)+IF(TRIM(CLEAN(K132))="C",2)+IF(TRIM(CLEAN(K132))="D+",1.5)+IF(TRIM(CLEAN(K132))="D",1)+IF(TRIM(CLEAN(K132))="D*",1)+IF(TRIM(CLEAN(K132))="NU",0)+IF(TRIM(CLEAN(K132))="",0),"") -> 1 | P132: 1 | Q132: =IF(K132="D",Profile!$F$276, IF(K132="D*",Profile!$F$276, IF(K132="D+",Profile!$F$276, IF(K132="C",Profile!$F$277, IF(K132="C+",Profile!$F$277, IF(K132="B+",Profile!$F$278, IF(K132="B",Profile!$F$278, IF(K132="A",Profile!$F$279,"")))))))) -> 1. Below basic | R132: =IF(K132="A",Profile!$F$280, IF(K132="B+",Profile!$F$280, IF(K132="B",Profile!$F$280, IF(K132="D+",Profile!$F$281, IF(K132="D",Profile!$F$281, Profile!$F$282))))) -> Weakness | S132: =IFERROR(IF(L132=Profile!$E$152,IF(O132-N132<0,"-",IF(O132-N132>0,"+"," =")),"N.C"),"") -> + | U132: Suspense accounts are reconciled once a year when the Commune de Tiko's administrative account is drawn up, but not all of them have been cleared by the end of the financial year. | V132: (PI-27) | W132: 0 | X132: 0 | Y132: 1 | Z132: 4 | AA132: =IF($O132>=3.25,Profile!$F$279, IF($O132>=2.5,Profile!$F$278, IF($O132>=1.75,Profile!$F$277, IF($O132>=1,Profile!$F$276, "" )))) -> 1. Below basic
A133: PEFALIA | B133: 27.3 | C133: 27.3 | E133: Comp | F133: VI | G133: =VLOOKUP(F133,Profile!B:C,2,FALSE) -> VI. Accounting and reporting | H133: PI-27 | I133: =IFERROR(VLOOKUP(B133,Profile!B:C,2,FALSE),"") -> 27.3 Advance accounts | K133: NA | L133: =Profile!$E$152 -> Yes | M133: =IFERROR(IF(TRIM(CLEAN(J133))="A",4)+IF(TRIM(CLEAN(J133))="B+",3.5)+IF(TRIM(CLEAN(J133))="B",3)+IF(TRIM(CLEAN(J133))="C+",2.5)+IF(TRIM(CLEAN(J133))="C",2)+IF(TRIM(CLEAN(J133))="D+",1.5)+IF(TRIM(CLEAN(J133))="D",1)+IF(TRIM(CLEAN(J133))="D*",1)+IF(TRIM(CLEAN(J133))="NU",0)+IF(TRIM(CLEAN(J133))="",0),"") -> 0 | N133: 0 | O133: =IFERROR(IF(TRIM(CLEAN(K133))="A",4)+IF(TRIM(CLEAN(K133))="B+",3.5)+IF(TRIM(CLEAN(K133))="B",3)+IF(TRIM(CLEAN(K133))="C+",2.5)+IF(TRIM(CLEAN(K133))="C",2)+IF(TRIM(CLEAN(K133))="D+",1.5)+IF(TRIM(CLEAN(K133))="D",1)+IF(TRIM(CLEAN(K133))="D*",1)+IF(TRIM(CLEAN(K133))="NU",0)+IF(TRIM(CLEAN(K133))="",0),"") -> 0 | P133: 0 | Q133: =IF(K133="D",Profile!$F$276, IF(K133="D*",Profile!$F$276, IF(K133="D+",Profile!$F$276, IF(K133="C",Profile!$F$277, IF(K133="C+",Profile!$F$277, IF(K133="B+",Profile!$F$278, IF(K133="B",Profile!$F$278, IF(K133="A",Profile!$F$279,"")))))))) ->  | R133: =IF(K133="A",Profile!$F$280, IF(K133="B+",Profile!$F$280, IF(K133="B",Profile!$F$280, IF(K133="D+",Profile!$F$281, IF(K133="D",Profile!$F$281, Profile!$F$282))))) -> Average | S133: =IFERROR(IF(L133=Profile!$E$152,IF(O133-N133<0,"-",IF(O133-N133>0,"+"," =")),"N.C"),"") -> = | U133: No prepayments. | V133: (PI-27) | W133: 0 | X133: 0 | Y133: 1 | Z133: 4 | AA133: =IF($O133>=3.25,Profile!$F$279, IF($O133>=2.5,Profile!$F$278, IF($O133>=1.75,Profile!$F$277, IF($O133>=1,Profile!$F$276, "" )))) -> 
A134: PEFALIA | B134: 27.4 | C134: 27.4 | E134: Comp | F134: VI | G134: =VLOOKUP(F134,Profile!B:C,2,FALSE) -> VI. Accounting and reporting | H134: PI-27 | I134: =IFERROR(VLOOKUP(B134,Profile!B:C,2,FALSE),"") -> 27.4 Financial data integrity process | K134: B | L134: =Profile!$E$152 -> Yes | M134: =IFERROR(IF(TRIM(CLEAN(J134))="A",4)+IF(TRIM(CLEAN(J134))="B+",3.5)+IF(TRIM(CLEAN(J134))="B",3)+IF(TRIM(CLEAN(J134))="C+",2.5)+IF(TRIM(CLEAN(J134))="C",2)+IF(TRIM(CLEAN(J134))="D+",1.5)+IF(TRIM(CLEAN(J134))="D",1)+IF(TRIM(CLEAN(J134))="D*",1)+IF(TRIM(CLEAN(J134))="NU",0)+IF(TRIM(CLEAN(J134))="",0),"") -> 0 | N134: 0 | O134: =IFERROR(IF(TRIM(CLEAN(K134))="A",4)+IF(TRIM(CLEAN(K134))="B+",3.5)+IF(TRIM(CLEAN(K134))="B",3)+IF(TRIM(CLEAN(K134))="C+",2.5)+IF(TRIM(CLEAN(K134))="C",2)+IF(TRIM(CLEAN(K134))="D+",1.5)+IF(TRIM(CLEAN(K134))="D",1)+IF(TRIM(CLEAN(K134))="D*",1)+IF(TRIM(CLEAN(K134))="NU",0)+IF(TRIM(CLEAN(K134))="",0),"") -> 3 | P134: 3 | Q134: =IF(K134="D",Profile!$F$276, IF(K134="D*",Profile!$F$276, IF(K134="D+",Profile!$F$276, IF(K134="C",Profile!$F$277, IF(K134="C+",Profile!$F$277, IF(K134="B+",Profile!$F$278, IF(K134="B",Profile!$F$278, IF(K134="A",Profile!$F$279,"")))))))) -> 3. Sound | R134: =IF(K134="A",Profile!$F$280, IF(K134="B+",Profile!$F$280, IF(K134="B",Profile!$F$280, IF(K134="D+",Profile!$F$281, IF(K134="D",Profile!$F$281, Profile!$F$282))))) -> Strength | S134: =IFERROR(IF(L134=Profile!$E$152,IF(O134-N134<0,"-",IF(O134-N134>0,"+"," =")),"N.C"),"") -> + | U134: Data access and modification are limited to access rights and user profiles defined in advance jointly by the head of the functional department and the database administrator, and the system allows the production of an audit trail. But there is no structure responsible for verifying the integrity of financial data. | V134: (PI-27) | W134: 0 | X134: 0 | Y134: 1 | Z134: 4 | AA134: =IF($O134>=3.25,Profile!$F$279, IF($O134>=2.5,Profile!$F$278, IF($O134>=1.75,Profile!$F$277, IF($O134>=1,Profile!$F$276, "" )))) -> 3. Sound
A135: PEFALIA | B135: PI-28 | C135: PI_28 | D135: M1 | E135: Indic | F135: VI | G135: =VLOOKUP(F135,Profile!B:C,2,FALSE) -> VI. Accounting and reporting | H135: PI-28 | I135: =IFERROR(VLOOKUP(B135,Profile!B:C,2,FALSE),"") -> PI-28 In-year budget reports | J135: =IF(N135>3.65,"A", IF(N135>=3.25,"B+", IF(N135>2.65,"B", IF(N135>=2.25,"C+", IF(N135>1.75,"C", IF(N135>1.25,"D+", IF(AND(N135<=1.25,N135>0),"D", IF(N135=0,"NA", "" )))))))) -> NA | K135: =IF(O135>3.65,"A", IF(O135>=3.25,"B+", IF(O135>2.65,"B", IF(O135>=2.25,"C+", IF(O135>1.75,"C", IF(O135>1.25,"D+", IF(AND(O135<=1.25,O135>0),"D", IF(O135=0,"NA", "" )))))))) -> D | L135: =IF(OR(L136=Profile!E152,L137=Profile!E152,L138=Profile!E152),Profile!E152,Profile!E153) -> Yes | M135: =IFERROR((IF($D135="M1",IF(ROUND(AVERAGEIF(M136:M138,">0"),1)=ROUND(MIN(IF(M136:M138>0,M136:M138)),1),AVERAGE(M136:M138),MIN(IF(M136:M138>0,M136:M138))+0.5),AVERAGEIF(M136:M138,">0"))),0) -> 0 | N135: =IFERROR((IF($D135="M1",IF(ROUND(AVERAGEIF(N136:N138,">0"),1)=ROUND(MIN(IF(N136:N138>0,N136:N138)),1),AVERAGE(N136:N138),MIN(IF(N136:N138>0,N136:N138))+0.5),AVERAGEIF(N136:N138,">0"))),0) -> 0 | O135: =IFERROR((IF($D135="M1",IF(ROUND(AVERAGEIF(O136:O138,">0"),1)=ROUND(MIN(IF(O136:O138>0,O136:O138)),1),AVERAGE(O136:O138),MIN(IF(O136:O138>0,O136:O138))+0.5),AVERAGEIF(O136:O138,">0"))),0) -> 0.3333333333 | P135: 1 | Q135: =IF(K135="D",Profile!$F$276, IF(K135="D*",Profile!$F$276, IF(K135="D+",Profile!$F$276, IF(K135="C",Profile!$F$277, IF(K135="C+",Profile!$F$277, IF(K135="B+",Profile!$F$278, IF(K135="B",Profile!$F$278, IF(K135="A",Profile!$F$279,"")))))))) -> 1. Below basic | R135: =IF(K135="A",Profile!$F$280, IF(K135="B+",Profile!$F$280, IF(K135="B",Profile!$F$280, IF(K135="D+",Profile!$F$281, IF(K135="D",Profile!$F$281, Profile!$F$282))))) -> Weakness | S135: =IFERROR(IF(L135=Profile!$E$152,IF(O135-N135<0,"-",IF(O135-N135>0,"+"," =")),"N.C"),"") -> + | V135: (PI-28) | W135: 1 | X135: 1 | Y135: 1 | Z135: =Z136 -> 3 | AA135: =IF($O135>=3.25,Profile!$F$279, IF($O135>=2.5,Profile!$F$278, IF($O135>=1.75,Profile!$F$277, IF($O135>=1,Profile!$F$276, "" )))) -> 
A136: PEFALIA | B136: 28.1 | C136: 28.1 | E136: Comp | F136: VI | G136: =VLOOKUP(F136,Profile!B:C,2,FALSE) -> VI. Accounting and reporting | H136: PI-28 | I136: =IFERROR(VLOOKUP(B136,Profile!B:C,2,FALSE),"") -> 28.1 Coverage and comparability of reports | K136: D | L136: =Profile!$E$152 -> Yes | M136: =IFERROR(IF(TRIM(CLEAN(J136))="A",4)+IF(TRIM(CLEAN(J136))="B+",3.5)+IF(TRIM(CLEAN(J136))="B",3)+IF(TRIM(CLEAN(J136))="C+",2.5)+IF(TRIM(CLEAN(J136))="C",2)+IF(TRIM(CLEAN(J136))="D+",1.5)+IF(TRIM(CLEAN(J136))="D",1)+IF(TRIM(CLEAN(J136))="D*",1)+IF(TRIM(CLEAN(J136))="NU",0)+IF(TRIM(CLEAN(J136))="",0),"") -> 0 | N136: =M136 -> 0 | O136: =IFERROR(IF(TRIM(CLEAN(K136))="A",4)+IF(TRIM(CLEAN(K136))="B+",3.5)+IF(TRIM(CLEAN(K136))="B",3)+IF(TRIM(CLEAN(K136))="C+",2.5)+IF(TRIM(CLEAN(K136))="C",2)+IF(TRIM(CLEAN(K136))="D+",1.5)+IF(TRIM(CLEAN(K136))="D",1)+IF(TRIM(CLEAN(K136))="D*",1)+IF(TRIM(CLEAN(K136))="NU",0)+IF(TRIM(CLEAN(K136))="",0),"") -> 1 | P136: =O136 -> 1 | Q136: =IF(K136="D",Profile!$F$276, IF(K136="D*",Profile!$F$276, IF(K136="D+",Profile!$F$276, IF(K136="C",Profile!$F$277, IF(K136="C+",Profile!$F$277, IF(K136="B+",Profile!$F$278, IF(K136="B",Profile!$F$278, IF(K136="A",Profile!$F$279,"")))))))) -> 1. Below basic | R136: =IF(K136="A",Profile!$F$280, IF(K136="B+",Profile!$F$280, IF(K136="B",Profile!$F$280, IF(K136="D+",Profile!$F$281, IF(K136="D",Profile!$F$281, Profile!$F$282))))) -> Weakness | S136: =IFERROR(IF(L136=Profile!$E$152,IF(O136-N136<0,"-",IF(O136-N136>0,"+"," =")),"N.C"),"") -> + | U136: No budget execution reports drawn up during the period covered by the evaluation. | V136: (PI-28) | W136: 1 | X136: 1 | Y136: 1 | Z136: 3 | AA136: =IF($O136>=3.25,Profile!$F$279, IF($O136>=2.5,Profile!$F$278, IF($O136>=1.75,Profile!$F$277, IF($O136>=1,Profile!$F$276, "" )))) -> 1. Below basic
A137: PEFALIA | B137: 28.2 | C137: 28.2 | E137: Comp | F137: VI | G137: =VLOOKUP(F137,Profile!B:C,2,FALSE) -> VI. Accounting and reporting | H137: PI-28 | I137: =IFERROR(VLOOKUP(B137,Profile!B:C,2,FALSE),"") -> 28.2 Timing of in-year reports | K137: NA | L137: =Profile!$E$152 -> Yes | M137: =IFERROR(IF(TRIM(CLEAN(J137))="A",4)+IF(TRIM(CLEAN(J137))="B+",3.5)+IF(TRIM(CLEAN(J137))="B",3)+IF(TRIM(CLEAN(J137))="C+",2.5)+IF(TRIM(CLEAN(J137))="C",2)+IF(TRIM(CLEAN(J137))="D+",1.5)+IF(TRIM(CLEAN(J137))="D",1)+IF(TRIM(CLEAN(J137))="D*",1)+IF(TRIM(CLEAN(J137))="NU",0)+IF(TRIM(CLEAN(J137))="",0),"") -> 0 | N137: 0 | O137: =IFERROR(IF(TRIM(CLEAN(K137))="A",4)+IF(TRIM(CLEAN(K137))="B+",3.5)+IF(TRIM(CLEAN(K137))="B",3)+IF(TRIM(CLEAN(K137))="C+",2.5)+IF(TRIM(CLEAN(K137))="C",2)+IF(TRIM(CLEAN(K137))="D+",1.5)+IF(TRIM(CLEAN(K137))="D",1)+IF(TRIM(CLEAN(K137))="D*",1)+IF(TRIM(CLEAN(K137))="NU",0)+IF(TRIM(CLEAN(K137))="",0),"") -> 0 | P137: 0 | Q137: =IF(K137="D",Profile!$F$276, IF(K137="D*",Profile!$F$276, IF(K137="D+",Profile!$F$276, IF(K137="C",Profile!$F$277, IF(K137="C+",Profile!$F$277, IF(K137="B+",Profile!$F$278, IF(K137="B",Profile!$F$278, IF(K137="A",Profile!$F$279,"")))))))) ->  | R137: =IF(K137="A",Profile!$F$280, IF(K137="B+",Profile!$F$280, IF(K137="B",Profile!$F$280, IF(K137="D+",Profile!$F$281, IF(K137="D",Profile!$F$281, Profile!$F$282))))) -> Average | S137: =IFERROR(IF(L137=Profile!$E$152,IF(O137-N137<0,"-",IF(O137-N137>0,"+"," =")),"N.C"),"") -> = | U137: No budget execution reports drawn up during the period covered by the evaluation. | V137: (PI-28) | W137: 1 | X137: 1 | Y137: 1 | Z137: 3 | AA137: =IF($O137>=3.25,Profile!$F$279, IF($O137>=2.5,Profile!$F$278, IF($O137>=1.75,Profile!$F$277, IF($O137>=1,Profile!$F$276, "" )))) -> 
A138: PEFALIA | B138: 28.3 | C138: 28.3 | E138: Comp | F138: VI | G138: =VLOOKUP(F138,Profile!B:C,2,FALSE) -> VI. Accounting and reporting | H138: PI-28 | I138: =IFERROR(VLOOKUP(B138,Profile!B:C,2,FALSE),"") -> 28.3 Accuracy of in-year budget reports | K138: NA | L138: =Profile!$E$152 -> Yes | M138: =IFERROR(IF(TRIM(CLEAN(J138))="A",4)+IF(TRIM(CLEAN(J138))="B+",3.5)+IF(TRIM(CLEAN(J138))="B",3)+IF(TRIM(CLEAN(J138))="C+",2.5)+IF(TRIM(CLEAN(J138))="C",2)+IF(TRIM(CLEAN(J138))="D+",1.5)+IF(TRIM(CLEAN(J138))="D",1)+IF(TRIM(CLEAN(J138))="D*",1)+IF(TRIM(CLEAN(J138))="NU",0)+IF(TRIM(CLEAN(J138))="",0),"") -> 0 | N138: 0 | O138: =IFERROR(IF(TRIM(CLEAN(K138))="A",4)+IF(TRIM(CLEAN(K138))="B+",3.5)+IF(TRIM(CLEAN(K138))="B",3)+IF(TRIM(CLEAN(K138))="C+",2.5)+IF(TRIM(CLEAN(K138))="C",2)+IF(TRIM(CLEAN(K138))="D+",1.5)+IF(TRIM(CLEAN(K138))="D",1)+IF(TRIM(CLEAN(K138))="D*",1)+IF(TRIM(CLEAN(K138))="NU",0)+IF(TRIM(CLEAN(K138))="",0),"") -> 0 | P138: 0 | Q138: =IF(K138="D",Profile!$F$276, IF(K138="D*",Profile!$F$276, IF(K138="D+",Profile!$F$276, IF(K138="C",Profile!$F$277, IF(K138="C+",Profile!$F$277, IF(K138="B+",Profile!$F$278, IF(K138="B",Profile!$F$278, IF(K138="A",Profile!$F$279,"")))))))) ->  | R138: =IF(K138="A",Profile!$F$280, IF(K138="B+",Profile!$F$280, IF(K138="B",Profile!$F$280, IF(K138="D+",Profile!$F$281, IF(K138="D",Profile!$F$281, Profile!$F$282))))) -> Average | S138: =IFERROR(IF(L138=Profile!$E$152,IF(O138-N138<0,"-",IF(O138-N138>0,"+"," =")),"N.C"),"") -> = | U138: No budget execution reports drawn up during the period covered by the evaluation. | V138: (PI-28) | W138: 1 | X138: 1 | Y138: 1 | Z138: 3 | AA138: =IF($O138>=3.25,Profile!$F$279, IF($O138>=2.5,Profile!$F$278, IF($O138>=1.75,Profile!$F$277, IF($O138>=1,Profile!$F$276, "" )))) -> 
A139: PEFALIA | B139: PI-29 | C139: PI_29 | D139: M1 | E139: Indic | F139: VI | G139: =VLOOKUP(F139,Profile!B:C,2,FALSE) -> VI. Accounting and reporting | H139: PI-29 | I139: =IFERROR(VLOOKUP(B139,Profile!B:C,2,FALSE),"") -> PI-29 Annual financial reports | J139: =IF(N139>3.65,"A", IF(N139>=3.25,"B+", IF(N139>2.65,"B", IF(N139>=2.25,"C+", IF(N139>1.75,"C", IF(N139>1.25,"D+", IF(AND(N139<=1.25,N139>0),"D", IF(N139=0,"NA", "" )))))))) -> NA | K139: =IF(O139>3.65,"A", IF(O139>=3.25,"B+", IF(O139>2.65,"B", IF(O139>=2.25,"C+", IF(O139>1.75,"C", IF(O139>1.25,"D+", IF(AND(O139<=1.25,O139>0),"D", IF(O139=0,"NA", "" )))))))) -> C | L139: =IF(OR(L140=Profile!E152,L141=Profile!E152,L142=Profile!E152),Profile!E152,Profile!E153) -> Yes | M139: =IFERROR((IF($D139="M1",IF(ROUND(AVERAGEIF(M140:M142,">0"),1)=ROUND(MIN(IF(M140:M142>0,M140:M142)),1),AVERAGE(M140:M142),MIN(IF(M140:M142>0,M140:M142))+0.5),AVERAGEIF(M140:M142,">0"))),0) -> 0 | N139: =IFERROR((IF($D139="M1",IF(ROUND(AVERAGEIF(N140:N142,">0"),1)=ROUND(MIN(IF(N140:N142>0,N140:N142)),1),AVERAGE(N140:N142),MIN(IF(N140:N142>0,N140:N142))+0.5),AVERAGEIF(N140:N142,">0"))),0) -> 0 | O139: =IFERROR((IF($D139="M1",IF(ROUND(AVERAGEIF(O140:O142,">0"),1)=ROUND(MIN(IF(O140:O142>0,O140:O142)),1),AVERAGE(O140:O142),MIN(IF(O140:O142>0,O140:O142))+0.5),AVERAGEIF(O140:O142,">0"))),0) -> 2 | P139: 2 | Q139: =IF(K139="D",Profile!$F$276, IF(K139="D*",Profile!$F$276, IF(K139="D+",Profile!$F$276, IF(K139="C",Profile!$F$277, IF(K139="C+",Profile!$F$277, IF(K139="B+",Profile!$F$278, IF(K139="B",Profile!$F$278, IF(K139="A",Profile!$F$279,"")))))))) -> 2. Basic | R139: =IF(K139="A",Profile!$F$280, IF(K139="B+",Profile!$F$280, IF(K139="B",Profile!$F$280, IF(K139="D+",Profile!$F$281, IF(K139="D",Profile!$F$281, Profile!$F$282))))) -> Average | S139: =IFERROR(IF(L139=Profile!$E$152,IF(O139-N139<0,"-",IF(O139-N139>0,"+"," =")),"N.C"),"") -> + | V139: (PI-29) | W139: 0 | X139: 0 | Y139: 1 | Z139: =Z140 -> 3 | AA139: =IF($O139>=3.25,Profile!$F$279, IF($O139>=2.5,Profile!$F$278, IF($O139>=1.75,Profile!$F$277, IF($O139>=1,Profile!$F$276, "" )))) -> 2. Basic
A140: PEFALIA | B140: 29.1 | C140: 29.1 | E140: Comp | F140: VI | G140: =VLOOKUP(F140,Profile!B:C,2,FALSE) -> VI. Accounting and reporting | H140: PI-29 | I140: =IFERROR(VLOOKUP(B140,Profile!B:C,2,FALSE),"") -> 29.1 Completeness of annual financial reports | K140: C | L140: =Profile!$E$152 -> Yes | M140: =IFERROR(IF(TRIM(CLEAN(J140))="A",4)+IF(TRIM(CLEAN(J140))="B+",3.5)+IF(TRIM(CLEAN(J140))="B",3)+IF(TRIM(CLEAN(J140))="C+",2.5)+IF(TRIM(CLEAN(J140))="C",2)+IF(TRIM(CLEAN(J140))="D+",1.5)+IF(TRIM(CLEAN(J140))="D",1)+IF(TRIM(CLEAN(J140))="D*",1)+IF(TRIM(CLEAN(J140))="NU",0)+IF(TRIM(CLEAN(J140))="",0),"") -> 0 | N140: =M140 -> 0 | O140: =IFERROR(IF(TRIM(CLEAN(K140))="A",4)+IF(TRIM(CLEAN(K140))="B+",3.5)+IF(TRIM(CLEAN(K140))="B",3)+IF(TRIM(CLEAN(K140))="C+",2.5)+IF(TRIM(CLEAN(K140))="C",2)+IF(TRIM(CLEAN(K140))="D+",1.5)+IF(TRIM(CLEAN(K140))="D",1)+IF(TRIM(CLEAN(K140))="D*",1)+IF(TRIM(CLEAN(K140))="NU",0)+IF(TRIM(CLEAN(K140))="",0),"") -> 2 | P140: =O140 -> 2 | Q140: =IF(K140="D",Profile!$F$276, IF(K140="D*",Profile!$F$276, IF(K140="D+",Profile!$F$276, IF(K140="C",Profile!$F$277, IF(K140="C+",Profile!$F$277, IF(K140="B+",Profile!$F$278, IF(K140="B",Profile!$F$278, IF(K140="A",Profile!$F$279,"")))))))) -> 2. Basic | R140: =IF(K140="A",Profile!$F$280, IF(K140="B+",Profile!$F$280, IF(K140="B",Profile!$F$280, IF(K140="D+",Profile!$F$281, IF(K140="D",Profile!$F$281, Profile!$F$282))))) -> Average | S140: =IFERROR(IF(L140=Profile!$E$152,IF(O140-N140<0,"-",IF(O140-N140>0,"+"," =")),"N.C"),"") -> + | U140: The administrative and management accounts contain information on expenditure and income. In addition, a trial balance is appended to the management account, providing information on cash account balances. However, the annual financial statements do not include the balance sheet and income statement. | V140: (PI-29) | W140: 0 | X140: 0 | Y140: 1 | Z140: 3 | AA140: =IF($O140>=3.25,Profile!$F$279, IF($O140>=2.5,Profile!$F$278, IF($O140>=1.75,Profile!$F$277, IF($O140>=1,Profile!$F$276, "" )))) -> 2. Basic
A141: PEFALIA | B141: 29.2 | C141: 29.2 | E141: Comp | F141: VI | G141: =VLOOKUP(F141,Profile!B:C,2,FALSE) -> VI. Accounting and reporting | H141: PI-29 | I141: =IFERROR(VLOOKUP(B141,Profile!B:C,2,FALSE),"") -> 29.2 Submission of reports for external audit | K141: C | L141: =Profile!$E$152 -> Yes | M141: =IFERROR(IF(TRIM(CLEAN(J141))="A",4)+IF(TRIM(CLEAN(J141))="B+",3.5)+IF(TRIM(CLEAN(J141))="B",3)+IF(TRIM(CLEAN(J141))="C+",2.5)+IF(TRIM(CLEAN(J141))="C",2)+IF(TRIM(CLEAN(J141))="D+",1.5)+IF(TRIM(CLEAN(J141))="D",1)+IF(TRIM(CLEAN(J141))="D*",1)+IF(TRIM(CLEAN(J141))="NU",0)+IF(TRIM(CLEAN(J141))="",0),"") -> 0 | N141: 0 | O141: =IFERROR(IF(TRIM(CLEAN(K141))="A",4)+IF(TRIM(CLEAN(K141))="B+",3.5)+IF(TRIM(CLEAN(K141))="B",3)+IF(TRIM(CLEAN(K141))="C+",2.5)+IF(TRIM(CLEAN(K141))="C",2)+IF(TRIM(CLEAN(K141))="D+",1.5)+IF(TRIM(CLEAN(K141))="D",1)+IF(TRIM(CLEAN(K141))="D*",1)+IF(TRIM(CLEAN(K141))="NU",0)+IF(TRIM(CLEAN(K141))="",0),"") -> 2 | P141: 2 | Q141: =IF(K141="D",Profile!$F$276, IF(K141="D*",Profile!$F$276, IF(K141="D+",Profile!$F$276, IF(K141="C",Profile!$F$277, IF(K141="C+",Profile!$F$277, IF(K141="B+",Profile!$F$278, IF(K141="B",Profile!$F$278, IF(K141="A",Profile!$F$279,"")))))))) -> 2. Basic | R141: =IF(K141="A",Profile!$F$280, IF(K141="B+",Profile!$F$280, IF(K141="B",Profile!$F$280, IF(K141="D+",Profile!$F$281, IF(K141="D",Profile!$F$281, Profile!$F$282))))) -> Average | S141: =IFERROR(IF(L141=Profile!$E$152,IF(O141-N141<0,"-",IF(O141-N141>0,"+"," =")),"N.C"),"") -> + | U141: The last management account for 2020 was filed with the Chambre des Comptes on September 06, 2021, less than nine months after the year-end. | V141: (PI-29) | W141: 0 | X141: 0 | Y141: 1 | Z141: 3 | AA141: =IF($O141>=3.25,Profile!$F$279, IF($O141>=2.5,Profile!$F$278, IF($O141>=1.75,Profile!$F$277, IF($O141>=1,Profile!$F$276, "" )))) -> 2. Basic
A142: PEFALIA | B142: 29.3 | C142: 29.3 | E142: Comp | F142: VI | G142: =VLOOKUP(F142,Profile!B:C,2,FALSE) -> VI. Accounting and reporting | H142: PI-29 | I142: =IFERROR(VLOOKUP(B142,Profile!B:C,2,FALSE),"") -> 29.3 Accounting standards | K142: C | L142: =Profile!$E$152 -> Yes | M142: =IFERROR(IF(TRIM(CLEAN(J142))="A",4)+IF(TRIM(CLEAN(J142))="B+",3.5)+IF(TRIM(CLEAN(J142))="B",3)+IF(TRIM(CLEAN(J142))="C+",2.5)+IF(TRIM(CLEAN(J142))="C",2)+IF(TRIM(CLEAN(J142))="D+",1.5)+IF(TRIM(CLEAN(J142))="D",1)+IF(TRIM(CLEAN(J142))="D*",1)+IF(TRIM(CLEAN(J142))="NU",0)+IF(TRIM(CLEAN(J142))="",0),"") -> 0 | N142: 0 | O142: =IFERROR(IF(TRIM(CLEAN(K142))="A",4)+IF(TRIM(CLEAN(K142))="B+",3.5)+IF(TRIM(CLEAN(K142))="B",3)+IF(TRIM(CLEAN(K142))="C+",2.5)+IF(TRIM(CLEAN(K142))="C",2)+IF(TRIM(CLEAN(K142))="D+",1.5)+IF(TRIM(CLEAN(K142))="D",1)+IF(TRIM(CLEAN(K142))="D*",1)+IF(TRIM(CLEAN(K142))="NU",0)+IF(TRIM(CLEAN(K142))="",0),"") -> 2 | P142: 2 | Q142: =IF(K142="D",Profile!$F$276, IF(K142="D*",Profile!$F$276, IF(K142="D+",Profile!$F$276, IF(K142="C",Profile!$F$277, IF(K142="C+",Profile!$F$277, IF(K142="B+",Profile!$F$278, IF(K142="B",Profile!$F$278, IF(K142="A",Profile!$F$279,"")))))))) -> 2. Basic | R142: =IF(K142="A",Profile!$F$280, IF(K142="B+",Profile!$F$280, IF(K142="B",Profile!$F$280, IF(K142="D+",Profile!$F$281, IF(K142="D",Profile!$F$281, Profile!$F$282))))) -> Average | S142: =IFERROR(IF(L142=Profile!$E$152,IF(O142-N142<0,"-",IF(O142-N142>0,"+"," =")),"N.C"),"") -> + | U142: The principles governing the keeping of accounts by CTDs are laid down in laws and regulations, but they are not applied. | V142: (PI-29) | W142: 0 | X142: 0 | Y142: 1 | Z142: 3 | AA142: =IF($O142>=3.25,Profile!$F$279, IF($O142>=2.5,Profile!$F$278, IF($O142>=1.75,Profile!$F$277, IF($O142>=1,Profile!$F$276, "" )))) -> 2. Basic
A143: PEFALIA | B143: VII | C143: VII | E143: Pilar | F143: VII | G143: =VLOOKUP(F143,Profile!B:C,2,FALSE) -> VII. External scrutiny and audit | I143: =IFERROR(VLOOKUP(B143,Profile!B:C,2,FALSE),"") -> VII. External scrutiny and audit | J143: =IF(N143>3.65,"A", IF(N143>=3.25,"B+", IF(N143>2.65,"B", IF(N143>=2.25,"C+", IF(N143>1.75,"C", IF(N143>1.25,"D+", IF(AND(N143<=1.25,N143>0),"D", IF(N143=0,"NA", "" )))))))) -> NA | K143: =IF(O143>3.65,"A", IF(O143>=3.25,"B+", IF(O143>2.65,"B", IF(O143>=2.25,"C+", IF(O143>1.75,"C", IF(O143>1.25,"D+", IF(AND(O143<=1.25,O143>0),"D", IF(O143=0,"NA", "" )))))))) -> D | L143: =IF(COUNTIFS(L144:L153,Profile!E152)=10,Profile!E152,Profile!E153) -> Yes | M143: =AVERAGEIFS(M$16:M$153,$E$16:$E$153,"Indic",$F$16:$F$153,$F143) -> 0 | N143: =AVERAGEIFS(N$16:N$153,$E$16:$E$153,"Indic",$F$16:$F$153,$F143) -> 0 | O143: =AVERAGEIFS(O$16:O$153,$E$16:$E$153,"Indic",$F$16:$F$153,$F143) -> 0.625 | P143: 1 | Q143: =IF(K143="D",Profile!$F$276, IF(K143="D*",Profile!$F$276, IF(K143="D+",Profile!$F$276, IF(K143="C",Profile!$F$277, IF(K143="C+",Profile!$F$277, IF(K143="B+",Profile!$F$278, IF(K143="B",Profile!$F$278, IF(K143="A",Profile!$F$279,"")))))))) -> 1. Below basic | R143: =IF(K143="A",Profile!$F$280, IF(K143="B+",Profile!$F$280, IF(K143="B",Profile!$F$280, IF(K143="D+",Profile!$F$281, IF(K143="D",Profile!$F$281, Profile!$F$282))))) -> Weakness | S143: =IFERROR(IF(L143=Profile!$E$152,IF(O143-N143<0,"-",IF(O143-N143>0,"+"," =")),"N.C"),"") -> + | V143: () | AA143: =IF($O143>=3.25,Profile!$F$279, IF($O143>=2.5,Profile!$F$278, IF($O143>=1.75,Profile!$F$277, IF($O143>=1,Profile!$F$276, "" )))) -> 
A144: PEFALIA | B144: PI-30 | C144: PI_30 | D144: M1 | E144: Indic | F144: VII | G144: =VLOOKUP(F144,Profile!B:C,2,FALSE) -> VII. External scrutiny and audit | H144: PI-30 | I144: =IFERROR(VLOOKUP(B144,Profile!B:C,2,FALSE),"") -> PI-30 External Audit | J144: =IF(N144>3.65,"A", IF(N144>=3.25,"B+", IF(N144>2.65,"B", IF(N144>=2.25,"C+", IF(N144>1.75,"C", IF(N144>1.25,"D+", IF(AND(N144<=1.25,N144>0),"D", IF(N144=0,"NA", "" )))))))) -> NA | K144: D | L144: =IF(OR(L145=Profile!E152,L146=Profile!E152,L147=Profile!E152,L148=Profile!E152),Profile!E152,Profile!E153) -> Yes | M144: =IFERROR(IF($D144="M1",IF(ROUND(AVERAGEIF(M145:M148,">0"),1)=ROUND(MIN(IF(M145:M148>0,M145:M148)),1),AVERAGE(M145:M148),MIN(IF(M145:M148>0,M145:M148))+0.5),AVERAGEIF(M145:M148,">0")),0) -> 0 | N144: =IFERROR(IF($D144="M1",IF(ROUND(AVERAGEIF(N145:N148,">0"),1)=ROUND(MIN(IF(N145:N148>0,N145:N148)),1),AVERAGE(N145:N148),MIN(IF(N145:N148>0,N145:N148))+0.5),AVERAGEIF(N145:N148,">0")),0) -> 0 | O144: =IFERROR(IF($D144="M1",IF(ROUND(AVERAGEIF(O145:O148,">0"),1)=ROUND(MIN(IF(O145:O148>0,O145:O148)),1),AVERAGE(O145:O148),MIN(IF(O145:O148>0,O145:O148))+0.5),AVERAGEIF(O145:O148,">0")),0) -> 0.25 | P144: 1 | Q144: =IF(K144="D",Profile!$F$276, IF(K144="D*",Profile!$F$276, IF(K144="D+",Profile!$F$276, IF(K144="C",Profile!$F$277, IF(K144="C+",Profile!$F$277, IF(K144="B+",Profile!$F$278, IF(K144="B",Profile!$F$278, IF(K144="A",Profile!$F$279,"")))))))) -> 1. Below basic | R144: =IF(K144="A",Profile!$F$280, IF(K144="B+",Profile!$F$280, IF(K144="B",Profile!$F$280, IF(K144="D+",Profile!$F$281, IF(K144="D",Profile!$F$281, Profile!$F$282))))) -> Weakness | S144: =IFERROR(IF(L144=Profile!$E$152,IF(O144-N144<0,"-",IF(O144-N144>0,"+"," =")),"N.C"),"") -> + | V144: (PI-30) | W144: 0 | X144: 0 | Y144: 1 | Z144: =Z145 -> 4 | AA144: =IF($O144>=3.25,Profile!$F$279, IF($O144>=2.5,Profile!$F$278, IF($O144>=1.75,Profile!$F$277, IF($O144>=1,Profile!$F$276, "" )))) -> 
A145: PEFALIA | B145: 30.1 | C145: 30.1 | E145: Comp | F145: VII | G145: =VLOOKUP(F145,Profile!B:C,2,FALSE) -> VII. External scrutiny and audit | H145: PI-30 | I145: =IFERROR(VLOOKUP(B145,Profile!B:C,2,FALSE),"") -> 30.1 Audit Coverage and Standards | K145: D | L145: =Profile!$E$152 -> Yes | M145: =IFERROR(IF(TRIM(CLEAN(J145))="A",4)+IF(TRIM(CLEAN(J145))="B+",3.5)+IF(TRIM(CLEAN(J145))="B",3)+IF(TRIM(CLEAN(J145))="C+",2.5)+IF(TRIM(CLEAN(J145))="C",2)+IF(TRIM(CLEAN(J145))="D+",1.5)+IF(TRIM(CLEAN(J145))="D",1)+IF(TRIM(CLEAN(J145))="D*",1)+IF(TRIM(CLEAN(J145))="NU",0)+IF(TRIM(CLEAN(J145))="",0),"") -> 0 | N145: =M145 -> 0 | O145: =IFERROR(IF(TRIM(CLEAN(K145))="A",4)+IF(TRIM(CLEAN(K145))="B+",3.5)+IF(TRIM(CLEAN(K145))="B",3)+IF(TRIM(CLEAN(K145))="C+",2.5)+IF(TRIM(CLEAN(K145))="C",2)+IF(TRIM(CLEAN(K145))="D+",1.5)+IF(TRIM(CLEAN(K145))="D",1)+IF(TRIM(CLEAN(K145))="D*",1)+IF(TRIM(CLEAN(K145))="NU",0)+IF(TRIM(CLEAN(K145))="",0),"") -> 1 | P145: =O145 -> 1 | Q145: =IF(K145="D",Profile!$F$276, IF(K145="D*",Profile!$F$276, IF(K145="D+",Profile!$F$276, IF(K145="C",Profile!$F$277, IF(K145="C+",Profile!$F$277, IF(K145="B+",Profile!$F$278, IF(K145="B",Profile!$F$278, IF(K145="A",Profile!$F$279,"")))))))) -> 1. Below basic | R145: =IF(K145="A",Profile!$F$280, IF(K145="B+",Profile!$F$280, IF(K145="B",Profile!$F$280, IF(K145="D+",Profile!$F$281, IF(K145="D",Profile!$F$281, Profile!$F$282))))) -> Weakness | S145: =IFERROR(IF(L145=Profile!$E$152,IF(O145-N145<0,"-",IF(O145-N145>0,"+"," =")),"N.C"),"") -> + | U145: At the time of the assessment, the Chambre des Comptes had not completed its examination of any of the Tiko Commune management accounts submitted to it. | V145: (PI-30) | W145: 0 | X145: 0 | Y145: 1 | Z145: 4 | AA145: =IF($O145>=3.25,Profile!$F$279, IF($O145>=2.5,Profile!$F$278, IF($O145>=1.75,Profile!$F$277, IF($O145>=1,Profile!$F$276, "" )))) -> 1. Below basic
A146: PEFALIA | B146: 30.2 | C146: 30.2 | E146: Comp | F146: VII | G146: =VLOOKUP(F146,Profile!B:C,2,FALSE) -> VII. External scrutiny and audit | H146: PI-30 | I146: =IFERROR(VLOOKUP(B146,Profile!B:C,2,FALSE),"") -> 30.2 Submission of Audit Reports to the Legislature | K146: NA | L146: =Profile!$E$152 -> Yes | M146: =IFERROR(IF(TRIM(CLEAN(J146))="A",4)+IF(TRIM(CLEAN(J146))="B+",3.5)+IF(TRIM(CLEAN(J146))="B",3)+IF(TRIM(CLEAN(J146))="C+",2.5)+IF(TRIM(CLEAN(J146))="C",2)+IF(TRIM(CLEAN(J146))="D+",1.5)+IF(TRIM(CLEAN(J146))="D",1)+IF(TRIM(CLEAN(J146))="D*",1)+IF(TRIM(CLEAN(J146))="NU",0)+IF(TRIM(CLEAN(J146))="",0),"") -> 0 | N146: 0 | O146: =IFERROR(IF(TRIM(CLEAN(K146))="A",4)+IF(TRIM(CLEAN(K146))="B+",3.5)+IF(TRIM(CLEAN(K146))="B",3)+IF(TRIM(CLEAN(K146))="C+",2.5)+IF(TRIM(CLEAN(K146))="C",2)+IF(TRIM(CLEAN(K146))="D+",1.5)+IF(TRIM(CLEAN(K146))="D",1)+IF(TRIM(CLEAN(K146))="D*",1)+IF(TRIM(CLEAN(K146))="NU",0)+IF(TRIM(CLEAN(K146))="",0),"") -> 0 | P146: 0 | Q146: =IF(K146="D",Profile!$F$276, IF(K146="D*",Profile!$F$276, IF(K146="D+",Profile!$F$276, IF(K146="C",Profile!$F$277, IF(K146="C+",Profile!$F$277, IF(K146="B+",Profile!$F$278, IF(K146="B",Profile!$F$278, IF(K146="A",Profile!$F$279,"")))))))) ->  | R146: =IF(K146="A",Profile!$F$280, IF(K146="B+",Profile!$F$280, IF(K146="B",Profile!$F$280, IF(K146="D+",Profile!$F$281, IF(K146="D",Profile!$F$281, Profile!$F$282))))) -> Average | S146: =IFERROR(IF(L146=Profile!$E$152,IF(O146-N146<0,"-",IF(O146-N146>0,"+"," =")),"N.C"),"") -> = | U146: At the time of the assessment, the Chambre des Comptes had not completed its examination of any of the Tiko Commune management accounts submitted to it, and is under no legal obligation to submit its reports to the Municipal Council. | V146: (PI-30) | W146: 0 | X146: 0 | Y146: 1 | Z146: 4 | AA146: =IF($O146>=3.25,Profile!$F$279, IF($O146>=2.5,Profile!$F$278, IF($O146>=1.75,Profile!$F$277, IF($O146>=1,Profile!$F$276, "" )))) -> 
A147: PEFALIA | B147: 30.3 | C147: 30.3 | E147: Comp | F147: VII | G147: =VLOOKUP(F147,Profile!B:C,2,FALSE) -> VII. External scrutiny and audit | H147: PI-30 | I147: =IFERROR(VLOOKUP(B147,Profile!B:C,2,FALSE),"") -> 30.3 External Audit Follow-Up | K147: NA | L147: =Profile!$E$152 -> Yes | M147: =IFERROR(IF(TRIM(CLEAN(J147))="A",4)+IF(TRIM(CLEAN(J147))="B+",3.5)+IF(TRIM(CLEAN(J147))="B",3)+IF(TRIM(CLEAN(J147))="C+",2.5)+IF(TRIM(CLEAN(J147))="C",2)+IF(TRIM(CLEAN(J147))="D+",1.5)+IF(TRIM(CLEAN(J147))="D",1)+IF(TRIM(CLEAN(J147))="D*",1)+IF(TRIM(CLEAN(J147))="NU",0)+IF(TRIM(CLEAN(J147))="",0),"") -> 0 | N147: 0 | O147: =IFERROR(IF(TRIM(CLEAN(K147))="A",4)+IF(TRIM(CLEAN(K147))="B+",3.5)+IF(TRIM(CLEAN(K147))="B",3)+IF(TRIM(CLEAN(K147))="C+",2.5)+IF(TRIM(CLEAN(K147))="C",2)+IF(TRIM(CLEAN(K147))="D+",1.5)+IF(TRIM(CLEAN(K147))="D",1)+IF(TRIM(CLEAN(K147))="D*",1)+IF(TRIM(CLEAN(K147))="NU",0)+IF(TRIM(CLEAN(K147))="",0),"") -> 0 | P147: 0 | Q147: =IF(K147="D",Profile!$F$276, IF(K147="D*",Profile!$F$276, IF(K147="D+",Profile!$F$276, IF(K147="C",Profile!$F$277, IF(K147="C+",Profile!$F$277, IF(K147="B+",Profile!$F$278, IF(K147="B",Profile!$F$278, IF(K147="A",Profile!$F$279,"")))))))) ->  | R147: =IF(K147="A",Profile!$F$280, IF(K147="B+",Profile!$F$280, IF(K147="B",Profile!$F$280, IF(K147="D+",Profile!$F$281, IF(K147="D",Profile!$F$281, Profile!$F$282))))) -> Average | S147: =IFERROR(IF(L147=Profile!$E$152,IF(O147-N147<0,"-",IF(O147-N147>0,"+"," =")),"N.C"),"") -> = | U147: At the time of the assessment, the Chambre des Comptes had not completed its examination of any of the Tiko Commune management accounts submitted to it, and so had not issued a report. | V147: (PI-30) | W147: 0 | X147: 0 | Y147: 1 | Z147: 4 | AA147: =IF($O147>=3.25,Profile!$F$279, IF($O147>=2.5,Profile!$F$278, IF($O147>=1.75,Profile!$F$277, IF($O147>=1,Profile!$F$276, "" )))) -> 
A148: PEFALIA | B148: 30.4 | C148: 30.4 | E148: Comp | F148: VII | G148: =VLOOKUP(F148,Profile!B:C,2,FALSE) -> VII. External scrutiny and audit | H148: PI-30 | I148: =IFERROR(VLOOKUP(B148,Profile!B:C,2,FALSE),"") -> 30.4 Supreme Audit Institution Independence | K148: NA | L148: =Profile!$E$152 -> Yes | M148: =IFERROR(IF(TRIM(CLEAN(J148))="A",4)+IF(TRIM(CLEAN(J148))="B+",3.5)+IF(TRIM(CLEAN(J148))="B",3)+IF(TRIM(CLEAN(J148))="C+",2.5)+IF(TRIM(CLEAN(J148))="C",2)+IF(TRIM(CLEAN(J148))="D+",1.5)+IF(TRIM(CLEAN(J148))="D",1)+IF(TRIM(CLEAN(J148))="D*",1)+IF(TRIM(CLEAN(J148))="NU",0)+IF(TRIM(CLEAN(J148))="",0),"") -> 0 | N148: 0 | O148: =IFERROR(IF(TRIM(CLEAN(K148))="A",4)+IF(TRIM(CLEAN(K148))="B+",3.5)+IF(TRIM(CLEAN(K148))="B",3)+IF(TRIM(CLEAN(K148))="C+",2.5)+IF(TRIM(CLEAN(K148))="C",2)+IF(TRIM(CLEAN(K148))="D+",1.5)+IF(TRIM(CLEAN(K148))="D",1)+IF(TRIM(CLEAN(K148))="D*",1)+IF(TRIM(CLEAN(K148))="NU",0)+IF(TRIM(CLEAN(K148))="",0),"") -> 0 | P148: 0 | Q148: =IF(K148="D",Profile!$F$276, IF(K148="D*",Profile!$F$276, IF(K148="D+",Profile!$F$276, IF(K148="C",Profile!$F$277, IF(K148="C+",Profile!$F$277, IF(K148="B+",Profile!$F$278, IF(K148="B",Profile!$F$278, IF(K148="A",Profile!$F$279,"")))))))) ->  | R148: =IF(K148="A",Profile!$F$280, IF(K148="B+",Profile!$F$280, IF(K148="B",Profile!$F$280, IF(K148="D+",Profile!$F$281, IF(K148="D",Profile!$F$281, Profile!$F$282))))) -> Average | S148: =IFERROR(IF(L148=Profile!$E$152,IF(O148-N148<0,"-",IF(O148-N148>0,"+"," =")),"N.C"),"") -> = | U148: The PEFA evaluation of the Commune is part of a series of evaluations of 12 CTDs. | V148: (PI-30) | W148: 0 | X148: 0 | Y148: 1 | Z148: 4 | AA148: =IF($O148>=3.25,Profile!$F$279, IF($O148>=2.5,Profile!$F$278, IF($O148>=1.75,Profile!$F$277, IF($O148>=1,Profile!$F$276, "" )))) -> 
A149: PEFALIA | B149: PI-31 | C149: PI_31 | D149: M2 | E149: Indic | F149: VII | G149: =VLOOKUP(F149,Profile!B:C,2,FALSE) -> VII. External scrutiny and audit | H149: PI-31 | I149: =IFERROR(VLOOKUP(B149,Profile!B:C,2,FALSE),"") -> PI-31 Legislative Scrutiny of Audit Reports | J149: =IF(N149>3.65,"A", IF(N149>=3.25,"B+", IF(N149>2.65,"B", IF(N149>=2.25,"C+", IF(N149>1.75,"C", IF(N149>1.25,"D+", IF(AND(N149<=1.25,N149>0),"D", IF(N149=0,"NA", "" )))))))) -> NA | K149: =IF(O149>3.65,"A", IF(O149>=3.25,"B+", IF(O149>2.65,"B", IF(O149>=2.25,"C+", IF(O149>1.75,"C", IF(O149>1.25,"D+", IF(AND(O149<=1.25,O149>0),"D", IF(O149=0,"NA", "" )))))))) -> D | L149: =IF(OR(L150=Profile!E152,L151=Profile!E152,L152=Profile!E152,L153=Profile!E152),Profile!E152,Profile!E153) -> Yes | M149: =IFERROR(IF($D149="M1",IF(ROUND(AVERAGEIF(M150:M153,">0"),1)=ROUND(MIN(IF(M150:M153>0,M150:M153)),1),AVERAGE(M150:M153),MIN(IF(M150:M153>0,M150:M153))+0.5),AVERAGEIF(M150:M153,">0")),0) -> 0 | N149: =IFERROR(IF($D149="M1",IF(ROUND(AVERAGEIF(N150:N153,">0"),1)=ROUND(MIN(IF(N150:N153>0,N150:N153)),1),AVERAGE(N150:N153),MIN(IF(N150:N153>0,N150:N153))+0.5),AVERAGEIF(N150:N153,">0")),0) -> 0 | O149: =IFERROR(IF($D149="M1",IF(ROUND(AVERAGEIF(O150:O153,">0"),1)=ROUND(MIN(IF(O150:O153>0,O150:O153)),1),AVERAGE(O150:O153),MIN(IF(O150:O153>0,O150:O153))+0.5),AVERAGEIF(O150:O153,">0")),0) -> 1 | P149: 1 | Q149: =IF(K149="D",Profile!$F$276, IF(K149="D*",Profile!$F$276, IF(K149="D+",Profile!$F$276, IF(K149="C",Profile!$F$277, IF(K149="C+",Profile!$F$277, IF(K149="B+",Profile!$F$278, IF(K149="B",Profile!$F$278, IF(K149="A",Profile!$F$279,"")))))))) -> 1. Below basic | R149: =IF(K149="A",Profile!$F$280, IF(K149="B+",Profile!$F$280, IF(K149="B",Profile!$F$280, IF(K149="D+",Profile!$F$281, IF(K149="D",Profile!$F$281, Profile!$F$282))))) -> Weakness | S149: =IFERROR(IF(L149=Profile!$E$152,IF(O149-N149<0,"-",IF(O149-N149>0,"+"," =")),"N.C"),"") -> + | V149: (PI-31) | W149: 0 | X149: 0 | Y149: 1 | Z149: =Z150 -> 4 | AA149: =IF($O149>=3.25,Profile!$F$279, IF($O149>=2.5,Profile!$F$278, IF($O149>=1.75,Profile!$F$277, IF($O149>=1,Profile!$F$276, "" )))) -> 1. Below basic
A150: =$I$4 -> PEFALIA | B150: 31.1 | C150: 31.1 | E150: Comp | F150: VII | G150: =VLOOKUP(F150,Profile!B:C,2,FALSE) -> VII. External scrutiny and audit | H150: PI-31 | I150: =IFERROR(VLOOKUP(B150,Profile!B:C,2,FALSE),"") -> 31.1 Timing of Audit Report Scrutiny | K150: D | L150: =Profile!$E$152 -> Yes | M150: =IFERROR(IF(TRIM(CLEAN(J150))="A",4)+IF(TRIM(CLEAN(J150))="B+",3.5)+IF(TRIM(CLEAN(J150))="B",3)+IF(TRIM(CLEAN(J150))="C+",2.5)+IF(TRIM(CLEAN(J150))="C",2)+IF(TRIM(CLEAN(J150))="D+",1.5)+IF(TRIM(CLEAN(J150))="D",1)+IF(TRIM(CLEAN(J150))="D*",1)+IF(TRIM(CLEAN(J150))="NU",0)+IF(TRIM(CLEAN(J150))="",0),"") -> 0 | N150: =M150 -> 0 | O150: =IFERROR(IF(TRIM(CLEAN(K150))="A",4)+IF(TRIM(CLEAN(K150))="B+",3.5)+IF(TRIM(CLEAN(K150))="B",3)+IF(TRIM(CLEAN(K150))="C+",2.5)+IF(TRIM(CLEAN(K150))="C",2)+IF(TRIM(CLEAN(K150))="D+",1.5)+IF(TRIM(CLEAN(K150))="D",1)+IF(TRIM(CLEAN(K150))="D*",1)+IF(TRIM(CLEAN(K150))="NU",0)+IF(TRIM(CLEAN(K150))="",0),"") -> 1 | P150: =O150 -> 1 | Q150: =IF(K150="D",Profile!$F$276, IF(K150="D*",Profile!$F$276, IF(K150="D+",Profile!$F$276, IF(K150="C",Profile!$F$277, IF(K150="C+",Profile!$F$277, IF(K150="B+",Profile!$F$278, IF(K150="B",Profile!$F$278, IF(K150="A",Profile!$F$279,"")))))))) -> 1. Below basic | R150: =IF(K150="A",Profile!$F$280, IF(K150="B+",Profile!$F$280, IF(K150="B",Profile!$F$280, IF(K150="D+",Profile!$F$281, IF(K150="D",Profile!$F$281, Profile!$F$282))))) -> Weakness | S150: =IFERROR(IF(L150=Profile!$E$152,IF(O150-N150<0,"-",IF(O150-N150>0,"+"," =")),"N.C"),"") -> + | U150: During the period covered by the evaluation, the Communal Council did not carry out an external audit of the annual financial reports submitted to it by the Executive Board. | V150: (PI-31) | W150: 0 | X150: 0 | Y150: 1 | Z150: 4 | AA150: =IF($O150>=3.25,Profile!$F$279, IF($O150>=2.5,Profile!$F$278, IF($O150>=1.75,Profile!$F$277, IF($O150>=1,Profile!$F$276, "" )))) -> 1. Below basic
A151: =$I$4 -> PEFALIA | B151: 31.2 | C151: 31.2 | E151: Comp | F151: VII | G151: =VLOOKUP(F151,Profile!B:C,2,FALSE) -> VII. External scrutiny and audit | H151: PI-31 | I151: =IFERROR(VLOOKUP(B151,Profile!B:C,2,FALSE),"") -> 31.2 Hearings on Audit Findings | K151: D | L151: =Profile!$E$152 -> Yes | M151: =IFERROR(IF(TRIM(CLEAN(J151))="A",4)+IF(TRIM(CLEAN(J151))="B+",3.5)+IF(TRIM(CLEAN(J151))="B",3)+IF(TRIM(CLEAN(J151))="C+",2.5)+IF(TRIM(CLEAN(J151))="C",2)+IF(TRIM(CLEAN(J151))="D+",1.5)+IF(TRIM(CLEAN(J151))="D",1)+IF(TRIM(CLEAN(J151))="D*",1)+IF(TRIM(CLEAN(J151))="NU",0)+IF(TRIM(CLEAN(J151))="",0),"") -> 0 | N151: 0 | O151: =IFERROR(IF(TRIM(CLEAN(K151))="A",4)+IF(TRIM(CLEAN(K151))="B+",3.5)+IF(TRIM(CLEAN(K151))="B",3)+IF(TRIM(CLEAN(K151))="C+",2.5)+IF(TRIM(CLEAN(K151))="C",2)+IF(TRIM(CLEAN(K151))="D+",1.5)+IF(TRIM(CLEAN(K151))="D",1)+IF(TRIM(CLEAN(K151))="D*",1)+IF(TRIM(CLEAN(K151))="NU",0)+IF(TRIM(CLEAN(K151))="",0),"") -> 1 | P151: 1 | Q151: =IF(K151="D",Profile!$F$276, IF(K151="D*",Profile!$F$276, IF(K151="D+",Profile!$F$276, IF(K151="C",Profile!$F$277, IF(K151="C+",Profile!$F$277, IF(K151="B+",Profile!$F$278, IF(K151="B",Profile!$F$278, IF(K151="A",Profile!$F$279,"")))))))) -> 1. Below basic | R151: =IF(K151="A",Profile!$F$280, IF(K151="B+",Profile!$F$280, IF(K151="B",Profile!$F$280, IF(K151="D+",Profile!$F$281, IF(K151="D",Profile!$F$281, Profile!$F$282))))) -> Weakness | S151: =IFERROR(IF(L151=Profile!$E$152,IF(O151-N151<0,"-",IF(O151-N151>0,"+"," =")),"N.C"),"") -> + | U151: 0 | V151: (PI-31) | W151: 0 | X151: 0 | Y151: 1 | Z151: 4 | AA151: =IF($O151>=3.25,Profile!$F$279, IF($O151>=2.5,Profile!$F$278, IF($O151>=1.75,Profile!$F$277, IF($O151>=1,Profile!$F$276, "" )))) -> 1. Below basic
A152: =$I$4 -> PEFALIA | B152: 31.3 | C152: 31.3 | E152: Comp | F152: VII | G152: =VLOOKUP(F152,Profile!B:C,2,FALSE) -> VII. External scrutiny and audit | H152: PI-31 | I152: =IFERROR(VLOOKUP(B152,Profile!B:C,2,FALSE),"") -> 31.3 Recommendations on Audit by the Legislature | K152: D | L152: =Profile!$E$152 -> Yes | M152: =IFERROR(IF(TRIM(CLEAN(J152))="A",4)+IF(TRIM(CLEAN(J152))="B+",3.5)+IF(TRIM(CLEAN(J152))="B",3)+IF(TRIM(CLEAN(J152))="C+",2.5)+IF(TRIM(CLEAN(J152))="C",2)+IF(TRIM(CLEAN(J152))="D+",1.5)+IF(TRIM(CLEAN(J152))="D",1)+IF(TRIM(CLEAN(J152))="D*",1)+IF(TRIM(CLEAN(J152))="NU",0)+IF(TRIM(CLEAN(J152))="",0),"") -> 0 | N152: 0 | O152: =IFERROR(IF(TRIM(CLEAN(K152))="A",4)+IF(TRIM(CLEAN(K152))="B+",3.5)+IF(TRIM(CLEAN(K152))="B",3)+IF(TRIM(CLEAN(K152))="C+",2.5)+IF(TRIM(CLEAN(K152))="C",2)+IF(TRIM(CLEAN(K152))="D+",1.5)+IF(TRIM(CLEAN(K152))="D",1)+IF(TRIM(CLEAN(K152))="D*",1)+IF(TRIM(CLEAN(K152))="NU",0)+IF(TRIM(CLEAN(K152))="",0),"") -> 1 | P152: 1 | Q152: =IF(K152="D",Profile!$F$276, IF(K152="D*",Profile!$F$276, IF(K152="D+",Profile!$F$276, IF(K152="C",Profile!$F$277, IF(K152="C+",Profile!$F$277, IF(K152="B+",Profile!$F$278, IF(K152="B",Profile!$F$278, IF(K152="A",Profile!$F$279,"")))))))) -> 1. Below basic | R152: =IF(K152="A",Profile!$F$280, IF(K152="B+",Profile!$F$280, IF(K152="B",Profile!$F$280, IF(K152="D+",Profile!$F$281, IF(K152="D",Profile!$F$281, Profile!$F$282))))) -> Weakness | S152: =IFERROR(IF(L152=Profile!$E$152,IF(O152-N152<0,"-",IF(O152-N152>0,"+"," =")),"N.C"),"") -> + | U152: 0 | V152: (PI-31) | W152: 0 | X152: 0 | Y152: 1 | Z152: 4 | AA152: =IF($O152>=3.25,Profile!$F$279, IF($O152>=2.5,Profile!$F$278, IF($O152>=1.75,Profile!$F$277, IF($O152>=1,Profile!$F$276, "" )))) -> 1. Below basic
A153: =$I$4 -> PEFALIA | B153: 31.4 | C153: 31.4 | E153: Comp | F153: VII | G153: =VLOOKUP(F153,Profile!B:C,2,FALSE) -> VII. External scrutiny and audit | H153: PI-31 | I153: =IFERROR(VLOOKUP(B153,Profile!B:C,2,FALSE),"") -> 31.4 Transparency of Legislative Scrutiny of Audit Reports | K153: D | L153: =Profile!$E$152 -> Yes | M153: =IFERROR(IF(TRIM(CLEAN(J153))="A",4)+IF(TRIM(CLEAN(J153))="B+",3.5)+IF(TRIM(CLEAN(J153))="B",3)+IF(TRIM(CLEAN(J153))="C+",2.5)+IF(TRIM(CLEAN(J153))="C",2)+IF(TRIM(CLEAN(J153))="D+",1.5)+IF(TRIM(CLEAN(J153))="D",1)+IF(TRIM(CLEAN(J153))="D*",1)+IF(TRIM(CLEAN(J153))="NU",0)+IF(TRIM(CLEAN(J153))="",0),"") -> 0 | N153: 0 | O153: =IFERROR(IF(TRIM(CLEAN(K153))="A",4)+IF(TRIM(CLEAN(K153))="B+",3.5)+IF(TRIM(CLEAN(K153))="B",3)+IF(TRIM(CLEAN(K153))="C+",2.5)+IF(TRIM(CLEAN(K153))="C",2)+IF(TRIM(CLEAN(K153))="D+",1.5)+IF(TRIM(CLEAN(K153))="D",1)+IF(TRIM(CLEAN(K153))="D*",1)+IF(TRIM(CLEAN(K153))="NU",0)+IF(TRIM(CLEAN(K153))="",0),"") -> 1 | P153: 1 | Q153: =IF(K153="D",Profile!$F$276, IF(K153="D*",Profile!$F$276, IF(K153="D+",Profile!$F$276, IF(K153="C",Profile!$F$277, IF(K153="C+",Profile!$F$277, IF(K153="B+",Profile!$F$278, IF(K153="B",Profile!$F$278, IF(K153="A",Profile!$F$279,"")))))))) -> 1. Below basic | R153: =IF(K153="A",Profile!$F$280, IF(K153="B+",Profile!$F$280, IF(K153="B",Profile!$F$280, IF(K153="D+",Profile!$F$281, IF(K153="D",Profile!$F$281, Profile!$F$282))))) -> Weakness | S153: =IFERROR(IF(L153=Profile!$E$152,IF(O153-N153<0,"-",IF(O153-N153>0,"+"," =")),"N.C"),"") -> + | U153: 0 | V153: (PI-31) | W153: 0 | X153: 0 | Y153: 1 | Z153: 4 | AA153: =IF($O153>=3.25,Profile!$F$279, IF($O153>=2.5,Profile!$F$278, IF($O153>=1.75,Profile!$F$277, IF($O153>=1,Profile!$F$276, "" )))) -> 1. Below basic

Sheet ES-Piliars Indic
X1: Indic | Y1: Indic | Z1: Indic
X2: AD | Y2: AD | Z2: AD
AD4: 4 | AE4: 0 | AF4: A
AD5: 3.5 | AE5: 0 | AF5: B+
AD6: 3 | AE6: 0 | AF6: B+
Z7: xyChart | AA7: Value | AD7: 2.5 | AE7: 0 | AF7: C+
Z8: 1 | AA8: 0 | AD8: 2 | AE8: 0 | AF8: C
Z9: 1.5 | AA9: 0 | AD9: 1.5 | AE9: 0 | AF9: D+
Z10: 2 | AA10: 0 | AD10: 1 | AE10: 0 | AF10: D
Z11: 2.5 | AA11: 0 | AD11: 0.5 | AE11: 0 | AF11: D*
Z12: 3 | AA12: 0 | AD12: 0 | AE12: 0 | AF12: NA
Z13: 3.5 | AA13: 0 | AD13: 0 | AF13: NU
Z14: 4 | AA14: 0 | AB14: A
C84: ID-Pilar | D84: Pilar | E84: ID | F84: 4. Avancé | G84: 3. SOUND | H84: 2. Basique | I84: 1. Elémentaire | J84: Score Num
C85: HLG | D85: =VLOOKUP(C85,Profile!B:C,2,FALSE) -> Higher levels of government | E85: HLG-1 | F85: =IF($J85>3.65,$J85,"") ->  | G85: =IF(AND($J85<3.66,$J85>2.65),$J85,"") ->  | H85: =IF(AND($J85<=2.65,$J85>1.25),$J85,"") -> 1.5 | I85: =IF(AND($J85<=1.25,$J85>=1),$J85,"") ->  | J85: =VLOOKUP(E85,'Input. 2016 fmk'!$B$15:$P$153,15,FALSE) -> 1.5 | S85: =INDEX($AF$4:$AF$12,MATCH(J85,$AD$4:$AD$12,0)) -> D+
C86: HLG | E86: HLG-2 | I86: 1 | J86: =VLOOKUP(E86,'Input. 2016 fmk'!$B$15:$P$153,15,FALSE) -> 1 | S86: =INDEX($AF$4:$AF$12,MATCH(J86,$AD$4:$AD$12,0)) -> D
C87: I | D87: =VLOOKUP(C87,Profile!B:C,2,FALSE) -> I. Budget reliability | E87: PI-1 | F87: 4 | J87: =VLOOKUP(E87,'Input. 2016 fmk'!$B$15:$P$153,15,FALSE) -> 4 | S87: A
C88: I | E88: PI-2 | I88: 1 | J88: =VLOOKUP(E88,'Input. 2016 fmk'!$B$15:$P$153,15,FALSE) -> 1 | S88: D
C89: I | E89: PI-3 | I89: 1 | J89: =VLOOKUP(E89,'Input. 2016 fmk'!$B$15:$P$153,15,FALSE) -> 1 | S89: D
C90: II | D90: =VLOOKUP(C90,Profile!B:C,2,FALSE) -> II. Transparency of public finances | E90: PI-4 | I90: 1 | J90: =VLOOKUP(E90,'Input. 2016 fmk'!$B$15:$P$153,15,FALSE) -> 1 | S90: D
C91: II | E91: PI-5 | I91: 1 | J91: =VLOOKUP(E91,'Input. 2016 fmk'!$B$15:$P$153,15,FALSE) -> 1 | S91: D
C92: II | E92: PI-6 | I92: 1 | J92: =VLOOKUP(E92,'Input. 2016 fmk'!$B$15:$P$153,15,FALSE) -> 1 | S92: D
C93: II | E93: PI-7 | H93: 2.5 | J93: =VLOOKUP(E93,'Input. 2016 fmk'!$B$15:$P$153,15,FALSE) -> 2.5 | S93: C+
C94: II | E94: PI-8 | H94: 1.5 | J94: =VLOOKUP(E94,'Input. 2016 fmk'!$B$15:$P$153,15,FALSE) -> 1.5 | S94: D+
C95: II | E95: PI-9 | I95: 1 | J95: =VLOOKUP(E95,'Input. 2016 fmk'!$B$15:$P$153,15,FALSE) -> 1 | S95: D
C96: III | D96: =VLOOKUP(C96,Profile!B:C,2,FALSE) -> III. Management of assets and liabilities | E96: PI-10 | I96: 1 | J96: =VLOOKUP(E96,'Input. 2016 fmk'!$B$15:$P$153,15,FALSE) -> 1 | S96: D
C97: III | E97: PI-11 | H97: 2 | J97: =VLOOKUP(E97,'Input. 2016 fmk'!$B$15:$P$153,15,FALSE) -> 2 | S97: C
C98: III | E98: PI-12 | J98: =VLOOKUP(E98,'Input. 2016 fmk'!$B$15:$P$153,15,FALSE) -> 0 | S98: NA
C99: III | E99: PI-13 | G99: 3 | J99: =VLOOKUP(E99,'Input. 2016 fmk'!$B$15:$P$153,15,FALSE) -> 3 | S99: B+
C100: IV | D100: =VLOOKUP(C100,Profile!B:C,2,FALSE) -> IV. Policy-based fiscal strategy and budgeting | E100: PI-14 | H100: 2 | J100: =VLOOKUP(E100,'Input. 2016 fmk'!$B$15:$P$153,15,FALSE) -> 2 | S100: C
C101: IV | E101: PI-17 | H101: 1.5 | J101: =VLOOKUP(E101,'Input. 2016 fmk'!$B$15:$P$153,15,FALSE) -> 1.5 | S101: D+
C102: IV | E102: PI-18 | H102: 1.5 | J102: =VLOOKUP(E102,'Input. 2016 fmk'!$B$15:$P$153,15,FALSE) -> 1.5 | S102: D+
C103: V | D103: =VLOOKUP(C103,Profile!B:C,2,FALSE) -> V. Predictability and control in budget execution | E103: PI-19 | I103: 1 | J103: =VLOOKUP(E103,'Input. 2016 fmk'!$B$15:$P$153,15,FALSE) -> 1 | S103: D
C104: V | E104: PI-20 | H104: 1.5 | J104: =VLOOKUP(E104,'Input. 2016 fmk'!$B$15:$P$153,15,FALSE) -> 1.5 | S104: D+
C105: V | E105: PI-21 | H105: 2 | J105: =VLOOKUP(E105,'Input. 2016 fmk'!$B$15:$P$153,15,FALSE) -> 2 | S105: C
C106: V | E106: PI-22 | I106: 1 | J106: =VLOOKUP(E106,'Input. 2016 fmk'!$B$15:$P$153,15,FALSE) -> 1 | S106: D
C107: V | E107: PI-23 | I107: 1 | J107: =VLOOKUP(E107,'Input. 2016 fmk'!$B$15:$P$153,15,FALSE) -> 1 | S107: D
C108: V | E108: PI-24 | I108: 1 | J108: =VLOOKUP(E108,'Input. 2016 fmk'!$B$15:$P$153,15,FALSE) -> 1 | S108: D
C109: V | E109: PI-25 | H109: 2.5 | J109: =VLOOKUP(E109,'Input. 2016 fmk'!$B$15:$P$153,15,FALSE) -> 2.5 | S109: C+
C110: V | E110: PI-26 | I110: 1 | J110: =VLOOKUP(E110,'Input. 2016 fmk'!$B$15:$P$153,15,FALSE) -> 1 | S110: D
C111: VI | D111: =VLOOKUP(C111,Profile!B:C,2,FALSE) -> VI. Accounting and reporting | E111: PI-27 | H111: 2.5 | J111: =VLOOKUP(E111,'Input. 2016 fmk'!$B$15:$P$153,15,FALSE) -> 2.5 | S111: C+
C112: VI | E112: PI-28 | I112: 1 | J112: =VLOOKUP(E112,'Input. 2016 fmk'!$B$15:$P$153,15,FALSE) -> 1 | S112: D
C113: VI | E113: PI-29 | H113: 2 | J113: =VLOOKUP(E113,'Input. 2016 fmk'!$B$15:$P$153,15,FALSE) -> 2 | S113: C
C114: VII | D114: =VLOOKUP(C114,Profile!B:C,2,FALSE) -> VII. External scrutiny and audit | E114: PI-30 | I114: 1 | J114: =VLOOKUP(E114,'Input. 2016 fmk'!$B$15:$P$153,15,FALSE) -> 1 | S114: D
C115: VII | E115: PI-31 | I115: 1 | J115: =VLOOKUP(E115,'Input. 2016 fmk'!$B$15:$P$153,15,FALSE) -> 1 | L115: =UPPER(D115) ->  | S115: D

Sheet ES-Synth table
D1: ="PEFA "&'Input. 2016 fmk'!I4&" - Year "&'Input. 2016 fmk'!I7 -> PEFA PEFALIA - Year 2021
A3: Method | C3: Indicators /Dimensions | E3: 1 | F3: 2 | G3: 3 | H3: 4
C4: =Profile!$C$132 -> 28.1 Coverage and comparability of reports
A5: M1 | C5: HLG-1 | D5: =VLOOKUP(C5,Profile!B:C,2,FALSE) -> HLG-1 Transfer from higher levels of government | E5: =_xlfn.IFNA(INDEX(Data!$O$10:$O$139, MATCH(1,(E$3=Data!$J$10:$J$139)*($C5=Data!$I$10:$I$139), 0)),"") -> A | F5: =_xlfn.IFNA(INDEX(Data!$O$10:$O$139, MATCH(1,(F$3=Data!$J$10:$J$139)*($C5=Data!$I$10:$I$139), 0)),"") -> D | G5: =_xlfn.IFNA(INDEX(Data!$O$10:$O$139, MATCH(1,(G$3=Data!$J$10:$J$139)*($C5=Data!$I$10:$I$139), 0)),"") -> D | H5: =_xlfn.IFNA(INDEX(Data!$O$10:$O$139, MATCH(1,(H$3=Data!$J$10:$J$139)*($C5=Data!$I$10:$I$139), 0)),"") -> D | I5: =_xlfn.IFNA(INDEX(Data!$O$10:$O$139, MATCH(1,(I$3=Data!$J$10:$J$139)*($C5=Data!$I$10:$I$139), 0)),"") -> D+
A6: M1 | C6: HLG-2 | D6: =VLOOKUP(C6,Profile!B:C,2,FALSE) -> HLG-2 Fiscal rules and monitoring of fiscal position | E6: =_xlfn.IFNA(INDEX(Data!$O$10:$O$139, MATCH(1,(E$3=Data!$J$10:$J$139)*($C6=Data!$I$10:$I$139), 0)),"") -> D | F6: =_xlfn.IFNA(INDEX(Data!$O$10:$O$139, MATCH(1,(F$3=Data!$J$10:$J$139)*($C6=Data!$I$10:$I$139), 0)),"") -> D | G6: =_xlfn.IFNA(INDEX(Data!$O$10:$O$139, MATCH(1,(G$3=Data!$J$10:$J$139)*($C6=Data!$I$10:$I$139), 0)),"") -> D* | H6: =_xlfn.IFNA(INDEX(Data!$O$10:$O$139, MATCH(1,(H$3=Data!$J$10:$J$139)*($C6=Data!$I$10:$I$139), 0)),"") ->  | I6: =_xlfn.IFNA(INDEX(Data!$O$10:$O$139, MATCH(1,(I$3=Data!$J$10:$J$139)*($C6=Data!$I$10:$I$139), 0)),"") -> D
C7: =Profile!$C$133 -> 28.2 Timing of in-year reports
A8: M1 | C8: PI-1 | D8: =VLOOKUP(C8,Profile!B:C,2,FALSE) -> PI-1 Aggregate expenditure outturn | E8: =_xlfn.IFNA(INDEX(Data!$O$10:$O$139, MATCH(1,(E$3=Data!$J$10:$J$139)*($C8=Data!$I$10:$I$139), 0)),"") -> A | F8: =_xlfn.IFNA(INDEX(Data!$O$10:$O$139, MATCH(1,(F$3=Data!$J$10:$J$139)*($C8=Data!$I$10:$I$139), 0)),"") ->  | G8: =_xlfn.IFNA(INDEX(Data!$O$10:$O$139, MATCH(1,(G$3=Data!$J$10:$J$139)*($C8=Data!$I$10:$I$139), 0)),"") ->  | H8: =_xlfn.IFNA(INDEX(Data!$O$10:$O$139, MATCH(1,(H$3=Data!$J$10:$J$139)*($C8=Data!$I$10:$I$139), 0)),"") ->  | I8: =_xlfn.IFNA(INDEX(Data!$O$10:$O$139, MATCH(1,(I$3=Data!$J$10:$J$139)*($C8=Data!$I$10:$I$139), 0)),"") -> A
A9: M1 | C9: PI-2 | D9: =VLOOKUP(C9,Profile!B:C,2,FALSE) -> PI-2 Expenditure composition outturn | E9: =_xlfn.IFNA(INDEX(Data!$O$10:$O$139, MATCH(1,(E$3=Data!$J$10:$J$139)*($C9=Data!$I$10:$I$139), 0)),"") -> D | F9: =_xlfn.IFNA(INDEX(Data!$O$10:$O$139, MATCH(1,(F$3=Data!$J$10:$J$139)*($C9=Data!$I$10:$I$139), 0)),"") -> D | G9: =_xlfn.IFNA(INDEX(Data!$O$10:$O$139, MATCH(1,(G$3=Data!$J$10:$J$139)*($C9=Data!$I$10:$I$139), 0)),"") -> D | H9: =_xlfn.IFNA(INDEX(Data!$O$10:$O$139, MATCH(1,(H$3=Data!$J$10:$J$139)*($C9=Data!$I$10:$I$139), 0)),"") ->  | I9: =_xlfn.IFNA(INDEX(Data!$O$10:$O$139, MATCH(1,(I$3=Data!$J$10:$J$139)*($C9=Data!$I$10:$I$139), 0)),"") -> D
A10: M1 | C10: PI-3 | D10: =VLOOKUP(C10,Profile!B:C,2,FALSE) -> PI-3 Revenue outturn | E10: =_xlfn.IFNA(INDEX(Data!$O$10:$O$139, MATCH(1,(E$3=Data!$J$10:$J$139)*($C10=Data!$I$10:$I$139), 0)),"") -> D | F10: =_xlfn.IFNA(INDEX(Data!$O$10:$O$139, MATCH(1,(F$3=Data!$J$10:$J$139)*($C10=Data!$I$10:$I$139), 0)),"") -> NA | G10: =_xlfn.IFNA(INDEX(Data!$O$10:$O$139, MATCH(1,(G$3=Data!$J$10:$J$139)*($C10=Data!$I$10:$I$139), 0)),"") ->  | H10: =_xlfn.IFNA(INDEX(Data!$O$10:$O$139, MATCH(1,(H$3=Data!$J$10:$J$139)*($C10=Data!$I$10:$I$139), 0)),"") ->  | I10: =_xlfn.IFNA(INDEX(Data!$O$10:$O$139, MATCH(1,(I$3=Data!$J$10:$J$139)*($C10=Data!$I$10:$I$139), 0)),"") -> D
C11: =Profile!$C$134 -> 28.3 Accuracy of in-year budget reports
A12: M1 | C12: PI-4 | D12: =VLOOKUP(C12,Profile!B:C,2,FALSE) -> PI-4 Budget classification | E12: =_xlfn.IFNA(INDEX(Data!$O$10:$O$139, MATCH(1,(E$3=Data!$J$10:$J$139)*($C12=Data!$I$10:$I$139), 0)),"") -> D | F12: =_xlfn.IFNA(INDEX(Data!$O$10:$O$139, MATCH(1,(F$3=Data!$J$10:$J$139)*($C12=Data!$I$10:$I$139), 0)),"") ->  | G12: =_xlfn.IFNA(INDEX(Data!$O$10:$O$139, MATCH(1,(G$3=Data!$J$10:$J$139)*($C12=Data!$I$10:$I$139), 0)),"") ->  | H12: =_xlfn.IFNA(INDEX(Data!$O$10:$O$139, MATCH(1,(H$3=Data!$J$10:$J$139)*($C12=Data!$I$10:$I$139), 0)),"") ->  | I12: =_xlfn.IFNA(INDEX(Data!$O$10:$O$139, MATCH(1,(I$3=Data!$J$10:$J$139)*($C12=Data!$I$10:$I$139), 0)),"") -> D
A13: M1 | C13: PI-5 | D13: =VLOOKUP(C13,Profile!B:C,2,FALSE) -> PI-5 Budget documentation | E13: =_xlfn.IFNA(INDEX(Data!$O$10:$O$139, MATCH(1,(E$3=Data!$J$10:$J$139)*($C13=Data!$I$10:$I$139), 0)),"") -> D | F13: =_xlfn.IFNA(INDEX(Data!$O$10:$O$139, MATCH(1,(F$3=Data!$J$10:$J$139)*($C13=Data!$I$10:$I$139), 0)),"") ->  | G13: =_xlfn.IFNA(INDEX(Data!$O$10:$O$139, MATCH(1,(G$3=Data!$J$10:$J$139)*($C13=Data!$I$10:$I$139), 0)),"") ->  | H13: =_xlfn.IFNA(INDEX(Data!$O$10:$O$139, MATCH(1,(H$3=Data!$J$10:$J$139)*($C13=Data!$I$10:$I$139), 0)),"") ->  | I13: =_xlfn.IFNA(INDEX(Data!$O$10:$O$139, MATCH(1,(I$3=Data!$J$10:$J$139)*($C13=Data!$I$10:$I$139), 0)),"") -> D
A14: M2 | C14: PI-6 | D14: =VLOOKUP(C14,Profile!B:C,2,FALSE) -> PI-6 Central government operations outside the budget | E14: =_xlfn.IFNA(INDEX(Data!$O$10:$O$139, MATCH(1,(E$3=Data!$J$10:$J$139)*($C14=Data!$I$10:$I$139), 0)),"") -> D* | F14: =_xlfn.IFNA(INDEX(Data!$O$10:$O$139, MATCH(1,(F$3=Data!$J$10:$J$139)*($C14=Data!$I$10:$I$139), 0)),"") -> D* | G14: =_xlfn.IFNA(INDEX(Data!$O$10:$O$139, MATCH(1,(G$3=Data!$J$10:$J$139)*($C14=Data!$I$10:$I$139), 0)),"") -> D | H14: =_xlfn.IFNA(INDEX(Data!$O$10:$O$139, MATCH(1,(H$3=Data!$J$10:$J$139)*($C14=Data!$I$10:$I$139), 0)),"") ->  | I14: =_xlfn.IFNA(INDEX(Data!$O$10:$O$139, MATCH(1,(I$3=Data!$J$10:$J$139)*($C14=Data!$I$10:$I$139), 0)),"") -> D
A15: M2 | C15: PI-7 | D15: =VLOOKUP(C15,Profile!B:C,2,FALSE) -> PI-7 Transfers to sub-national government | E15: =_xlfn.IFNA(INDEX(Data!$O$10:$O$139, MATCH(1,(E$3=Data!$J$10:$J$139)*($C15=Data!$I$10:$I$139), 0)),"") -> B | F15: =_xlfn.IFNA(INDEX(Data!$O$10:$O$139, MATCH(1,(F$3=Data!$J$10:$J$139)*($C15=Data!$I$10:$I$139), 0)),"") -> C | G15: =_xlfn.IFNA(INDEX(Data!$O$10:$O$139, MATCH(1,(G$3=Data!$J$10:$J$139)*($C15=Data!$I$10:$I$139), 0)),"") ->  | H15: =_xlfn.IFNA(INDEX(Data!$O$10:$O$139, MATCH(1,(H$3=Data!$J$10:$J$139)*($C15=Data!$I$10:$I$139), 0)),"") ->  | I15: =_xlfn.IFNA(INDEX(Data!$O$10:$O$139, MATCH(1,(I$3=Data!$J$10:$J$139)*($C15=Data!$I$10:$I$139), 0)),"") -> C+
A16: M2 | C16: PI-8 | D16: =VLOOKUP(C16,Profile!B:C,2,FALSE) -> PI-8 Performance information for service delivery | E16: =_xlfn.IFNA(INDEX(Data!$O$10:$O$139, MATCH(1,(E$3=Data!$J$10:$J$139)*($C16=Data!$I$10:$I$139), 0)),"") -> D | F16: =_xlfn.IFNA(INDEX(Data!$O$10:$O$139, MATCH(1,(F$3=Data!$J$10:$J$139)*($C16=Data!$I$10:$I$139), 0)),"") -> C | G16: =_xlfn.IFNA(INDEX(Data!$O$10:$O$139, MATCH(1,(G$3=Data!$J$10:$J$139)*($C16=Data!$I$10:$I$139), 0)),"") -> D | H16: =_xlfn.IFNA(INDEX(Data!$O$10:$O$139, MATCH(1,(H$3=Data!$J$10:$J$139)*($C16=Data!$I$10:$I$139), 0)),"") -> C | I16: =_xlfn.IFNA(INDEX(Data!$O$10:$O$139, MATCH(1,(I$3=Data!$J$10:$J$139)*($C16=Data!$I$10:$I$139), 0)),"") -> D+
A17: M1 | C17: PI-9 | D17: =VLOOKUP(C17,Profile!B:C,2,FALSE) -> PI-9 Public access to fiscal information | E17: =_xlfn.IFNA(INDEX(Data!$O$10:$O$139, MATCH(1,(E$3=Data!$J$10:$J$139)*($C17=Data!$I$10:$I$139), 0)),"") -> D | F17: =_xlfn.IFNA(INDEX(Data!$O$10:$O$139, MATCH(1,(F$3=Data!$J$10:$J$139)*($C17=Data!$I$10:$I$139), 0)),"") ->  | G17: =_xlfn.IFNA(INDEX(Data!$O$10:$O$139, MATCH(1,(G$3=Data!$J$10:$J$139)*($C17=Data!$I$10:$I$139), 0)),"") ->  | H17: =_xlfn.IFNA(INDEX(Data!$O$10:$O$139, MATCH(1,(H$3=Data!$J$10:$J$139)*($C17=Data!$I$10:$I$139), 0)),"") ->  | I17: =_xlfn.IFNA(INDEX(Data!$O$10:$O$139, MATCH(1,(I$3=Data!$J$10:$J$139)*($C17=Data!$I$10:$I$139), 0)),"") -> D
C18: =Profile!$C$135 -> PI-29 Annual financial reports
A19: M2 | C19: PI-10 | D19: =VLOOKUP(C19,Profile!B:C,2,FALSE) -> PI-10 Fiscal risk reporting | E19: =_xlfn.IFNA(INDEX(Data!$O$10:$O$139, MATCH(1,(E$3=Data!$J$10:$J$139)*($C19=Data!$I$10:$I$139), 0)),"") -> D | F19: =_xlfn.IFNA(INDEX(Data!$O$10:$O$139, MATCH(1,(F$3=Data!$J$10:$J$139)*($C19=Data!$I$10:$I$139), 0)),"") -> D | G19: =_xlfn.IFNA(INDEX(Data!$O$10:$O$139, MATCH(1,(G$3=Data!$J$10:$J$139)*($C19=Data!$I$10:$I$139), 0)),"") -> D | H19: =_xlfn.IFNA(INDEX(Data!$O$10:$O$139, MATCH(1,(H$3=Data!$J$10:$J$139)*($C19=Data!$I$10:$I$139), 0)),"") ->  | I19: =_xlfn.IFNA(INDEX(Data!$O$10:$O$139, MATCH(1,(I$3=Data!$J$10:$J$139)*($C19=Data!$I$10:$I$139), 0)),"") -> D
A20: M2 | C20: PI-11 | D20: =VLOOKUP(C20,Profile!B:C,2,FALSE) -> PI-11 Public investment management | E20: =_xlfn.IFNA(INDEX(Data!$O$10:$O$139, MATCH(1,(E$3=Data!$J$10:$J$139)*($C20=Data!$I$10:$I$139), 0)),"") -> D | F20: =_xlfn.IFNA(INDEX(Data!$O$10:$O$139, MATCH(1,(F$3=Data!$J$10:$J$139)*($C20=Data!$I$10:$I$139), 0)),"") -> C | G20: =_xlfn.IFNA(INDEX(Data!$O$10:$O$139, MATCH(1,(G$3=Data!$J$10:$J$139)*($C20=Data!$I$10:$I$139), 0)),"") -> D | H20: =_xlfn.IFNA(INDEX(Data!$O$10:$O$139, MATCH(1,(H$3=Data!$J$10:$J$139)*($C20=Data!$I$10:$I$139), 0)),"") -> A | I20: =_xlfn.IFNA(INDEX(Data!$O$10:$O$139, MATCH(1,(I$3=Data!$J$10:$J$139)*($C20=Data!$I$10:$I$139), 0)),"") -> C
A21: M2 | C21: PI-12 | D21: =VLOOKUP(C21,Profile!B:C,2,FALSE) -> PI-12 Public asset management | E21: =_xlfn.IFNA(INDEX(Data!$O$10:$O$139, MATCH(1,(E$3=Data!$J$10:$J$139)*($C21=Data!$I$10:$I$139), 0)),"") -> NA | F21: =_xlfn.IFNA(INDEX(Data!$O$10:$O$139, MATCH(1,(F$3=Data!$J$10:$J$139)*($C21=Data!$I$10:$I$139), 0)),"") -> NA | G21: =_xlfn.IFNA(INDEX(Data!$O$10:$O$139, MATCH(1,(G$3=Data!$J$10:$J$139)*($C21=Data!$I$10:$I$139), 0)),"") -> NA | H21: =_xlfn.IFNA(INDEX(Data!$O$10:$O$139, MATCH(1,(H$3=Data!$J$10:$J$139)*($C21=Data!$I$10:$I$139), 0)),"") ->  | I21: =_xlfn.IFNA(INDEX(Data!$O$10:$O$139, MATCH(1,(I$3=Data!$J$10:$J$139)*($C21=Data!$I$10:$I$139), 0)),"") -> NA
A22: M2 | C22: PI-13 | D22: =VLOOKUP(C22,Profile!B:C,2,FALSE) -> PI-13 Debt management | E22: =_xlfn.IFNA(INDEX(Data!$O$10:$O$139, MATCH(1,(E$3=Data!$J$10:$J$139)*($C22=Data!$I$10:$I$139), 0)),"") -> C | F22: =_xlfn.IFNA(INDEX(Data!$O$10:$O$139, MATCH(1,(F$3=Data!$J$10:$J$139)*($C22=Data!$I$10:$I$139), 0)),"") -> A | G22: =_xlfn.IFNA(INDEX(Data!$O$10:$O$139, MATCH(1,(G$3=Data!$J$10:$J$139)*($C22=Data!$I$10:$I$139), 0)),"") -> NA | H22: =_xlfn.IFNA(INDEX(Data!$O$10:$O$139, MATCH(1,(H$3=Data!$J$10:$J$139)*($C22=Data!$I$10:$I$139), 0)),"") ->  | I22: =_xlfn.IFNA(INDEX(Data!$O$10:$O$139, MATCH(1,(I$3=Data!$J$10:$J$139)*($C22=Data!$I$10:$I$139), 0)),"") -> B
C23: =Profile!$C$136 -> 29.1 Completeness of annual financial reports
A24: M2 | C24: PI-14 | D24: =VLOOKUP(C24,Profile!B:C,2,FALSE) -> PI-14 Medium-term budget strategy | E24: =_xlfn.IFNA(INDEX(Data!$O$10:$O$139, MATCH(1,(E$3=Data!$J$10:$J$139)*($C24=Data!$I$10:$I$139), 0)),"") -> D | F24: =_xlfn.IFNA(INDEX(Data!$O$10:$O$139, MATCH(1,(F$3=Data!$J$10:$J$139)*($C24=Data!$I$10:$I$139), 0)),"") -> A | G24: =_xlfn.IFNA(INDEX(Data!$O$10:$O$139, MATCH(1,(G$3=Data!$J$10:$J$139)*($C24=Data!$I$10:$I$139), 0)),"") -> D | H24: =_xlfn.IFNA(INDEX(Data!$O$10:$O$139, MATCH(1,(H$3=Data!$J$10:$J$139)*($C24=Data!$I$10:$I$139), 0)),"") -> D | I24: =_xlfn.IFNA(INDEX(Data!$O$10:$O$139, MATCH(1,(I$3=Data!$J$10:$J$139)*($C24=Data!$I$10:$I$139), 0)),"") -> C
A25: M2 | C25: PI-17 | D25: =VLOOKUP(C25,Profile!B:C,2,FALSE) -> PI-17 Budget preparation process | E25: =_xlfn.IFNA(INDEX(Data!$O$10:$O$139, MATCH(1,(E$3=Data!$J$10:$J$139)*($C25=Data!$I$10:$I$139), 0)),"") -> D | F25: =_xlfn.IFNA(INDEX(Data!$O$10:$O$139, MATCH(1,(F$3=Data!$J$10:$J$139)*($C25=Data!$I$10:$I$139), 0)),"") -> B | G25: =_xlfn.IFNA(INDEX(Data!$O$10:$O$139, MATCH(1,(G$3=Data!$J$10:$J$139)*($C25=Data!$I$10:$I$139), 0)),"") -> D | H25: =_xlfn.IFNA(INDEX(Data!$O$10:$O$139, MATCH(1,(H$3=Data!$J$10:$J$139)*($C25=Data!$I$10:$I$139), 0)),"") ->  | I25: =_xlfn.IFNA(INDEX(Data!$O$10:$O$139, MATCH(1,(I$3=Data!$J$10:$J$139)*($C25=Data!$I$10:$I$139), 0)),"") -> D+
A26: M2 | C26: PI-18 | D26: =VLOOKUP(C26,Profile!B:C,2,FALSE) -> PI-18 Legislative scrutiny of budgets | E26: =_xlfn.IFNA(INDEX(Data!$O$10:$O$139, MATCH(1,(E$3=Data!$J$10:$J$139)*($C26=Data!$I$10:$I$139), 0)),"") -> D | F26: =_xlfn.IFNA(INDEX(Data!$O$10:$O$139, MATCH(1,(F$3=Data!$J$10:$J$139)*($C26=Data!$I$10:$I$139), 0)),"") -> D | G26: =_xlfn.IFNA(INDEX(Data!$O$10:$O$139, MATCH(1,(G$3=Data!$J$10:$J$139)*($C26=Data!$I$10:$I$139), 0)),"") -> NA | H26: =_xlfn.IFNA(INDEX(Data!$O$10:$O$139, MATCH(1,(H$3=Data!$J$10:$J$139)*($C26=Data!$I$10:$I$139), 0)),"") -> A | I26: =_xlfn.IFNA(INDEX(Data!$O$10:$O$139, MATCH(1,(I$3=Data!$J$10:$J$139)*($C26=Data!$I$10:$I$139), 0)),"") -> D+
C27: =Profile!$C$137 -> 29.2 Submission of reports for external audit
A28: M2 | C28: PI-19 | D28: =VLOOKUP(C28,Profile!B:C,2,FALSE) -> PI-19 Tax administration | E28: =_xlfn.IFNA(INDEX(Data!$O$10:$O$139, MATCH(1,(E$3=Data!$J$10:$J$139)*($C28=Data!$I$10:$I$139), 0)),"") -> D | F28: =_xlfn.IFNA(INDEX(Data!$O$10:$O$139, MATCH(1,(F$3=Data!$J$10:$J$139)*($C28=Data!$I$10:$I$139), 0)),"") -> NA | G28: =_xlfn.IFNA(INDEX(Data!$O$10:$O$139, MATCH(1,(G$3=Data!$J$10:$J$139)*($C28=Data!$I$10:$I$139), 0)),"") -> NA | H28: =_xlfn.IFNA(INDEX(Data!$O$10:$O$139, MATCH(1,(H$3=Data!$J$10:$J$139)*($C28=Data!$I$10:$I$139), 0)),"") -> NA | I28: =_xlfn.IFNA(INDEX(Data!$O$10:$O$139, MATCH(1,(I$3=Data!$J$10:$J$139)*($C28=Data!$I$10:$I$139), 0)),"") -> D
A29: M1 | C29: PI-20 | D29: =VLOOKUP(C29,Profile!B:C,2,FALSE) -> PI-20 Accounting for revenues | E29: =_xlfn.IFNA(INDEX(Data!$O$10:$O$139, MATCH(1,(E$3=Data!$J$10:$J$139)*($C29=Data!$I$10:$I$139), 0)),"") -> D | F29: =_xlfn.IFNA(INDEX(Data!$O$10:$O$139, MATCH(1,(F$3=Data!$J$10:$J$139)*($C29=Data!$I$10:$I$139), 0)),"") -> NA | G29: =_xlfn.IFNA(INDEX(Data!$O$10:$O$139, MATCH(1,(G$3=Data!$J$10:$J$139)*($C29=Data!$I$10:$I$139), 0)),"") -> B | H29: =_xlfn.IFNA(INDEX(Data!$O$10:$O$139, MATCH(1,(H$3=Data!$J$10:$J$139)*($C29=Data!$I$10:$I$139), 0)),"") ->  | I29: =_xlfn.IFNA(INDEX(Data!$O$10:$O$139, MATCH(1,(I$3=Data!$J$10:$J$139)*($C29=Data!$I$10:$I$139), 0)),"") -> D+
A30: M2 | C30: PI-21 | D30: =VLOOKUP(C30,Profile!B:C,2,FALSE) -> PI-21 Predictability of in-year resource allocation | E30: =_xlfn.IFNA(INDEX(Data!$O$10:$O$139, MATCH(1,(E$3=Data!$J$10:$J$139)*($C30=Data!$I$10:$I$139), 0)),"") -> NA | F30: =_xlfn.IFNA(INDEX(Data!$O$10:$O$139, MATCH(1,(F$3=Data!$J$10:$J$139)*($C30=Data!$I$10:$I$139), 0)),"") -> NA | G30: =_xlfn.IFNA(INDEX(Data!$O$10:$O$139, MATCH(1,(G$3=Data!$J$10:$J$139)*($C30=Data!$I$10:$I$139), 0)),"") -> C | H30: =_xlfn.IFNA(INDEX(Data!$O$10:$O$139, MATCH(1,(H$3=Data!$J$10:$J$139)*($C30=Data!$I$10:$I$139), 0)),"") -> C | I30: =_xlfn.IFNA(INDEX(Data!$O$10:$O$139, MATCH(1,(I$3=Data!$J$10:$J$139)*($C30=Data!$I$10:$I$139), 0)),"") -> C
A31: M1 | C31: PI-22 | D31: =VLOOKUP(C31,Profile!B:C,2,FALSE) -> PI-22 Expenditure arrears | E31: =_xlfn.IFNA(INDEX(Data!$O$10:$O$139, MATCH(1,(E$3=Data!$J$10:$J$139)*($C31=Data!$I$10:$I$139), 0)),"") -> D* | F31: =_xlfn.IFNA(INDEX(Data!$O$10:$O$139, MATCH(1,(F$3=Data!$J$10:$J$139)*($C31=Data!$I$10:$I$139), 0)),"") -> NA | G31: =_xlfn.IFNA(INDEX(Data!$O$10:$O$139, MATCH(1,(G$3=Data!$J$10:$J$139)*($C31=Data!$I$10:$I$139), 0)),"") ->  | H31: =_xlfn.IFNA(INDEX(Data!$O$10:$O$139, MATCH(1,(H$3=Data!$J$10:$J$139)*($C31=Data!$I$10:$I$139), 0)),"") ->  | I31: =_xlfn.IFNA(INDEX(Data!$O$10:$O$139, MATCH(1,(I$3=Data!$J$10:$J$139)*($C31=Data!$I$10:$I$139), 0)),"") -> D
A32: M1 | C32: PI-23 | D32: =VLOOKUP(C32,Profile!B:C,2,FALSE) -> PI-23 Payroll controls | E32: =_xlfn.IFNA(INDEX(Data!$O$10:$O$139, MATCH(1,(E$3=Data!$J$10:$J$139)*($C32=Data!$I$10:$I$139), 0)),"") -> NA | F32: =_xlfn.IFNA(INDEX(Data!$O$10:$O$139, MATCH(1,(F$3=Data!$J$10:$J$139)*($C32=Data!$I$10:$I$139), 0)),"") -> D | G32: =_xlfn.IFNA(INDEX(Data!$O$10:$O$139, MATCH(1,(G$3=Data!$J$10:$J$139)*($C32=Data!$I$10:$I$139), 0)),"") -> D | H32: =_xlfn.IFNA(INDEX(Data!$O$10:$O$139, MATCH(1,(H$3=Data!$J$10:$J$139)*($C32=Data!$I$10:$I$139), 0)),"") -> D | I32: =_xlfn.IFNA(INDEX(Data!$O$10:$O$139, MATCH(1,(I$3=Data!$J$10:$J$139)*($C32=Data!$I$10:$I$139), 0)),"") -> D
A33: M2 | C33: PI-24 | D33: =VLOOKUP(C33,Profile!B:C,2,FALSE) -> PI-24 Procurement | E33: =_xlfn.IFNA(INDEX(Data!$O$10:$O$139, MATCH(1,(E$3=Data!$J$10:$J$139)*($C33=Data!$I$10:$I$139), 0)),"") -> D* | F33: =_xlfn.IFNA(INDEX(Data!$O$10:$O$139, MATCH(1,(F$3=Data!$J$10:$J$139)*($C33=Data!$I$10:$I$139), 0)),"") -> D* | G33: =_xlfn.IFNA(INDEX(Data!$O$10:$O$139, MATCH(1,(G$3=Data!$J$10:$J$139)*($C33=Data!$I$10:$I$139), 0)),"") -> D | H33: =_xlfn.IFNA(INDEX(Data!$O$10:$O$139, MATCH(1,(H$3=Data!$J$10:$J$139)*($C33=Data!$I$10:$I$139), 0)),"") -> NA | I33: =_xlfn.IFNA(INDEX(Data!$O$10:$O$139, MATCH(1,(I$3=Data!$J$10:$J$139)*($C33=Data!$I$10:$I$139), 0)),"") -> D
A34: M2 | C34: PI-25 | D34: =VLOOKUP(C34,Profile!B:C,2,FALSE) -> PI-25 Internal controls on non-salary expenditure | E34: =_xlfn.IFNA(INDEX(Data!$O$10:$O$139, MATCH(1,(E$3=Data!$J$10:$J$139)*($C34=Data!$I$10:$I$139), 0)),"") -> A | F34: =_xlfn.IFNA(INDEX(Data!$O$10:$O$139, MATCH(1,(F$3=Data!$J$10:$J$139)*($C34=Data!$I$10:$I$139), 0)),"") -> C | G34: =_xlfn.IFNA(INDEX(Data!$O$10:$O$139, MATCH(1,(G$3=Data!$J$10:$J$139)*($C34=Data!$I$10:$I$139), 0)),"") -> D* | H34: =_xlfn.IFNA(INDEX(Data!$O$10:$O$139, MATCH(1,(H$3=Data!$J$10:$J$139)*($C34=Data!$I$10:$I$139), 0)),"") ->  | I34: =_xlfn.IFNA(INDEX(Data!$O$10:$O$139, MATCH(1,(I$3=Data!$J$10:$J$139)*($C34=Data!$I$10:$I$139), 0)),"") -> C+
A35: M1 | C35: PI-26 | D35: =VLOOKUP(C35,Profile!B:C,2,FALSE) -> PI-26 Internal audit | E35: =_xlfn.IFNA(INDEX(Data!$O$10:$O$139, MATCH(1,(E$3=Data!$J$10:$J$139)*($C35=Data!$I$10:$I$139), 0)),"") -> D | F35: =_xlfn.IFNA(INDEX(Data!$O$10:$O$139, MATCH(1,(F$3=Data!$J$10:$J$139)*($C35=Data!$I$10:$I$139), 0)),"") -> NA | G35: =_xlfn.IFNA(INDEX(Data!$O$10:$O$139, MATCH(1,(G$3=Data!$J$10:$J$139)*($C35=Data!$I$10:$I$139), 0)),"") -> NA | H35: =_xlfn.IFNA(INDEX(Data!$O$10:$O$139, MATCH(1,(H$3=Data!$J$10:$J$139)*($C35=Data!$I$10:$I$139), 0)),"") -> NA | I35: =_xlfn.IFNA(INDEX(Data!$O$10:$O$139, MATCH(1,(I$3=Data!$J$10:$J$139)*($C35=Data!$I$10:$I$139), 0)),"") -> D
C36: =Profile!$C$138 -> 29.3 Accounting standards
A37: M2 | C37: PI-27 | D37: =VLOOKUP(C37,Profile!B:C,2,FALSE) -> PI-27 Financial data integrity | E37: =_xlfn.IFNA(INDEX(Data!$O$10:$O$139, MATCH(1,(E$3=Data!$J$10:$J$139)*($C37=Data!$I$10:$I$139), 0)),"") -> B | F37: =_xlfn.IFNA(INDEX(Data!$O$10:$O$139, MATCH(1,(F$3=Data!$J$10:$J$139)*($C37=Data!$I$10:$I$139), 0)),"") -> D | G37: =_xlfn.IFNA(INDEX(Data!$O$10:$O$139, MATCH(1,(G$3=Data!$J$10:$J$139)*($C37=Data!$I$10:$I$139), 0)),"") -> NA | H37: =_xlfn.IFNA(INDEX(Data!$O$10:$O$139, MATCH(1,(H$3=Data!$J$10:$J$139)*($C37=Data!$I$10:$I$139), 0)),"") -> B | I37: =_xlfn.IFNA(INDEX(Data!$O$10:$O$139, MATCH(1,(I$3=Data!$J$10:$J$139)*($C37=Data!$I$10:$I$139), 0)),"") -> C+
A38: M1 | C38: PI-28 | D38: =VLOOKUP(C38,Profile!B:C,2,FALSE) -> PI-28 In-year budget reports | E38: =_xlfn.IFNA(INDEX(Data!$O$10:$O$139, MATCH(1,(E$3=Data!$J$10:$J$139)*($C38=Data!$I$10:$I$139), 0)),"") -> D | F38: =_xlfn.IFNA(INDEX(Data!$O$10:$O$139, MATCH(1,(F$3=Data!$J$10:$J$139)*($C38=Data!$I$10:$I$139), 0)),"") -> NA | G38: =_xlfn.IFNA(INDEX(Data!$O$10:$O$139, MATCH(1,(G$3=Data!$J$10:$J$139)*($C38=Data!$I$10:$I$139), 0)),"") -> NA | H38: =_xlfn.IFNA(INDEX(Data!$O$10:$O$139, MATCH(1,(H$3=Data!$J$10:$J$139)*($C38=Data!$I$10:$I$139), 0)),"") ->  | I38: =_xlfn.IFNA(INDEX(Data!$O$10:$O$139, MATCH(1,(I$3=Data!$J$10:$J$139)*($C38=Data!$I$10:$I$139), 0)),"") -> D
A39: M1 | C39: PI-29 | D39: =VLOOKUP(C39,Profile!B:C,2,FALSE) -> PI-29 Annual financial reports | E39: =_xlfn.IFNA(INDEX(Data!$O$10:$O$139, MATCH(1,(E$3=Data!$J$10:$J$139)*($C39=Data!$I$10:$I$139), 0)),"") -> C | F39: =_xlfn.IFNA(INDEX(Data!$O$10:$O$139, MATCH(1,(F$3=Data!$J$10:$J$139)*($C39=Data!$I$10:$I$139), 0)),"") -> C | G39: =_xlfn.IFNA(INDEX(Data!$O$10:$O$139, MATCH(1,(G$3=Data!$J$10:$J$139)*($C39=Data!$I$10:$I$139), 0)),"") -> C | H39: =_xlfn.IFNA(INDEX(Data!$O$10:$O$139, MATCH(1,(H$3=Data!$J$10:$J$139)*($C39=Data!$I$10:$I$139), 0)),"") ->  | I39: =_xlfn.IFNA(INDEX(Data!$O$10:$O$139, MATCH(1,(I$3=Data!$J$10:$J$139)*($C39=Data!$I$10:$I$139), 0)),"") -> C
C40: =Profile!$C$139 -> PI-30 External Audit
A41: M1 | C41: PI-30 | D41: =VLOOKUP(C41,Profile!B:C,2,FALSE) -> PI-30 External Audit | E41: =_xlfn.IFNA(INDEX(Data!$O$10:$O$139, MATCH(1,(E$3=Data!$J$10:$J$139)*($C41=Data!$I$10:$I$139), 0)),"") -> D | F41: =_xlfn.IFNA(INDEX(Data!$O$10:$O$139, MATCH(1,(F$3=Data!$J$10:$J$139)*($C41=Data!$I$10:$I$139), 0)),"") -> NA | G41: =_xlfn.IFNA(INDEX(Data!$O$10:$O$139, MATCH(1,(G$3=Data!$J$10:$J$139)*($C41=Data!$I$10:$I$139), 0)),"") -> NA | H41: =_xlfn.IFNA(INDEX(Data!$O$10:$O$139, MATCH(1,(H$3=Data!$J$10:$J$139)*($C41=Data!$I$10:$I$139), 0)),"") -> NA | I41: =_xlfn.IFNA(INDEX(Data!$O$10:$O$139, MATCH(1,(I$3=Data!$J$10:$J$139)*($C41=Data!$I$10:$I$139), 0)),"") -> D
A42: M2 | C42: PI-31 | D42: =VLOOKUP(C42,Profile!B:C,2,FALSE) -> PI-31 Legislative Scrutiny of Audit Reports | E42: =_xlfn.IFNA(INDEX(Data!$O$10:$O$139, MATCH(1,(E$3=Data!$J$10:$J$139)*($C42=Data!$I$10:$I$139), 0)),"") -> D | F42: =_xlfn.IFNA(INDEX(Data!$O$10:$O$139, MATCH(1,(F$3=Data!$J$10:$J$139)*($C42=Data!$I$10:$I$139), 0)),"") -> D | G42: =_xlfn.IFNA(INDEX(Data!$O$10:$O$139, MATCH(1,(G$3=Data!$J$10:$J$139)*($C42=Data!$I$10:$I$139), 0)),"") -> D | H42: =_xlfn.IFNA(INDEX(Data!$O$10:$O$139, MATCH(1,(H$3=Data!$J$10:$J$139)*($C42=Data!$I$10:$I$139), 0)),"") -> D | I42: =_xlfn.IFNA(INDEX(Data!$O$10:$O$139, MATCH(1,(I$3=Data!$J$10:$J$139)*($C42=Data!$I$10:$I$139), 0)),"") -> D

Sheet ES-Scores - 2016 Fmk
H2: =Profile!F265 -> PEFA scores by indicators
B3: Ind | C3: ="PEFA "&'Input. 2016 fmk'!$K$15 -> PEFA 2021
B4: A | C4: =COUNTIFS('Input. 2016 fmk'!$E$16:$E$153,"Indic",'Input. 2016 fmk'!$K$16:$K$153,"A") -> 1
B5: B+ | C5: =COUNTIFS('Input. 2016 fmk'!$E$16:$E$153,"Indic",'Input. 2016 fmk'!$K$16:$K$153,"B+") -> 0
B6: B | C6: =COUNTIFS('Input. 2016 fmk'!$E$16:$E$153,"Indic",'Input. 2016 fmk'!$K$16:$K$153,"B") -> 1
B7: C+ | C7: =COUNTIFS('Input. 2016 fmk'!$E$16:$E$153,"Indic",'Input. 2016 fmk'!$K$16:$K$153,"C+") -> 3
B8: C | C8: =COUNTIFS('Input. 2016 fmk'!$E$16:$E$153,"Indic",'Input. 2016 fmk'!$K$16:$K$153,"C") -> 4
B9: D+ | C9: =COUNTIFS('Input. 2016 fmk'!$E$16:$E$153,"Indic",'Input. 2016 fmk'!$K$16:$K$153,"D+") -> 6
B10: D | C10: =COUNTIFS('Input. 2016 fmk'!$E$16:$E$153,"Indic",'Input. 2016 fmk'!$K$16:$K$153,"D") -> 16
B11: NU | C11: =COUNTIFS('Input. 2016 fmk'!$E$16:$E$153,"Indic",'Input. 2016 fmk'!$K$16:$K$153,"NU") -> 0
B12: NA | C12: =COUNTIFS('Input. 2016 fmk'!$E$16:$E$153,"Indic",'Input. 2016 fmk'!$K$16:$K$153,"NA") -> 1
B13: Total | C13: =SUM(B4:C12) -> 32
H20: =Profile!F266 -> PEFA scores by dimension
B21: Comp | C21: ="PEFA "&'Input. 2016 fmk'!$K$15 -> PEFA 2021
B22: A | C22: =COUNTIFS('Input. 2016 fmk'!$E$16:$E$153,"Comp",'Input. 2016 fmk'!$K$16:$K$153,"A") -> 7
B23: B | C23: =COUNTIFS('Input. 2016 fmk'!$E$16:$E$153,"Comp",'Input. 2016 fmk'!$K$16:$K$153,"B") -> 5
B24: C | C24: =COUNTIFS('Input. 2016 fmk'!$E$16:$E$153,"Comp",'Input. 2016 fmk'!$K$16:$K$153,"C") -> 12
B25: D | C25: =COUNTIFS('Input. 2016 fmk'!$E$16:$E$153,"Comp",'Input. 2016 fmk'!$K$16:$K$153,"D") -> 43
B26: D* | C26: =COUNTIFS('Input. 2016 fmk'!$E$16:$E$153,"Comp",'Input. 2016 fmk'!$K$16:$K$153,"D~*") -> 7
B27: NU | C27: =COUNTIFS('Input. 2016 fmk'!$E$16:$E$153,"Comp",'Input. 2016 fmk'!$K$16:$K$153,"NU") -> 0
B28: NA | C28: =COUNTIFS('Input. 2016 fmk'!$E$16:$E$153,"Comp",'Input. 2016 fmk'!$K$16:$K$153,"NA") -> 24
B29: Total | C29: =SUM(B22:C28) -> 98

Sheet ES-Scores & Evol (hidden)
B3: Ind | C3: ="PEFA "&'Input. 2016 fmk'!$I$9 -> PEFA 2016 | D3: ="PEFA "&'Input. 2016 fmk'!$K$15 -> PEFA 2021
B4: A | C4: =COUNTIFS('Input. 2016 fmk'!$E$16:$E$153,"Indic",'Input. 2016 fmk'!$J$16:$J$153,"A") -> 0 | D4: =COUNTIFS('Input. 2016 fmk'!$E$16:$E$153,"Indic",'Input. 2016 fmk'!$K$16:$K$153,"A") -> 1
B5: B+ | C5: =COUNTIFS('Input. 2016 fmk'!$E$16:$E$153,"Indic",'Input. 2016 fmk'!$J$16:$J$153,"B+") -> 0 | D5: =COUNTIFS('Input. 2016 fmk'!$E$16:$E$153,"Indic",'Input. 2016 fmk'!$K$16:$K$153,"B+") -> 0
B6: B | C6: =COUNTIFS('Input. 2016 fmk'!$E$16:$E$153,"Indic",'Input. 2016 fmk'!$J$16:$J$153,"B") -> 0 | D6: =COUNTIFS('Input. 2016 fmk'!$E$16:$E$153,"Indic",'Input. 2016 fmk'!$K$16:$K$153,"B") -> 1
B7: C+ | C7: =COUNTIFS('Input. 2016 fmk'!$E$16:$E$153,"Indic",'Input. 2016 fmk'!$J$16:$J$153,"C+") -> 0 | D7: =COUNTIFS('Input. 2016 fmk'!$E$16:$E$153,"Indic",'Input. 2016 fmk'!$K$16:$K$153,"C+") -> 3
B8: C | C8: =COUNTIFS('Input. 2016 fmk'!$E$16:$E$153,"Indic",'Input. 2016 fmk'!$J$16:$J$153,"C") -> 0 | D8: =COUNTIFS('Input. 2016 fmk'!$E$16:$E$153,"Indic",'Input. 2016 fmk'!$K$16:$K$153,"C") -> 4
B9: D+ | C9: =COUNTIFS('Input. 2016 fmk'!$E$16:$E$153,"Indic",'Input. 2016 fmk'!$J$16:$J$153,"D+") -> 0 | D9: =COUNTIFS('Input. 2016 fmk'!$E$16:$E$153,"Indic",'Input. 2016 fmk'!$K$16:$K$153,"D+") -> 6
B10: D | C10: =COUNTIFS('Input. 2016 fmk'!$E$16:$E$153,"Indic",'Input. 2016 fmk'!$J$16:$J$153,"D") -> 0 | D10: =COUNTIFS('Input. 2016 fmk'!$E$16:$E$153,"Indic",'Input. 2016 fmk'!$K$16:$K$153,"D") -> 16
B11: NU | C11: =COUNTIFS('Input. 2016 fmk'!$E$16:$E$153,"Indic",'Input. 2016 fmk'!$J$16:$J$153,"NU") -> 0 | D11: =COUNTIFS('Input. 2016 fmk'!$E$16:$E$153,"Indic",'Input. 2016 fmk'!$K$16:$K$153,"NU") -> 0
B12: NA | C12: =IFERROR(COUNTIFS('Input. 2016 fmk'!$E$16:$E$153,"Indic",'Input. 2016 fmk'!$J$16:$J$153,"NA"),"") -> 32 | D12: =COUNTIFS('Input. 2016 fmk'!$E$16:$E$153,"Indic",'Input. 2016 fmk'!$K$16:$K$153,"NA") -> 1
B13: Total | C13: =SUM(B4:C12) -> 32 | D13: =SUM(D4:D12) -> 32
B21: Ind | C21: ="PEFA "&'Input. 2016 fmk'!$I$9 -> PEFA 2016 | D21: ="PEFA "&'Input. 2016 fmk'!$K$15 -> PEFA 2021
B22: A | C22: =COUNTIFS('Input. 2016 fmk'!$E$16:$E$153,"Comp",'Input. 2016 fmk'!$J$16:$J$153,"A") -> 0 | D22: =COUNTIFS('Input. 2016 fmk'!$E$16:$E$153,"Comp",'Input. 2016 fmk'!$K$16:$K$153,"A") -> 7
B23: B | C23: =COUNTIFS('Input. 2016 fmk'!$E$16:$E$153,"Comp",'Input. 2016 fmk'!$J$16:$J$153,"B") -> 0 | D23: =COUNTIFS('Input. 2016 fmk'!$E$16:$E$153,"Comp",'Input. 2016 fmk'!$K$16:$K$153,"B") -> 5
B24: C | C24: =COUNTIFS('Input. 2016 fmk'!$E$16:$E$153,"Comp",'Input. 2016 fmk'!$J$16:$J$153,"C") -> 0 | D24: =COUNTIFS('Input. 2016 fmk'!$E$16:$E$153,"Comp",'Input. 2016 fmk'!$K$16:$K$153,"C") -> 12
B25: D | C25: =COUNTIFS('Input. 2016 fmk'!$E$16:$E$153,"Comp",'Input. 2016 fmk'!$J$16:$J$153,"D") -> 0 | D25: =COUNTIFS('Input. 2016 fmk'!$E$16:$E$153,"Comp",'Input. 2016 fmk'!$K$16:$K$153,"D") -> 43
B26: D* | C26: =COUNTIFS('Input. 2016 fmk'!$E$16:$E$153,"Comp",'Input. 2016 fmk'!$J$16:$J$153,"D~*") -> 0 | D26: =COUNTIFS('Input. 2016 fmk'!$E$16:$E$153,"Comp",'Input. 2016 fmk'!$K$16:$K$153,"D~*") -> 7
B27: NU | C27: =COUNTIFS('Input. 2016 fmk'!$E$16:$E$153,"Comp",'Input. 2016 fmk'!$J$16:$J$153,"NU") -> 0 | D27: =COUNTIFS('Input. 2016 fmk'!$E$16:$E$153,"Comp",'Input. 2016 fmk'!$K$16:$K$153,"NU") -> 0
B28: NA | C28: =COUNTIFS('Input. 2016 fmk'!$E$16:$E$153,"Comp",'Input. 2016 fmk'!$J$16:$J$153,"NA") -> 3 | D28: =COUNTIFS('Input. 2016 fmk'!$E$16:$E$153,"Comp",'Input. 2016 fmk'!$K$16:$K$153,"NA") -> 24
B29: Total | C29: =SUM(B22:C28) -> 3 | D29: =SUM(D22:D28) -> 98
B37: Ind | C37: Evol
B38: - | C38: =COUNTIFS('Input. 2016 fmk'!$E$16:$E$153,"Indic",'Input. 2016 fmk'!$S$16:$S$153,"-") -> 0
B39: + | C39: =COUNTIFS('Input. 2016 fmk'!$E$16:$E$153,"Indic",'Input. 2016 fmk'!$S$16:$S$153,"+") -> 28
B40: = | C40: =COUNTIFS('Input. 2016 fmk'!$E$16:$E$153,"Indic",'Input. 2016 fmk'!$S$16:$S$153," =") -> 1
B41: N.C | C41: =COUNTIFS('Input. 2016 fmk'!$E$16:$E$153,"Indic",'Input. 2016 fmk'!$S$16:$S$153,"N.C") -> 3
B42: Total | C42: =SUM(B38:C41) -> 32
B52: ID-Comp | C52: Evol
B53: - | C53: =COUNTIFS('Input. 2016 fmk'!$E$16:$E$153,"Comp",'Input. 2016 fmk'!$S$16:$S$153,"-") -> 0
B54: + | C54: =COUNTIFS('Input. 2016 fmk'!$E$16:$E$153,"Comp",'Input. 2016 fmk'!$S$16:$S$153,"+") -> 74
B55: = | C55: =COUNTIFS('Input. 2016 fmk'!$E$16:$E$153,"Comp",'Input. 2016 fmk'!$S$16:$S$153," =") -> 24
B56: N.C | C56: =COUNTIFS('Input. 2016 fmk'!$E$16:$E$153,"Comp",'Input. 2016 fmk'!$S$16:$S$153,"N.C") -> 0
B57: Total | C57: =SUM(B53:C56) -> 98

Sheet S-4.1 Pilars
X1: Indic | Y1: Indic | Z1: Indic
B2: =" PEFA "&'Input. 2016 fmk'!$I$4&"- Year "&'Input. 2016 fmk'!$I$7 -> PEFA PEFALIA- Year 2021 | X2: AD | Y2: AD | Z2: AD
G3: =Profile!F275 -> Scores by pillar
AD4: 4 | AE4: 0 | AF4: A
AD5: 3.5 | AE5: 0 | AF5: B+
AD6: 3 | AE6: 0 | AF6: B+
Z7: xyChart | AA7: Value | AD7: 2.5 | AE7: 0 | AF7: C+
Z8: 1 | AA8: 0 | AD8: 2 | AE8: 0 | AF8: C
Z9: 1.5 | AA9: 0 | AD9: 1.5 | AE9: 0 | AF9: D+
Z10: 2 | AA10: 0 | AD10: 1 | AE10: 0 | AF10: D
Z11: 2.5 | AA11: 0 | AD11: 0.5 | AE11: 0 | AF11: D*
Z12: 3 | AA12: 0 | AD12: 0 | AE12: 0 | AF12: NA
Z13: 3.5 | AA13: 0 | AD13: 0 | AF13: NU
Z14: 4 | AA14: 0 | AB14: A
B34: ID | C34: Pilar | D34: 4. Advanced | E34: 3. Sound | F34: 2. Basic | G34: 1. Below basic | H34: Score
B35: HLG | C35: =VLOOKUP(B35,Profile!B:C,2,FALSE) -> Higher levels of government | D35: =IF($H35>3.65,$H35,"") ->  | E35: =IF(AND($H35<3.66,$H35>2.65),$H35,"") ->  | F35: =IF(AND($H35<=2.65,$H35>1.25),$H35,"") -> 1.5 | G35: =IF(AND($H35<=1.25,$H35>=1),$H35,"") ->  | H35: =VLOOKUP(B35,'Input. 2016 fmk'!$C$15:$P$153,14,FALSE) -> 1.5 | S35: =INDEX($AF$4:$AF$12,MATCH(H35,$AD$4:$AD$12,0)) -> D+
B36: I | C36: =VLOOKUP(B36,Profile!B:C,2,FALSE) -> I. Budget reliability | D36: =IF($H36>3.65,$H36,"") ->  | F36: 2 | H36: =VLOOKUP(B36,'Input. 2016 fmk'!$C$15:$P$153,14,FALSE) -> 2 | S36: =INDEX($AF$4:$AF$12,MATCH(H36,$AD$4:$AD$12,0)) -> C
B37: II | C37: =VLOOKUP(B37,Profile!B:C,2,FALSE) -> II. Transparency of public finances | D37: =IF($H37>3.65,H37,"") ->  | F37: 1.5 | H37: =VLOOKUP(B37,'Input. 2016 fmk'!$C$15:$P$153,14,FALSE) -> 1.5 | S37: D+
B38: III | C38: =VLOOKUP(B38,Profile!B:C,2,FALSE) -> III. Management of assets and liabilities | F38: 1.5 | H38: =VLOOKUP(B38,'Input. 2016 fmk'!$C$15:$P$153,14,FALSE) -> 1.5 | S38: D+
B39: IV | C39: =VLOOKUP(B39,Profile!B:C,2,FALSE) -> IV. Policy-based fiscal strategy and budgeting | F39: 1.5 | H39: =VLOOKUP(B39,'Input. 2016 fmk'!$C$15:$P$153,14,FALSE) -> 1.5 | S39: D+
B40: V | C40: =VLOOKUP(B40,Profile!B:C,2,FALSE) -> V. Predictability and control in budget execution | G40: 1 | H40: =VLOOKUP(B40,'Input. 2016 fmk'!$C$15:$P$153,14,FALSE) -> 1 | S40: D
B41: VI | C41: =VLOOKUP(B41,Profile!B:C,2,FALSE) -> VI. Accounting and reporting | F41: 1.5 | H41: =VLOOKUP(B41,'Input. 2016 fmk'!$C$15:$P$153,14,FALSE) -> 1.5 | S41: D+
B42: VII | C42: =VLOOKUP(B42,Profile!B:C,2,FALSE) -> VII. External scrutiny and audit | G42: 1 | H42: =VLOOKUP(B42,'Input. 2016 fmk'!$C$15:$P$153,14,FALSE) -> 1 | S42: D

Sheet S-4.3 (Indicators)
B48: Score | C48: PI | D48: Label | E48: 4. Advanced | F48: 3. Sound | G48: 2. Basic | H48: 1. Below basic | I48: Score
B49: =I49 -> 0 | C49: PI-12 | D49: =INDEX('Input. 2016 fmk'!$B$16:$S$153,MATCH(C49,'Input. 2016 fmk'!$B$16:$B$153,0),8) -> PI-12 Public asset management | E49: =IF($I49>3.65,$I49,"") ->  | F49: =IF(AND($I49<3.66,$I49>2.65),$I49,"") ->  | G49: =IF(AND($I49<=2.65,$I49>1.25),$I49,"") ->  | H49: =IF(AND($I49<=1.25,$I49>=1),$I49,"") ->  | I49: =INDEX('Input. 2016 fmk'!$B$16:$S$153,MATCH(C49,'Input. 2016 fmk'!$B$16:$B$153,0),15) -> 0
B50: 1 | C50: PI-19 | D50: =INDEX('Input. 2016 fmk'!$B$16:$S$153,MATCH(C50,'Input. 2016 fmk'!$B$16:$B$153,0),8) -> PI-19 Tax administration | H50: 1 | I50: =INDEX('Input. 2016 fmk'!$B$16:$S$153,MATCH(C50,'Input. 2016 fmk'!$B$16:$B$153,0),15) -> 1
B51: 1 | C51: PI-10 | D51: =INDEX('Input. 2016 fmk'!$B$16:$S$153,MATCH(C51,'Input. 2016 fmk'!$B$16:$B$153,0),8) -> PI-10 Fiscal risk reporting | H51: 1 | I51: =INDEX('Input. 2016 fmk'!$B$16:$S$153,MATCH(C51,'Input. 2016 fmk'!$B$16:$B$153,0),15) -> 1
B52: 1 | C52: PI-31 | D52: =INDEX('Input. 2016 fmk'!$B$16:$S$153,MATCH(C52,'Input. 2016 fmk'!$B$16:$B$153,0),8) -> PI-31 Legislative Scrutiny of Audit Reports | H52: 1 | I52: =INDEX('Input. 2016 fmk'!$B$16:$S$153,MATCH(C52,'Input. 2016 fmk'!$B$16:$B$153,0),15) -> 1
B53: 1 | C53: PI-3 | D53: =INDEX('Input. 2016 fmk'!$B$16:$S$153,MATCH(C53,'Input. 2016 fmk'!$B$16:$B$153,0),8) -> PI-3 Revenue outturn | H53: 1 | I53: =INDEX('Input. 2016 fmk'!$B$16:$S$153,MATCH(C53,'Input. 2016 fmk'!$B$16:$B$153,0),15) -> 1
B54: 1 | C54: PI-26 | D54: =INDEX('Input. 2016 fmk'!$B$16:$S$153,MATCH(C54,'Input. 2016 fmk'!$B$16:$B$153,0),8) -> PI-26 Internal audit | H54: 1 | I54: =INDEX('Input. 2016 fmk'!$B$16:$S$153,MATCH(C54,'Input. 2016 fmk'!$B$16:$B$153,0),15) -> 1
B55: 1 | C55: PI-30 | D55: =INDEX('Input. 2016 fmk'!$B$16:$S$153,MATCH(C55,'Input. 2016 fmk'!$B$16:$B$153,0),8) -> PI-30 External Audit | H55: 1 | I55: =INDEX('Input. 2016 fmk'!$B$16:$S$153,MATCH(C55,'Input. 2016 fmk'!$B$16:$B$153,0),15) -> 1
B56: 1 | C56: PI-28 | D56: =INDEX('Input. 2016 fmk'!$B$16:$S$153,MATCH(C56,'Input. 2016 fmk'!$B$16:$B$153,0),8) -> PI-28 In-year budget reports | H56: 1 | I56: =INDEX('Input. 2016 fmk'!$B$16:$S$153,MATCH(C56,'Input. 2016 fmk'!$B$16:$B$153,0),15) -> 1
B57: 1 | C57: PI-4 | D57: =INDEX('Input. 2016 fmk'!$B$16:$S$153,MATCH(C57,'Input. 2016 fmk'!$B$16:$B$153,0),8) -> PI-4 Budget classification | H57: 1 | I57: =INDEX('Input. 2016 fmk'!$B$16:$S$153,MATCH(C57,'Input. 2016 fmk'!$B$16:$B$153,0),15) -> 1
B58: 1 | C58: PI-9 | D58: =INDEX('Input. 2016 fmk'!$B$16:$S$153,MATCH(C58,'Input. 2016 fmk'!$B$16:$B$153,0),8) -> PI-9 Public access to fiscal information | H58: 1 | I58: =INDEX('Input. 2016 fmk'!$B$16:$S$153,MATCH(C58,'Input. 2016 fmk'!$B$16:$B$153,0),15) -> 1
B59: 1 | C59: PI-6 | D59: =INDEX('Input. 2016 fmk'!$B$16:$S$153,MATCH(C59,'Input. 2016 fmk'!$B$16:$B$153,0),8) -> PI-6 Central government operations outside the budget | H59: 1 | I59: =INDEX('Input. 2016 fmk'!$B$16:$S$153,MATCH(C59,'Input. 2016 fmk'!$B$16:$B$153,0),15) -> 1
B60: 1 | C60: PI-5 | D60: =INDEX('Input. 2016 fmk'!$B$16:$S$153,MATCH(C60,'Input. 2016 fmk'!$B$16:$B$153,0),8) -> PI-5 Budget documentation | H60: 1 | I60: =INDEX('Input. 2016 fmk'!$B$16:$S$153,MATCH(C60,'Input. 2016 fmk'!$B$16:$B$153,0),15) -> 1
B61: 1 | C61: PI-24 | D61: =INDEX('Input. 2016 fmk'!$B$16:$S$153,MATCH(C61,'Input. 2016 fmk'!$B$16:$B$153,0),8) -> PI-24 Procurement | H61: 1 | I61: =INDEX('Input. 2016 fmk'!$B$16:$S$153,MATCH(C61,'Input. 2016 fmk'!$B$16:$B$153,0),15) -> 1
B62: 1 | C62: PI-22 | D62: =INDEX('Input. 2016 fmk'!$B$16:$S$153,MATCH(C62,'Input. 2016 fmk'!$B$16:$B$153,0),8) -> PI-22 Expenditure arrears | H62: 1 | I62: =INDEX('Input. 2016 fmk'!$B$16:$S$153,MATCH(C62,'Input. 2016 fmk'!$B$16:$B$153,0),15) -> 1
B63: 1 | C63: PI-23 | D63: =INDEX('Input. 2016 fmk'!$B$16:$S$153,MATCH(C63,'Input. 2016 fmk'!$B$16:$B$153,0),8) -> PI-23 Payroll controls | H63: 1 | I63: =INDEX('Input. 2016 fmk'!$B$16:$S$153,MATCH(C63,'Input. 2016 fmk'!$B$16:$B$153,0),15) -> 1
B64: 1 | C64: PI-2 | D64: =INDEX('Input. 2016 fmk'!$B$16:$S$153,MATCH(C64,'Input. 2016 fmk'!$B$16:$B$153,0),8) -> PI-2 Expenditure composition outturn | H64: 1 | I64: =INDEX('Input. 2016 fmk'!$B$16:$S$153,MATCH(C64,'Input. 2016 fmk'!$B$16:$B$153,0),15) -> 1
B65: 1.5 | C65: PI-8 | D65: =INDEX('Input. 2016 fmk'!$B$16:$S$153,MATCH(C65,'Input. 2016 fmk'!$B$16:$B$153,0),8) -> PI-8 Performance information for service delivery | G65: 1.5 | I65: =INDEX('Input. 2016 fmk'!$B$16:$S$153,MATCH(C65,'Input. 2016 fmk'!$B$16:$B$153,0),15) -> 1.5
B66: 1.5 | C66: PI-17 | D66: =INDEX('Input. 2016 fmk'!$B$16:$S$153,MATCH(C66,'Input. 2016 fmk'!$B$16:$B$153,0),8) -> PI-17 Budget preparation process | G66: 1.5 | I66: =INDEX('Input. 2016 fmk'!$B$16:$S$153,MATCH(C66,'Input. 2016 fmk'!$B$16:$B$153,0),15) -> 1.5
B67: 1.5 | C67: PI-18 | D67: =INDEX('Input. 2016 fmk'!$B$16:$S$153,MATCH(C67,'Input. 2016 fmk'!$B$16:$B$153,0),8) -> PI-18 Legislative scrutiny of budgets | G67: 1.5 | I67: =INDEX('Input. 2016 fmk'!$B$16:$S$153,MATCH(C67,'Input. 2016 fmk'!$B$16:$B$153,0),15) -> 1.5
B68: 1.5 | C68: PI-20 | D68: =INDEX('Input. 2016 fmk'!$B$16:$S$153,MATCH(C68,'Input. 2016 fmk'!$B$16:$B$153,0),8) -> PI-20 Accounting for revenues | G68: 1.5 | I68: =INDEX('Input. 2016 fmk'!$B$16:$S$153,MATCH(C68,'Input. 2016 fmk'!$B$16:$B$153,0),15) -> 1.5
B69: 2 | C69: PI-14 | D69: =INDEX('Input. 2016 fmk'!$B$16:$S$153,MATCH(C69,'Input. 2016 fmk'!$B$16:$B$153,0),8) -> PI-14 Medium-term budget strategy | G69: 2 | I69: =INDEX('Input. 2016 fmk'!$B$16:$S$153,MATCH(C69,'Input. 2016 fmk'!$B$16:$B$153,0),15) -> 2
B70: 2 | C70: PI-11 | D70: =INDEX('Input. 2016 fmk'!$B$16:$S$153,MATCH(C70,'Input. 2016 fmk'!$B$16:$B$153,0),8) -> PI-11 Public investment management | G70: 2 | I70: =INDEX('Input. 2016 fmk'!$B$16:$S$153,MATCH(C70,'Input. 2016 fmk'!$B$16:$B$153,0),15) -> 2
B71: 2 | C71: PI-29 | D71: =INDEX('Input. 2016 fmk'!$B$16:$S$153,MATCH(C71,'Input. 2016 fmk'!$B$16:$B$153,0),8) -> PI-29 Annual financial reports | G71: 2 | I71: =INDEX('Input. 2016 fmk'!$B$16:$S$153,MATCH(C71,'Input. 2016 fmk'!$B$16:$B$153,0),15) -> 2
B72: 2 | C72: PI-21 | D72: =INDEX('Input. 2016 fmk'!$B$16:$S$153,MATCH(C72,'Input. 2016 fmk'!$B$16:$B$153,0),8) -> PI-21 Predictability of in-year resource allocation | G72: 2 | I72: =INDEX('Input. 2016 fmk'!$B$16:$S$153,MATCH(C72,'Input. 2016 fmk'!$B$16:$B$153,0),15) -> 2
B73: 2.5 | C73: PI-7 | D73: =INDEX('Input. 2016 fmk'!$B$16:$S$153,MATCH(C73,'Input. 2016 fmk'!$B$16:$B$153,0),8) -> PI-7 Transfers to sub-national government | G73: 2.5 | I73: =INDEX('Input. 2016 fmk'!$B$16:$S$153,MATCH(C73,'Input. 2016 fmk'!$B$16:$B$153,0),15) -> 2.5
B74: 2.5 | C74: PI-27 | D74: =INDEX('Input. 2016 fmk'!$B$16:$S$153,MATCH(C74,'Input. 2016 fmk'!$B$16:$B$153,0),8) -> PI-27 Financial data integrity | G74: 2.5 | I74: =INDEX('Input. 2016 fmk'!$B$16:$S$153,MATCH(C74,'Input. 2016 fmk'!$B$16:$B$153,0),15) -> 2.5
B75: 2.5 | C75: PI-25 | D75: =INDEX('Input. 2016 fmk'!$B$16:$S$153,MATCH(C75,'Input. 2016 fmk'!$B$16:$B$153,0),8) -> PI-25 Internal controls on non-salary expenditure | G75: 2.5 | I75: =INDEX('Input. 2016 fmk'!$B$16:$S$153,MATCH(C75,'Input. 2016 fmk'!$B$16:$B$153,0),15) -> 2.5
B76: 3 | C76: PI-13 | D76: =INDEX('Input. 2016 fmk'!$B$16:$S$153,MATCH(C76,'Input. 2016 fmk'!$B$16:$B$153,0),8) -> PI-13 Debt management | F76: 3 | I76: =INDEX('Input. 2016 fmk'!$B$16:$S$153,MATCH(C76,'Input. 2016 fmk'!$B$16:$B$153,0),15) -> 3
